Workbook

Sheet RRQ Allocations
D1: RRQ Type 1/
D2: T = Transportation
D3: P = Procurement | H3: % Residential | J3: % Residential | L3: % Bundled
B4: Allocation Methodology | D4: PPP = Public Purpose | F4: Description | H4: of Total Allocated | J4: that is Bundled 2/ | L4: of Total Allocated | N4: Authorizing Decision
B5: 100% Residential | D5: T | F5: 100% allocated to residential class | H5: 1 | J5: 0.8975892099 | L5: 0.8975892099 | N5: D.18-03-017 (for GHG)
B6: Core - Distribution | D6: T | H6: 0.8087424535 | J6: 0.8975892099 | L6: 0.8129922905
B7: Distribution | D7: T | F7: • Marginal Cost using Rental Method for Customer Function and Marginal Cost of $373.74 for Distribution Function applied to peak day in avg. temp winter • Allocation to Small Commercial is capped at 17.717% with overage re-allocated to Residential | H7: 0.7848380342 | J7: 0.8975892099 | L7: 0.8241183829 | N7: D.19-10-036
B8: ECPT - ALL | D8: T | H8: 0.2722760258 | J8: 0.8975892099 | L8: 0.3330603292
B9: ECPT - Core only | D9: T | F9: Core Brokerage Fee: The Core Brokerage Fee is part of the distribution revenue requirement. In transportation the RRQ is reduced and then it is recovered via the customers that pay PG&E procurement rates. Pension Contribution - GT&S Core: | H9: 0.6645607332 | J9: 0.8975892099 | L9: 0.8129206965 | N9: D.95-07-048 (for Core Brokerage Fee)
B10: ECPT - Noncore only | D10: T | H10: 0 | J10: 0 | L10: 0
B11: ECPT - 50% Core / 50% Noncore | D11: T | H11: 0.3322803666 | J11: 0.8975892099 | L11: 0.4064069743
B12: ECPT (excludes Covered Entities 3 yr avg vol) | D12: T | H12: 0.3579384357 | J12: 0.8975892099 | L12: 0.4375232549
B13: EE | D13: PPP | H13: 0.3384 | J13: 0.8975892099 | L13: 0.5263600624 | N13: D.19-10-036
B14: ESA | D14: PPP | H14: 1 | J14: 0.8975892099 | L14: 0.8975892099 | N14: D.19-10-036 D.95-12-053
B15: PPP ECPT | D15: PPP | H15: 0.3972263924 | J15: 0.8975892099 | L15: 0.4841502206
B16: SGIP allocation | D16: T | H16: 0.9155803564 | J16: 0.8975892099 | L16: 0.8759943223
B17: CPUC Fee Allocation | D17: T | H17: 0.3675689852 | J17: 0.8975892099 | L17: 0.4477846123
B18: CAC Allocation | D18: T | H18: 0 | J18: 0 | L18: 0
B19: Storage Allocation (Procurement) | D19: P | H19: 0.7912905715 | J19: 1 | L19: 1
B20: Capacity Allocation (Procurement) | D20: P | H20: 0.7933288665 | J20: 1 | L20: 1
B21: ECPT - Core only (Procurement) | D21: P | F21: The Core Brokerage Fee is part of the distribution revenue requirement. In transportation the RRQ is reduced and then it is recovered via the customers that pay PG&E procurement rates. | H21: 0.7339651048 | J21: 1 | L21: 1 | N21: D.95-07-048 (for Core Brokerage Fee)
B22: 2023 GTS - Inventory Management | D22: T | F22: Adopted in 2023 GTS CARD | H22: 0.3591976846 | J22: 0.8975892099 | L22: 0.4303735794 | N22: D.24-03-002
B23: User Defined 1 | D23: T | F23: Short Description of Allocation
B24: User Defined 2 | D24: T | F24: Short Description of Allocation
B25: User Defined 3 | D25: T | F25: Short Description of Allocation
B29: NOTES:
B30: 1/ For User Defined allocations, user must select the RRQ type.
B31: =CONCATENATE("2/ If the allocation applies to the entire system, then the Bundled Residential percentage will be ",TEXT(J5,"0.00%"),". if the allocation applies only to Bundled, then the Bundled Residential percentage will be 100%.") -> 2/ If the allocation applies to the entire system, then the Bundled Residential percentage will be 89.76%. if the allocation applies only to Bundled, then the Bundled Residential percentage will be 100%.

Sheet Selected Data
A1: Summary of Selected Data
Q2: Revenue
Q3: Requirement
Q4: $000
A5: 1 | B5: Current total system-level revenue requirement that is used for defining the reporting threshold: | Q5: ='Incremental Rev Req'!D73 -> 6965550.126
B6: A | C6: One-percent reporting threshold | Q6: =Q5*0.01 -> 69655.50126
A8: 2 | B8: List of currently open proceedings that exceed the threshold for use of the affordability metrics (proceedings shaded gray filed prior to D.22-08-023):
B9: A | C9: A.24-09-015 | D9: TRRRMA | Q9: ='Incremental Rev Req'!$D$97+'Incremental Rev Req'!$D$98 -> 151621.8831
B10: B | C10: A.24-11-009 | D10: 2024 Wildfire Mitigation and Catastrophic Events | Q10: ='Incremental Rev Req'!D86+'Incremental Rev Req'!D87 -> 72117.03317
B11: C | C11: A.25-03-010 | D11: 2026 Cost of Capital | Q11: ='Incremental Rev Req'!D88+'Incremental Rev Req'!D89 -> 195856.5451
B12: D | C12: A.25-05-009 | D12: 2027 GRC (incremental from 2026 authorized RRQs) | Q12: =SUM('Incremental Rev Req'!O99:O106) -> 65656.63416
A14: 3 | B14: List of currently open proceedings for which affordability metrics have been filed:
B15: A | C15: A.24-09-015 | D15: TRRRMA | Q15: ='Incremental Rev Req'!$D$97+'Incremental Rev Req'!$D$98 -> 151621.8831
B16: B | C16: A.24-11-009 | D16: 2024 Wildfire Mitigation and Catastrophic Events | Q16: ='Incremental Rev Req'!D86+'Incremental Rev Req'!D87 -> 72117.03317
B17: C | C17: A.25-03-010 | D17: 2026 Cost of Capital | Q17: ='Incremental Rev Req'!D88+'Incremental Rev Req'!D89 -> 195856.5451
B18: D | C18: A.25-05-009 | D18: 2027 GRC (incremental from 2026 authorized RRQs) | Q18: =SUM('Incremental Rev Req'!O99:O106) -> 65656.63416
A19: 4 | B19: List of currently open proceedings that do not exceed the threshold for use of the affordability metrics (proceedings shaded gray filed prior to D.22-08-023):
B20: A | C20: A.22-12-009 | D20: 2022 Wildfire Mitigation and Catastrophic Events | Q20: ='Incremental Rev Req'!D96 -> 16214.97009
B21: B | C21: A. 24-10-004 | D21: Billing Modernization | Q21: ='Incremental Rev Req'!$D$82+'Incremental Rev Req'!$D$83 -> 27630.63106
B22: C | C22: A.22-09-006 | D22: Hydrogen Demonstration Project (2027) | Q22: ='Incremental Rev Req'!$D$85 -> 3022.022937
B23: D | C23: A.24-03-011 | D23: Gas Advanced Metering Infrastructure (AMI) (distribution) (March 2025) | Q23: ='Incremental Rev Req'!$D$90+'Incremental Rev Req'!$D$91 -> 23171.00151
B24: E | C24: A.23-12-001 | D24: 2023 Wildfire Mitigation and Catastrophic Events (distribution) | Q24: ='Incremental Rev Req'!$D$92+'Incremental Rev Req'!$D$93 -> 19557.80257
B25: F | C25: A.23-06-008 | D25: Wildfire Gas and Safety Costs | Q25: ='Incremental Rev Req'!$D$94+'Incremental Rev Req'!$D$95 -> 50806.55924
B26: G | C26: A.25-04-004 | D26: Hinkley Upgrade | Q26: ='Incremental Rev Req'!D81 -> 3170.008597
B27: H | C27: AL 5042-G | D27: Pension (Incremental from current amount in rates) | Q27: ='Incremental Rev Req'!M79+'Incremental Rev Req'!M80 -> 7624.531708
B28: I
B29: J
A31: 5 | B31: Total system-level revenue requirement if all pending revenue were granted in full: requests were granted in full
B32: A | C32: YE 2025 | Q32: ='Incremental Rev Req'!G73+'Incremental Rev Req'!M114 -> 7012560.629
B33: B | C33: YE 2026 | Q33: ='Incremental Rev Req'!H73+'Incremental Rev Req'!N114 -> 7227283.604
B34: C | C34: YE 2027 | Q34: ='Incremental Rev Req'!I73+'Incremental Rev Req'!O114 -> 6921385.314
B35: D | C35: YE 2028 | Q35: ='Incremental Rev Req'!J73+'Incremental Rev Req'!P114 -> 7171983.888
B36: E | C36: YE 2029 | Q36: ='Incremental Rev Req'!K73+'Incremental Rev Req'!Q114 -> 7430419.097
A38: 6 | B38: Illustrative bundled residential average rate (RAR) if all pending revenue were granted in full (from Cost and Rate Tracker (CRT) as submitted by utility): | R38: $/therm | T38: Live Link:
B39: A | C39: =C32 -> YE 2025 | R39: 2.803787552 | T39: =Summary!G45 -> 2.803787552
B40: B | C40: =C33 -> YE 2026 | R40: 2.912213159
B41: C | C41: =C34 -> YE 2027 | R41: 2.793791763
B42: D | C42: =C35 -> YE 2028 | R42: 2.889736515
B43: E | C43: =C36 -> YE 2029 | R43: 2.989846047
V44: Live Link: | W44: =Summary_Year -> 2025
A45: 7 | B45: =CONCATENATE("Illustrative bundled residential average monthly bill corresponding to RAR above for typical customer in climate zone X using ",Summary!L16," therms for Non-CARE and ",Summary!L17," therms for CARE (from CRT as submitted by utility):") -> Illustrative bundled residential average monthly bill corresponding to RAR above for typical customer in climate zone X using 31 therms for Non-CARE and 26 therms for CARE (from CRT as submitted by utility): | S45: Non-CARE | T45: CARE | V45: Non-CARE | W45: CARE
B46: A | C46: =C32 -> YE 2025 | S46: 85.87121691 | T46: 54.30690834 | V46: =Summary!G101 -> 85.87121691 | W46: =Summary!G102 -> 54.30690834
B47: B | C47: =C33 -> YE 2026 | S47: 89.40560079 | T47: 56.63713397
B48: C | C48: =C34 -> YE 2027 | S48: 85.53558454 | T48: 54.11933444
B49: D | C49: =C35 -> YE 2028 | S49: 88.6705055 | T49: 56.16082236
B50: E | C50: =C36 -> YE 2029 | S50: 91.94150821 | T50: 58.29092558

Sheet Caveats
A1: Cost and Rate Tracking Tool Caveats
A2: * The Quarterly Tracker performs high-level rate and bill calculation estimates, which will not produce rate or bill impacts that match PG&E’s filing-quality models.
A3: * The forecast assumes perfect ratemaking, and does not include balancing account balances beyond the current year.
A4: * Different rate components use simplified allocations that may not reflect actual revenue allocation and rate design.
A5: * This model produces illustrative rates based on a single average throughput forecast. Actual ratemaking uses multiple throughput forecasts depending on revenue requirement type. Therefore, differences in illustrative v. actual rates will exist.

Sheet Instructions
A1: INSTRUCTIONS TO RUN "BASIC" MODEL
A2: CLICK HERE FOR INSTRUCTIONS ON VALIDATING AGAINST BILL INSERT
B5: The "non-hypothetical" portion of this model produces illustrative rates and illustrative residential bill calculations based on selected user inputs.
B6: PLEASE DO NOT INSERT ROWS OR COLUMNS INTO THE SUMMARY
B7: To run the "non-hypothetical" portion of the model:
B9: 1. | C9: User drop down selections are highlighted in green.
B10: 2. | C10: In cell D3 of the "Summary" tab, from the dropdown choices, select the year for which illustrative rate impacts are desired (ILLUSTRATION 1).
B11: 3. | C11: In cell D4 of the "Summary" tab, select, from the dropdown choices, the baseline territory for which illustrative bill impacts are desired.
B12: 4. | C12: On the "Summary" tab, in the "Pending Proceedings" section beginning on line 7, indicate whether the RRQ associated with the proceeding should be included in the illustrative bill impact analysis
C13: by selecting from the dropdown choices in column D, a "Y" or "N" where "Y" means to include the RRQ in the analysis and "N" means to not include the RRQ in the analysis (ILLUSTRATION 1).
B14: 5. | C14: Create illustrative tiered residential rates by executing the "Run Residential Rate Tiering" macro (ILLUSTRATION 1).
C15: - note that, pursuant to D.19-10-036, Ordering Paragraph 4, the tier ratios change in January of each year based on the year selected in step 2. above as described in the table below.
E16: For 2025 revenues | F16: . | G16: 1.20 (Note that the initial tiering factor for 2025 has been set at 1.24 therefore the factor for 2025 will remain at the already established value)
E17: For 2026 + revenues | F17: . | G17: 1.2
C19: ILLUSTRATION 1: | G19: 2. | H19: 3. | I19: 4. | L19: 5.
B34: 5. | C34: In cell D4 of the "Summary" tab, from the dropdown choices, select the baseline territory for which illustrative bill impacts are desired.
B36: RRQ ALLOCATION OPTIONS:
B37: 1. | C37: On the "RRQ Allocations" tab there are spaces for the user to enter their own allocation methodology (ILLUSTRATION 2).
C38: NOTE that this tab has not been fully populated by PG&E.
C40: ILLUSTRATION 2
B80: 2. | C80: Alternate allocation methodologies may be selected on the "Incremental Rev Req" tab (ILLUSTRATION 3).
C82: ILLUSTRATION 3
A115: VALIDATING THE RESULTS OF THE "TYPICAL CUSTOMER" BILL AGAINST A BILL INSERT
B117: 1. | C117: The model is set up to accept separate "typical" therms for Non-CARE and CARE customers. (See screenshot below, yellow highlights.)
B118: 2. | C118: Ensure that the therms entered in the model match the therms used in the bill insert.
B119: 3. | C119: Ensure that only the revenue requirement being evaluated is included in the impact. (See step 4 above.)
B120: 4. | C120: Run the model as described in the instructions above.
B121: 5. | C121: Note that, because this is a simplified model, the results will not exactly match the results in the bill insert.

Sheet Summary
B1: PLEASE DO NOT INSERT ROWS OR COLUMNS
B2: User Inputs (in green highlighted cells - select from drop down menu): | J2: Assumptions:
C3: Illustrative Rate Impact for Year (2024-2027) | D3: 2025 | J3: Current Effective Rates | L3: 2025-01-01
C4: Baseline Region - (Residential bill) | D4: X | J4: Throughput Forecast | L4: 2023 CARD
J5: Illustrative Residential bill calculated using | L5: Schedule G-1, Basic, Single Family
J6: Illustrative Non-CARE bill impact calculated with average summer usage of | N6: =IF($D$4="ALL CLIMATE ZONES",SUMPRODUCT('Res Bill Impact'!$Q$22:$Q$30,'Res Bill Impact'!$W$22:$W$30),VLOOKUP(Summary!$D$4,'Res Bill Impact'!$P$22:$V$30,2,FALSE)) -> 18 | O6: therms per month
B7: Pending Proceedings | D7: Include in Impact (Y/N) | E7: Applicable Year(s) | J7: Illustrative Non-CARE bill impact calculated with average winter off-peak usage of | N7: =IF($D$4="ALL CLIMATE ZONES",SUMPRODUCT('Res Bill Impact'!$R$22:$R$30,'Res Bill Impact'!$W$22:$W$30),VLOOKUP(Summary!$D$4,'Res Bill Impact'!$P$22:$V$30,3,FALSE)) -> 45 | O7: therms per month
J8: Illustrative Non-CARE bill impact calculated with average winter on-peak usage of | N8: =IF($D$4="ALL CLIMATE ZONES",SUMPRODUCT('Res Bill Impact'!$S$22:$S$30,'Res Bill Impact'!$W$22:$W$30),VLOOKUP(Summary!$D$4,'Res Bill Impact'!$P$22:$V$30,4,FALSE)) -> 58 | O8: therms per month
B9: ='Incremental Rev Req'!A79 -> Pension (Distribution) | D9: Y | E9: 2025-2029 | J9: Illustrative CARE bill impact calculated with average summer usage of | N9: =IF($D$4="ALL CLIMATE ZONES",SUMPRODUCT('Res Bill Impact'!$T$22:$T$30,'Res Bill Impact'!$X$22:$X$30),VLOOKUP(Summary!$D$4,'Res Bill Impact'!$P$22:$V$30,5,FALSE)) -> 17 | O9: therms per month
B10: ='Incremental Rev Req'!A80 -> Pension (ECPT) | D10: Y | E10: 2025-2029 | J10: Illustrative CARE bill impact calculated with average winter off-peak usage of | N10: =IF($D$4="ALL CLIMATE ZONES",SUMPRODUCT('Res Bill Impact'!$U$22:$U$30,'Res Bill Impact'!$X$22:$X$30),VLOOKUP(Summary!$D$4,'Res Bill Impact'!$P$22:$V$30,6,FALSE)) -> 34 | O10: therms per month
B11: ='Incremental Rev Req'!A81 -> Hinkley Upgrade | D11: N | E11: 2028-2029 | J11: Illustrative CARE bill impact calculated with average winter on-peak usage of | N11: =IF($D$4="ALL CLIMATE ZONES",SUMPRODUCT('Res Bill Impact'!$V$22:$V$30,'Res Bill Impact'!$X$22:$X$30),VLOOKUP(Summary!$D$4,'Res Bill Impact'!$P$22:$V$30,7,FALSE)) -> 43 | O11: therms per month
B12: ='Incremental Rev Req'!A82 -> Billing Modernization (Distribution) | D12: N | E12: 2026-2029 | J12: Average monthly usage is for all customers (Non-CARE and CARE) based on seasonal usage in | P12: 2024
B13: ='Incremental Rev Req'!A83 -> Billing Modernization (Transmission) | D13: N | E13: 2026-2029 | J13: Summer Season | L13: 7 | M13: months
B14: ='Incremental Rev Req'!A85 -> Hydrogen Demonstration Project (2027) | D14: N | E14: 2027-2029 | J14: Winter Season Off-peak | L14: 3 | M14: months
B15: ='Incremental Rev Req'!A86 -> 2024 Wildfire Mitigation and Catastrophic Events (distribution) | D15: N | E15: 2026-2029 | J15: Winter Season On-peak | L15: 2 | M15: months
B16: ='Incremental Rev Req'!A87 -> 2024 Wildfire Mitigation and Catastrophic Events (transmission) | D16: N | E16: 2026-2029 | J16: Typical Non-CARE Residential Customer usage | L16: 31 | M16: therms per month
B17: ='Incremental Rev Req'!A88 -> 2026 Cost of Capital (Distribution) | D17: N | E17: 2026-2029 | J17: Typical CARE Residential Customer usage | L17: 26 | M17: therms per month
B18: ='Incremental Rev Req'!A89 -> 2026 Cost of Capital (Transmission) | D18: N | E18: 2026-2029 | J18: Residential CARE Customers as Percent of Total Residential Customers | N18: 0.2272147033
B19: ='Incremental Rev Req'!A90 -> Gas Advanced Metering Infrastructure (AMI) (distribution) - August 2025 | D19: Y | E19: 2025-2026 | J19: Historic California Climate Credit | L19: 85.45951368
B20: ='Incremental Rev Req'!A91 -> Gas AMI (transmission) -August 2025 | D20: Y | E20: 2025-2026 | J20: Present California Climate Credit | L20: 67.03190755
B21: ='Incremental Rev Req'!A92 -> 2023 Wildfire Mitigation and Catastrophic Events (distribution) | D21: N | E21: 2026
B22: ='Incremental Rev Req'!A93 -> 2023 Wildfire Mitigation and Catastrophic Events (transmission) | D22: N | E22: 2026
B23: ='Incremental Rev Req'!A94 -> Wildfire Gas and Safety Costs (Distribution) Non-IRR | D23: N | E23: 2026
B24: ='Incremental Rev Req'!A95 -> Wildfire Gas and Safety Costs (Transmission) - Non IRR | D24: N | E24: 2026-2027
B25: ='Incremental Rev Req'!A96 -> 2022 Wildfire Mitigation and Catastrophic Events - August 2025 | D25: Y | E25: 2025-2026
B26: ='Incremental Rev Req'!A97 -> TRRRMA (Distribution) | D26: N | E26: 2026
B27: ='Incremental Rev Req'!A98 -> TRRRMA (Transmission) | D27: N | E27: 2026
B28: ='Incremental Rev Req'!A99 -> 2027 GRC - Gas Distribution | D28: N | E28: 2027-2029
B29: ='Incremental Rev Req'!A100 -> 2027 GRC - Core Local Transmission | D29: N | E29: 2027-2029
B30: ='Incremental Rev Req'!A101 -> 2027 GRC - Core Procurement (Intrastate Volumetric and Capacity) | D30: N | E30: 2027-2029
B31: ='Incremental Rev Req'!A102 -> 2027 GRC - Core Procurement (Storage) | D31: N | E31: 2027-2029
B32: ='Incremental Rev Req'!A103 -> 2027 GRC - Noncore Local Transmission | D32: N | E32: 2027-2029
B33: ='Incremental Rev Req'!A104 -> 2027 GRC - Customer Access Charge | D33: N | E33: 2027-2029
B34: ='Incremental Rev Req'!A105 -> 2027 GRC - Noncore Unbundled | D34: N | E34: 2027-2029
B35: ='Incremental Rev Req'!A106 -> 2027 GRC - Inventory Management | D35: N | E35: 2027-2029
B36: CFCA - NGSS Enduser Dist. Sub Acct Recovery | D36: N | E36: 2027-2029
B37: CFCA/NCA - NGSS Enduser Sub Acct Recovery | D37: N | E37: 2027-2029
B38: NCA - NGSS Enduser Sub Acct Recovery | D38: N | E38: 2027-2029
B41: Outputs:
D42: (A) | E42: (B) | F42: (C) | G42: (D) | H42: (D)/(A) | I42: (D)/(B) | J42: (D)/(C) | N42: (A) | O42: (B) | P42: (C) | Q42: (D) | R42: (D)/(A) | S42: (D)/(B) | T42: (D)/(C)
B43: Illustrative Bundled Average Rates - $ / therm | L43: Total System (Bundled + Unbundled) Illustrative Average Rates - $ / therm
B44: Customer Group | D44: 2024-01-01 | E44: =$L$3 -> 2025-01-01 | F44: =$D$3&" Illustrative Authorized" -> 2025 Illustrative Authorized | G44: =$D$3&" Illustrative w/Pending" -> 2025 Illustrative w/Pending | H44: ="% Change over "&TEXT($D$44,"mm/d/yyyy") -> % Change over 01/1/2024 | I44: ="% Change over "&TEXT($L$3,"mm/d/yyyy") -> % Change over 01/1/2025 | J44: % Change over Illustrative Authorized | L44: Customer Group | N44: =D44 -> 2024-01-01 | O44: =E44 -> 2025-01-01 | P44: 2025 Illustrative Authorized | Q44: 2025 Illustrative w/Pending | R44: % Change over 01/1/2024 | S44: % Change over 01/1/2025 | T44: % Change over Illustrative Authorized
B45: Residential | D45: 2.284761126 | E45: ='SAR and RAR'!H38 -> 2.78480158 | F45: ='SAR and RAR'!I38 -> 2.784157374 | G45: ='SAR and RAR'!J38 -> 2.803787552 | H45: =$G45/D45-1 -> 0.2271687923 | I45: 0.006817711036 | J45: 0.007050671208 | L45: Residential (RAR) | N45: 2.196579023 | O45: ='SAR and RAR'!P38 -> 2.472492595 | P45: ='SAR and RAR'!Q38 -> 2.471890842 | Q45: ='SAR and RAR'!R38 -> 2.491521268 | R45: =$Q45/N45-1 -> 0.1342734507 | S45: 0.007696149798 | T45: 0.007941461556
B46: System | D46: 2.150627635 | E46: ='SAR and RAR'!H39 -> 2.369465425 | F46: ='SAR and RAR'!I39 -> 2.369236939 | G46: ='SAR and RAR'!J39 -> 2.386755832 | H46: 0.1097950166 | I46: 0.007297176392 | J46: 0.00739431875 | L46: System (SAR) | N46: 1.023313174 | O46: ='SAR and RAR'!P39 -> 1.023547295 | P46: ='SAR and RAR'!Q39 -> 1.023547295 | Q46: ='SAR and RAR'!R39 -> 1.031233201 | R46: 0.007739592532 | S46: 0.007509087047 | T46: 0.007509087047
L48: Illustrative system rate does not include illustrative procurement for transport only customers.
B49: =CONCATENATE("Illustrative Bundled Residential Monthly Average Bills - Baseline Territory ",$D$4," (Includes Climate Credit)") -> Illustrative Bundled Residential Monthly Average Bills - Baseline Territory X (Includes Climate Credit)
D50: =$D$44 -> 2024-01-01 | E50: =$E$44 -> 2025-01-01 | F50: =$F$44 -> 2025 Illustrative Authorized | G50: =$G$44 -> 2025 Illustrative w/Pending | H50: =$H$44 -> % Change over 01/1/2024 | I50: =$I$44 -> % Change over 01/1/2025 | J50: =$J$44 -> % Change over Illustrative Authorized
B51: Non-CARE | D51: =((D57*$L$13)+(D63*$L$14)+(D69*$L$15))/12-L19/12 -> 64.30924973 | E51: =((E57*$L$13)+(E63*$L$14)+(E69*$L$15))/12-L20/12 -> 82.41095262 | F51: =((F57*$L$13)+(F63*$L$14)+(F69*$L$15))/12-L20/12 -> 82.39011544 | G51: =((G57*$L$13)+(G63*$L$14)+(G69*$L$15))/12-L20/12 -> 83.00539968 | H51: =$G51/D51-1 -> 0.2907225636 | I51: =$G51/E51-1 -> 0.007213204496 | J51: =$G51/F51-1 -> 0.007467937604
B52: CARE | D52: =((D58*$L$13)+(D64*$L$14)+(D70*$L$15))/12-L19/12 -> 38.5197311 | E52: =((E58*$L$13)+(E64*$L$14)+(E70*$L$15))/12-L20/12 -> 50.7818526 | F52: =((F58*$L$13)+(F64*$L$14)+(F70*$L$15))/12-L20/12 -> 50.76856056 | G52: =((G58*$L$13)+(G64*$L$14)+(G70*$L$15))/12-L20/12 -> 51.16024414 | H52: =$G52/D52-1 -> 0.3281568349 | I52: 0.007451314252 | J52: 0.007715081478
B53: Total | D53: =((D59*$L$13)+(D65*$L$14)+(D71*$L$15))/12-L19/12 -> 58.44949191 | E53: =((E59*$L$13)+(E65*$L$14)+(E71*$L$15))/12-L20/12 -> 75.22435605 | F53: =((F59*$L$13)+(F65*$L$14)+(F71*$L$15))/12-L20/12 -> 75.20523323 | G53: =((G59*$L$13)+(G65*$L$14)+(G71*$L$15))/12-L20/12 -> 75.76971211 | H53: 0.2963279857 | I53: 0.007249727264 | J53: 0.007505845796
B55: =CONCATENATE("Illustrative Bundled Residential Monthly Average Bills - Summer - Baseline Territory ",$D$4) -> Illustrative Bundled Residential Monthly Average Bills - Summer - Baseline Territory X
D56: =$D$44 -> 2024-01-01 | E56: =$E$44 -> 2025-01-01 | F56: =$F$44 -> 2025 Illustrative Authorized | G56: =$G$44 -> 2025 Illustrative w/Pending | H56: =$H$44 -> % Change over 01/1/2024 | I56: =$I$44 -> % Change over 01/1/2025 | J56: =$J$44 -> % Change over Illustrative Authorized
B57: Non-CARE | D57: =VLOOKUP($D$4,'Res Bill Impact'!$B$37:$N$46,2,FALSE) -> 41.80756148 | E57: =VLOOKUP($D$4,'Res Bill Impact'!$B$37:$N$46,5,FALSE) -> 51.50287843 | F57: =VLOOKUP($D$4,'Res Bill Impact'!$B$37:$N$46,8,FALSE) -> 51.49081665 | G57: =VLOOKUP($D$4,'Res Bill Impact'!$B$37:$N$46,11,FALSE) -> 51.85269935 | H57: =$G57/D57-1 -> 0.2402708391 | I57: =$G57/E57-1 -> 0.006792259598 | J57: =$G57/F57-1 -> 0.007028101812
B58: CARE | D58: =VLOOKUP($D$4,'Res Bill Impact'!$B$52:$N$616,2,FALSE) -> 30.76763901 | E58: =VLOOKUP($D$4,'Res Bill Impact'!$B$52:$N$616,5,FALSE) -> 37.99689619 | F58: =VLOOKUP($D$4,'Res Bill Impact'!$B$52:$N$616,8,FALSE) -> 37.98800231 | G58: =VLOOKUP($D$4,'Res Bill Impact'!$B$52:$N$616,11,FALSE) -> 38.25293622 | H58: =$G58/D58-1 -> 0.2432847447 | I58: 0.006738445735 | J58: 0.006974146807
B59: Total | D59: =D57*(1-$N$18)+(Summary!D58*$N$18) -> 39.29912877 | E59: =E57*(1-$N$18)+(Summary!E58*$N$18) -> 48.43412069 | F59: =F57*(1-$N$18)+(Summary!F58*$N$18) -> 48.4227787 | G59: =G57*(1-$N$18)+(Summary!G58*$N$18) -> 48.76263321 | H59: 0.240806978 | I59: 0.006782667197 | J59: 0.007018484252
B61: =CONCATENATE("Illustrative Bundled Residential Monthly Average Bills - Winter Off-Peak - Baseline Territory ",$D$4) -> Illustrative Bundled Residential Monthly Average Bills - Winter Off-Peak - Baseline Territory X
D62: =$D$44 -> 2024-01-01 | E62: =$E$44 -> 2025-01-01 | F62: =$F$44 -> 2025 Illustrative Authorized | G62: =$G$44 -> 2025 Illustrative w/Pending | H62: =$H$44 -> % Change over 01/1/2024 | I62: =$I$44 -> % Change over 01/1/2025 | J62: =$J$44 -> % Change over Illustrative Authorized
B63: Non-CARE | D63: =VLOOKUP($D$4,'Res Bill Impact'!$B$37:$N$46,3,FALSE) -> 101.2083311 | E63: =VLOOKUP($D$4,'Res Bill Impact'!$B$37:$N$46,6,FALSE) -> 124.68105 | F63: =VLOOKUP($D$4,'Res Bill Impact'!$B$37:$N$46,9,FALSE) -> 124.6513583 | G63: =VLOOKUP($D$4,'Res Bill Impact'!$B$37:$N$46,12,FALSE) -> 125.5209218 | H63: =$G63/D63-1 -> 0.2402232151 | I63: =$G63/E63-1 -> 0.006736162309 | J63: =$G63/F63-1 -> 0.006975964922
B64: CARE | D64: =VLOOKUP($D$4,'Res Bill Impact'!$B$52:$N$616,3,FALSE) -> 60.10093442 | E64: =VLOOKUP($D$4,'Res Bill Impact'!$B$52:$N$616,6,FALSE) -> 74.22776289 | F64: =VLOOKUP($D$4,'Res Bill Impact'!$B$52:$N$616,9,FALSE) -> 74.21017562 | G64: =VLOOKUP($D$4,'Res Bill Impact'!$B$52:$N$616,12,FALSE) -> 74.72481727 | H64: =$G64/D64-1 -> 0.2433220548 | I64: 0.006696340585 | J64: 0.006934920367
B65: Total | D65: =D63*(1-$N$18)+(Summary!D64*$N$18) -> 91.86812616 | E65: =E63*(1-$N$18)+(Summary!E64*$N$18) -> 113.2173213 | F65: =F63*(1-$N$18)+(Summary!F64*$N$18) -> 113.1903799 | G65: =G63*(1-$N$18)+(Summary!G64*$N$18) -> 113.9793 | H65: 0.2406838447 | I65: 0.006730230188 | J65: 0.006969850633
B67: =CONCATENATE("Illustrative Bundled Residential Monthly Average Bills - Winter On-Peak - Baseline Territory ",$D$4) -> Illustrative Bundled Residential Monthly Average Bills - Winter On-Peak - Baseline Territory X
D68: =$D$44 -> 2024-01-01 | E68: =$E$44 -> 2025-01-01 | F68: =$F$44 -> 2025 Illustrative Authorized | G68: =$G$44 -> 2025 Illustrative w/Pending | H68: =$H$44 -> % Change over 01/1/2024 | I68: =$I$44 -> % Change over 01/1/2025 | J68: =$J$44 -> % Change over Illustrative Authorized
B69: Non-CARE | D69: =VLOOKUP($D$4,'Res Bill Impact'!$B$37:$N$46,4,FALSE) -> 130.4462934 | E69: =VLOOKUP($D$4,'Res Bill Impact'!$B$37:$N$46,7,FALSE) -> 160.70002 | F69: =VLOOKUP($D$4,'Res Bill Impact'!$B$37:$N$46,10,FALSE) -> 160.6617507 | G69: =VLOOKUP($D$4,'Res Bill Impact'!$B$37:$N$46,13,FALSE) -> 161.7825214 | H69: =$G69/D69-1 -> 0.2402232151 | I69: =$G69/E69-1 -> 0.006736162309 | J69: =$G69/F69-1 -> 0.006975964922
B70: CARE | D70: =VLOOKUP($D$4,'Res Bill Impact'!$B$52:$N$616,4,FALSE) -> 76.01000529 | E70: =VLOOKUP($D$4,'Res Bill Impact'!$B$52:$N$616,7,FALSE) -> 93.87628836 | F70: =VLOOKUP($D$4,'Res Bill Impact'!$B$52:$N$616,10,FALSE) -> 93.85404563 | G70: =VLOOKUP($D$4,'Res Bill Impact'!$B$52:$N$616,13,FALSE) -> 94.50491596 | H70: =$G70/D70-1 -> 0.2433220548 | I70: 0.006696340585 | J70: 0.006934920367
B71: Total | D71: =D69*(1-$N$18)+(Summary!D70*$N$18) -> 118.0775684 | E71: =E69*(1-$N$18)+(Summary!E70*$N$18) -> 145.5166856 | F71: =F69*(1-$N$18)+(Summary!F70*$N$18) -> 145.4820578 | G71: =G69*(1-$N$18)+(Summary!G70*$N$18) -> 146.4960603 | H71: 0.2406764662 | I71: 0.006730325176 | J71: 0.006969948538
B74: =CONCATENATE("Essential Use Illustrative Bundled Residential Monthly Average Bills - Baseline Territory ",$D$4," (Includes Climate Credit)") -> Essential Use Illustrative Bundled Residential Monthly Average Bills - Baseline Territory X (Includes Climate Credit)
D75: =$D$44 -> 2024-01-01 | E75: =$E$44 -> 2025-01-01 | F75: =$F$44 -> 2025 Illustrative Authorized | G75: =$G$44 -> 2025 Illustrative w/Pending | H75: =$H$44 -> % Change over 01/1/2024 | I75: =$I$44 -> % Change over 01/1/2025 | J75: =$J$44 -> % Change over Illustrative Authorized
B76: Essential Use Non-CARE | D76: =((D82*$L$13)+(D88*$L$14)+(D94*$L$15))/12-L19/12 -> 60.54734921 | E76: =((E82*$L$13)+(E88*$L$14)+(E94*$L$15))/12-L20/12 -> 77.77709459 | F76: =((F82*$L$13)+(F88*$L$14)+(F94*$L$15))/12-L20/12 -> 77.75724239 | G76: =((G82*$L$13)+(G88*$L$14)+(G94*$L$15))/12-L20/12 -> 78.33864188 | H76: =$G76/D76-1 -> 0.2938409839 | I76: =$G76/E76-1 -> 0.007219957069 | J76: =$G76/F76-1 -> 0.007477110347
B77: Essential Use CARE | D77: =((D83*$L$13)+(D89*$L$14)+(D95*$L$15))/12-L19/12 -> 46.0632507 | E77: =((E83*$L$13)+(E89*$L$14)+(E95*$L$15))/12-L20/12 -> 60.10008174 | F77: =((F83*$L$13)+(F89*$L$14)+(F95*$L$15))/12-L20/12 -> 60.0845183 | G77: =((G83*$L$13)+(G89*$L$14)+(G95*$L$15))/12-L20/12 -> 60.53993806 | H77: =$G77/D77-1 -> 0.3142784572 | I77: 0.007318730868 | J77: =$G77/F77-1 -> 0.007579652368
B78: Total | D78: =((D84*$L$13)+(D90*$L$14)+(D96*$L$15))/12-L19/12 -> 57.25634907 | E78: =((E84*$L$13)+(E90*$L$14)+(E96*$L$15))/12-L20/12 -> 73.76061736 | F78: =((F84*$L$13)+(F90*$L$14)+(F96*$L$15))/12-L20/12 -> 73.74173963 | G78: =((G84*$L$13)+(G90*$L$14)+(G96*$L$15))/12-L20/12 -> 74.29451467 | H78: 0.297576878 | I78: 0.00723824349 | J78: 0.007496094338
B80: =CONCATENATE("Essential Use Illustrative Bundled Residential Monthly Average Bills - Summer - Baseline Territory ",$D$4) -> Essential Use Illustrative Bundled Residential Monthly Average Bills - Summer - Baseline Territory X
D81: =$D$44 -> 2024-01-01 | E81: =$E$44 -> 2025-01-01 | F81: =$F$44 -> 2025 Illustrative Authorized | G81: =$G$44 -> 2025 Illustrative w/Pending | H81: =$H$44 -> % Change over 01/1/2024 | I81: =$I$44 -> % Change over 01/1/2025 | J81: =$J$44 -> % Change over Illustrative Authorized
B82: Essential Use Non-CARE | D82: =VLOOKUP($D$4,'Res Bill Impact'!$B$67:$N$76,2,FALSE) -> 33.52094146 | E82: =VLOOKUP($D$4,'Res Bill Impact'!$B$67:$N$76,5,FALSE) -> 41.29527809 | F82: =VLOOKUP($D$4,'Res Bill Impact'!$B$67:$N$76,8,FALSE) -> 41.28544397 | G82: =VLOOKUP($D$4,'Res Bill Impact'!$B$67:$N$76,11,FALSE) -> 41.57344978 | H82: =$G82/D82-1 -> 0.2402232151 | I82: =$G82/E82-1 -> 0.006736162309 | J82: =$G82/F82-1 -> 0.006975964922
B83: Essential Use CARE | D83: =VLOOKUP($D$4,'Res Bill Impact'!$B$82:$N$91,2,FALSE) -> 26.3460047 | E83: =VLOOKUP($D$4,'Res Bill Impact'!$B$82:$N$91,5,FALSE) -> 32.53867863 | F83: =VLOOKUP($D$4,'Res Bill Impact'!$B$82:$N$91,8,FALSE) -> 32.53096902 | G83: =VLOOKUP($D$4,'Res Bill Impact'!$B$82:$N$91,11,FALSE) -> 32.7565687 | H83: =$G83/D83-1 -> 0.2433220548 | I83: 0.006696340585 | J83: 0.006934920367
B84: Total | D84: =D82*(1-$N$18)+(Summary!D83*$N$18) -> 31.89069033 | E84: =E82*(1-$N$18)+(Summary!E83*$N$18) -> 39.30564994 | F84: =F82*(1-$N$18)+(Summary!F83*$N$18) -> 39.29629855 | G84: =G82*(1-$N$18)+(Summary!G83*$N$18) -> 39.57012476 | H84: 0.2408048981 | I84: 0.006728671971 | J84: 0.006968244566
B86: =CONCATENATE("Essential Use Illustrative Bundled Residential Monthly Average Bills - Winter Off-Peak - Baseline Territory ",$D$4) -> Essential Use Illustrative Bundled Residential Monthly Average Bills - Winter Off-Peak - Baseline Territory X
D87: =$D$44 -> 2024-01-01 | E87: =$E$44 -> 2025-01-01 | F87: =$F$44 -> 2025 Illustrative Authorized | G87: =$G$44 -> 2025 Illustrative w/Pending | H87: =$H$44 -> % Change over 01/1/2024 | I87: =$I$44 -> % Change over 01/1/2025 | J87: =$J$44 -> % Change over Illustrative Authorized
B88: Essential Use Non-CARE | D88: =VLOOKUP($D$4,'Res Bill Impact'!$B$67:$N$76,3,FALSE) -> 101.2469252 | E88: =VLOOKUP($D$4,'Res Bill Impact'!$B$67:$N$76,6,FALSE) -> 124.728595 | F88: =VLOOKUP($D$4,'Res Bill Impact'!$B$67:$N$76,9,FALSE) -> 124.698892 | G88: =VLOOKUP($D$4,'Res Bill Impact'!$B$67:$N$76,12,FALSE) -> 125.5687871 | H88: =$G88/D88-1 -> 0.2402232151 | I88: =$G88/E88-1 -> 0.006736162309 | J88: =$G88/F88-1 -> 0.006975964922
B89: Essential Use CARE | D89: =VLOOKUP($D$4,'Res Bill Impact'!$B$82:$N$91,3,FALSE) -> 79.57568767 | E89: =VLOOKUP($D$4,'Res Bill Impact'!$B$82:$N$91,6,FALSE) -> 98.28009055 | F89: =VLOOKUP($D$4,'Res Bill Impact'!$B$82:$N$91,9,FALSE) -> 98.25680439 | G89: =VLOOKUP($D$4,'Res Bill Impact'!$B$82:$N$91,12,FALSE) -> 98.93820751 | H89: =$G89/D89-1 -> 0.2433220548 | I89: 0.006696340585 | J89: 0.006934920367
B90: Total | D90: =D88*(1-$N$18)+(Summary!D89*$N$18) -> 96.3229014 | E90: =E88*(1-$N$18)+(Summary!E89*$N$18) -> 118.7191059 | F90: =F88*(1-$N$18)+(Summary!F89*$N$18) -> 118.6908609 | G90: =G88*(1-$N$18)+(Summary!G89*$N$18) -> 119.5179279 | H90: 0.2408048981 | I90: 0.006728671971 | J90: 0.006968244566
B92: =CONCATENATE("Essential Use Illustrative Bundled Residential Monthly Average Bills - Winter On-Peak - Baseline Territory ",$D$4) -> Essential Use Illustrative Bundled Residential Monthly Average Bills - Winter On-Peak - Baseline Territory X
D93: =$D$44 -> 2024-01-01 | E93: =$E$44 -> 2025-01-01 | F93: =$F$44 -> 2025 Illustrative Authorized | G93: =$G$44 -> 2025 Illustrative w/Pending | H93: =$H$44 -> % Change over 01/1/2024 | I93: =$I$44 -> % Change over 01/1/2025 | J93: =$J$44 -> % Change over Illustrative Authorized
B94: Essential Use Non-CARE | D94: =VLOOKUP($D$4,'Res Bill Impact'!$B$67:$N$76,4,FALSE) -> 136.8201692 | E94: =VLOOKUP($D$4,'Res Bill Impact'!$B$67:$N$76,7,FALSE) -> 168.5521555 | F94: =VLOOKUP($D$4,'Res Bill Impact'!$B$67:$N$76,10,FALSE) -> 168.5120162 | G94: =VLOOKUP($D$4,'Res Bill Impact'!$B$67:$N$76,13,FALSE) -> 169.6875501 | H94: =$G94/D94-1 -> 0.2402232151 | I94: =$G94/E94-1 -> 0.006736162309 | J94: =$G94/F94-1 -> 0.006975964922
B95: Essential Use CARE | D95: =VLOOKUP($D$4,'Res Bill Impact'!$B$82:$N$91,4,FALSE) -> 107.5347131 | E95: =VLOOKUP($D$4,'Res Bill Impact'!$B$82:$N$91,7,FALSE) -> 132.8109332 | F95: =VLOOKUP($D$4,'Res Bill Impact'!$B$82:$N$91,10,FALSE) -> 132.7794654 | G95: =VLOOKUP($D$4,'Res Bill Impact'!$B$82:$N$91,13,FALSE) -> 133.7002804 | H95: =$G95/D95-1 -> 0.2433220548 | I95: 0.006696340585 | J95: 0.006934920367
B96: Total | D96: =D94*(1-$N$18)+(Summary!D95*$N$18) -> 130.166083 | E96: =E94*(1-$N$18)+(Summary!E95*$N$18) -> 160.4312242 | F96: =F94*(1-$N$18)+(Summary!F95*$N$18) -> 160.3930553 | G96: =G94*(1-$N$18)+(Summary!G95*$N$18) -> 161.5107133 | H96: 0.2408048981 | I96: 0.006728671971 | J96: 0.006968244566
B99: =CONCATENATE("Typical Customer Illustrative Bundled Residential Monthly Average Bills - Baseline Territory ",$D$4," (Includes Climate Credit)") -> Typical Customer Illustrative Bundled Residential Monthly Average Bills - Baseline Territory X (Includes Climate Credit)
D100: =$D$44 -> 2024-01-01 | E100: =$E$44 -> 2025-01-01 | F100: =$F$44 -> 2025 Illustrative Authorized | G100: =$G$44 -> 2025 Illustrative w/Pending | H100: =$H$44 -> % Change over 01/1/2024 | I100: =$I$44 -> % Change over 01/1/2025 | J100: =$J$44 -> % Change over Illustrative Authorized
B101: =CONCATENATE($L$16," Therms Monthly Usage - Non-CARE") -> 31 Therms Monthly Usage - Non-CARE | D101: =((D107*$L$13)+(D113*$L$14)+(D119*$L$15))/12-L19/12 -> 66.61604404 | E101: =((E107*$L$13)+(E113*$L$14)+(E119*$L$15))/12-L20/12 -> 85.25056429 | F101: =((F107*$L$13)+(F113*$L$14)+(F119*$L$15))/12-L20/12 -> 85.2295486 | G101: =((G107*$L$13)+(G113*$L$14)+(G119*$L$15))/12-L20/12 -> 85.87121691 | H101: =$G101/D101-1 -> 0.2890470779 | I101: =$G101/E101-1 -> 0.007280334478 | J101: =$G101/F101-1 -> 0.007528707114
B102: =CONCATENATE($L$17," Therms Monthly Usage - CARE") -> 26 Therms Monthly Usage - CARE | D102: =((D108*$L$13)+(D114*$L$14)+(D120*$L$15))/12-L19/12 -> 41.05289616 | E102: =((E108*$L$13)+(E114*$L$14)+(E120*$L$15))/12-L20/12 -> 53.90360456 | F102: =((F108*$L$13)+(F114*$L$14)+(F120*$L$15))/12-L20/12 -> 53.88984586 | G102: =((G108*$L$13)+(G114*$L$14)+(G120*$L$15))/12-L20/12 -> 54.30690834 | H102: =$G102/D102-1 -> 0.322852062 | I102: 0.007481944597 | J102: 0.007739166295
B103: Total | D103: =((D109*$L$13)+(D115*$L$14)+(D121*$L$15))/12-L19/12 -> 60.80772098 | E103: =((E109*$L$13)+(E115*$L$14)+(E121*$L$15))/12-L20/12 -> 78.12807414 | F103: =((F109*$L$13)+(F115*$L$14)+(F121*$L$15))/12-L20/12 -> 78.10870734 | G103: =((G109*$L$13)+(G115*$L$14)+(G121*$L$15))/12-L20/12 -> 78.69934191 | H103: 0.2942327165 | I103: 0.007311939743 | J103: 0.007561699354
B105: =CONCATENATE("Typical Customer Illustrative Bundled Residential Monthly Average Bills - Summer - Baseline Territory ",$D$4) -> Typical Customer Illustrative Bundled Residential Monthly Average Bills - Summer - Baseline Territory X
D106: =$D$44 -> 2024-01-01 | E106: =$E$44 -> 2025-01-01 | F106: =$F$44 -> 2025 Illustrative Authorized | G106: =$G$44 -> 2025 Illustrative w/Pending | H106: =$H$44 -> % Change over 01/1/2024 | I106: =$I$44 -> % Change over 01/1/2025 | J106: =$J$44 -> % Change over Illustrative Authorized
B107: =CONCATENATE($L$16," Therms Monthly Usage - Non-CARE") -> 31 Therms Monthly Usage - Non-CARE | D107: =VLOOKUP($D$4,'Res Bill Impact'!$B$97:$N$106,2,FALSE) -> 76.60650977 | E107: =VLOOKUP($D$4,'Res Bill Impact'!$B$97:$N$106,5,FALSE) -> 94.36881843 | F107: =VLOOKUP($D$4,'Res Bill Impact'!$B$97:$N$106,8,FALSE) -> 94.34740175 | G107: =VLOOKUP($D$4,'Res Bill Impact'!$B$97:$N$106,11,FALSE) -> 95.01952411 | H107: =$G107/D107-1 -> 0.2403583507 | I107: =$G107/E107-1 -> 0.006895346252 | J107: =$G107/F107-1 -> 0.007123909605
B108: =CONCATENATE($L$17," Therms Monthly Usage - CARE") -> 26 Therms Monthly Usage - CARE | D108: =VLOOKUP($D$4,'Res Bill Impact'!$B$112:$N$121,2,FALSE) -> 49.75665389 | E108: =VLOOKUP($D$4,'Res Bill Impact'!$B$112:$N$121,5,FALSE) -> 61.43758966 | F108: =VLOOKUP($D$4,'Res Bill Impact'!$B$112:$N$121,8,FALSE) -> 61.42360982 | G108: =VLOOKUP($D$4,'Res Bill Impact'!$B$112:$N$121,11,FALSE) -> 61.85746729 | H108: =$G108/D108-1 -> 0.243199903 | I108: 0.00683421377 | J108: 0.007063366389
B109: Total | D109: =D107*(1-$N$18)+(Summary!D108*$N$18) -> 70.50582773 | E109: =E107*(1-$N$18)+(Summary!E108*$N$18) -> 86.88635906 | F109: =F107*(1-$N$18)+(Summary!F108*$N$18) -> 86.86663214 | G109: =G107*(1-$N$18)+(Summary!G108*$N$18) -> 87.48461721 | H109: 0.2408139869 | I109: 0.006885524453 | J109: 0.007114182485
B111: =CONCATENATE("Typical Customer Illustrative Bundled Residential Monthly Average Bills - Winter Off-Peak - Baseline Territory ",$D$4) -> Typical Customer Illustrative Bundled Residential Monthly Average Bills - Winter Off-Peak - Baseline Territory X
D112: =$D$44 -> 2024-01-01 | E112: =$E$44 -> 2025-01-01 | F112: =$F$44 -> 2025 Illustrative Authorized | G112: =$G$44 -> 2025 Illustrative w/Pending | H112: =$H$44 -> % Change over 01/1/2024 | I112: =$I$44 -> % Change over 01/1/2025 | J112: =$J$44 -> % Change over Illustrative Authorized
B113: =CONCATENATE($L$16," Therms Monthly Usage - Non-CARE") -> 31 Therms Monthly Usage - Non-CARE | D113: =VLOOKUP($D$4,'Res Bill Impact'!$B$97:$N$106,3,FALSE) -> 69.72129476 | E113: =VLOOKUP($D$4,'Res Bill Impact'!$B$97:$N$106,6,FALSE) -> 85.89139 | F113: =VLOOKUP($D$4,'Res Bill Impact'!$B$97:$N$106,9,FALSE) -> 85.87093571 | G113: =VLOOKUP($D$4,'Res Bill Impact'!$B$97:$N$106,12,FALSE) -> 86.46996834 | H113: =$G113/D113-1 -> 0.2402232151 | I113: =$G113/E113-1 -> 0.006736162309 | J113: =$G113/F113-1 -> 0.006975964922
B114: =CONCATENATE($L$17," Therms Monthly Usage - CARE") -> 26 Therms Monthly Usage - CARE | D114: =VLOOKUP($D$4,'Res Bill Impact'!$B$112:$N$121,3,FALSE) -> 45.95953808 | E114: =VLOOKUP($D$4,'Res Bill Impact'!$B$112:$N$121,6,FALSE) -> 56.76240692 | F114: =VLOOKUP($D$4,'Res Bill Impact'!$B$112:$N$121,9,FALSE) -> 56.74895782 | G114: =VLOOKUP($D$4,'Res Bill Impact'!$B$112:$N$121,12,FALSE) -> 57.14250733 | H114: =$G114/D114-1 -> 0.2433220548 | I114: 0.006696340585 | J114: 0.006934920367
B115: Total | D115: =D113*(1-$N$18)+(Summary!D114*$N$18) -> 64.32227427 | E115: =E113*(1-$N$18)+(Summary!E114*$N$18) -> 79.27285675 | F115: =F113*(1-$N$18)+(Summary!F114*$N$18) -> 79.25399414 | G115: =G113*(1-$N$18)+(Summary!G114*$N$18) -> 79.80633799 | H115: 0.2407263098 | I115: 0.006729683536 | J115: 0.006969287194
B117: =CONCATENATE("Typical Customer Illustrative Bundled Residential Monthly Average Bills - Winter On-Peak - Baseline Territory ",$D$4) -> Typical Customer Illustrative Bundled Residential Monthly Average Bills - Winter On-Peak - Baseline Territory X
D118: =$D$44 -> 2024-01-01 | E118: =$E$44 -> 2025-01-01 | F118: =$F$44 -> 2025 Illustrative Authorized | G118: =$G$44 -> 2025 Illustrative w/Pending | H118: =$H$44 -> % Change over 01/1/2024 | I118: =$I$44 -> % Change over 01/1/2025 | J118: =$J$44 -> % Change over Illustrative Authorized
B119: =CONCATENATE($L$16," Therms Monthly Usage - Non-CARE") -> 31 Therms Monthly Usage - Non-CARE | D119: =VLOOKUP($D$4,'Res Bill Impact'!$B$97:$N$106,4,FALSE) -> 69.72129476 | E119: =VLOOKUP($D$4,'Res Bill Impact'!$B$97:$N$106,7,FALSE) -> 85.89139 | F119: =VLOOKUP($D$4,'Res Bill Impact'!$B$97:$N$106,10,FALSE) -> 85.87093571 | G119: =VLOOKUP($D$4,'Res Bill Impact'!$B$97:$N$106,13,FALSE) -> 86.46996834 | H119: =$G119/D119-1 -> 0.2402232151 | I119: =$G119/E119-1 -> 0.006736162309 | J119: =$G119/F119-1 -> 0.006975964922
B120: =CONCATENATE($L$17," Therms Monthly Usage - CARE") -> 26 Therms Monthly Usage - CARE | D120: =VLOOKUP($D$4,'Res Bill Impact'!$B$112:$N$121,4,FALSE) -> 45.95953808 | E120: =VLOOKUP($D$4,'Res Bill Impact'!$B$112:$N$121,7,FALSE) -> 56.76240692 | F120: =VLOOKUP($D$4,'Res Bill Impact'!$B$112:$N$121,10,FALSE) -> 56.74895782 | G120: =VLOOKUP($D$4,'Res Bill Impact'!$B$112:$N$121,13,FALSE) -> 57.14250733 | H120: =$G120/D120-1 -> 0.2433220548 | I120: 0.006696340585 | J120: 0.006934920367
B121: Total | D121: =D119*(1-$N$18)+(Summary!D120*$N$18) -> 64.32227427 | E121: =E119*(1-$N$18)+(Summary!E120*$N$18) -> 79.27285675 | F121: =F119*(1-$N$18)+(Summary!F120*$N$18) -> 79.25399414 | G121: =G119*(1-$N$18)+(Summary!G120*$N$18) -> 79.80633799 | H121: 0.2407263098 | I121: 0.006729683536 | J121: 0.006969287194

Sheet Res Bill Impact
A1: *NOTE: This model produces illustrative rates based on a single average throughput forecast. Actual ratemaking uses multiple throughput forecasts depending on revenue requirement type. Therefore, differences in illustrative v. actual rates will exist.
E3: Schedule G-1 | P3: Schedule GL-1
E4: =Summary!L4 -> 2023 CARD | F4: =Summary!L3 -> 2025-01-01 | G4: =Summary!L3 -> 2025-01-01 | H4: Illustrative Proposed | I4: Illustrative Proposed | J4: Illustrative Proposed | K4: Illustrative Proposed | P4: =E4 -> 2023 CARD | Q4: =Summary!L3 -> 2025-01-01 | R4: =Summary!L3 -> 2025-01-01 | S4: Illustrative Proposed | T4: Illustrative Proposed | U4: Illustrative Proposed | V4: Illustrative Proposed
E5: Throughput Forecast | F5: Rates (w/illustrative procrement) | G5: Revenue | H5: Authorized Rates (w/illustrative procrement) | I5: Authorized Revenue | J5: w/Pending Rates (w/illustrative procrement) | K5: w/Pending Revenue | P5: Throughput Forecast | Q5: Rates (w/illustrative procrement) | R5: Revenue | S5: Authorized Rates (w/illustrative procrement) | T5: Authorized Revenue | U5: w/Pending Rates (w/illustrative procrement) | V5: w/Pending Revenue
D7: Baseline - Summer | E7: 246650.1694 | F7: 2.77069 | G7: =F7*E7 -> 683391.1579 | H7: =Res_RD!L49 -> 2.770030184 | I7: =E7*H7 -> 683228.4142 | J7: =Res_RD!AC49 -> 2.789353818 | K7: =E7*J7 -> 687994.5916 | O7: Baseline - Summer | P7: 72332.64227 | Q7: 2.183169497 | R7: =Q7*P7 -> 157914.4182 | S7: =Res_RD!H61 -> 2.182652224 | T7: =P7*S7 -> 157877.0025 | U7: =Res_RD!Y61 -> 2.197788743 | V7: =P7*U7 -> 158971.867
D8: - Winter | E8: 569727.2929 | F8: =F7 -> 2.77069 | G8: =F8*E8 -> 1578537.713 | H8: =H7 -> 2.770030184 | I8: =E8*H8 -> 1578161.798 | J8: =J7 -> 2.789353818 | K8: =E8*J8 -> 1589170.999 | O8: - Winter | P8: 175594.4437 | Q8: =Q7 -> 2.183169497 | R8: =Q8*P8 -> 383352.4334 | S8: =S7 -> 2.182652224 | T8: =P8*S8 -> 383261.6032 | U8: =U7 -> 2.197788743 | V8: =P8*U8 -> 385919.4919
D9: Over Baseline - Summer | E9: 105730.3819 | F9: 3.29738 | G9: =F9*E9 -> 348633.2468 | H9: =Res_RD!L50 -> 3.296660392 | I9: =E9*H9 -> 348557.1624 | J9: =Res_RD!AC50 -> 3.320524981 | K9: =E9*J9 -> 351080.3745 | O9: Over Baseline - Summer | P9: 31575.9944 | Q9: 2.604521497 | R9: =Q9*P9 -> 82240.35621 | S9: =Res_RD!H62 -> 2.60395639 | T9: =P9*S9 -> 82222.51241 | U9: =Res_RD!Y62 -> 2.622725674 | V9: =P9*U9 -> 82815.17122
D10: - Winter | E10: 232552.583 | F10: =F9 -> 3.29738 | G10: =F10*E10 -> 766814.2361 | H10: =H9 -> 3.296660392 | I10: =E10*H10 -> 766646.8895 | J10: =J9 -> 3.320524981 | K10: =E10*J10 -> 772196.6613 | O10: - Winter | P10: 61031.21498 | Q10: =Q9 -> 2.604521497 | R10: =Q10*P10 -> 158957.1114 | S10: =S9 -> 2.60395639 | T10: =P10*S10 -> 158922.6223 | U10: =U9 -> 2.622725674 | V10: =P10*U10 -> 160068.1345
F12: =SUM(G7:G10)/SUM($E$7:$E$10) -> 2.924995327 | H12: =SUM(I7:I10)/SUM($E$7:$E$10) -> 2.924317994 | J12: =SUM(K7:K10)/SUM($E$7:$E$10) -> 2.944971999 | Q12: =SUM(R7:R10)/SUM($P$7:$P$10) -> 2.297754822 | S12: =SUM(T7:T10)/SUM($P$7:$P$10) -> 2.297224541 | U12: =SUM(V7:V10)/SUM($P$7:$P$10) -> 2.313348979
P19: 2024 Recorded Data - Average Monthly Usage - Therms
B20: SCHEDULE G-1 RATES ($/therm) | E20: Illustrative Proposed | F20: Illustrative Proposed | H20: MONTHLY BASELINE QUANTITIES -BASIC (Therms) | P20: Climate Zone | Q20: Summer | R20: Winter Off-Peak | S20: Winter On-Peak | T20: Summer | U20: Winter Off-Peak | V20: Winter On-Peak | W20: Sample Population Weight
B21: Rates | C21: 2024-01-01 | D21: =Summary!L3 -> 2025-01-01 | E21: Authorized | F21: w/Pending | H21: Climate Zone | I21: Summer 2022 | J21: Winter 2022 Off-Peak | K21: Winter 2022 On-Peak | Q21: Non-CARE | T21: CARE | W21: Non-CARE | X21: CARE
B22: Tier 1 | C22: 2.249074024 | D22: =F7 -> 2.77069 | E22: =H7 -> 2.770030184 | F22: =J7 -> 2.789353818 | H22: P | I22: 11.86263 | J22: 57.18396 | K22: 66.61323 | P22: P | Q22: 17 | R22: 57 | S22: 68 | T22: 14 | U22: 46 | V22: 53 | W22: 0.003341401518 | X22: 0.004503685182
B23: Tier 2 | C23: 2.676842176 | D23: =F9 -> 3.29738 | E23: =H9 -> 3.296660392 | F23: =J9 -> 3.320524981 | H23: Q | I23: 17.03352 | J23: 45.01716 | K23: 60.834 | P23: Q | Q23: INCLUDED WITH TERRITORY X
H24: R | I24: 10.95012 | J24: 37.71708 | K24: 55.05477 | P24: R | Q24: 14 | R24: 39 | S24: 56 | T24: 15 | U24: 35 | V24: 49 | W24: 0.07435750216 | X24: 0.1809320012
H25: S | I25: 11.86263 | J25: 41.97546 | K25: 59.00898 | P25: S | Q25: 15 | R25: 43 | S25: 60 | T25: 16 | U25: 39 | V25: 53 | W25: 0.318942723 | X25: 0.3417443461
B26: SCHEDULE GL-1 RATES ($/therm) | E26: Illustrative Proposed | F26: Illustrative Proposed | H26: T | I26: 17.03352 | J26: 39.84627 | K26: 51.10056 | P26: T | Q26: 19 | R26: 36 | S26: 44 | T26: 20 | U26: 31 | V26: 36 | W26: 0.1962030909 | X26: 0.1477905969
B27: Rates | C27: =C21 -> 2024-01-01 | D27: =D21 -> 2025-01-01 | E27: Authorized | F27: w/Pending | H27: V | I27: 17.94603 | J27: 45.92967 | K27: 52.01307 | P27: V | Q27: 21 | R27: 45 | S27: 48 | T27: 22 | U27: 43 | V27: 45 | W27: 0.008620750838 | X27: 0.0127027882
B28: Tier 1 | C28: 1.767674542 | D28: =Q7 -> 2.183169497 | E28: =S7 -> 2.182652224 | F28: =U7 -> 2.197788743 | H28: W | I28: 11.86263 | J28: 34.67538 | K28: 51.10056 | P28: W | Q28: 14 | R28: 33 | S28: 51 | T28: 17 | U28: 34 | V28: 49 | W28: 0.01760210135 | X28: 0.06922059152
B29: Tier 2 | C29: 2.109890542 | D29: =Q9 -> 2.604521497 | E29: =S9 -> 2.60395639 | F29: =U9 -> 2.622725674 | H29: X | I29: 14.90433 | J29: 45.01716 | K29: 60.834 | P29: X | Q29: 18 | R29: 45 | S29: 58 | T29: 17 | U29: 34 | V29: 43 | W29: 0.3803055187 | X29: 0.2421472582
H30: Y | I30: 21.90024 | J30: 67.52574 | K30: 78.47586 | P30: Y | Q30: 23 | R30: 69 | S30: 79 | T30: 21 | U30: 60 | V30: 68 | W30: 0.0006269115222 | X30: 0.0009587327878
N33: Daily to Monthly Conversion Factor | O33: 30.417
C34: NON-CARE
C35: =C27 -> 2024-01-01 | F35: =D27 -> 2025-01-01 | I35: =CONCATENATE(E20," ",E21) -> Illustrative Proposed Authorized | L35: =CONCATENATE(F20," ",F21) -> Illustrative Proposed w/Pending
C36: Summer | D36: Winter Off-Peak | E36: Winter On-Peak | F36: Summer | G36: Winter Off-Peak | H36: Winter On-Peak | I36: Summer | J36: Winter Off-Peak | K36: Winter On-Peak | L36: Summer | M36: Winter Off-Peak | N36: Winter On-Peak
B37: P | C37: =IF(Q22>I22,C$22*I22+C$23*(Q22-I22),Q22*C$22) -> 40.43186169 | D37: =IF(R22>J22,C$22*J22+C$23*(R22-J22),R22*C$22) -> 128.1972194 | E37: =IF(S22>K22,C$22*K22+C$23*(S22-K22),S22*C$22) -> 153.5302497 | F37: =IF(Q22>I22,D$22*I22+D$23*(Q22-I22),Q22*D$22) -> 49.80753141 | G37: =IF(R22>J22,D$22*J22+D$23*(R22-J22),R22*D$22) -> 157.92933 | H37: =IF(S22>K22,D$22*K22+D$23*(S22-K22),S22*D$22) -> 189.1373179 | I37: =IF(Q22>I22,E$22*I22+E$23*(Q22-I22),Q22*E$22) -> 49.79600736 | J37: =IF(R22>J22,E$22*J22+E$23*(R22-J22),R22*E$22) -> 157.8917205 | K37: =IF(S22>K22,E$22*K22+E$23*(S22-K22),S22*E$22) -> 189.0923675 | L37: =IF(Q22>I22,F$22*I22+F$23*(Q22-I22),Q22*F$22) -> 50.1478377 | M37: =IF(R22>J22,F$22*J22+F$23*(R22-J22),R22*F$22) -> 158.9931676 | N37: =IF(S22>K22,F$22*K22+F$23*(S22-K22),S22*F$22) -> 190.4126718
B38: Q
B39: R | C39: =IF(Q24>I24,C$22*I24+C$23*(Q24-I24),Q24*C$22) -> 32.79167787 | D39: =IF(R24>J24,C$22*J24+C$23*(R24-J24),R24*C$22) -> 88.26267927 | E39: =IF(S24>K24,C$22*K24+C$23*(S24-K24),S24*C$22) -> 126.3524847 | F39: =IF(Q24>I24,D$22*I24+D$23*(Q24-I24),Q24*D$22) -> 40.3960013 | G39: =IF(R24>J24,D$22*J24+D$23*(R24-J24),R24*D$22) -> 108.7326111 | H39: =IF(S24>K24,D$22*K24+D$23*(S24-K24),S24*D$22) -> 155.6564832 | I39: =IF(Q24>I24,E$22*I24+E$23*(Q24-I24),Q24*E$22) -> 40.38658152 | J39: =IF(R24>J24,E$22*J24+E$23*(R24-J24),R24*E$22) -> 108.7068016 | K39: =IF(S24>K24,E$22*K24+E$23*(S24-K24),S24*E$22) -> 155.619477 | L39: =IF(Q24>I24,F$22*I24+F$23*(Q24-I24),Q24*F$22) -> 40.67096175 | M39: =IF(R24>J24,F$22*J24+F$23*(R24-J24),R24*F$22) -> 109.466249 | N39: =IF(S24>K24,F$22*K24+F$23*(S24-K24),S24*F$22) -> 156.7058927
B40: S | C40: 35.07817733 | D40: 97.14844863 | E40: 135.3683683 | F40: 43.21277141 | G40: 119.679285 | H40: 166.7633603 | I40: 43.20268658 | J40: 119.6508516 | K40: 166.7237121 | L40: =IF(Q25>I25,F$22*I25+F$23*(Q25-I25),Q25*F$22) -> 43.50678774 | M40: 120.4864203 | N40: 167.8876303
B41: T | C41: 43.57360398 | D41: 80.96666488 | E41: 98.95925708 | F41: 53.67883535 | G41: 99.74484 | H41: 121.91036 | I41: 53.66618127 | J41: 99.72108663 | K41: 121.8813281 | L41: 54.04226 | M41: =IF(R26>J26,F$22*J26+F$23*(R26-J26),R26*F$22) -> 100.4167374 | N41: 122.731568
B42: V | C42: 48.53694562 | D42: 101.2083311 | E42: 107.9555532 | F42: 59.79298546 | G42: 124.68105 | H42: 132.99312 | I42: 59.77894672 | J42: 124.6513583 | K42: 132.9614488 | L42: 60.19861097 | M42: 125.5209218 | N42: 133.8889832
B43: W | C43: 32.40133516 | D43: 74.21944281 | E43: 114.7027752 | F43: 39.91539141 | G43: 91.43277 | H43: 141.30519 | I43: 39.90602619 | J43: 91.41099608 | K43: 141.2715394 | L43: 40.18626276 | M43: 92.04867598 | N43: 142.2570447
B44: X | C44: 41.80756148 | D44: 101.2083311 | E44: 130.4462934 | F44: 51.50287843 | G44: 124.68105 | H44: 160.70002 | I44: 51.49081665 | J44: 124.6513583 | K44: 160.6617507 | L44: 51.85269935 | M44: 125.5209218 | N44: 161.7825214
B45: Y | C45: 52.19914487 | D45: 155.8167492 | E45: 177.9010583 | F45: 64.30510259 | G45: 191.954088 | H45: 219.1605693 | I45: 64.28986107 | J45: 191.9084726 | K45: 219.1084125 | L45: 64.7392986 | M45: 193.2484978 | N45: 220.6373596
B46: ALL CLIMATE ZONES | C46: =SUMPRODUCT(C37:C45,$W$22:$W$30) -> 39.23173862 | D46: 94.62873153 | E46: 125.1697708 | F46: 48.32972281 | G46: 116.5753564 | H46: 154.1996283 | I46: 48.31840203 | J46: 116.5476227 | K46: 154.1629326 | L46: 48.65796042 | M46: 117.3610218 | N46: 155.2387072
C49: CARE
C50: =C27 -> 2024-01-01 | F50: =D27 -> 2025-01-01 | I50: =I35 -> Illustrative Proposed Authorized | L50: =L35 -> Illustrative Proposed w/Pending
C51: Summer | D51: Winter Off-Peak | E51: Winter On-Peak | F51: Summer | G51: Winter Off-Peak | H51: Winter On-Peak | I51: Summer | J51: Winter Off-Peak | K51: Winter On-Peak | L51: Summer | M51: Winter Off-Peak | N51: Winter On-Peak
B52: P | C52: =IF(T22>I22,C$28*I22+C$29*(T22-I22),T22*C$28) -> 25.4788858 | D52: =IF(U22>J22,C$28*J22+C$29*(U22-J22),U22*C$28) -> 81.31302892 | E52: =IF(V22>K22,C$28*K22+C$29*(V22-K22),V22*C$28) -> 93.68675071 | F52: =IF(T22>I22,D$28*I22+D$29*(T22-I22),T22*D$28) -> 31.46495808 | G52: =IF(U22>J22,D$28*J22+D$29*(U22-J22),U22*D$28) -> 100.4257969 | H52: =IF(V22>K22,D$28*K22+D$29*(V22-K22),V22*D$28) -> 115.7079833 | I52: =IF(T22>I22,E$28*I22+E$29*(T22-I22),T22*E$28) -> 31.45761402 | J52: =IF(U22>J22,E$28*J22+E$29*(U22-J22),U22*E$28) -> 100.4020023 | K52: =IF(V22>K22,E$28*K22+E$29*(V22-K22),V22*E$28) -> 115.6805679 | L52: =IF(T22>I22,F$28*I22+F$29*(T22-I22),T22*F$28) -> 31.67728986 | M52: =IF(U22>J22,F$28*J22+F$29*(U22-J22),U22*F$28) -> 101.0982822 | N52: =IF(V22>K22,F$28*K22+F$29*(V22-K22),V22*F$28) -> 116.4828034
B53: Q
B54: R | C54: =IF(T24>I24,C$28*I24+C$29*(T24-I24),T24*C$28) -> 27.90105186 | D54: =IF(U24>J24,C$28*J24+C$29*(U24-J24),U24*C$28) -> 61.86860896 | E54: =IF(V24>K24,C$28*K24+C$29*(V24-K24),V24*C$28) -> 86.61605254 | F54: =IF(T24>I24,D$28*I24+D$29*(T24-I24),T24*D$28) -> 34.45396749 | G54: =IF(U24>J24,D$28*J24+D$29*(U24-J24),U24*D$28) -> 76.41093239 | H54: =IF(V24>K24,D$28*K24+D$29*(V24-K24),V24*D$28) -> 106.9753053 | I54: =IF(T24>I24,E$28*I24+E$29*(T24-I24),T24*E$28) -> 34.44601468 | J54: =IF(U24>J24,E$28*J24+E$29*(U24-J24),U24*E$28) -> 76.39282784 | K54: =IF(V24>K24,E$28*K24+E$29*(V24-K24),V24*E$28) -> 106.949959 | L54: =IF(T24>I24,F$28*I24+F$29*(T24-I24),T24*F$28) -> 34.68777473 | M54: =IF(U24>J24,F$28*J24+F$29*(U24-J24),U24*F$28) -> 76.92260602 | N54: =IF(V24>K24,F$28*K24+F$29*(V24-K24),V24*F$28) -> 107.6916484
B55: S | C55: 29.69866688 | D55: 68.93930712 | E55: 93.68675071 | F55: 36.67400107 | G55: 85.14361038 | H55: 115.7079833 | I55: 36.6655268 | J55: 85.12343674 | K55: 115.6805679 | L55: 36.9227412 | M55: 85.71376099 | N55: 116.4828034
B56: T | C56: 36.36866775 | D56: 54.79791079 | E56: 63.6362835 | F56: 44.91332222 | G56: 67.6782544 | H56: 78.59410189 | I56: 44.90283486 | J56: 67.66221894 | K56: 78.57548006 | L56: 45.21634177 | M56: 68.13145104 | N56: 79.12039476
B57: V | C57: 40.27617331 | D57: 76.01000529 | E57: 79.54535437 | F57: 49.7378773 | G57: 93.87628836 | H57: 98.24262736 | I57: 49.72630338 | J57: 93.85404563 | K57: 98.21935008 | L57: 50.07403392 | M57: 94.50491596 | N57: 98.90049345
B58: W | C58: 31.80855742 | D58: 60.10093442 | E58: 86.61605254 | F58: 39.27852257 | G58: 74.22776289 | H58: 106.9753053 | I58: 39.26948319 | J58: 74.21017562 | K58: 106.949959 | L58: 39.54546688 | M58: 74.72481727 | N58: 107.6916484
B59: X | C59: 30.76763901 | D59: 60.10093442 | E59: 76.01000529 | F59: 37.99689619 | G59: 74.22776289 | H59: 93.87628836 | I59: 37.98800231 | J59: 74.21017562 | K59: 93.85404563 | L59: 38.25293622 | M59: 74.72481727 | N59: 94.50491596
B60: Y | C60: 37.12116537 | D60: 106.0604725 | E60: 120.2018688 | F60: 45.84655943 | G60: 130.9901698 | H60: 148.4555258 | I60: 45.8356967 | J60: 130.9591334 | K60: 148.4203512 | L60: 46.15356361 | M60: 131.8673246 | N60: 149.4496345
B61: ALL CLIMATE ZONES | C61: =SUMPRODUCT(C52:C60,$X$22:$X$30) -> 30.8865562 | D61: =SUMPRODUCT(D52:D60,$X$22:$X$30) -> 62.99917525 | E61: 83.04223106 | F61: 38.14192389 | G61: 77.80724025 | H61: =SUMPRODUCT(H52:H60,$X$22:$X$30) -> 102.5614509 | I61: 38.13306915 | J61: 77.78880486 | K61: =SUMPRODUCT(K52:K60,$X$22:$X$30) -> 102.5371504 | L61: 38.40001424 | M61: 78.32826403 | N61: =SUMPRODUCT(N52:N60,$X$22:$X$30) -> 103.2482374
C64: ESSENTIAL USAGE NON-CARE
C65: =C27 -> 2024-01-01 | F65: =D27 -> 2025-01-01 | I65: =I50 -> Illustrative Proposed Authorized | L65: =L50 -> Illustrative Proposed w/Pending
C66: Summer | D66: Winter Off-Peak | E66: Winter On-Peak | F66: Summer | G66: Winter Off-Peak | H66: Winter On-Peak | I66: Summer | J66: Winter Off-Peak | K66: Winter On-Peak | L66: Summer | M66: Winter Off-Peak | N66: Winter On-Peak
B67: P | C67: =C$22*I22 -> 26.67993299 | D67: =C$22*J22 -> 128.6109591 | E67: =C$22*K22 -> 149.8180853 | F67: =D$22*I22 -> 32.86767031 | G67: =D$22*J22 -> 158.4390261 | H67: =D$22*K22 -> 184.5646102 | I67: =E$22*I22 -> 32.85984316 | J67: =E$22*J22 -> 158.4012952 | K67: =E$22*K22 -> 184.5206578 | L67: =F$22*I22 -> 33.08907228 | M67: =F$22*J22 -> 159.5062971 | N67: =F$22*K22 -> 185.8078674
B68: Q
B69: R | C69: =C$22*I24 -> 24.62763046 | D69: =C$22*J24 -> 84.82850491 | E69: =C$22*K24 -> 123.8222531 | F69: =D$22*I24 -> 30.33938798 | G69: =D$22*J24 -> 104.5023364 | H69: =D$22*K24 -> 152.5397007 | I69: =E$22*I24 -> 30.33216292 | J69: =E$22*J24 -> 104.4774501 | K69: =E$22*K24 -> 152.5033747 | L69: =F$22*I24 -> 30.54375902 | M69: =F$22*J24 -> 105.2062811 | N69: =F$22*K24 -> 153.5672329
B70: S | C70: 26.67993299 | D70: 94.40591675 | E70: 132.7155641 | F70: 32.86767031 | G70: 116.3009873 | H70: 163.4955908 | I70: 32.85984316 | J70: 116.2732912 | K70: 163.4566557 | L70: 33.08907228 | M70: 117.0844096 | N70: 164.5969236
B71: T | C71: 38.30964738 | D71: 89.61721083 | E71: 114.9289421 | F71: 47.19460353 | G71: 110.4016618 | H71: 141.5838106 | I71: 47.18336454 | J71: 110.3753706 | K71: 141.5500936 | L71: 47.51251404 | M71: 111.1453453 | N71: 142.5375421
B72: V | C72: 40.36194992 | D72: 103.2992277 | E72: 116.9812447 | F72: 49.72288586 | G72: 127.2568774 | H72: 144.1120929 | I72: 49.71104479 | J72: 127.2265722 | K72: 144.0777739 | L72: 50.05782729 | M72: 128.1141004 | N72: 145.0828554
B73: W | C73: 26.67993299 | D73: 77.98749645 | E73: 114.9289421 | F73: 32.86767031 | G73: 96.07472861 | H73: 141.5838106 | I73: 32.85984316 | J73: 96.05184925 | K73: 141.5500936 | L73: 33.08907228 | M73: 96.72190358 | N73: 142.5375421
B74: X | C74: 33.52094146 | D74: 101.2469252 | E74: 136.8201692 | F74: 41.29527809 | G74: 124.728595 | H74: 168.5521555 | I74: 41.28544397 | J74: 124.698892 | K74: 168.5120162 | L74: 41.57344978 | M74: 125.5687871 | N74: 169.6875501
B75: Y | C75: 49.25526091 | D75: 151.8703878 | E75: 176.4980183 | F75: 60.67877597 | G75: 187.0928926 | H75: 217.4322805 | I75: 60.66432584 | J75: 187.048338 | K75: 217.3805009 | L75: 61.08751805 | M75: 188.3531807 | N75: 218.8969397
B76: ALL CLIMATE ZONES | C76: =SUMPRODUCT(C67:C75,$W$22:$W$30) -> 31.54289008 | D76: =SUMPRODUCT(D67:D75,$W$22:$W$30) -> 95.29386494 | E76: 129.761364 | F76: 38.8584676 | G76: 117.3948726 | H76: 159.8562385 | I76: 38.84921379 | J76: 117.3669161 | K76: 159.8181701 | L76: 39.12022454 | M76: 118.1856635 | N76: 160.9330561
C79: ESSENTIAL USAGE CARE
C80: =C27 -> 2024-01-01 | F80: =D27 -> 2025-01-01 | I80: =I65 -> Illustrative Proposed Authorized | L80: =L65 -> Illustrative Proposed w/Pending
C81: Summer | D81: Winter Off-Peak | E81: Winter On-Peak | F81: Summer | G81: Winter Off-Peak | H81: Winter On-Peak | I81: Summer | J81: Winter Off-Peak | K81: Winter On-Peak | L81: Summer | M81: Winter Off-Peak | N81: Winter On-Peak
B82: P | C82: =C$28*I22 -> 20.96926905 | D82: =C$28*J22 -> 101.0826303 | E82: =C$28*K22 -> 117.7505108 | F82: =D$28*I22 -> 25.89813197 | G82: =D$28*J22 -> 124.8422772 | H82: =D$28*K22 -> 145.4279718 | I82: =E$28*I22 -> 25.89199575 | J82: =E$28*J22 -> 124.8126975 | K82: =E$28*K22 -> 145.3935146 | L82: =F$28*I22 -> 26.07155468 | M82: =F$28*J22 -> 125.6782636 | N82: =F$28*K22 -> 146.4018071
B83: Q
B84: R | C84: =C$28*I24 -> 19.35624835 | D84: =C$28*J24 -> 66.6715221 | E84: =C$28*K24 -> 97.31891533 | F84: =D$28*I24 -> 23.90596797 | G84: =D$28*J24 -> 82.34277857 | H84: =D$28*K24 -> 120.1938945 | I84: =E$28*I24 -> 23.90030377 | J84: =E$28*J24 -> 82.32326854 | K84: =E$28*K24 -> 120.1654162 | L84: =F$28*I24 -> 24.06605047 | M84: =F$28*J24 -> 82.89417386 | N84: =F$28*K24 -> 120.9987538
B85: S | C85: 20.96926905 | D85: 74.19895202 | E85: 104.3086717 | F85: 25.89813197 | G85: 91.63954389 | H85: 128.8266052 | I85: 25.89199575 | J85: 91.61783112 | K85: 128.7960814 | L85: 26.07155468 | M85: 92.25319349 | N85: 129.689272
B86: T | C86: 30.10971966 | D86: 70.43523706 | E86: 90.32915898 | F86: 37.18706129 | G86: 86.99116123 | H86: 111.5611839 | I86: 37.17825031 | J86: 86.97054983 | K86: 111.5347509 | L86: 37.43607852 | M86: 87.57368367 | N86: 112.3082355
B87: V | C87: 31.72274035 | D87: 81.18870837 | E87: 91.94217967 | F87: 39.17922529 | G87: 100.2722545 | H87: 113.5533479 | I87: 39.16994229 | J87: 100.2484964 | K87: 113.5264429 | L87: 39.44158272 | M87: 100.9437117 | N87: 114.3137398
B88: W | C88: 20.96926905 | D88: 61.29478645 | E88: 90.32915898 | F88: 25.89813197 | G88: 75.70223191 | H88: 111.5611839 | I88: 25.89199575 | J88: 75.68429528 | K88: 111.5347509 | L88: 26.07155468 | M88: 76.20915984 | N88: 112.3082355
B89: X | C89: 26.3460047 | D89: 79.57568767 | E89: 107.5347131 | F89: 32.53867863 | G89: 98.28009055 | H89: 132.8109332 | I89: 32.53096902 | J89: 98.25680439 | K89: 132.7794654 | L89: 32.7565687 | M89: 98.93820751 | N89: 133.7002804
B90: Y | C90: 38.7124967 | D90: 119.3635315 | E90: 138.7197799 | F90: 47.81193594 | G90: 147.4201358 | H90: 171.3261038 | I90: 47.80060754 | J90: 147.3852066 | K90: 171.2855104 | L90: 48.13210095 | M90: 148.4073113 | N90: 172.4733617
B91: ALL CLIMATE ZONES | C91: =SUMPRODUCT(C82:C90,$X$22:$X$30) -> 23.48386652 | D91: 72.94265098 | E91: 100.7279074 | F91: 29.00378992 | G91: 90.08794713 | H91: 124.4041761 | I91: 28.99691786 | J91: 90.06660199 | K91: 124.3747002 | L91: 29.19800917 | M91: 90.6912067 | N91: 125.2372288
C94: TYPICAL NON-CARE
C95: =C27 -> 2024-01-01 | F95: =D27 -> 2025-01-01 | I95: =I80 -> Illustrative Proposed Authorized | L95: =L80 -> Illustrative Proposed w/Pending
C96: Summer | D96: Winter Off-Peak | E96: Winter On-Peak | F96: Summer | G96: Winter Off-Peak | H96: Winter On-Peak | I96: Summer | J96: Winter Off-Peak | K96: Winter On-Peak | L96: Summer | M96: Winter Off-Peak | N96: Winter On-Peak
B97: P | C97: =IF(Summary!$L$16>I22,C$22*I22+C$23*(Summary!$L$16-I22),Summary!$L$16*C$22) -> 77.90765216 | D97: =IF(Summary!$L$16>J22,C$22*J22+C$23*(Summary!$L$16-J22),Summary!$L$16*C$22) -> 69.72129476 | E97: =IF(Summary!$L$16>K22,C$22*K22+C$23*(Summary!$L$16-K22),Summary!$L$16*C$22) -> 69.72129476 | F97: =IF(Summary!$L$16>I22,D$22*I22+D$23*(Summary!$L$16-I22),Summary!$L$16*D$22) -> 95.97085141 | G97: =IF(Summary!$L$16>J22,D$22*J22+D$23*(Summary!$L$16-J22),Summary!$L$16*D$22) -> 85.89139 | H97: =IF(Summary!$L$16>K22,D$22*K22+D$23*(Summary!$L$16-K22),Summary!$L$16*D$22) -> 85.89139 | I97: =IF(Summary!$L$16>I22,E$22*I22+E$23*(Summary!$L$16-I22),Summary!$L$16*E$22) -> 95.94925285 | J97: =IF(Summary!$L$16>J22,E$22*J22+E$23*(Summary!$L$16-J22),Summary!$L$16*E$22) -> 85.87093571 | K97: =IF(Summary!$L$16>K22,E$22*K22+E$23*(Summary!$L$16-K22),Summary!$L$16*E$22) -> 85.87093571 | L97: =IF(Summary!$L$16>I22,F$22*I22+F$23*(Summary!$L$16-I22),Summary!$L$16*F$22) -> 96.63518744 | M97: =IF(Summary!$L$16>J22,F$22*J22+F$23*(Summary!$L$16-J22),Summary!$L$16*F$22) -> 86.46996834 | N97: =IF(Summary!$L$16>K22,F$22*K22+F$23*(Summary!$L$16-K22),Summary!$L$16*F$22) -> 86.46996834
B98: Q
B99: R | C99: =IF(Summary!$L$16>I24,C$22*I24+C$23*(Summary!$L$16-I24),Summary!$L$16*C$22) -> 78.29799487 | D99: =IF(Summary!$L$16>J24,C$22*J24+C$23*(Summary!$L$16-J24),Summary!$L$16*C$22) -> 69.72129476 | E99: =IF(Summary!$L$16>K24,C$22*K24+C$23*(Summary!$L$16-K24),Summary!$L$16*C$22) -> 69.72129476 | F99: =IF(Summary!$L$16>I24,D$22*I24+D$23*(Summary!$L$16-I24),Summary!$L$16*D$22) -> 96.4514613 | G99: =IF(Summary!$L$16>J24,D$22*J24+D$23*(Summary!$L$16-J24),Summary!$L$16*D$22) -> 85.89139 | H99: =IF(Summary!$L$16>K24,D$22*K24+D$23*(Summary!$L$16-K24),Summary!$L$16*D$22) -> 85.89139 | I99: =IF(Summary!$L$16>I24,E$22*I24+E$23*(Summary!$L$16-I24),Summary!$L$16*E$22) -> 96.42980818 | J99: =IF(Summary!$L$16>J24,E$22*J24+E$23*(Summary!$L$16-J24),Summary!$L$16*E$22) -> 85.87093571 | K99: =IF(Summary!$L$16>K24,E$22*K24+E$23*(Summary!$L$16-K24),Summary!$L$16*E$22) -> 85.87093571 | L99: =IF(Summary!$L$16>I24,F$22*I24+F$23*(Summary!$L$16-I24),Summary!$L$16*F$22) -> 97.11988644 | M99: =IF(Summary!$L$16>J24,F$22*J24+F$23*(Summary!$L$16-J24),Summary!$L$16*F$22) -> 86.46996834 | N99: =IF(Summary!$L$16>K24,F$22*K24+F$23*(Summary!$L$16-K24),Summary!$L$16*F$22) -> 86.46996834
B100: S | C100: =IF(Summary!$L$16>I25,C$22*I25+C$23*(Summary!$L$16-I25),Summary!$L$16*C$22) -> 77.90765216 | D100: =IF(Summary!$L$16>J25,C$22*J25+C$23*(Summary!$L$16-J25),Summary!$L$16*C$22) -> 69.72129476 | E100: =IF(Summary!$L$16>K25,C$22*K25+C$23*(Summary!$L$16-K25),Summary!$L$16*C$22) -> 69.72129476 | F100: =IF(Summary!$L$16>I25,D$22*I25+D$23*(Summary!$L$16-I25),Summary!$L$16*D$22) -> 95.97085141 | G100: =IF(Summary!$L$16>J25,D$22*J25+D$23*(Summary!$L$16-J25),Summary!$L$16*D$22) -> 85.89139 | H100: =IF(Summary!$L$16>K25,D$22*K25+D$23*(Summary!$L$16-K25),Summary!$L$16*D$22) -> 85.89139 | I100: =IF(Summary!$L$16>I25,E$22*I25+E$23*(Summary!$L$16-I25),Summary!$L$16*E$22) -> 95.94925285 | J100: =IF(Summary!$L$16>J25,E$22*J25+E$23*(Summary!$L$16-J25),Summary!$L$16*E$22) -> 85.87093571 | K100: =IF(Summary!$L$16>K25,E$22*K25+E$23*(Summary!$L$16-K25),Summary!$L$16*E$22) -> 85.87093571 | L100: =IF(Summary!$L$16>I25,F$22*I25+F$23*(Summary!$L$16-I25),Summary!$L$16*F$22) -> 96.63518744 | M100: =IF(Summary!$L$16>J25,F$22*J25+F$23*(Summary!$L$16-J25),Summary!$L$16*F$22) -> 86.46996834 | N100: =IF(Summary!$L$16>K25,F$22*K25+F$23*(Summary!$L$16-K25),Summary!$L$16*F$22) -> 86.46996834
B101: T | C101: =IF(Summary!$L$16>I26,C$22*I26+C$23*(Summary!$L$16-I26),Summary!$L$16*C$22) -> 75.6957101 | D101: =IF(Summary!$L$16>J26,C$22*J26+C$23*(Summary!$L$16-J26),Summary!$L$16*C$22) -> 69.72129476 | E101: =IF(Summary!$L$16>K26,C$22*K26+C$23*(Summary!$L$16-K26),Summary!$L$16*C$22) -> 69.72129476 | F101: =IF(Summary!$L$16>I26,D$22*I26+D$23*(Summary!$L$16-I26),Summary!$L$16*D$22) -> 93.24739535 | G101: =IF(Summary!$L$16>J26,D$22*J26+D$23*(Summary!$L$16-J26),Summary!$L$16*D$22) -> 85.89139 | H101: =IF(Summary!$L$16>K26,D$22*K26+D$23*(Summary!$L$16-K26),Summary!$L$16*D$22) -> 85.89139 | I101: =IF(Summary!$L$16>I26,E$22*I26+E$23*(Summary!$L$16-I26),Summary!$L$16*E$22) -> 93.22610598 | J101: =IF(Summary!$L$16>J26,E$22*J26+E$23*(Summary!$L$16-J26),Summary!$L$16*E$22) -> 85.87093571 | K101: =IF(Summary!$L$16>K26,E$22*K26+E$23*(Summary!$L$16-K26),Summary!$L$16*E$22) -> 85.87093571 | L101: =IF(Summary!$L$16>I26,F$22*I26+F$23*(Summary!$L$16-I26),Summary!$L$16*F$22) -> 93.88855978 | M101: =IF(Summary!$L$16>J26,F$22*J26+F$23*(Summary!$L$16-J26),Summary!$L$16*F$22) -> 86.46996834 | N101: =IF(Summary!$L$16>K26,F$22*K26+F$23*(Summary!$L$16-K26),Summary!$L$16*F$22) -> 86.46996834
B102: V | C102: =IF(Summary!$L$16>I27,C$22*I27+C$23*(Summary!$L$16-I27),Summary!$L$16*C$22) -> 75.30536738 | D102: =IF(Summary!$L$16>J27,C$22*J27+C$23*(Summary!$L$16-J27),Summary!$L$16*C$22) -> 69.72129476 | E102: =IF(Summary!$L$16>K27,C$22*K27+C$23*(Summary!$L$16-K27),Summary!$L$16*C$22) -> 69.72129476 | F102: =IF(Summary!$L$16>I27,D$22*I27+D$23*(Summary!$L$16-I27),Summary!$L$16*D$22) -> 92.76678546 | G102: =IF(Summary!$L$16>J27,D$22*J27+D$23*(Summary!$L$16-J27),Summary!$L$16*D$22) -> 85.89139 | H102: =IF(Summary!$L$16>K27,D$22*K27+D$23*(Summary!$L$16-K27),Summary!$L$16*D$22) -> 85.89139 | I102: =IF(Summary!$L$16>I27,E$22*I27+E$23*(Summary!$L$16-I27),Summary!$L$16*E$22) -> 92.74555065 | J102: =IF(Summary!$L$16>J27,E$22*J27+E$23*(Summary!$L$16-J27),Summary!$L$16*E$22) -> 85.87093571 | K102: =IF(Summary!$L$16>K27,E$22*K27+E$23*(Summary!$L$16-K27),Summary!$L$16*E$22) -> 85.87093571 | L102: =IF(Summary!$L$16>I27,F$22*I27+F$23*(Summary!$L$16-I27),Summary!$L$16*F$22) -> 93.40386078 | M102: =IF(Summary!$L$16>J27,F$22*J27+F$23*(Summary!$L$16-J27),Summary!$L$16*F$22) -> 86.46996834 | N102: =IF(Summary!$L$16>K27,F$22*K27+F$23*(Summary!$L$16-K27),Summary!$L$16*F$22) -> 86.46996834
B103: W | C103: =IF(Summary!$L$16>I28,C$22*I28+C$23*(Summary!$L$16-I28),Summary!$L$16*C$22) -> 77.90765216 | D103: =IF(Summary!$L$16>J28,C$22*J28+C$23*(Summary!$L$16-J28),Summary!$L$16*C$22) -> 69.72129476 | E103: =IF(Summary!$L$16>K28,C$22*K28+C$23*(Summary!$L$16-K28),Summary!$L$16*C$22) -> 69.72129476 | F103: =IF(Summary!$L$16>I28,D$22*I28+D$23*(Summary!$L$16-I28),Summary!$L$16*D$22) -> 95.97085141 | G103: =IF(Summary!$L$16>J28,D$22*J28+D$23*(Summary!$L$16-J28),Summary!$L$16*D$22) -> 85.89139 | H103: =IF(Summary!$L$16>K28,D$22*K28+D$23*(Summary!$L$16-K28),Summary!$L$16*D$22) -> 85.89139 | I103: =IF(Summary!$L$16>I28,E$22*I28+E$23*(Summary!$L$16-I28),Summary!$L$16*E$22) -> 95.94925285 | J103: =IF(Summary!$L$16>J28,E$22*J28+E$23*(Summary!$L$16-J28),Summary!$L$16*E$22) -> 85.87093571 | K103: =IF(Summary!$L$16>K28,E$22*K28+E$23*(Summary!$L$16-K28),Summary!$L$16*E$22) -> 85.87093571 | L103: =IF(Summary!$L$16>I28,F$22*I28+F$23*(Summary!$L$16-I28),Summary!$L$16*F$22) -> 96.63518744 | M103: =IF(Summary!$L$16>J28,F$22*J28+F$23*(Summary!$L$16-J28),Summary!$L$16*F$22) -> 86.46996834 | N103: =IF(Summary!$L$16>K28,F$22*K28+F$23*(Summary!$L$16-K28),Summary!$L$16*F$22) -> 86.46996834
B104: X | C104: =IF(Summary!$L$16>I29,C$22*I29+C$23*(Summary!$L$16-I29),Summary!$L$16*C$22) -> 76.60650977 | D104: =IF(Summary!$L$16>J29,C$22*J29+C$23*(Summary!$L$16-J29),Summary!$L$16*C$22) -> 69.72129476 | E104: =IF(Summary!$L$16>K29,C$22*K29+C$23*(Summary!$L$16-K29),Summary!$L$16*C$22) -> 69.72129476 | F104: =IF(Summary!$L$16>I29,D$22*I29+D$23*(Summary!$L$16-I29),Summary!$L$16*D$22) -> 94.36881843 | G104: =IF(Summary!$L$16>J29,D$22*J29+D$23*(Summary!$L$16-J29),Summary!$L$16*D$22) -> 85.89139 | H104: =IF(Summary!$L$16>K29,D$22*K29+D$23*(Summary!$L$16-K29),Summary!$L$16*D$22) -> 85.89139 | I104: =IF(Summary!$L$16>I29,E$22*I29+E$23*(Summary!$L$16-I29),Summary!$L$16*E$22) -> 94.34740175 | J104: =IF(Summary!$L$16>J29,E$22*J29+E$23*(Summary!$L$16-J29),Summary!$L$16*E$22) -> 85.87093571 | K104: =IF(Summary!$L$16>K29,E$22*K29+E$23*(Summary!$L$16-K29),Summary!$L$16*E$22) -> 85.87093571 | L104: =IF(Summary!$L$16>I29,F$22*I29+F$23*(Summary!$L$16-I29),Summary!$L$16*F$22) -> 95.01952411 | M104: =IF(Summary!$L$16>J29,F$22*J29+F$23*(Summary!$L$16-J29),Summary!$L$16*F$22) -> 86.46996834 | N104: =IF(Summary!$L$16>K29,F$22*K29+F$23*(Summary!$L$16-K29),Summary!$L$16*F$22) -> 86.46996834
B105: Y | C105: =IF(Summary!$L$16>I30,C$22*I30+C$23*(Summary!$L$16-I30),Summary!$L$16*C$22) -> 73.61388228 | D105: =IF(Summary!$L$16>J30,C$22*J30+C$23*(Summary!$L$16-J30),Summary!$L$16*C$22) -> 69.72129476 | E105: =IF(Summary!$L$16>K30,C$22*K30+C$23*(Summary!$L$16-K30),Summary!$L$16*C$22) -> 69.72129476 | F105: =IF(Summary!$L$16>I30,D$22*I30+D$23*(Summary!$L$16-I30),Summary!$L$16*D$22) -> 90.68414259 | G105: =IF(Summary!$L$16>J30,D$22*J30+D$23*(Summary!$L$16-J30),Summary!$L$16*D$22) -> 85.89139 | H105: =IF(Summary!$L$16>K30,D$22*K30+D$23*(Summary!$L$16-K30),Summary!$L$16*D$22) -> 85.89139 | I105: =IF(Summary!$L$16>I30,E$22*I30+E$23*(Summary!$L$16-I30),Summary!$L$16*E$22) -> 90.66314421 | J105: =IF(Summary!$L$16>J30,E$22*J30+E$23*(Summary!$L$16-J30),Summary!$L$16*E$22) -> 85.87093571 | K105: =IF(Summary!$L$16>K30,E$22*K30+E$23*(Summary!$L$16-K30),Summary!$L$16*E$22) -> 85.87093571 | L105: =IF(Summary!$L$16>I30,F$22*I30+F$23*(Summary!$L$16-I30),Summary!$L$16*F$22) -> 91.30349845 | M105: =IF(Summary!$L$16>J30,F$22*J30+F$23*(Summary!$L$16-J30),Summary!$L$16*F$22) -> 86.46996834 | N105: =IF(Summary!$L$16>K30,F$22*K30+F$23*(Summary!$L$16-K30),Summary!$L$16*F$22) -> 86.46996834
B106: ALL CLIMATE ZONES | C106: =SUMPRODUCT(C97:C105,$W$22:$W$30) -> 76.9827301 | D106: 69.72129476 | E106: 69.72129476 | F106: 94.83204013 | G106: 85.89139 | H106: 85.89139 | I106: 94.81057086 | J106: 85.87093571 | K106: 85.87093571 | L106: 95.48668697 | M106: 86.46996834 | N106: 86.46996834
C109: TYPICAL CARE
C110: =C27 -> 2024-01-01 | F110: =D27 -> 2025-01-01 | I110: =I95 -> Illustrative Proposed Authorized | L110: =L95 -> Illustrative Proposed w/Pending
C111: Summer | D111: Winter Off-Peak | E111: Winter On-Peak | F111: Summer | G111: Winter Off-Peak | H111: Winter On-Peak | I111: Summer | J111: Winter Off-Peak | K111: Winter On-Peak | L111: Summer | M111: Winter Off-Peak | N111: Winter On-Peak
B112: P | C112: =IF(Summary!$L$17>I22,C$28*I22+C$29*(Summary!$L$17-I22),Summary!$L$17*C$28) -> 50.79757229 | D112: =IF(Summary!$L$17>J22,C$28*J22+C$29*(Summary!$L$17-J22),Summary!$L$17*C$28) -> 45.95953808 | E112: =IF(Summary!$L$17>K22,C$28*K22+C$29*(Summary!$L$17-K22),Summary!$L$17*C$28) -> 45.95953808 | F112: =IF(Summary!$L$17>I22,D$28*I22+D$29*(Summary!$L$17-I22),Summary!$L$17*D$28) -> 62.71921604 | G112: =IF(Summary!$L$17>J22,D$28*J22+D$29*(Summary!$L$17-J22),Summary!$L$17*D$28) -> 56.76240692 | H112: =IF(Summary!$L$17>K22,D$28*K22+D$29*(Summary!$L$17-K22),Summary!$L$17*D$28) -> 56.76240692 | I112: =IF(Summary!$L$17>I22,E$28*I22+E$29*(Summary!$L$17-I22),Summary!$L$17*E$28) -> 62.70509071 | J112: =IF(Summary!$L$17>J22,E$28*J22+E$29*(Summary!$L$17-J22),Summary!$L$17*E$28) -> 56.74895782 | K112: =IF(Summary!$L$17>K22,E$28*K22+E$29*(Summary!$L$17-K22),Summary!$L$17*E$28) -> 56.74895782 | L112: =IF(Summary!$L$17>I22,F$28*I22+F$29*(Summary!$L$17-I22),Summary!$L$17*F$28) -> 63.14999795 | M112: =IF(Summary!$L$17>J22,F$28*J22+F$29*(Summary!$L$17-J22),Summary!$L$17*F$28) -> 57.14250733 | N112: =IF(Summary!$L$17>K22,F$28*K22+F$29*(Summary!$L$17-K22),Summary!$L$17*F$28) -> 57.14250733
B113: Q
B114: R | C114: =IF(Summary!$L$17>I24,C$28*I24+C$29*(Summary!$L$17-I24),Summary!$L$17*C$28) -> 51.10984782 | D114: =IF(Summary!$L$17>J24,C$28*J24+C$29*(Summary!$L$17-J24),Summary!$L$17*C$28) -> 45.95953808 | E114: =IF(Summary!$L$17>K24,C$28*K24+C$29*(Summary!$L$17-K24),Summary!$L$17*C$28) -> 45.95953808 | F114: =IF(Summary!$L$17>I24,D$28*I24+D$29*(Summary!$L$17-I24),Summary!$L$17*D$28) -> 63.10370396 | G114: =IF(Summary!$L$17>J24,D$28*J24+D$29*(Summary!$L$17-J24),Summary!$L$17*D$28) -> 56.76240692 | H114: =IF(Summary!$L$17>K24,D$28*K24+D$29*(Summary!$L$17-K24),Summary!$L$17*D$28) -> 56.76240692 | I114: =IF(Summary!$L$17>I24,E$28*I24+E$29*(Summary!$L$17-I24),Summary!$L$17*E$28) -> 63.08953497 | J114: =IF(Summary!$L$17>J24,E$28*J24+E$29*(Summary!$L$17-J24),Summary!$L$17*E$28) -> 56.74895782 | K114: =IF(Summary!$L$17>K24,E$28*K24+E$29*(Summary!$L$17-K24),Summary!$L$17*E$28) -> 56.74895782 | L114: =IF(Summary!$L$17>I24,F$28*I24+F$29*(Summary!$L$17-I24),Summary!$L$17*F$28) -> 63.53775715 | M114: =IF(Summary!$L$17>J24,F$28*J24+F$29*(Summary!$L$17-J24),Summary!$L$17*F$28) -> 57.14250733 | N114: =IF(Summary!$L$17>K24,F$28*K24+F$29*(Summary!$L$17-K24),Summary!$L$17*F$28) -> 57.14250733
B115: S | C115: =IF(Summary!$L$17>I25,C$28*I25+C$29*(Summary!$L$17-I25),Summary!$L$17*C$28) -> 50.79757229 | D115: =IF(Summary!$L$17>J25,C$28*J25+C$29*(Summary!$L$17-J25),Summary!$L$17*C$28) -> 45.95953808 | E115: =IF(Summary!$L$17>K25,C$28*K25+C$29*(Summary!$L$17-K25),Summary!$L$17*C$28) -> 45.95953808 | F115: =IF(Summary!$L$17>I25,D$28*I25+D$29*(Summary!$L$17-I25),Summary!$L$17*D$28) -> 62.71921604 | G115: =IF(Summary!$L$17>J25,D$28*J25+D$29*(Summary!$L$17-J25),Summary!$L$17*D$28) -> 56.76240692 | H115: =IF(Summary!$L$17>K25,D$28*K25+D$29*(Summary!$L$17-K25),Summary!$L$17*D$28) -> 56.76240692 | I115: =IF(Summary!$L$17>I25,E$28*I25+E$29*(Summary!$L$17-I25),Summary!$L$17*E$28) -> 62.70509071 | J115: =IF(Summary!$L$17>J25,E$28*J25+E$29*(Summary!$L$17-J25),Summary!$L$17*E$28) -> 56.74895782 | K115: =IF(Summary!$L$17>K25,E$28*K25+E$29*(Summary!$L$17-K25),Summary!$L$17*E$28) -> 56.74895782 | L115: =IF(Summary!$L$17>I25,F$28*I25+F$29*(Summary!$L$17-I25),Summary!$L$17*F$28) -> 63.14999795 | M115: =IF(Summary!$L$17>J25,F$28*J25+F$29*(Summary!$L$17-J25),Summary!$L$17*F$28) -> 57.14250733 | N115: =IF(Summary!$L$17>K25,F$28*K25+F$29*(Summary!$L$17-K25),Summary!$L$17*F$28) -> 57.14250733
B116: T | C116: =IF(Summary!$L$17>I26,C$28*I26+C$29*(Summary!$L$17-I26),Summary!$L$17*C$28) -> 49.028011 | D116: =IF(Summary!$L$17>J26,C$28*J26+C$29*(Summary!$L$17-J26),Summary!$L$17*C$28) -> 45.95953808 | E116: =IF(Summary!$L$17>K26,C$28*K26+C$29*(Summary!$L$17-K26),Summary!$L$17*C$28) -> 45.95953808 | F116: =IF(Summary!$L$17>I26,D$28*I26+D$29*(Summary!$L$17-I26),Summary!$L$17*D$28) -> 60.5404512 | G116: =IF(Summary!$L$17>J26,D$28*J26+D$29*(Summary!$L$17-J26),Summary!$L$17*D$28) -> 56.76240692 | H116: =IF(Summary!$L$17>K26,D$28*K26+D$29*(Summary!$L$17-K26),Summary!$L$17*D$28) -> 56.76240692 | I116: =IF(Summary!$L$17>I26,E$28*I26+E$29*(Summary!$L$17-I26),Summary!$L$17*E$28) -> 60.52657321 | J116: =IF(Summary!$L$17>J26,E$28*J26+E$29*(Summary!$L$17-J26),Summary!$L$17*E$28) -> 56.74895782 | K116: =IF(Summary!$L$17>K26,E$28*K26+E$29*(Summary!$L$17-K26),Summary!$L$17*E$28) -> 56.74895782 | L116: =IF(Summary!$L$17>I26,F$28*I26+F$29*(Summary!$L$17-I26),Summary!$L$17*F$28) -> 60.95269582 | M116: =IF(Summary!$L$17>J26,F$28*J26+F$29*(Summary!$L$17-J26),Summary!$L$17*F$28) -> 57.14250733 | N116: =IF(Summary!$L$17>K26,F$28*K26+F$29*(Summary!$L$17-K26),Summary!$L$17*F$28) -> 57.14250733
B117: V | C117: =IF(Summary!$L$17>I27,C$28*I27+C$29*(Summary!$L$17-I27),Summary!$L$17*C$28) -> 48.71573548 | D117: =IF(Summary!$L$17>J27,C$28*J27+C$29*(Summary!$L$17-J27),Summary!$L$17*C$28) -> 45.95953808 | E117: =IF(Summary!$L$17>K27,C$28*K27+C$29*(Summary!$L$17-K27),Summary!$L$17*C$28) -> 45.95953808 | F117: =IF(Summary!$L$17>I27,D$28*I27+D$29*(Summary!$L$17-I27),Summary!$L$17*D$28) -> 60.15596329 | G117: =IF(Summary!$L$17>J27,D$28*J27+D$29*(Summary!$L$17-J27),Summary!$L$17*D$28) -> 56.76240692 | H117: =IF(Summary!$L$17>K27,D$28*K27+D$29*(Summary!$L$17-K27),Summary!$L$17*D$28) -> 56.76240692 | I117: =IF(Summary!$L$17>I27,E$28*I27+E$29*(Summary!$L$17-I27),Summary!$L$17*E$28) -> 60.14212894 | J117: =IF(Summary!$L$17>J27,E$28*J27+E$29*(Summary!$L$17-J27),Summary!$L$17*E$28) -> 56.74895782 | K117: =IF(Summary!$L$17>K27,E$28*K27+E$29*(Summary!$L$17-K27),Summary!$L$17*E$28) -> 56.74895782 | L117: =IF(Summary!$L$17>I27,F$28*I27+F$29*(Summary!$L$17-I27),Summary!$L$17*F$28) -> 60.56493662 | M117: =IF(Summary!$L$17>J27,F$28*J27+F$29*(Summary!$L$17-J27),Summary!$L$17*F$28) -> 57.14250733 | N117: =IF(Summary!$L$17>K27,F$28*K27+F$29*(Summary!$L$17-K27),Summary!$L$17*F$28) -> 57.14250733
B118: W | C118: =IF(Summary!$L$17>I28,C$28*I28+C$29*(Summary!$L$17-I28),Summary!$L$17*C$28) -> 50.79757229 | D118: =IF(Summary!$L$17>J28,C$28*J28+C$29*(Summary!$L$17-J28),Summary!$L$17*C$28) -> 45.95953808 | E118: =IF(Summary!$L$17>K28,C$28*K28+C$29*(Summary!$L$17-K28),Summary!$L$17*C$28) -> 45.95953808 | F118: =IF(Summary!$L$17>I28,D$28*I28+D$29*(Summary!$L$17-I28),Summary!$L$17*D$28) -> 62.71921604 | G118: =IF(Summary!$L$17>J28,D$28*J28+D$29*(Summary!$L$17-J28),Summary!$L$17*D$28) -> 56.76240692 | H118: =IF(Summary!$L$17>K28,D$28*K28+D$29*(Summary!$L$17-K28),Summary!$L$17*D$28) -> 56.76240692 | I118: =IF(Summary!$L$17>I28,E$28*I28+E$29*(Summary!$L$17-I28),Summary!$L$17*E$28) -> 62.70509071 | J118: =IF(Summary!$L$17>J28,E$28*J28+E$29*(Summary!$L$17-J28),Summary!$L$17*E$28) -> 56.74895782 | K118: =IF(Summary!$L$17>K28,E$28*K28+E$29*(Summary!$L$17-K28),Summary!$L$17*E$28) -> 56.74895782 | L118: =IF(Summary!$L$17>I28,F$28*I28+F$29*(Summary!$L$17-I28),Summary!$L$17*F$28) -> 63.14999795 | M118: =IF(Summary!$L$17>J28,F$28*J28+F$29*(Summary!$L$17-J28),Summary!$L$17*F$28) -> 57.14250733 | N118: =IF(Summary!$L$17>K28,F$28*K28+F$29*(Summary!$L$17-K28),Summary!$L$17*F$28) -> 57.14250733
B119: X | C119: =IF(Summary!$L$17>I29,C$28*I29+C$29*(Summary!$L$17-I29),Summary!$L$17*C$28) -> 49.75665389 | D119: =IF(Summary!$L$17>J29,C$28*J29+C$29*(Summary!$L$17-J29),Summary!$L$17*C$28) -> 45.95953808 | E119: =IF(Summary!$L$17>K29,C$28*K29+C$29*(Summary!$L$17-K29),Summary!$L$17*C$28) -> 45.95953808 | F119: =IF(Summary!$L$17>I29,D$28*I29+D$29*(Summary!$L$17-I29),Summary!$L$17*D$28) -> 61.43758966 | G119: =IF(Summary!$L$17>J29,D$28*J29+D$29*(Summary!$L$17-J29),Summary!$L$17*D$28) -> 56.76240692 | H119: =IF(Summary!$L$17>K29,D$28*K29+D$29*(Summary!$L$17-K29),Summary!$L$17*D$28) -> 56.76240692 | I119: =IF(Summary!$L$17>I29,E$28*I29+E$29*(Summary!$L$17-I29),Summary!$L$17*E$28) -> 61.42360982 | J119: =IF(Summary!$L$17>J29,E$28*J29+E$29*(Summary!$L$17-J29),Summary!$L$17*E$28) -> 56.74895782 | K119: =IF(Summary!$L$17>K29,E$28*K29+E$29*(Summary!$L$17-K29),Summary!$L$17*E$28) -> 56.74895782 | L119: =IF(Summary!$L$17>I29,F$28*I29+F$29*(Summary!$L$17-I29),Summary!$L$17*F$28) -> 61.85746729 | M119: =IF(Summary!$L$17>J29,F$28*J29+F$29*(Summary!$L$17-J29),Summary!$L$17*F$28) -> 57.14250733 | N119: =IF(Summary!$L$17>K29,F$28*K29+F$29*(Summary!$L$17-K29),Summary!$L$17*F$28) -> 57.14250733
B120: Y | C120: =IF(Summary!$L$17>I30,C$28*I30+C$29*(Summary!$L$17-I30),Summary!$L$17*C$28) -> 47.36254155 | D120: =IF(Summary!$L$17>J30,C$28*J30+C$29*(Summary!$L$17-J30),Summary!$L$17*C$28) -> 45.95953808 | E120: =IF(Summary!$L$17>K30,C$28*K30+C$29*(Summary!$L$17-K30),Summary!$L$17*C$28) -> 45.95953808 | F120: =IF(Summary!$L$17>I30,D$28*I30+D$29*(Summary!$L$17-I30),Summary!$L$17*D$28) -> 58.48984899 | G120: =IF(Summary!$L$17>J30,D$28*J30+D$29*(Summary!$L$17-J30),Summary!$L$17*D$28) -> 56.76240692 | H120: =IF(Summary!$L$17>K30,D$28*K30+D$29*(Summary!$L$17-K30),Summary!$L$17*D$28) -> 56.76240692 | I120: =IF(Summary!$L$17>I30,E$28*I30+E$29*(Summary!$L$17-I30),Summary!$L$17*E$28) -> 58.47620379 | J120: =IF(Summary!$L$17>J30,E$28*J30+E$29*(Summary!$L$17-J30),Summary!$L$17*E$28) -> 56.74895782 | K120: =IF(Summary!$L$17>K30,E$28*K30+E$29*(Summary!$L$17-K30),Summary!$L$17*E$28) -> 56.74895782 | L120: =IF(Summary!$L$17>I30,F$28*I30+F$29*(Summary!$L$17-I30),Summary!$L$17*F$28) -> 58.88464676 | M120: =IF(Summary!$L$17>J30,F$28*J30+F$29*(Summary!$L$17-J30),Summary!$L$17*F$28) -> 57.14250733 | N120: =IF(Summary!$L$17>K30,F$28*K30+F$29*(Summary!$L$17-K30),Summary!$L$17*F$28) -> 57.14250733
B121: ALL CLIMATE ZONES | C121: =SUMPRODUCT(C112:C120,$X$22:$X$30) -> 50.31075446 | D121: 45.95953808 | E121: 45.95953808 | F121: 62.11982365 | G121: 56.76240692 | H121: 56.76240692 | I121: 62.10576636 | J121: 56.74895782 | K121: 56.74895782 | L121: 62.54550583 | M121: 57.14250733 | N121: 57.14250733

Sheet Incremental Rev Req
A2: ='Authorized Rev Req'!A2 -> Annual Period 2025
A3: ='Authorized Rev Req'!A3 -> Reporting Date: Q2 2025
A5: Current Revenue Requirement ($000): | B5: ='Authorized Rev Req'!K84 -> 6965550.126
A6: Current Revenue Requirement Effective: | B6: ='Authorized Rev Req'!K5 -> January 1, 2025
A7: Approved Application(s), Implemented Since Jan 1 or To Be Implemented
A8: Filing Description | B8: Proceeding | C8: Authority for Revenue Requirement | D8: Authorized Revenue Requirement ($000) | E8: Revenue Recovery Mechanism | F8: Allocation Methodology (Select from Drop-down menu) | G8: Authorized Revenue Requirement ($000) - Breakout by Year | L8: Existing or New Item (if existing, use delta from prior for illustrative rate impact) | T8: Summary Incremental Authorized
A9: Safety Affordability Reliability Proceedings | G9: 2025 | H9: 2026 | I9: 2027 | J9: 2028 | K9: 2029 | U9: 2025 | V9: 2026 | W9: 2027 | X9: 2028 | Y9: 2029
A10: ='Authorized Rev Req'!A9 -> General Rate Case | C10: ='Authorized Rev Req'!B9 -> D. 23-11-069 | D10: ='Authorized Rev Req'!K9 -> 2837661.424 | E10: ='Authorized Rev Req'!L9 -> Distribution | F10: Distribution | G10: ='Authorized Rev Req'!K9 -> 2837661.424 | H10: 3004265.37 | I10: =H10 -> 3004265.37 | J10: =I10 -> 3004265.37 | K10: =J10 -> 3004265.37 | L10: Existing | T10: ='RRQ Allocations'!B5 -> 100% Residential | U10: =SUMIF($F$10:$F$72,$T10,G$10:G$72)-SUMIF($F$10:$F$72,$T10,$D$10:$D$72) -> 0 | V10: =SUMIF($F$10:$F$72,$T10,H$10:H$72)-SUMIF($F$10:$F$72,$T10,$D$10:$D$72) -> 0 | W10: =SUMIF($F$10:$F$72,$T10,I$10:I$72)-SUMIF($F$10:$F$72,$T10,$D$10:$D$72) -> 0 | X10: =SUMIF($F$10:$F$72,$T10,J$10:J$72)-SUMIF($F$10:$F$72,$T10,$D$10:$D$72) -> 0 | Y10: =SUMIF($F$10:$F$72,$T10,K$10:K$72)-SUMIF($F$10:$F$72,$T10,$D$10:$D$72) -> 0
A11: General Rate Case - Undercollection | C11: ='Authorized Rev Req'!B9 -> D. 23-11-069 | D11: ='Authorized Rev Req'!K10 -> 200589.2578 | E11: Distribution | F11: Distribution | G11: ='Authorized Rev Req'!K10 -> 200589.2578 | L11: Existing | T11: ='RRQ Allocations'!B6 -> Core - Distribution | U11: =SUMIF($F$10:$F$72,$T11,G$10:G$72)-SUMIF($F$10:$F$72,$T11,$D$10:$D$72) -> 0 | V11: 43656.71143 | W11: =SUMIF($F$10:$F$72,$T11,I$10:I$72)-SUMIF($F$10:$F$72,$T11,$D$10:$D$72) -> 43656.71143 | X11: =SUMIF($F$10:$F$72,$T11,J$10:J$72)-SUMIF($F$10:$F$72,$T11,$D$10:$D$72) -> 43656.71143 | Y11: =SUMIF($F$10:$F$72,$T11,K$10:K$72)-SUMIF($F$10:$F$72,$T11,$D$10:$D$72) -> 43656.71143
A12: ='Authorized Rev Req'!A11 -> Pension Contribution - Distribution | C12: ='Authorized Rev Req'!B11 -> D.09-09-020 | D12: ='Authorized Rev Req'!K11 -> 37805.84365 | E12: ='Authorized Rev Req'!L11 -> Distribution | F12: Distribution | G12: ='Authorized Rev Req'!K11 -> 37805.84365 | H12: =G12 -> 37805.84365 | I12: =H12 -> 37805.84365 | J12: 37805.84365 | K12: 37805.84365 | L12: Existing | T12: ='RRQ Allocations'!B7 -> Distribution | U12: =SUMIF($F$10:$F$72,$T12,G$10:G$72)-SUMIF($F$10:$F$72,$T12,$D$10:$D$72) -> 0 | V12: -120678.3908 | W12: =SUMIF($F$10:$F$72,$T12,I$10:I$72)-SUMIF($F$10:$F$72,$T12,$D$10:$D$72) -> -146221.6944 | X12: -146221.6944 | Y12: -146221.6944
A13: ='Authorized Rev Req'!A12 -> Pension Contribution - GT&S Core | C13: ='Authorized Rev Req'!B12 -> D.09-09-020 | D13: ='Authorized Rev Req'!K12 -> 11024.33372 | E13: ='Authorized Rev Req'!L12 -> Core - ECPT | F13: ECPT - Core only | G13: ='Authorized Rev Req'!K12 -> 11024.33372 | H13: =G13 -> 11024.33372 | I13: 11024.33372 | J13: 11024.33372 | K13: 11024.33372 | L13: Existing | T13: ='RRQ Allocations'!B8 -> ECPT - ALL | U13: 4784.20353 | V13: -292073.8519 | W13: -323498.3381 | X13: -323498.3381 | Y13: -323498.3381
A14: ='Authorized Rev Req'!A13 -> Pension Contribution - GT&S NonCore (LT) | C14: ='Authorized Rev Req'!B13 -> D.09-09-020 | D14: ='Authorized Rev Req'!K13 -> 3986.072364 | E14: ='Authorized Rev Req'!L13 -> Noncore (No-BB/EG-BB)-ECPT | F14: ECPT - Noncore only | G14: ='Authorized Rev Req'!K13 -> 3986.072364 | H14: =G14 -> 3986.072364 | I14: 3986.072364 | J14: 3986.072364 | K14: 3986.072364 | L14: Existing | T14: ='RRQ Allocations'!B9 -> ECPT - Core only | U14: 0 | V14: =SUMIF($F$10:$F$72,$T14,H$10:H$72)-SUMIF($F$10:$F$72,$T14,$D$10:$D$72) -> 46330.58138 | W14: 46330.58138 | X14: 46330.58138 | Y14: 46330.58138
A15: ='Authorized Rev Req'!A14 -> Pension Contribution - GT&S Noncore (BB& Storage) | C15: ='Authorized Rev Req'!B14 -> D.09-09-020 | D15: ='Authorized Rev Req'!K14 -> 3008.334161 | E15: ='Authorized Rev Req'!L14 -> Noncore - ECPT | F15: ECPT - Noncore only | G15: ='Authorized Rev Req'!K14 -> 3008.334161 | H15: =G15 -> 3008.334161 | I15: 3008.334161 | J15: 3008.334161 | K15: 3008.334161 | L15: Existing | T15: ='RRQ Allocations'!B10 -> ECPT - Noncore only | U15: 0 | V15: 35061.7486 | W15: 35061.7486 | X15: 35061.7486 | Y15: 35061.7486
A16: ='Authorized Rev Req'!A15 -> Cost of Capital | C16: ='Authorized Rev Req'!B15 -> D.22-12-031/D.23-01-002/ AL 4813-G/D.24-10-008/AL 4996-G | D16: ='Authorized Rev Req'!K15 -> 50569.41165 | E16: ='Authorized Rev Req'!L15 -> Distribution | F16: Distribution | G16: ='Authorized Rev Req'!K15 -> 50569.41165 | H16: ='Authorized Rev Req'!K15 -> 50569.41165 | I16: 50569.41165 | J16: 50569.41165 | K16: 50569.41165 | L16: Existing | T16: ='RRQ Allocations'!B11 -> ECPT - 50% Core / 50% Noncore | U16: 0 | V16: 0 | W16: 0 | X16: 0 | Y16: 0
A17: ='Authorized Rev Req'!A16 -> GT&S (excluding costs recovered through Core Procurement) | T17: ='RRQ Allocations'!B12 -> ECPT (excludes Covered Entities 3 yr avg vol) | U17: 0 | V17: 0 | W17: 0 | X17: 0 | Y17: 0
A18: ='Authorized Rev Req'!A17 -> Late Implementation (Transmission Undercollection, Capital Audit, GRC Track II, WGSC) | C18: D.22-07-007 | D18: ='Authorized Rev Req'!K17 -> 311890.6932 | E18: ='Authorized Rev Req'!L17 -> ECPT | F18: ECPT - ALL | G18: ='Authorized Rev Req'!K17 -> 311890.6932 | H18: 19248.94895 | I18: 0 | J18: 0 | K18: 0 | L18: Existing | T18: ='RRQ Allocations'!B13 -> EE | U18: 0 | V18: 5154.954318 | W18: 7175.130307 | X18: 7175.130307 | Y18: 7175.130307
A19: ='Authorized Rev Req'!$A$18&" Core" -> Local Transmission Core | C19: ='Authorized Rev Req'!B18 -> D. 24-03-002 | D19: ='Authorized Rev Req'!K18-D20 -> 937040.8036 | E19: ='Authorized Rev Req'!L18 -> ECPT (No BB) | F19: ECPT - Core only | G19: 937040.8036 | H19: 983371.3849 | I19: =H19 -> 983371.3849 | J19: 983371.3849 | K19: 983371.3849 | L19: Existing | T19: ='RRQ Allocations'!B14 -> ESA | U19: 0 | V19: 5743.204 | W19: 5743.204 | X19: 5743.204 | Y19: 5743.204
A20: ='Authorized Rev Req'!$A$18&" Noncore" -> Local Transmission Noncore | C20: ='Authorized Rev Req'!B19 -> D. 24-03-002 | D20: 491426.7693 | E20: ='Authorized Rev Req'!L18 -> ECPT (No BB) | F20: ECPT - Noncore only | G20: 491426.7693 | H20: 515826.5045 | I20: 515826.5045 | J20: 515826.5045 | K20: 515826.5045 | L20: Existing | T20: ='RRQ Allocations'!B15 -> PPP ECPT | U20: 0 | V20: 251.16 | W20: 251.16 | X20: 251.16 | Y20: 251.16
A21: ='Authorized Rev Req'!A19 -> Customer Access Charge | C21: ='Authorized Rev Req'!B19 -> D. 24-03-002 | D21: ='Authorized Rev Req'!K19 -> 4616.173305 | E21: ='Authorized Rev Req'!L19 -> CAC Allocation | F21: CAC Allocation | G21: 4616.173305 | H21: 5465.240945 | I21: 5465.240945 | J21: 5465.240945 | K21: 5465.240945 | L21: Existing | T21: ='RRQ Allocations'!B16 -> SGIP allocation | U21: 0 | V21: 0 | W21: 0 | X21: 0 | Y21: 0
A22: ='Authorized Rev Req'!A20 -> Unbundled | C22: ='Authorized Rev Req'!B20 -> D. 24-03-002 | D22: ='Authorized Rev Req'!K20-D23 -> 246260.4482 | E22: ='Authorized Rev Req'!L20 -> ECPT-All | F22: ECPT - ALL | G22: 251044.6517 | H22: 263208.0005 | I22: 263208.0005 | J22: 263208.0005 | K22: 263208.0005 | L22: Existing | T22: ='RRQ Allocations'!B17 -> CPUC Fee Allocation | U22: 0 | V22: 0 | W22: 0 | X22: 0 | Y22: 0
A23: Inventory management | C23: =C22 -> D. 24-03-002 | D23: =I23 -> 143704.047 | F23: 2023 GTS - Inventory Management | G23: 138919.8435 | H23: 143704.047 | I23: =H23 -> 143704.047 | J23: 143704.047 | K23: 143704.047 | T23: ='RRQ Allocations'!B18 -> CAC Allocation | U23: 0 | V23: 849.0676397 | W23: 849.0676397 | X23: 849.0676397 | Y23: 849.0676397
A24: SF General Office Sale | C24: ='Authorized Rev Req'!B51 -> D.21-08-027/AL 4538-G-A | D24: ='Authorized Rev Req'!K51 -> -32047.71945 | F24: Distribution | G24: ='Authorized Rev Req'!K51 -> -32047.71945 | H24: =G24 -> -32047.71945 | I24: -32047.71945 | J24: -32047.71945 | K24: -32047.71945 | L24: New | T24: ='RRQ Allocations'!B19 -> Storage Allocation (Procurement) | U24: 0 | V24: -50766.10058 | W24: -50766.10058 | X24: -50766.10058 | Y24: -50766.10058
T25: ='RRQ Allocations'!B20 -> Capacity Allocation (Procurement) | U25: -10442.54165 | V25: 11955.88079 | W25: 11955.88079 | X25: 11955.88079 | Y25: 11955.88079
A26: 2020 and 2021 Wildfire Mitigation and Catastrophic Event Memorandum Account (WMCE)/ Wildfire Gas & Safety Costs (Distribution) | C26: D.23-02-017 / D.23-08-027/WGSC IRR D.24-03-006 | D26: ='Authorized Rev Req'!K45 -> 37553.56357 | E26: Distribution | F26: Distribution | G26: ='Authorized Rev Req'!K45 -> 37553.56357 | H26: 0 | I26: 0 | J26: 0 | K26: 0 | L26: Existing | T26: ='RRQ Allocations'!B21 -> ECPT - Core only (Procurement) | U26: 10442.54165 | V26: 10442.54165 | W26: 10442.54165 | X26: 10442.54165 | Y26: 10442.54165
A27: 2020 and 2021 Wildfire Mitigation and Catastrophic Event Memorandum Account (WMCE) (Transmission) | C27: D.23-02-017 / D.23-08-027 | D27: ='Authorized Rev Req'!K47 -> 3251.404638 | E27: ECPT - ALL | F27: ECPT - ALL | G27: ='Authorized Rev Req'!K47 -> 3251.404638 | H27: 0 | I27: 0 | J27: 0 | K27: 0 | L27: Existing | T27: ='RRQ Allocations'!B22 -> 2023 GTS - Inventory Management | U27: -4784.20353 | V27: 0 | W27: 0 | X27: 0 | Y27: 0
A28: Oakland General Office Purchase (Distribution) | C28: ='Authorized Rev Req'!B46 -> D.24-08-009/AL 4972-G | D28: ='Authorized Rev Req'!K46 -> 74682.81908 | E28: Distribution | F28: Distribution | G28: ='Authorized Rev Req'!K46 -> 74682.81908 | H28: 25543.30358 | L28: New | T28: ='RRQ Allocations'!B23 -> User Defined 1 | U28: 0 | V28: 0 | W28: 0 | X28: 0 | Y28: 0
A29: Oakland General Office Purchase (Transmission) | C29: ='Authorized Rev Req'!B49 -> D.24-08-009/AL 4972-G | D29: ='Authorized Rev Req'!K49 -> 35685.00229 | E29: ECPT - ALL | F29: ECPT - ALL | G29: ='Authorized Rev Req'!K49 -> 35685.00229 | H29: 12175.53727 | L29: New | T29: ='RRQ Allocations'!B24 -> User Defined 2 | U29: 0 | V29: 0 | W29: 0 | X29: 0 | Y29: 0
T30: ='RRQ Allocations'!B25 -> User Defined 3 | U30: 0 | V30: 0 | W30: 0 | X30: 0 | Y30: 0
T31: Total | U31: =SUM(U10:U30) -> 8.731149137e-11 | V31: =SUM(V10:V30) -> -304072.4935 | W31: =SUM(W10:W30) -> -359020.1073 | X31: =SUM(X10:X30) -> -359020.1073 | Y31: =SUM(Y10:Y30) -> -359020.1073
T32: check | U32: =ABS(U31-(G73-$D73))<0.5 -> TRUE | V32: =ABS(V31-(H73-$D73))<0.5 -> TRUE | W32: =ABS(W31-(I73-$D73))<0.5 -> TRUE | X32: =ABS(X31-(J73-$D73))<0.5 -> TRUE | Y32: =ABS(Y31-(K73-$D73))<0.5 -> TRUE
A37: Public Policy Proceedings
A38: ='Authorized Rev Req'!A57 -> AB 32: Cap & Trade/GHG | C38: ='Authorized Rev Req'!B57 -> D.15-10-032/D.18-03-017/SB 1477 | D38: ='Authorized Rev Req'!K57 -> -345869.7457 | E38: ='Authorized Rev Req'!L57 -> 100% Residential | F38: 100% Residential | G38: ='Authorized Rev Req'!K57 -> -345869.7457 | H38: =G38 -> -345869.7457 | I38: =H38 -> -345869.7457 | J38: -345869.7457 | K38: -345869.7457 | L38: Existing | M38: Hold flat
A39: ='Authorized Rev Req'!A58 -> GHG Operational Costs | C39: ='Authorized Rev Req'!B58 -> D.15-10-032/D.18-03-017 | D39: ='Authorized Rev Req'!K58 -> -9916.695581 | E39: ='Authorized Rev Req'!L58 -> ECPT | F39: ECPT - ALL | G39: ='Authorized Rev Req'!K58 -> -9916.695581 | H39: =G39 -> -9916.695581 | I39: -9916.695581 | J39: -9916.695581 | K39: -9916.695581 | L39: Existing
A40: ='Authorized Rev Req'!A59 -> GHG Compliance Costs | C40: ='Authorized Rev Req'!B59 -> D.15-10-032/D.18-03-017 | D40: ='Authorized Rev Req'!K59 -> 437585.4379 | E40: ='Authorized Rev Req'!L59 -> ECPT (excludes Covered Entities 3 yr avg vol) | F40: ECPT (excludes Covered Entities 3 yr avg vol) | G40: ='Authorized Rev Req'!K59 -> 437585.4379 | H40: =G40 -> 437585.4379 | I40: 437585.4379 | J40: 437585.4379 | K40: 437585.4379 | L40: Existing
A41: ='Authorized Rev Req'!A60 -> CPUC Fee | C41: ='Authorized Rev Req'!B60 -> Preliminary Statement O | D41: ='Authorized Rev Req'!K60 -> 11329.34033 | E41: ='Authorized Rev Req'!L60 -> ECPT (reduced EG volumes; excludes WHSL) | F41: CPUC Fee Allocation | G41: ='Authorized Rev Req'!K60 -> 11329.34033 | H41: =G41 -> 11329.34033 | I41: 11329.34033 | J41: 11329.34033 | K41: 11329.34033 | L41: Existing
A42: ='Authorized Rev Req'!A61 -> SGIP | C42: ='Authorized Rev Req'!B61 -> SB 700/D.17-04-017 | D42: ='Authorized Rev Req'!K61 -> 0 | E42: ='Authorized Rev Req'!L61 -> Direct Benefits - 3 year average | F42: SGIP allocation | G42: ='Authorized Rev Req'!K61 -> 0 | H42: =G42 -> 0 | I42: 0 | J42: 0 | K42: 0 | L42: Existing
A43: ='Authorized Rev Req'!A64 -> Energy Efficiency | C43: ='Authorized Rev Req'!B64 -> D.23-06-055 | D43: ='Authorized Rev Req'!K64 -> 122474.8554 | E43: ='Authorized Rev Req'!L64 -> Direct Allocation Method | F43: EE | G43: ='Authorized Rev Req'!K64 -> 122474.8554 | H43: 127629.8097 | I43: 129649.9857 | J43: =I43 -> 129649.9857 | K43: 129649.9857 | L43: Existing
A44: ='Authorized Rev Req'!A65 -> Energy Savings Assistance Program (ESA) | C44: ='Authorized Rev Req'!B65 -> D.21-06-015/D.20-12-005 | D44: ='Authorized Rev Req'!K65 -> 75426.796 | E44: ='Authorized Rev Req'!L65 -> Direct Allocation Method 100% Residential | F44: ESA | G44: ='Authorized Rev Req'!K65 -> 75426.796 | H44: 81170 | I44: 81170 | J44: 81170 | K44: 81170 | L44: Existing | M44: 2022-2025 based on D. 21-06-015
A45: ='Authorized Rev Req'!A66 -> Research Development and Demonstration | C45: ='Authorized Rev Req'!B66 -> AL 4822-G | D45: ='Authorized Rev Req'!K66 -> 10469.05738 | E45: ='Authorized Rev Req'!L66 -> ECPT | F45: PPP ECPT | G45: ='Authorized Rev Req'!K66 -> 10469.05738 | H45: =G45 -> 10469.05738 | I45: =H45 -> 10469.05738 | J45: =I45 -> 10469.05738 | K45: =J45 -> 10469.05738 | L45: Existing
A46: ='Authorized Rev Req'!A67 -> CARE Administrative Expense | C46: ='Authorized Rev Req'!B67 -> D.21-06-015/D.20-12-005 | D46: ='Authorized Rev Req'!K67 -> 2888.84 | E46: ='Authorized Rev Req'!L67 -> ECPT (non-CARE) | F46: PPP ECPT | G46: ='Authorized Rev Req'!K67 -> 2888.84 | H46: 3140 | I46: 3140 | J46: 3140 | K46: 3140 | L46: Existing | M46: 2022-2025 based on D.21-06-015
A47: ='Authorized Rev Req'!A68 -> CARE Shortfall in Rates | C47: ='Authorized Rev Req'!B68 -> AL 4822-G | D47: ='Authorized Rev Req'!K68 -> 0 | E47: ='Authorized Rev Req'!L68 -> ECPT (excludes CARE) | F47: PPP ECPT | G47: ='Authorized Rev Req'!K68 -> 0 | H47: =G47 -> 0 | I47: 0 | J47: 0 | K47: 0 | L47: Existing
A48: ='Authorized Rev Req'!A69 -> BOE/CPUC Gas Surcharge Administration Costs | C48: ='Authorized Rev Req'!B69 -> AL 4822-G | D48: ='Authorized Rev Req'!K69 -> 429.23135 | E48: ='Authorized Rev Req'!L69 -> ECPT | F48: PPP ECPT | G48: ='Authorized Rev Req'!K69 -> 429.23135 | H48: 429.23135 | I48: 429.23135 | J48: 429.23135 | K48: 429.23135 | L48: Existing
A49: ='Authorized Rev Req'!A70 -> Marketing, Education & Outreach (ME&O) | C49: ='Authorized Rev Req'!B70 -> D.19-01-005 | D49: ='Authorized Rev Req'!K70 -> 0 | E49: ='Authorized Rev Req'!L70 -> ECPT | F49: PPP ECPT | G49: ='Authorized Rev Req'!K70 -> 0 | H49: 0 | I49: 0 | J49: 0 | K49: 0 | L49: Existing
A51: Core Procurement (Intrastate Volumetric and Capacity) | C51: ='Authorized Rev Req'!B75 -> D. 24-03-002/Other | D51: 184256.0357 | E51: ='Authorized Rev Req'!L75 -> Unadjusted Average Year January | F51: Capacity Allocation (Procurement) | G51: 173813.4941 | H51: 196211.9165 | I51: =H51 -> 196211.9165 | J51: 196211.9165 | K51: 196211.9165 | L51: Existing
A52: Core Procurement (Other) | C52: ='Authorized Rev Req'!B76 -> D. 97-10-065 | D52: ='Authorized Rev Req'!K75+'Authorized Rev Req'!K76-D51 -> 643725.7271 | E52: ='Authorized Rev Req'!L76 -> Core - ECPT | F52: ECPT - Core only (Procurement) | G52: ='Authorized Rev Req'!K75+'Authorized Rev Req'!K76+'Authorized Rev Req'!K77-'Incremental Rev Req'!G51-'Incremental Rev Req'!G53 -> 654168.2687 | H52: =G52 -> 654168.2687 | I52: 654168.2687 | J52: 654168.2687 | K52: 654168.2687 | L52: Existing
A53: ='Authorized Rev Req'!A77 -> Core Storage | C53: ='Authorized Rev Req'!B77 -> D. 19-09-025 | D53: ='Authorized Rev Req'!K77 -> 134502.8939 | E53: ='Authorized Rev Req'!L77 -> Unadjusted Cold Year Winter Season | F53: Storage Allocation (Procurement) | G53: ='Authorized Rev Req'!K77 -> 134502.8939 | H53: 83736.79328 | I53: 83736.79328 | J53: 83736.79328 | K53: 83736.79328 | L53: Existing
A54: ='Authorized Rev Req'!A78 -> Core Brokerage Fee | C54: ='Authorized Rev Req'!B78 -> GCAP D.19-10-036 | D54: ='Authorized Rev Req'!K78 -> 5066.942012 | E54: ='Authorized Rev Req'!L78 -> ECPT (Core only) | F54: ECPT - Core only (Procurement) | G54: ='Authorized Rev Req'!K78 -> 5066.942012 | H54: =G54 -> 5066.942012 | I54: 5066.942012 | J54: 5066.942012 | K54: 5066.942012 | L54: Existing
A55: ='Authorized Rev Req'!A79 -> Core Brokerage Fee Credit | C55: ='Authorized Rev Req'!B79 -> GCAP D.19-10-036 | D55: ='Authorized Rev Req'!K79 -> -5066.942012 | E55: ='Authorized Rev Req'!L79 -> ECPT (Core only) | F55: Core - Distribution | G55: ='Authorized Rev Req'!K79 -> -5066.942012 | H55: =G55 -> -5066.942012 | I55: -5066.942012 | J55: -5066.942012 | K55: -5066.942012 | L55: Existing
C56: The Core Brokerage Fee is part of the distribution revenue requirement. In transportation the RRQ is reduced and then it is recovered via the customers that pay PG&E procurement rates.
A60: Balancing Account Balances frozen at current 2024 values
A61: Distribution | D61: ='Authorized Rev Req'!K23+'Authorized Rev Req'!K27+'Authorized Rev Req'!K41+'Authorized Rev Req'!K42+'Authorized Rev Req'!K43+'Authorized Rev Req'!K44+'Authorized Rev Req'!K62+'Authorized Rev Req'!K52 -> 159345.9787 | F61: Distribution | G61: ='Authorized Rev Req'!K23+'Authorized Rev Req'!K27+'Authorized Rev Req'!K41+'Authorized Rev Req'!K42+'Authorized Rev Req'!K43+'Authorized Rev Req'!K44+'Authorized Rev Req'!K62+'Authorized Rev Req'!K52 -> 159345.9787 | H61: =G61 -> 159345.9787 | I61: =H61 -> 159345.9787 | J61: 159345.9787 | K61: 159345.9787 | L61: Existing
A62: ECPT | D62: ='Authorized Rev Req'!K21+'Authorized Rev Req'!K22+'Authorized Rev Req'!K24+'Authorized Rev Req'!K25+'Authorized Rev Req'!K26+'Authorized Rev Req'!K28+'Authorized Rev Req'!K29+'Authorized Rev Req'!K30+'Authorized Rev Req'!K31+'Authorized Rev Req'!K32+'Authorized Rev Req'!K33+'Authorized Rev Req'!K37+'Authorized Rev Req'!K38+'Authorized Rev Req'!K39+'Authorized Rev Req'!K40+'Authorized Rev Req'!K50+'Authorized Rev Req'!K53 -> 153082.1681 | F62: ECPT - ALL | G62: ='Authorized Rev Req'!K21+'Authorized Rev Req'!K22+'Authorized Rev Req'!K24+'Authorized Rev Req'!K25+'Authorized Rev Req'!K26+'Authorized Rev Req'!K28+'Authorized Rev Req'!K29+'Authorized Rev Req'!K30+'Authorized Rev Req'!K31+'Authorized Rev Req'!K32+'Authorized Rev Req'!K33+'Authorized Rev Req'!K37+'Authorized Rev Req'!K38+'Authorized Rev Req'!K39+'Authorized Rev Req'!K40+'Authorized Rev Req'!K50+'Authorized Rev Req'!K53 -> 153082.1681 | H62: =G62 -> 153082.1681 | I62: 153082.1681 | J62: 153082.1681 | K62: 153082.1681 | L62: Existing
A63: Public Purpose Program | D63: ='Authorized Rev Req'!K71+'Authorized Rev Req'!K72+'Authorized Rev Req'!K73+'Authorized Rev Req'!K74+'Authorized Rev Req'!K63 -> 48771.1607 | F63: PPP ECPT | G63: ='Authorized Rev Req'!K71+'Authorized Rev Req'!K72+'Authorized Rev Req'!K73+'Authorized Rev Req'!K74+'Authorized Rev Req'!K63 -> 48771.1607 | H63: =G63 -> 48771.1607 | I63: 48771.1607 | J63: 48771.1607 | K63: 48771.1607 | L63: Existing
A64: CFCA - NGSS Enduser Dist. Sub Acct Recovery | D64: ='Authorized Rev Req'!K34 -> -41605.2506 | F64: Core - Distribution | G64: ='Authorized Rev Req'!K34 -> -41605.2506 | H64: 2051.460825 | I64: =H64 -> 2051.460825 | J64: =I64 -> 2051.460825 | K64: =J64 -> 2051.460825 | L64: Existing
A65: CFCA/NCA - NGSS Enduser Sub Acct Recovery | D65: ='Authorized Rev Req'!K35 -> -9893.389052 | F65: ECPT - ALL | G65: ='Authorized Rev Req'!K35 -> -9893.389052 | H65: 487.8206422 | I65: =H65 -> 487.8206422 | J65: 487.8206422 | K65: 487.8206422 | L65: Existing
A66: NCA - NGSS Enduser Sub Acct Recovery | D66: ='Authorized Rev Req'!K36 -> -10160.99767 | F66: ECPT - Noncore only | G66: ='Authorized Rev Req'!K36 -> -10160.99767 | H66: 501.0158178 | I66: 501.0158178 | J66: 501.0158178 | K66: 501.0158178 | L66: Existing
A73: Total Approved, Implemented Since Jan 1 or To Be Implemented | D73: =SUM(D10:D71) -> 6965550.126 | G73: =SUM(G10:G71) -> 6965550.126 | H73: =SUM(H10:H71) -> 6661477.632 | I73: =SUM(I10:I71) -> 6606530.019 | J73: =SUM(J10:J71) -> 6606530.019 | K73: =SUM(K10:K71) -> 6606530.019
A76: Pending Application(s), Not Yet Approved | T76: Summary Incremental Authorized + Pending
A77: Filing Description | B77: Proceeding | C77: Basis of Revenue Requirement Forecast: Application Amended Application, Ammended Testimony, Proposed Settlement Agreement, Proposed Decision | D77: Proposed Revenue Requirement ($000) | E77: Proposed Revenue Recovery Mechanism | F77: Allocation Methodology | G77: Projected Authorized Revenue Requirement ($000) - Breakout by Year | L77: Existing or New Item (if existing, use delta from prior for illustrative rate impact) | M77: Change in Projected Authorized Revenue Requirement ($000) for Illustrative Rate Impact - Breakout by Year (if cell is shaded grey, rate impact is not presently determinable) | R77: Include in Impact | U77: =U9 -> 2025 | V77: =V9 -> 2026 | W77: =W9 -> 2027 | X77: =X9 -> 2028 | Y77: =Y9 -> 2029
A78: Safety Affordability Reliability Proceedings | G78: =G$9 -> 2025 | H78: =H$9 -> 2026 | I78: =I$9 -> 2027 | J78: =J$9 -> 2028 | K78: =K$9 -> 2029 | M78: =G$9 -> 2025 | N78: =H$9 -> 2026 | O78: =I$9 -> 2027 | P78: =J$9 -> 2028 | Q78: =K$9 -> 2029 | T78: =T10 -> 100% Residential | U78: =SUMIFS(M$79:M$113,$F$79:$F$113,$T78,$R$79:$R$113,"Y")+U10 -> 0 | V78: =SUMIFS(N$79:N$113,$F$79:$F$113,$T78,$R$79:$R$113,"Y")+V10 -> 0 | W78: =SUMIFS(O$79:O$113,$F$79:$F$113,$T78,$R$79:$R$113,"Y")+W10 -> 0 | X78: =SUMIFS(P$79:P$113,$F$79:$F$113,$T78,$R$79:$R$113,"Y")+X10 -> 0 | Y78: =SUMIFS(Q$79:Q$113,$F$79:$F$113,$T78,$R$79:$R$113,"Y")+Y10 -> 0
A79: Pension (Distribution) | B79: AL 5042-G | C79: Advice Letter | D79: =G79 -> 42969.37257 | E79: Distribution | F79: Distribution | G79: 42969.37257 | H79: =G79 -> 42969.37257 | I79: =H79 -> 42969.37257 | J79: 42969.37257 | K79: 42969.37257 | L79: Existing | M79: =G79-G12 -> 5163.528925 | N79: =M79 -> 5163.528925 | O79: 5163.528925 | P79: 5163.528925 | Q79: 5163.528925 | R79: =VLOOKUP(A79,Summary!$B$8:$E$39,3,FALSE) -> Y | T79: Core - Distribution | U79: 0 | V79: 43656.71143 | W79: 43656.71143 | X79: 43656.71143 | Y79: 43656.71143
A80: Pension (ECPT) | B80: AL 5042-G | C80: Advice Letter | D80: =G80 -> 20479.74303 | E80: ECPT | F80: ECPT - ALL | G80: 20479.74303 | H80: =G80 -> 20479.74303 | I80: =H80 -> 20479.74303 | J80: 20479.74303 | K80: 20479.74303 | L80: Existing | M80: =G80-SUM(G13:G15) -> 2461.002784 | N80: 2461.002784 | O80: 2461.002784 | P80: 2461.002784 | Q80: 2461.002784 | R80: =VLOOKUP(A80,Summary!$B$8:$E$39,3,FALSE) -> Y | T80: Distribution | U80: 40808.66505 | V80: -79125.45273 | W80: -141058.1655 | X80: -141058.1655 | Y80: -141058.1655
A81: Hinkley Upgrade | B81: A.25-04-004 | C81: Application | D81: =J81 -> 3170.008597 | E81: ECPT | F81: ECPT - ALL | G81: =M81 -> 0 | H81: =N81 -> 0 | I81: =O81 -> 0 | J81: =P81 -> 3170.008597 | K81: =Q81 -> 8890.201242 | L81: New | P81: 3170.008597 | Q81: 8890.201242 | R81: =VLOOKUP(A81,Summary!$B$8:$E$39,3,FALSE) -> N | T81: ECPT - ALL | U81: 10986.04179 | V81: -285411.2726 | W81: -321037.3354 | X81: -321037.3354 | Y81: -321037.3354
A82: Billing Modernization (Distribution) | B82: A. 24-10-004 | C82: Application | D82: =H82 -> 18712.17383 | E82: Distribution | F82: Distribution | H82: 18712.17383 | I82: 17751.34183 | J82: 16583.85336 | K82: 14215.2408 | L82: New | N82: =H82 -> 18712.17383 | O82: 17751.34183 | P82: 16583.85336 | Q82: 14215.2408 | R82: =VLOOKUP(A82,Summary!$B$8:$E$39,3,FALSE) -> N | T82: ECPT - Core only | U82: 0 | V82: 46330.58138 | W82: 46330.58138 | X82: 46330.58138 | Y82: 46330.58138
A83: Billing Modernization (Transmission) | B83: A. 24-10-004 | C83: Application | D83: =H83 -> 8918.457231 | E83: ECPT | F83: ECPT - ALL | H83: 8918.457231 | I83: 8460.512628 | J83: 7904.072949 | K83: 6775.162433 | L83: New | N83: 8918.457231 | O83: 8460.512628 | P83: 7904.072949 | Q83: 6775.162433 | R83: =VLOOKUP(A83,Summary!$B$8:$E$39,3,FALSE) -> N | T83: ECPT - Noncore only | U83: 0 | V83: 35061.7486 | W83: 35061.7486 | X83: 35061.7486 | Y83: 35061.7486
T84: ECPT - 50% Core / 50% Noncore | U84: 0 | V84: 0 | W84: 0 | X84: 0 | Y84: 0
A85: Hydrogen Demonstration Project (2027) | B85: A.22-09-006 | C85: Application | D85: =I85 -> 3022.022937 | E85: ECPT | F85: ECPT - ALL | I85: 3022.022937 | J85: 10324.82853 | K85: 10534.09292 | L85: New | M85: =G85 -> 0 | N85: =H85 -> 0 | O85: =I85 -> 3022.022937 | P85: 10324.82853 | Q85: 10534.09292 | R85: =VLOOKUP(A85,Summary!$B$8:$E$39,3,FALSE) -> N | T85: ECPT (excludes Covered Entities 3 yr avg vol) | U85: 0 | V85: 0 | W85: 0 | X85: 0 | Y85: 0
A86: 2024 Wildfire Mitigation and Catastrophic Events (distribution) | B86: A.24-11-009 | C86: Application | D86: =H86 -> 65537.65441 | E86: Distribution | F86: Distribution | H86: 65537.65441 | I86: 18819.46508 | J86: 18178.26264 | K86: 17712.2756 | L86: New | M86: 0 | N86: =H86 -> 65537.65441 | O86: 18819.46508 | P86: 18178.26264 | Q86: 17712.2756 | R86: =VLOOKUP(A86,Summary!$B$8:$E$39,3,FALSE) -> N | T86: EE | U86: 0 | V86: 5154.954318 | W86: 7175.130307 | X86: 7175.130307 | Y86: 7175.130307
A87: 2024 Wildfire Mitigation and Catastrophic Events (transmission) | B87: A.24-11-009 | C87: Application | D87: =H87 -> 6579.378757 | E87: ECPT | F87: ECPT - ALL | H87: 6579.378757 | I87: 291.8396392 | J87: 239.4188966 | K87: 225.0342646 | L87: New | M87: 0 | N87: =H87 -> 6579.378757 | O87: 291.8396392 | P87: 239.4188966 | Q87: 225.0342646 | R87: =VLOOKUP(A87,Summary!$B$8:$E$39,3,FALSE) -> N | T87: ESA | U87: 0 | V87: 5743.204 | W87: 5743.204 | X87: 5743.204 | Y87: 5743.204
A88: 2026 Cost of Capital (Distribution) | B88: A.25-03-010 | C88: Application | D88: =H88 -> 111625.7848 | E88: Distribution | F88: Distribution | G88: =M88 -> 0 | H88: =N88 -> 111625.7848 | I88: 111625.7848 | J88: 111625.7848 | K88: 111625.7848 | L88: New | N88: 111625.7848 | O88: =N88 -> 111625.7848 | P88: 111625.7848 | Q88: 111625.7848 | R88: =VLOOKUP(A88,Summary!$B$8:$E$39,3,FALSE) -> N | T88: PPP ECPT | U88: 0 | V88: 251.16 | W88: 251.16 | X88: 251.16 | Y88: 251.16
A89: 2026 Cost of Capital (Transmission) | B89: A.25-03-010 | C89: Application | D89: =H89 -> 84230.76028 | E89: ECPT - 50% Core / 50% Noncore | F89: ECPT - 50% Core / 50% Noncore | G89: =M89 -> 0 | H89: 84230.76028 | I89: 84230.76028 | J89: 84230.76028 | K89: 84230.76028 | L89: New | N89: 84230.76028 | O89: 84230.76028 | P89: 84230.76028 | Q89: 84230.76028 | R89: =VLOOKUP(A89,Summary!$B$8:$E$39,3,FALSE) -> N | T89: SGIP allocation | U89: 0 | V89: 0 | W89: 0 | X89: 0 | Y89: 0
A90: Gas Advanced Metering Infrastructure (AMI) (distribution) - August 2025 | B90: A.24-03-011 | C90: Application | D90: =G90 -> 19430.16603 | E90: Distribution | F90: Distribution | G90: 19430.16603 | H90: 20174.43905 | L90: New | M90: 19430.16603 | N90: =H90 -> 20174.43905 | O90: 0 | P90: 0 | Q90: 0 | R90: =VLOOKUP(A90,Summary!$B$8:$E$39,3,FALSE) -> Y | T90: CPUC Fee Allocation | U90: 0 | V90: 0 | W90: 0 | X90: 0 | Y90: 0
A91: Gas AMI (transmission) -August 2025 | B91: A.24-03-011 | C91: Application | D91: =G91 -> 3740.835479 | E91: ECPT | F91: ECPT - ALL | G91: 3740.835479 | H91: 4201.576536 | L91: New | M91: 3740.835479 | N91: 4201.576536 | O91: 0 | P91: 0 | Q91: 0 | R91: =VLOOKUP(A91,Summary!$B$8:$E$39,3,FALSE) -> Y | T91: CAC Allocation | U91: 0 | V91: 849.0676397 | W91: 849.0676397 | X91: 849.0676397 | Y91: 849.0676397
A92: 2023 Wildfire Mitigation and Catastrophic Events (distribution) | B92: A.23-12-001 | C92: Application | D92: =H92 -> 13644.27962 | E92: Distribution | F92: Distribution | H92: 13644.27962 | L92: New | M92: 0 | N92: 13644.27962 | O92: 0 | P92: 0 | Q92: 0 | R92: =VLOOKUP(A92,Summary!$B$8:$E$39,3,FALSE) -> N | T92: Storage Allocation (Procurement) | U92: 0 | V92: -50766.10058 | W92: -50766.10058 | X92: -50766.10058 | Y92: -50766.10058
A93: 2023 Wildfire Mitigation and Catastrophic Events (transmission) | B93: A.23-12-001 | C93: Application | D93: =H93 -> 5913.522951 | E93: ECPT | F93: ECPT - ALL | H93: 5913.522951 | L93: New | M93: 0 | N93: 5913.522951 | O93: 0 | P93: 0 | Q93: 0 | R93: =VLOOKUP(A93,Summary!$B$8:$E$39,3,FALSE) -> N | T93: Capacity Allocation (Procurement) | U93: -10442.54165 | V93: 11955.88079 | W93: 11955.88079 | X93: 11955.88079 | Y93: 11955.88079
A94: Wildfire Gas and Safety Costs (Distribution) Non-IRR | B94: A.23-06-008 | C94: Application | D94: =H94 -> 6776.716441 | E94: Distribution | F94: Distribution | H94: 6776.716441 | L94: New | M94: 0 | N94: 6776.716441 | O94: 0 | P94: 0 | Q94: 0 | R94: =VLOOKUP(A94,Summary!$B$8:$E$39,3,FALSE) -> N | T94: ECPT - Core only (Procurement) | U94: 10442.54165 | V94: 10442.54165 | W94: 10442.54165 | X94: 10442.54165 | Y94: 10442.54165
A95: Wildfire Gas and Safety Costs (Transmission) - Non IRR | B95: A.23-06-008 | C95: Application | D95: =H95 -> 44029.8428 | E95: ECPT | F95: ECPT - ALL | H95: 44029.8428 | I95: 412.700166 | L95: New | M95: 0 | N95: 44029.8428 | O95: =I95 -> 412.700166 | P95: =J95 -> 0 | Q95: =K95 -> 0 | R95: =VLOOKUP(A95,Summary!$B$8:$E$39,3,FALSE) -> N | T95: 2023 GTS - Inventory Management | U95: -4784.20353 | V95: 0 | W95: 0 | X95: 0 | Y95: 0
A96: 2022 Wildfire Mitigation and Catastrophic Events - August 2025 | B96: A.22-12-009 | C96: Application | D96: =G96 -> 16214.97009 | E96: Distribution | F96: Distribution | G96: 16214.97009 | H96: =G96 -> 16214.97009 | L96: New | M96: 16214.97009 | N96: 16214.97009 | O96: 0 | P96: 0 | Q96: 0 | R96: =VLOOKUP(A96,Summary!$B$8:$E$39,3,FALSE) -> Y | T96: User Defined 1 | U96: 0 | V96: 0 | W96: 0 | X96: 0 | Y96: 0
A97: TRRRMA (Distribution) | B97: A.24-09-015 | C97: Application | D97: =H97 -> 104444.3954 | E97: Distribution | F97: Distribution | H97: 104444.3954 | L97: New | N97: 104444.3954 | P97: 0 | Q97: 0 | R97: =VLOOKUP(A97,Summary!$B$8:$E$39,3,FALSE) -> N | T97: User Defined 2 | U97: 0 | V97: 0 | W97: 0 | X97: 0 | Y97: 0
A98: TRRRMA (Transmission) | B98: A.24-09-015 | C98: Application | D98: =H98 -> 47177.48763 | E98: ECPT | F98: ECPT - ALL | H98: 47177.48763 | L98: New | N98: 47177.48763 | P98: 0 | Q98: 0 | R98: =VLOOKUP(A98,Summary!$B$8:$E$39,3,FALSE) -> N | T98: User Defined 3 | U98: 0 | V98: 0 | W98: 0 | X98: 0 | Y98: 0
A99: 2027 GRC - Gas Distribution | C99: Application | D99: =I99 -> 3061244.211 | E99: Distribution | F99: Distribution | I99: 3061244.211 | J99: 3220789.415 | K99: 3389414.767 | L99: Existing | O99: =I99-I10 -> 56978.8413 | P99: =J99-J10 -> 216524.0447 | Q99: 385149.3971 | R99: =VLOOKUP(A99,Summary!$B$8:$E$39,3,FALSE) -> N | T99: Total | U99: =SUM(U78:U98) -> 47010.50332 | V99: =SUM(V78:V98) -> -255856.9761 | W99: =SUM(W78:W98) -> -351395.5756 | X99: =SUM(X78:X98) -> -351395.5756 | Y99: =SUM(Y78:Y98) -> -351395.5756
A100: 2027 GRC - Core Local Transmission | C100: Application | D100: =I100 -> 1102352.183 | E100: ECPT | F100: ECPT - Core only | I100: 1102352.183 | J100: 1135354.816 | K100: 1173368.345 | L100: Existing | O100: =I100-I19 -> 118980.798 | P100: =J100-J19 -> 151983.4313 | Q100: 189996.9603 | R100: =VLOOKUP(A100,Summary!$B$8:$E$39,3,FALSE) -> N | T100: check | U100: =U31+SUMIF($R$79:$R$113,"Y",M79:M113)=U99 -> TRUE | V100: =ABS(V31+SUMIF($R$79:$R$113,"Y",N79:N113)-V99)<0.0000005 -> TRUE | W100: =ABS(W31+SUMIF($R$79:$R$113,"Y",O79:O113)-W99)<0.0000005 -> TRUE | X100: TRUE | Y100: =ABS(Y31+SUMIF($R$79:$R$113,"Y",Q79:Q113)-Y99)<0.0000005 -> TRUE
A101: 2027 GRC - Core Procurement (Intrastate Volumetric and Capacity) | C101: Application | D101: 144492.9212 | E101: ECPT (No BB) | F101: ECPT - Core only (Procurement) | I101: 144492.9212 | J101: 153719.4621 | K101: 162779.9119 | L101: Existing | O101: =I101-I51 -> -51718.99537 | P101: =J101-J51 -> -42492.45442 | Q101: -33432.00467 | R101: =VLOOKUP(A101,Summary!$B$8:$E$39,3,FALSE) -> N
A102: 2027 GRC - Core Procurement (Storage) | C102: Application | D102: 34475.58511 | E102: Unadjusted Cold Year Winter Season | F102: Storage Allocation (Procurement) | I102: 34475.58511 | J102: 37259.1958 | K102: 39767.86767 | L102: Existing | O102: =I102-I53 -> -49261.20817 | P102: =J102-J53 -> -46477.59748 | Q102: -43968.92561 | R102: =VLOOKUP(A102,Summary!$B$8:$E$39,3,FALSE) -> N
A103: 2027 GRC - Noncore Local Transmission | C103: Application | D103: 578500.182 | E103: ECPT (No BB) | F103: ECPT - Noncore only | I103: 578500.182 | J103: 595883.4141 | K103: 615905.9866 | L103: Existing | O103: =I103-I20 -> 62673.67756 | P103: =J103-J20 -> 80056.90966 | Q103: 100079.4821 | R103: =VLOOKUP(A103,Summary!$B$8:$E$39,3,FALSE) -> N
A104: 2027 GRC - Customer Access Charge | C104: Application | D104: 3108.803628 | E104: CAC Allocation | F104: CAC Allocation | I104: 3108.803628 | J104: 3870.218973 | K104: 4634.982782 | L104: Existing | O104: =I104-I21 -> -2356.437317 | P104: -1595.021972 | Q104: -830.2581629 | R104: =VLOOKUP(A104,Summary!$B$8:$E$39,3,FALSE) -> N
A105: 2027 GRC - Noncore Unbundled | C105: Application | D105: 197609.3823 | E105: ECPT-All | F105: ECPT - ALL | I105: 197609.3823 | J105: 206605.913 | K105: 213949.2198 | L105: Existing | O105: -65598.61827 | P105: -56602.08753 | Q105: -49258.78074 | R105: =VLOOKUP(A105,Summary!$B$8:$E$39,3,FALSE) -> N
A106: 2027 GRC - Inventory Management | C106: Application | D106: =I106 -> 139662.6234 | E106: 2023 GTS - Inventory Management | F106: 2023 GTS - Inventory Management | I106: 139662.6234 | J106: 150919.4682 | K106: 161064.4679 | L106: Existing | O106: -4041.423614 | P106: 7215.421172 | Q106: 17360.42093 | R106: =VLOOKUP(A106,Summary!$B$8:$E$39,3,FALSE) -> N
A107: CFCA - NGSS Enduser Dist. Sub Acct Recovery | E107: Core - Distribution | F107: Core - Distribution | I107: 0 | J107: 0 | K107: 0 | L107: Existing | O107: =-H64 -> -2051.460825 | P107: =O107 -> -2051.460825 | Q107: -2051.460825 | R107: =VLOOKUP(A107,Summary!$B$8:$E$39,3,FALSE) -> N
A108: CFCA/NCA - NGSS Enduser Sub Acct Recovery | E108: ECPT - ALL | F108: ECPT - ALL | I108: 0 | J108: 0 | K108: 0 | L108: Existing | O108: =-H65 -> -487.8206422 | P108: -487.8206422 | Q108: -487.8206422 | R108: =VLOOKUP(A108,Summary!$B$8:$E$39,3,FALSE) -> N
A109: NCA - NGSS Enduser Sub Acct Recovery | E109: ECPT - Noncore only | F109: ECPT - Noncore only | I109: 0 | J109: 0 | K109: 0 | L109: Existing | O109: =-H66 -> -501.0158178 | P109: -501.0158178 | Q109: -501.0158178 | R109: =VLOOKUP(A109,Summary!$B$8:$E$39,3,FALSE) -> N
A111: Public Policy Proceedings
A114: Total Pending, Filed but not Approved | D114: =SUM(D79:D113) -> 5888063.465 | G114: =SUM(G79:G113) -> 102835.0872 | H114: =SUM(H79:H113) -> 621630.5554 | I114: =SUM(I79:I113) -> 5569509.435 | J114: =SUM(J79:J113) -> 5820108.009 | K114: =SUM(K79:K113) -> 6078543.217 | M114: =SUM(M79:M113) -> 47010.50332 | N114: =SUM(N79:N113) -> 565805.9716 | O114: =SUM(O79:O113) -> 314855.2959 | P114: =SUM(P79:P113) -> 565453.8698 | Q114: =SUM(Q79:Q113) -> 823889.078
A121: ** Recurring programs funding assumed to be flat at current levels

Sheet Authorized Rev Req
A2: Annual Period 2025
A3: Reporting Date: Q2 2025
C5: August 1, 2022 | D5: January 1, 2023 | E5: August 1, 2023 | F5: September 1, 2023 | G5: January 1, 2024 | H5: February 1, 2024 | I5: April 1, 2024 | J5: September 1, 2024 | K5: January 1, 2025
C6: 4639-G | D6: 4693-G | E6: 4781-G | F6: 4792-G | G6: 4845-G - AGT | H6: 4859-G - COC | I6: AL 4884-G WGSC | J6: AL 4966-G CARD | K6: AL 5014-G AGT
A7: Filing Description | B7: Authority for Revenue Requirement | D7: Authorized Revenue Requirement ($000) | E7: Authorized Revenue Requirement ($000) | F7: Authorized Revenue Requirement ($000) | G7: Authorized Revenue Requirement ($000) | H7: Authorized Revenue Requirement ($000) | I7: Authorized Revenue Requirement ($000) | J7: Authorized Revenue Requirement ($000) | K7: Authorized Revenue Requirement ($000) | L7: Revenue Recovery Mechanism/Allocation | M7: Balancing Account
A8: Safety Affordability Reliability Proceedings
A9: General Rate Case | B9: D. 23-11-069 | C9: 2292349.443 | D9: 2221384.837 | E9: 2221384.837 | F9: 2221384.837 | G9: 2695191.955 | H9: 2695191.955 | I9: 2695191.955 | J9: 2695191.955 | K9: 2837661.424 | L9: Distribution | M9: =IF(RIGHT(A9,1)="*","Y","N") -> N
A10: General Rate Case - Gas Distribution Late Implementation | B10: D. 23-11-069 | G10: 200589.2578 | H10: 200589.2578 | I10: 200589.2578 | J10: 200589.2578 | K10: 200589.2578 | L10: Distribution | M10: N
A11: Pension Contribution - Distribution | B11: D.09-09-020 | C11: 31709.7412 | D11: 31709.7412 | E11: 31709.7412 | F11: 31709.7412 | G11: 34877.61496 | H11: 34877.61496 | I11: 34877.61496 | J11: 37805.84365 | K11: 37805.84365 | L11: Distribution | M11: N
A12: Pension Contribution - GT&S Core | B12: D.09-09-020 | C12: 9019.568428 | D12: 9019.568428 | E12: 9019.568428 | F12: 9019.568428 | G12: 10150.45606 | H12: 10150.45606 | I12: 10150.45606 | J12: 11024.33372 | K12: 11024.33372 | L12: Core - ECPT | M12: N
A13: Pension Contribution - GT&S NonCore (LT) | B13: D.09-09-020 | C13: 2947.820859 | D13: 2947.820859 | E13: 2947.820859 | F13: 2947.820859 | G13: 4042.644918 | H13: 4042.644918 | I13: 4042.644918 | J13: 3986.072364 | K13: 3986.072364 | L13: Noncore (No-BB/EG-BB)-ECPT | M13: N
A14: Pension Contribution - GT&S Noncore (BB& Storage) | B14: D.09-09-020 | C14: 3462.535613 | D14: 3462.535613 | E14: 3462.535613 | F14: 3462.535613 | G14: 2430.008673 | H14: 2430.008673 | I14: 2430.008673 | J14: 3008.334161 | K14: 3008.334161 | L14: Noncore - ECPT | M14: =IF(RIGHT(A26,1)="*","Y","N") -> N
A15: Cost of Capital | B15: D.22-12-031/D.23-01-002/ AL 4813-G/D.24-10-008/AL 4996-G | C15: -31687.62175 | D15: -41770.07122 | E15: -41770.07122 | F15: -41770.07122 | G15: 0 | H15: 71193.52069 | I15: 71193.52069 | J15: 71193.52069 | K15: 50569.41165 | L15: Distribution | M15: =IF(RIGHT(A15,1)="*","Y","N") -> N
A16: GT&S (excluding costs recovered through Core Procurement)
A17: Late Implementation (Transmission Undercollection, Capital Audit, GRC Track II, WGSC) | B17: D.22-07-007/ D.23-11-069/ WGSC IRR D.24-03-006 | C17: 104121.0434 | D17: 104121.0434 | E17: 61082.72649 | F17: 61082.72649 | G17: 289979.733 | H17: 289979.733 | I17: 377623.574 | J17: 377623.574 | K17: 311890.6932 | L17: ECPT | M17: N
A18: Local Transmission | B18: D. 24-03-002 | C18: 952787.6325 | D18: 952787.6325 | E18: 952787.6325 | F18: 952787.6325 | G18: 1360671.608 | H18: 1360671.608 | I18: 1360671.608 | J18: 1360671.608 | K18: 1428467.573 | L18: ECPT (No BB) | M18: N
A19: Customer Access Charge | B19: D. 24-03-002 | C19: 2331.344958 | D19: 2331.344958 | E19: 2331.344958 | F19: 2331.344958 | G19: 3740.039321 | H19: 3740.039321 | I19: 3740.039321 | J19: 3740.039321 | K19: 4616.173305 | L19: CAC Allocation | M19: N
A20: Unbundled | B20: D. 24-03-002 | C20: 342450.1766 | D20: 342450.1766 | E20: 342450.1766 | F20: 342450.1766 | G20: 319583.6122 | H20: 319583.6122 | I20: 319583.6122 | J20: 375103.0568 | K20: 389964.4952 | L20: ECPT-All | M20: N
A21: GT&S Balancing Accounts - LT (excludes BB) | B21: D.23-11-069 | C21: 0 | D21: 39937.26103 | E21: 39937.26103 | F21: 39937.26103 | G21: 32271.77647 | H21: 32271.77647 | I21: 32271.77647 | J21: 32271.77647 | K21: 4730.745 | L21: ECPT (No BB) | M21: Y
A22: GT&S Balancing Accounts - Non-LT (all customers pay) | B22: D.23-11-069 | C22: 0 | D22: -137094.5871 | E22: -137094.5871 | F22: -137094.5871 | G22: -132483.2783 | H22: -132483.2783 | I22: -132483.2783 | J22: -132483.2783 | K22: 187.974 | L22: ECPT-All | M22: Y
A23: CFCA - Distribution Cost Subaccount | B23: Preliminary Statement F | C23: -25740.28347 | D23: 31181.11324 | E23: 31181.11324 | F23: 31181.11324 | G23: -105772.6405 | H23: -105772.6405 | I23: -105772.6405 | J23: -105772.6405 | K23: 126074.2372 | L23: Distribution | M23: Y
A24: CFCA - Core Cost Subaccount | B24: Preliminary Statement F | C24: 47909.45314 | D24: 32015.13448 | E24: 32015.13448 | F24: 32015.13448 | G24: -26622.23875 | H24: -26876.21342 | I24: -26876.21342 | J24: -26876.21342 | K24: 52966.97098 | L24: ECPT | M24: Y
A25: CFCA - AB32 ARB COI | B25: Preliminary Statement F | C25: 11118.70791 | D25: 12436.62143 | E25: 12436.62143 | F25: 12436.62143 | G25: 13746.46288 | H25: 13746.46288 | I25: 13746.46288 | J25: 13746.46288 | K25: 14221.84697 | L25: ECPT (Certain Covered Entities) | M25: Y
A26: NCA - Noncore Subaccount | B26: Preliminary Statement J | C26: -14665.86657 | D26: -10301.49341 | E26: -10301.49341 | F26: -10301.49341 | G26: 4451.98524 | H26: 4082.959912 | I26: 4082.959912 | J26: 4082.959912 | K26: -28484.12163 | L26: ECPT | M26: Y
A27: NCA - Distribution Sub | B27: Preliminary Statement J | C27: -2809.041929 | D27: 3864.00226 | E27: 3864.00226 | F27: 3864.00226 | G27: -2320.088795 | H27: -2320.088795 | I27: -2320.088795 | J27: -2320.088795 | K27: 8614.191621 | L27: Distribution | M27: Y
A28: NCA - AB32 ARB COI | B28: Preliminary Statement J | C28: -2976.91464 | D28: -1573.254906 | E28: -1573.254906 | F28: -1573.254906 | G28: -496.3779861 | H28: -496.3779861 | I28: -496.3779861 | J28: -496.3779861 | K28: -1803.843786 | L28: ECPT (Certain Covered Entities) | M28: Y
A29: NCA - Local Transmission Subaccount | B29: Preliminary Statement J | C29: -6277.07965 | D29: 285.7931864 | E29: 285.7931864 | F29: 285.7931864 | G29: 2857.747031 | H29: 2857.747031 | I29: 2857.747031 | J29: 2857.747031 | K29: -9843.60886 | L29: ECPT (Noncore) | M29: Y
A30: GT&S Audit - Noncore Storage | B30: Preliminary Statement J | C30: 1558.563059 | D30: 1558.563059 | E30: 1558.563059 | F30: 1558.563059 | G30: 1557.895255 | H30: 1557.895255 | I30: 1557.895255 | J30: 1557.895255 | K30: 1555.933202 | L30: ECPT (Noncore) | M30: Y
A31: Core Brokerage Fee Balancing Account | B31: Preliminary Statement U | C31: -158.4107137 | D31: -219.6859685 | E31: -219.6859685 | F31: -219.6859685 | G31: -579.0487785 | H31: -579.0487785 | I31: -579.0487785 | J31: -579.0487785 | K31: -27.45384348 | L31: Core - ECPT | M31: Y
A32: Hazardous Substance Materials (HSM) * | B32: Preliminary Statement AN | C32: 90017.88761 | D32: 77815.51837 | E32: 77815.51837 | F32: 77815.51837 | G32: 106048.5766 | H32: 106048.5766 | I32: 106048.5766 | J32: 106048.5766 | K32: 95401.74617 | L32: ECPT | M32: Y
A33: Balancing Charge Account | B33: Preliminary Statement L | C33: 12244.29196 | D33: -1660.97807 | E33: -1660.97807 | F33: -1660.97807 | G33: -12535.13101 | H33: -12535.13101 | I33: -12535.13101 | J33: -12535.13101 | K33: -4337.35272 | L33: ECPT | M33: Y
A34: CFCA - NGSS Enduser Dist. Sub Acct Recovery | B34: Preliminary Statement F | C34: 25177.24247 | D34: 25177.24247 | E34: 25177.24247 | F34: 25177.24247 | G34: -38434.84297 | H34: -38434.84297 | I34: -38434.84297 | J34: -41605.2506 | K34: -41605.2506 | L34: Core - Distribution | M34: Y
A35: CFCA/NCA - NGSS Enduser Sub Acct Recovery | B35: Preliminary Statement J/F | C35: 5986.942788 | D35: 5986.942788 | E35: 5986.942788 | F35: 5986.942788 | G35: -9139.491991 | H35: -9139.491991 | I35: -9139.491991 | J35: -9893.389052 | K35: -9893.389052 | L35: ECPT | M35: Y
A36: NCA - NGSS Enduser Sub Acct Recovery | B36: Preliminary Statement J | C36: 6148.885016 | D36: 6148.885016 | E36: 6148.885016 | F36: 6148.885016 | G36: -9386.708266 | H36: -9386.708266 | I36: -9386.708266 | J36: -10160.99767 | K36: -10160.99767 | L36: Noncore - ECPT | M36: Y
A37: Adjust. Mechanism Costs Determined Other Proceedings | B37: Preliminary Statement CO | C37: 105977.4996 | D37: 114711.9855 | E37: 150922.3271 | F37: 150922.3271 | G37: 18794.28532 | H37: 73091.27662 | I37: 73091.27662 | J37: 73091.27662 | K37: 42660.83061 | L37: 50 Core/50 Noncore - ECPT | M37: Y
A38: Percentage of Income Payment Plan Bal Acct | B38: Preliminary Statement FU | C38: 0 | D38: 0 | E38: 0 | F38: 0 | G38: 337.043393 | H38: 337.043393 | I38: 337.043393 | J38: 337.043393 | K38: 1500.878473 | L38: ECPT | M38: Y
A39: GT&S Revenue Sharing Mechanism | B39: Preliminary Statement CP | C39: -65185.38658 | D39: -59150.36774 | E39: -59150.36774 | F39: -59150.36774 | G39: -123356.7191 | H39: -123356.7191 | I39: -123356.7191 | J39: -123356.7191 | K39: -65585.16756 | L39: 50 Core/50 Noncore - ECPT | M39: Y
A40: CA Solar Thermal Program Memo Account | B40: Preliminary Statement CA | C40: 8115.208029 | D40: 5592.108634 | E40: 5592.108634 | F40: 5592.108634 | G40: 5964.99871 | H40: 5964.99871 | I40: 5964.99871 | J40: 5964.99871 | K40: 5260.703469 | L40: ECPT (excludes CARE/FERA, EG, Whsl customers) | M40: Y
A41: Non-Tariffed Products and Services | B41: Preliminary Statement BT | C41: -343.5029243 | D41: -340.1630825 | E41: -340.1630825 | F41: -340.1630825 | G41: -393.6296115 | H41: -393.6296115 | I41: -393.6296115 | J41: -393.6296115 | K41: -178.6079279 | L41: Core Distribution | M41: Y
A42: Risk Transfer Balancing Account (RTBA) | B42: Preliminary Statement FK | C42: 158118.6747 | D42: 128389.1134 | E42: 202848.1012 | F42: 202848.1012 | G42: 25316.8679 | H42: 25316.8679 | I42: 25316.8679 | J42: 25316.8679 | K42: 0 | L42: Distribution | M42: Y
A43: Wildfire Mitigation Balancing Account (WMBA) | B43: D.20-12-005/Preliminary Statement FL | C43: 1742.991954 | D43: 1835 | E43: 1835 | F43: 1835 | G43: 0 | H43: 0 | I43: 0 | J43: 0 | K43: 1965.586047 | L43: Distribution | M43: Y
A44: New Environmental Regulations Balancing Account(Distribution) | B44: Preliminary Statement DZ | C44: -3253.182133 | D44: 2860.786652 | E44: 2860.786652 | F44: 2860.786652 | G44: -1745.890543 | H44: -1745.890543 | I44: -1745.890543 | J44: -1745.890543 | K44: -839.770747 | L44: Distribution | M44: Y
A45: 2020 and 2021 Wildfire Mitigation and Catastrophic Events (Distribution) | B45: D.23-02-017 / D.23-08-027 | C45: 111630.7097 | D45: 0 | E45: 8834.60825 | F45: 34151.60546 | G45: 34151.60546 | H45: 34151.60546 | I45: 47759.4379 | J45: 47759.4379 | K45: 37553.56357 | L45: Distribution | M45: N
A46: Oakland General Office Purchase (Distribution) | B46: D.24-08-009/AL 4972-G | K46: 74682.81908 | L46: Distribution | M46: N
A47: 2020 and 2021 Wildfire Mitigation and Catastrophic Events (Transmission) | B47: D.23-02-017 / D.23-08-027 | C47: 42141.51819 | D47: 0 | E47: 256.3047395 | F47: 3251.404638 | G47: 3251.404638 | H47: 3251.404638 | I47: 3251.404638 | J47: 3251.404638 | K47: 3251.404638 | L47: ECPT | M47: N
A48: 2022 WMCE | B48: A.22-12-009 | K48: 0 | L48: Distribution | M48: N
A49: Oakland General Office Purchase (Transmission) | B49: D.24-08-009/AL 4972-G | K49: 35685.00229 | L49: ECPT | M49: N
A50: Residential Uncollectibles Balancing Account | B50: D.20-12-005 | C50: 31572.70694 | D50: 2770.652637 | E50: 2770.652637 | F50: 2770.652637 | G50: 124915.5552 | H50: 124915.5552 | I50: 124915.5552 | J50: 124915.5552 | K50: 31775.58215 | L50: ECPT | M50: Y
A51: Property Sales | B51: D.21-08-027/AL 4538-G-A | C51: -54231.31394 | D51: -48263.40497 | E51: -48263.40497 | F51: -48263.40497 | G51: -8084.989543 | H51: -8084.989543 | I51: -8084.989543 | J51: -8084.989543 | K51: -32047.71945 | L51: ECPT | M51: Y
A52: Santa Nella Balancing Account | B52: Preliminary Statement FY | G52: 0 | H52: 0 | I52: 0 | J52: 0 | K52: 46.05792918 | L52: Distribution | M52: Y
A53: RF&U | C53: 11713.9307 | D53: 8579.086135 | E53: 10175.12666 | F53: 10552.52007 | G53: 8380.043016 | H53: 9117.94491 | I53: 9305.265118 | J53: 9297.998973 | K53: 12900.50548 | L53: ECPT | M53: Y
A54: Subtotal Safety Affordability Reliability | C54: =SUM(C9:C53) -> 4205025.916 | D54: 3870986.504 | E54: 3949304.47 | F54: 3977993.961 | G54: 4831952.101 | H54: 4957557.515 | I54: =SUM(I9:I53) -> 5058996.509 | J54: =SUM(J9:J53) -> 5114133.952 | K54: =SUM(K9:K53) -> 5625812.907
A56: Public Policy Proceedings
A57: AB 32: Cap & Trade/GHG | B57: D.15-10-032/D.18-03-017/SB 1477 | C57: -244609.4281 | D57: -270504.8876 | E57: -270504.8876 | F57: -270504.8876 | G57: -440353.5963 | H57: -440353.5963 | I57: -440353.5963 | J57: -440353.5963 | K57: -345869.7457 | L57: 100% Residential | M57: =IF(RIGHT(A57,1)="*","Y","N") -> N
A58: GHG Operational Costs | B58: D.15-10-032/D.18-03-017 | C58: 13767.05432 | D58: 11012.44881 | E58: 11012.44881 | F58: 11012.44881 | G58: 34508.68999 | H58: 34508.68999 | I58: 34508.68999 | J58: 34508.68999 | K58: -9916.695581 | L58: ECPT | M58: =IF(RIGHT(A58,1)="*","Y","N") -> N
A59: GHG Compliance Costs | B59: D.15-10-032/D.18-03-017 | C59: 349212.2942 | D59: 382062.785 | E59: 382062.785 | F59: 382062.785 | G59: 577963.2932 | H59: 577963.2932 | I59: 577963.2932 | J59: 577963.2932 | K59: 437585.4379 | L59: ECPT (excludes Covered Entities 3 yr avg vol) | M59: N
A60: CPUC Fee | B60: Preliminary Statement O | C60: 29099.91973 | D60: 15129.80656 | E60: 15129.80656 | F60: 15129.80656 | G60: 5043.250421 | H60: 5043.250421 | I60: 5043.250421 | J60: 4531.708352 | K60: 11329.34033 | L60: ECPT (reduced EG volumes; excludes WHSL) | M60: N
A61: SGIP | B61: SB 700/D.17-04-017 | C61: 12990.138 | D61: 12990.138 | E61: 12990.138 | F61: 12990.138 | G61: 12990.138 | H61: 12990.138 | I61: 12990.138 | J61: 12990.138 | K61: 0 | L61: Direct Benefits - 3 year average | M61: N
A62: Mobilehome Park Balancing Account | B62: Preliminary Statement DB | C62: 22408.81045 | D62: 25482.28364 | E62: 25482.28364 | F62: 25482.28364 | G62: 19247.35697 | H62: 19247.35697 | I62: 19247.35697 | J62: 19247.35697 | K62: 23664.28455 | L62: Distribtion | M62: =IF(RIGHT(A62,1)="*","Y","N") -> N
A63: CEE Incentive Recovery Account - Gas | B63: Preliminary Statement Y | C63: 4875.35149 | D63: 217.05794 | E63: 217.05794 | F63: 217.05794 | G63: -175.84147 | H63: -175.84147 | I63: -175.84147 | J63: -175.84147 | K63: -17.90958 | L63: Direct Allocation Method | M63: =IF(RIGHT(A63,1)="*","Y","N") -> N
A64: Energy Efficiency | B64: D.23-06-055 | C64: 61665.97857 | D64: 83628.68044 | E64: 83628.68044 | F64: 83628.68044 | G64: 102550.5389 | H64: 102550.5389 | I64: 102550.5389 | J64: 102550.5389 | K64: 122474.8554 | L64: Direct Allocation Method | M64: =IF(RIGHT(A64,1)="*","Y","N") -> N
A65: Energy Savings Assistance Program (ESA) | B65: D.21-06-015/D.20-12-005 | C65: 71796.672 | D65: 80948.73967 | E65: 80948.73967 | F65: 80948.73967 | G65: 80725.879 | H65: 80725.879 | I65: 80725.879 | J65: 80725.879 | K65: 75426.796 | L65: Direct Allocation Method 100% Residential | M65: N
A66: Research Development and Demonstration | B66: AL 4822-G | C66: 10444.97938 | D66: 10386.02 | E66: 10386.02 | F66: 10386.02 | G66: 10494.407 | H66: 10494.407 | I66: 10494.407 | J66: 10494.407 | K66: 10469.05738 | L66: ECPT | M66: N
A67: CARE Administrative Expense | B67: D.21-06-015/D.20-12-005 | C67: 2752 | D67: 2792.32 | E67: 2792.32 | F67: 2792.32 | G67: 2814.12 | H67: 2814.12 | I67: 2814.12 | J67: 2814.12 | K67: 2888.84 | L67: ECPT (non-CARE) | M67: N
A68: CARE Shortfall in Rates | B68: AL 4822-G | L68: ECPT (excludes CARE) | M68: N
A69: BOE/CPUC Gas Surcharge Administration Costs | B69: AL 4822-G | C69: 476.98739 | D69: 449.628 | E69: 449.628 | F69: 449.628 | G69: 417.152 | H69: 417.152 | I69: 417.152 | J69: 417.152 | K69: 429.23135 | L69: ECPT | M69: N
A70: Marketing, Education & Outreach (ME&O) | B70: D.19-01-005 | C70: 0 | D70: 0 | E70: 0 | F70: 0 | G70: 0 | H70: 0 | I70: 0 | J70: 0 | K70: 0 | L70: ECPT | M70: N
A71: PPP-Energy Efficiency BA | B71: Preliminary Statement Y | C71: -18257.9007 | D71: 976.0245597 | E71: 976.0245597 | F71: 976.0245597 | G71: 2097.329095 | H71: 2097.329095 | I71: 2097.329095 | J71: 2097.329095 | K71: 25054.17121 | L71: Direct Allocation Method | M71: Y
A72: PPP-Energy Savings Assistance Program BA | B72: Preliminary Statement Y/D.17-12-009 | C72: 22005.42361 | D72: 2982.724032 | E72: 2982.724032 | F72: 2982.724032 | G72: -10057.28753 | H72: -10057.28753 | I72: -10057.28753 | J72: -10057.28753 | K72: 10204.45436 | L72: =L65 -> Direct Allocation Method 100% Residential | M72: Y
A73: PPP-RD&D BA | B73: Preliminary Statement BI | C73: 531.8784161 | D73: 1011.92473 | E73: 1011.92473 | F73: 1011.92473 | G73: 164.2624856 | H73: 164.2624856 | I73: 164.2624856 | J73: 164.2624856 | K73: 939.5338946 | L73: ECPT | M73: Y
A74: CARE BA | B74: Preliminary Statement V | C74: -10350.20747 | D74: 22718.75154 | E74: 22718.75154 | F74: 22718.75154 | G74: 30973.07546 | H74: 30973.07546 | I74: 30973.07546 | J74: 30973.07546 | K74: 12590.9108 | L74: ECPT (excludes CARE) | M74: Y
A75: Core Capacity | B75: D. 24-03-002/Other | C75: 285973.0052 | D75: 271723.2113 | E75: 271723.2113 | F75: 271723.2113 | G75: 273072.8998 | H75: 273072.8998 | I75: 273072.8998 | J75: 220217.6893 | K75: 244356.4094 | L75: Unadjusted Average Year January | M75: =IF(RIGHT(A75,1)="*","Y","N") -> N
A76: Core Procurement | B76: D. 97-10-065 | C76: 761510.4371 | D76: 1046694.091 | E76: 1046694.091 | F76: 1046694.091 | G76: 643838.6482 | H76: 643838.6482 | I76: 643838.6482 | J76: 611969.6695 | K76: 583625.3534 | L76: Core - ECPT | M76: N
A77: Core Storage | B77: D. 19-09-025 | C77: 54744.85073 | D77: 74376.87073 | E77: 74376.87073 | F77: 74376.87073 | G77: 82215.45352 | H77: 82215.45352 | I77: 82215.45352 | J77: 86889.9849 | K77: 134502.8939 | L77: Unadjusted Cold Year Winter Season | M77: N
A78: Core Brokerage Fee | B78: GCAP D.19-10-036 | C78: 5332.411598 | D78: 5332.411598 | E78: 5332.411598 | F78: 5332.411598 | G78: 5332.411598 | H78: 5332.411598 | I78: 5332.411598 | J78: 5066.880005 | K78: 5066.942012 | L78: ECPT (Core only) | M78: N
A79: Core Brokerage Fee Credit | B79: =B78 -> GCAP D.19-10-036 | C79: -5332.411598 | D79: -5332.411598 | E79: -5332.411598 | F79: -5332.411598 | G79: =-G78 -> -5332.411598 | H79: =-H78 -> -5332.411598 | I79: =-I78 -> -5332.411598 | J79: =-J78 -> -5066.880005 | K79: =-K78 -> -5066.942012 | L79: ECPT (Core only) | M79: N
A81: Subtotal Public Policy | C81: =SUM(C57:C80) -> 1431038.244 | D81: 1775078.618 | E81: 1775078.618 | F81: 1775078.618 | G81: 1428529.769 | H81: 1428529.769 | I81: =SUM(I57:I80) -> 1428529.769 | J81: =SUM(J57:J80) -> 1347968.569 | K81: =SUM(K57:K80) -> 1339737.219
A84: Total Authorized Revenue | C84: =C54+C81 -> 5636064.16 | D84: 5646065.122 | E84: 5724383.088 | F84: 5753072.579 | G84: 6260481.87 | H84: 6386087.284 | I84: =I54+I81 -> 6487526.278 | J84: =J54+J81 -> 6462102.521 | K84: =K54+K81 -> 6965550.126
A87: PPP as approved in AL 4822-G for 2024

Sheet SAR and RAR
F3: Public Purpose Program Switch | G3: =IF(VLOOKUP(G$8,'RRQ Allocations'!$B$5:$L$25,3,FALSE)="PPP",1,0) -> 0 | H3: =IF(VLOOKUP(H$8,'RRQ Allocations'!$B$5:$L$25,3,FALSE)="PPP",1,0) -> 0 | I3: =IF(VLOOKUP(I$8,'RRQ Allocations'!$B$5:$L$25,3,FALSE)="PPP",1,0) -> 0 | J3: =IF(VLOOKUP(J$8,'RRQ Allocations'!$B$5:$L$25,3,FALSE)="PPP",1,0) -> 0 | K3: =IF(VLOOKUP(K$8,'RRQ Allocations'!$B$5:$L$25,3,FALSE)="PPP",1,0) -> 0 | L3: =IF(VLOOKUP(L$8,'RRQ Allocations'!$B$5:$L$25,3,FALSE)="PPP",1,0) -> 0 | M3: =IF(VLOOKUP(M$8,'RRQ Allocations'!$B$5:$L$25,3,FALSE)="PPP",1,0) -> 0 | N3: =IF(VLOOKUP(N$8,'RRQ Allocations'!$B$5:$L$25,3,FALSE)="PPP",1,0) -> 0 | O3: =IF(VLOOKUP(O$8,'RRQ Allocations'!$B$5:$L$25,3,FALSE)="PPP",1,0) -> 1 | P3: =IF(VLOOKUP(P$8,'RRQ Allocations'!$B$5:$L$25,3,FALSE)="PPP",1,0) -> 1 | Q3: =IF(VLOOKUP(Q$8,'RRQ Allocations'!$B$5:$L$25,3,FALSE)="PPP",1,0) -> 1 | R3: =IF(VLOOKUP(R$8,'RRQ Allocations'!$B$5:$L$25,3,FALSE)="PPP",1,0) -> 0 | S3: =IF(VLOOKUP(S$8,'RRQ Allocations'!$B$5:$L$25,3,FALSE)="PPP",1,0) -> 0 | T3: =IF(VLOOKUP(T$8,'RRQ Allocations'!$B$5:$L$25,3,FALSE)="PPP",1,0) -> 0 | U3: =IF(VLOOKUP(U$8,'RRQ Allocations'!$B$5:$L$25,3,FALSE)="PPP",1,0) -> 0 | V3: =IF(VLOOKUP(V$8,'RRQ Allocations'!$B$5:$L$25,3,FALSE)="PPP",1,0) -> 0 | W3: =IF(VLOOKUP(W$8,'RRQ Allocations'!$B$5:$L$25,3,FALSE)="PPP",1,0) -> 0 | X3: =IF(VLOOKUP(X$8,'RRQ Allocations'!$B$5:$L$25,3,FALSE)="PPP",1,0) -> 0 | Y3: =IF(VLOOKUP(Y$8,'RRQ Allocations'!$B$5:$L$25,3,FALSE)="PPP",1,0) -> 0 | Z3: =IF(VLOOKUP(Z$8,'RRQ Allocations'!$B$5:$L$25,3,FALSE)="PPP",1,0) -> 0 | AA3: =IF(VLOOKUP(AA$8,'RRQ Allocations'!$B$5:$L$25,3,FALSE)="PPP",1,0) -> 0
F4: Transporation Switch | G4: =IF(VLOOKUP(G$8,'RRQ Allocations'!$B$5:$L$25,3,FALSE)="T",1,0) -> 1 | H4: =IF(VLOOKUP(H$8,'RRQ Allocations'!$B$5:$L$25,3,FALSE)="T",1,0) -> 1 | I4: =IF(VLOOKUP(I$8,'RRQ Allocations'!$B$5:$L$25,3,FALSE)="T",1,0) -> 1 | J4: =IF(VLOOKUP(J$8,'RRQ Allocations'!$B$5:$L$25,3,FALSE)="T",1,0) -> 1 | K4: =IF(VLOOKUP(K$8,'RRQ Allocations'!$B$5:$L$25,3,FALSE)="T",1,0) -> 1 | L4: =IF(VLOOKUP(L$8,'RRQ Allocations'!$B$5:$L$25,3,FALSE)="T",1,0) -> 1 | M4: =IF(VLOOKUP(M$8,'RRQ Allocations'!$B$5:$L$25,3,FALSE)="T",1,0) -> 1 | N4: =IF(VLOOKUP(N$8,'RRQ Allocations'!$B$5:$L$25,3,FALSE)="T",1,0) -> 1 | O4: =IF(VLOOKUP(O$8,'RRQ Allocations'!$B$5:$L$25,3,FALSE)="T",1,0) -> 0 | P4: =IF(VLOOKUP(P$8,'RRQ Allocations'!$B$5:$L$25,3,FALSE)="T",1,0) -> 0 | Q4: =IF(VLOOKUP(Q$8,'RRQ Allocations'!$B$5:$L$25,3,FALSE)="T",1,0) -> 0 | R4: =IF(VLOOKUP(R$8,'RRQ Allocations'!$B$5:$L$25,3,FALSE)="T",1,0) -> 1 | S4: =IF(VLOOKUP(S$8,'RRQ Allocations'!$B$5:$L$25,3,FALSE)="T",1,0) -> 1 | T4: =IF(VLOOKUP(T$8,'RRQ Allocations'!$B$5:$L$25,3,FALSE)="T",1,0) -> 1 | U4: =IF(VLOOKUP(U$8,'RRQ Allocations'!$B$5:$L$25,3,FALSE)="T",1,0) -> 0 | V4: =IF(VLOOKUP(V$8,'RRQ Allocations'!$B$5:$L$25,3,FALSE)="T",1,0) -> 0 | W4: =IF(VLOOKUP(W$8,'RRQ Allocations'!$B$5:$L$25,3,FALSE)="T",1,0) -> 0 | X4: =IF(VLOOKUP(X$8,'RRQ Allocations'!$B$5:$L$25,3,FALSE)="T",1,0) -> 1 | Y4: =IF(VLOOKUP(Y$8,'RRQ Allocations'!$B$5:$L$25,3,FALSE)="T",1,0) -> 1 | Z4: =IF(VLOOKUP(Z$8,'RRQ Allocations'!$B$5:$L$25,3,FALSE)="T",1,0) -> 1 | AA4: =IF(VLOOKUP(AA$8,'RRQ Allocations'!$B$5:$L$25,3,FALSE)="T",1,0) -> 1
F5: Procurement Switch | G5: =IF(VLOOKUP(G$8,'RRQ Allocations'!$B$5:$L$25,3,FALSE)="P",1,0) -> 0 | H5: =IF(VLOOKUP(H$8,'RRQ Allocations'!$B$5:$L$25,3,FALSE)="P",1,0) -> 0 | I5: =IF(VLOOKUP(I$8,'RRQ Allocations'!$B$5:$L$25,3,FALSE)="P",1,0) -> 0 | J5: =IF(VLOOKUP(J$8,'RRQ Allocations'!$B$5:$L$25,3,FALSE)="P",1,0) -> 0 | K5: =IF(VLOOKUP(K$8,'RRQ Allocations'!$B$5:$L$25,3,FALSE)="P",1,0) -> 0 | L5: =IF(VLOOKUP(L$8,'RRQ Allocations'!$B$5:$L$25,3,FALSE)="P",1,0) -> 0 | M5: =IF(VLOOKUP(M$8,'RRQ Allocations'!$B$5:$L$25,3,FALSE)="P",1,0) -> 0 | N5: =IF(VLOOKUP(N$8,'RRQ Allocations'!$B$5:$L$25,3,FALSE)="P",1,0) -> 0 | O5: =IF(VLOOKUP(O$8,'RRQ Allocations'!$B$5:$L$25,3,FALSE)="P",1,0) -> 0 | P5: =IF(VLOOKUP(P$8,'RRQ Allocations'!$B$5:$L$25,3,FALSE)="P",1,0) -> 0 | Q5: =IF(VLOOKUP(Q$8,'RRQ Allocations'!$B$5:$L$25,3,FALSE)="P",1,0) -> 0 | R5: =IF(VLOOKUP(R$8,'RRQ Allocations'!$B$5:$L$25,3,FALSE)="P",1,0) -> 0 | S5: =IF(VLOOKUP(S$8,'RRQ Allocations'!$B$5:$L$25,3,FALSE)="P",1,0) -> 0 | T5: =IF(VLOOKUP(T$8,'RRQ Allocations'!$B$5:$L$25,3,FALSE)="P",1,0) -> 0 | U5: =IF(VLOOKUP(U$8,'RRQ Allocations'!$B$5:$L$25,3,FALSE)="P",1,0) -> 1 | V5: =IF(VLOOKUP(V$8,'RRQ Allocations'!$B$5:$L$25,3,FALSE)="P",1,0) -> 1 | W5: =IF(VLOOKUP(W$8,'RRQ Allocations'!$B$5:$L$25,3,FALSE)="P",1,0) -> 1 | X5: =IF(VLOOKUP(X$8,'RRQ Allocations'!$B$5:$L$25,3,FALSE)="P",1,0) -> 0 | Y5: =IF(VLOOKUP(Y$8,'RRQ Allocations'!$B$5:$L$25,3,FALSE)="P",1,0) -> 0 | Z5: =IF(VLOOKUP(Z$8,'RRQ Allocations'!$B$5:$L$25,3,FALSE)="P",1,0) -> 0 | AA5: =IF(VLOOKUP(AA$8,'RRQ Allocations'!$B$5:$L$25,3,FALSE)="P",1,0) -> 0
C7: =CONCATENATE(Summary!D3," Revenue Change ($000)") -> 2025 Revenue Change ($000) | G7: Allocation
C8: Authorized | D8: + Pending | G8: =TRANSPOSE('RRQ Allocations'!B5:B25) -> 100% Residential | H8: Core - Distribution | I8: Distribution | J8: ECPT - ALL | K8: ECPT - Core only | L8: ECPT - Noncore only | M8: ECPT - 50% Core / 50% Noncore | N8: ECPT (excludes Covered Entities 3 yr avg vol) | O8: EE | P8: ESA | Q8: PPP ECPT | R8: SGIP allocation | S8: CPUC Fee Allocation | T8: CAC Allocation | U8: Storage Allocation (Procurement) | V8: Capacity Allocation (Procurement) | W8: ECPT - Core only (Procurement) | X8: 2023 GTS - Inventory Management | Y8: User Defined 1 | Z8: User Defined 2 | AA8: User Defined 3 | AC8: CARE Allocation
B9: ='Incremental Rev Req'!T10 -> 100% Residential | C9: =INDEX('Incremental Rev Req'!$T$9:$Y$30,MATCH($B9,'Incremental Rev Req'!$T$9:$T$30,0),MATCH(Summary!$D$3,'Incremental Rev Req'!$T$9:$Y$9,0)) -> 0 | D9: =INDEX('Incremental Rev Req'!$T$77:$Y$98,MATCH($B9,'Incremental Rev Req'!$T$77:$T$98,0),MATCH(Summary!$D$3,'Incremental Rev Req'!$T$77:$Y$77,0)) -> 0 | F9: Residential | G9: =TRANSPOSE('RRQ Allocations'!$H$5:$H$25) -> 1 | H9: 0.8087424535 | I9: 0.7848380342 | J9: 0.2722760258 | K9: 0.6645607332 | L9: 0 | M9: 0.3322803666 | N9: 0.3579384357 | O9: 0.3384 | P9: 1 | Q9: 0.3972263924 | R9: 0.9155803564 | S9: 0.3675689852 | T9: 0 | U9: 0.7912905715 | V9: 0.7933288665 | W9: 0.7339651048 | X9: 0.3591976846 | Y9: 0 | Z9: 0 | AA9: 0 | AC9: 0.3372254409
B10: ='Incremental Rev Req'!T11 -> Core - Distribution | C10: =INDEX('Incremental Rev Req'!$T$9:$Y$30,MATCH($B10,'Incremental Rev Req'!$T$9:$T$30,0),MATCH(Summary!$D$3,'Incremental Rev Req'!$T$9:$Y$9,0)) -> 0 | D10: =INDEX('Incremental Rev Req'!$T$77:$Y$98,MATCH($B10,'Incremental Rev Req'!$T$77:$T$98,0),MATCH(Summary!$D$3,'Incremental Rev Req'!$T$77:$Y$77,0)) -> 0
B11: ='Incremental Rev Req'!T12 -> Distribution | C11: =INDEX('Incremental Rev Req'!$T$9:$Y$30,MATCH($B11,'Incremental Rev Req'!$T$9:$T$30,0),MATCH(Summary!$D$3,'Incremental Rev Req'!$T$9:$Y$9,0)) -> 0 | D11: =INDEX('Incremental Rev Req'!$T$77:$Y$98,MATCH($B11,'Incremental Rev Req'!$T$77:$T$98,0),MATCH(Summary!$D$3,'Incremental Rev Req'!$T$77:$Y$77,0)) -> 40808.66505 | G11: Revenue Change ($000) - System
B12: ='Incremental Rev Req'!T13 -> ECPT - ALL | C12: =INDEX('Incremental Rev Req'!$T$9:$Y$30,MATCH($B12,'Incremental Rev Req'!$T$9:$T$30,0),MATCH(Summary!$D$3,'Incremental Rev Req'!$T$9:$Y$9,0)) -> 4784.20353 | D12: =INDEX('Incremental Rev Req'!$T$77:$Y$98,MATCH($B12,'Incremental Rev Req'!$T$77:$T$98,0),MATCH(Summary!$D$3,'Incremental Rev Req'!$T$77:$Y$77,0)) -> 10986.04179 | F12: Authorized | G12: =G$8 -> 100% Residential | H12: =H$8 -> Core - Distribution | I12: Distribution | J12: ECPT - ALL | K12: ECPT - Core only | L12: ECPT - Noncore only | M12: ECPT - 50% Core / 50% Noncore | N12: ECPT (excludes Covered Entities 3 yr avg vol) | O12: EE | P12: ESA | Q12: PPP ECPT | R12: SGIP allocation | S12: CPUC Fee Allocation | T12: CAC Allocation | U12: Storage Allocation (Procurement) | V12: Capacity Allocation (Procurement) | W12: ECPT - Core only (Procurement) | X12: 2023 GTS - Inventory Management | Y12: User Defined 1 | Z12: User Defined 2 | AA12: User Defined 3 | AB12: Total | AC12: CARE Discount
B13: ='Incremental Rev Req'!T14 -> ECPT - Core only | C13: =INDEX('Incremental Rev Req'!$T$9:$Y$30,MATCH($B13,'Incremental Rev Req'!$T$9:$T$30,0),MATCH(Summary!$D$3,'Incremental Rev Req'!$T$9:$Y$9,0)) -> 0 | D13: =INDEX('Incremental Rev Req'!$T$77:$Y$98,MATCH($B13,'Incremental Rev Req'!$T$77:$T$98,0),MATCH(Summary!$D$3,'Incremental Rev Req'!$T$77:$Y$77,0)) -> 0 | F13: Residential | G13: =G9*G14 -> 0 | H13: 0 | I13: 0 | J13: 1302.623924 | K13: 0 | L13: 0 | M13: 0 | N13: 0 | O13: 0 | P13: 0 | Q13: 0 | R13: 0 | S13: 0 | T13: 0 | U13: 0 | V13: -8284.36973 | W13: 7664.461176 | X13: =X9*X14 -> -1718.47483 | Y13: 0 | Z13: 0 | AA13: 0 | AB13: =SUM(G13:AA13) -> -1035.759461 | AC13: =AC9*AC14 -> -16.99651977
B14: ='Incremental Rev Req'!T15 -> ECPT - Noncore only | C14: =INDEX('Incremental Rev Req'!$T$9:$Y$30,MATCH($B14,'Incremental Rev Req'!$T$9:$T$30,0),MATCH(Summary!$D$3,'Incremental Rev Req'!$T$9:$Y$9,0)) -> 0 | D14: =INDEX('Incremental Rev Req'!$T$77:$Y$98,MATCH($B14,'Incremental Rev Req'!$T$77:$T$98,0),MATCH(Summary!$D$3,'Incremental Rev Req'!$T$77:$Y$77,0)) -> 0 | F14: Total System | G14: =VLOOKUP(G$12,$B$9:$D$29,2,FALSE) -> 0 | H14: =VLOOKUP(H$12,$B$9:$D$29,2,FALSE) -> 0 | I14: 0 | J14: 4784.20353 | K14: 0 | L14: 0 | M14: 0 | N14: 0 | O14: 0 | P14: 0 | Q14: 0 | R14: 0 | S14: 0 | T14: 0 | U14: 0 | V14: -10442.54165 | W14: 10442.54165 | X14: =VLOOKUP(X$12,$B$9:$D$29,2,FALSE) -> -4784.20353 | Y14: 0 | Z14: 0 | AA14: 0 | AB14: =SUM(G14:AA14) -> 8.731149137e-11 | AC14: =Res_RD!M33 -> -50.40106025
B15: ='Incremental Rev Req'!T16 -> ECPT - 50% Core / 50% Noncore | C15: =INDEX('Incremental Rev Req'!$T$9:$Y$30,MATCH($B15,'Incremental Rev Req'!$T$9:$T$30,0),MATCH(Summary!$D$3,'Incremental Rev Req'!$T$9:$Y$9,0)) -> 0 | D15: =INDEX('Incremental Rev Req'!$T$77:$Y$98,MATCH($B15,'Incremental Rev Req'!$T$77:$T$98,0),MATCH(Summary!$D$3,'Incremental Rev Req'!$T$77:$Y$77,0)) -> 0 | F15: w/Pending
B16: ='Incremental Rev Req'!T17 -> ECPT (excludes Covered Entities 3 yr avg vol) | C16: =INDEX('Incremental Rev Req'!$T$9:$Y$30,MATCH($B16,'Incremental Rev Req'!$T$9:$T$30,0),MATCH(Summary!$D$3,'Incremental Rev Req'!$T$9:$Y$9,0)) -> 0 | D16: =INDEX('Incremental Rev Req'!$T$77:$Y$98,MATCH($B16,'Incremental Rev Req'!$T$77:$T$98,0),MATCH(Summary!$D$3,'Incremental Rev Req'!$T$77:$Y$77,0)) -> 0 | F16: Residential | G16: =G9*G17 -> 0 | H16: 0 | I16: 32028.19246 | J16: 2991.235799 | K16: =K9*K17 -> 0 | L16: 0 | M16: 0 | N16: 0 | O16: 0 | P16: 0 | Q16: 0 | R16: 0 | S16: 0 | T16: 0 | U16: 0 | V16: -8284.36973 | W16: =W9*W17 -> 7664.461176 | X16: -1718.47483 | Y16: 0 | Z16: 0 | AA16: 0 | AB16: =SUM(G16:AA16) -> 32681.04487 | AC16: =AC9*AC17 -> 500.9198462
B17: ='Incremental Rev Req'!T18 -> EE | C17: =INDEX('Incremental Rev Req'!$T$9:$Y$30,MATCH($B17,'Incremental Rev Req'!$T$9:$T$30,0),MATCH(Summary!$D$3,'Incremental Rev Req'!$T$9:$Y$9,0)) -> 0 | D17: =INDEX('Incremental Rev Req'!$T$77:$Y$98,MATCH($B17,'Incremental Rev Req'!$T$77:$T$98,0),MATCH(Summary!$D$3,'Incremental Rev Req'!$T$77:$Y$77,0)) -> 0 | F17: Total System | G17: =VLOOKUP(G$12,$B$9:$D$29,3,FALSE) -> 0 | H17: 0 | I17: 40808.66505 | J17: 10986.04179 | K17: 0 | L17: 0 | M17: 0 | N17: 0 | O17: 0 | P17: 0 | Q17: 0 | R17: 0 | S17: 0 | T17: 0 | U17: 0 | V17: -10442.54165 | W17: 10442.54165 | X17: -4784.20353 | Y17: 0 | Z17: 0 | AA17: 0 | AB17: =SUM(G17:AA17) -> 47010.50332 | AC17: =(Res_RD!AD33) -> 1485.41535
B18: ='Incremental Rev Req'!T19 -> ESA | C18: =INDEX('Incremental Rev Req'!$T$9:$Y$30,MATCH($B18,'Incremental Rev Req'!$T$9:$T$30,0),MATCH(Summary!$D$3,'Incremental Rev Req'!$T$9:$Y$9,0)) -> 0 | D18: =INDEX('Incremental Rev Req'!$T$77:$Y$98,MATCH($B18,'Incremental Rev Req'!$T$77:$T$98,0),MATCH(Summary!$D$3,'Incremental Rev Req'!$T$77:$Y$77,0)) -> 0
B19: ='Incremental Rev Req'!T20 -> PPP ECPT | C19: =INDEX('Incremental Rev Req'!$T$9:$Y$30,MATCH($B19,'Incremental Rev Req'!$T$9:$T$30,0),MATCH(Summary!$D$3,'Incremental Rev Req'!$T$9:$Y$9,0)) -> 0 | D19: =INDEX('Incremental Rev Req'!$T$77:$Y$98,MATCH($B19,'Incremental Rev Req'!$T$77:$T$98,0),MATCH(Summary!$D$3,'Incremental Rev Req'!$T$77:$Y$77,0)) -> 0
B20: ='Incremental Rev Req'!T21 -> SGIP allocation | C20: =INDEX('Incremental Rev Req'!$T$9:$Y$30,MATCH($B20,'Incremental Rev Req'!$T$9:$T$30,0),MATCH(Summary!$D$3,'Incremental Rev Req'!$T$9:$Y$9,0)) -> 0 | D20: =INDEX('Incremental Rev Req'!$T$77:$Y$98,MATCH($B20,'Incremental Rev Req'!$T$77:$T$98,0),MATCH(Summary!$D$3,'Incremental Rev Req'!$T$77:$Y$77,0)) -> 0
B21: ='Incremental Rev Req'!T22 -> CPUC Fee Allocation | C21: =INDEX('Incremental Rev Req'!$T$9:$Y$30,MATCH($B21,'Incremental Rev Req'!$T$9:$T$30,0),MATCH(Summary!$D$3,'Incremental Rev Req'!$T$9:$Y$9,0)) -> 0 | D21: =INDEX('Incremental Rev Req'!$T$77:$Y$98,MATCH($B21,'Incremental Rev Req'!$T$77:$T$98,0),MATCH(Summary!$D$3,'Incremental Rev Req'!$T$77:$Y$77,0)) -> 0
B22: ='Incremental Rev Req'!T23 -> CAC Allocation | C22: =INDEX('Incremental Rev Req'!$T$9:$Y$30,MATCH($B22,'Incremental Rev Req'!$T$9:$T$30,0),MATCH(Summary!$D$3,'Incremental Rev Req'!$T$9:$Y$9,0)) -> 0 | D22: =INDEX('Incremental Rev Req'!$T$77:$Y$98,MATCH($B22,'Incremental Rev Req'!$T$77:$T$98,0),MATCH(Summary!$D$3,'Incremental Rev Req'!$T$77:$Y$77,0)) -> 0
B23: ='Incremental Rev Req'!T24 -> Storage Allocation (Procurement) | C23: =INDEX('Incremental Rev Req'!$T$9:$Y$30,MATCH($B23,'Incremental Rev Req'!$T$9:$T$30,0),MATCH(Summary!$D$3,'Incremental Rev Req'!$T$9:$Y$9,0)) -> 0 | D23: =INDEX('Incremental Rev Req'!$T$77:$Y$98,MATCH($B23,'Incremental Rev Req'!$T$77:$T$98,0),MATCH(Summary!$D$3,'Incremental Rev Req'!$T$77:$Y$77,0)) -> 0
B24: ='Incremental Rev Req'!T25 -> Capacity Allocation (Procurement) | C24: =INDEX('Incremental Rev Req'!$T$9:$Y$30,MATCH($B24,'Incremental Rev Req'!$T$9:$T$30,0),MATCH(Summary!$D$3,'Incremental Rev Req'!$T$9:$Y$9,0)) -> -10442.54165 | D24: =INDEX('Incremental Rev Req'!$T$77:$Y$98,MATCH($B24,'Incremental Rev Req'!$T$77:$T$98,0),MATCH(Summary!$D$3,'Incremental Rev Req'!$T$77:$Y$77,0)) -> -10442.54165
B25: ='Incremental Rev Req'!T26 -> ECPT - Core only (Procurement) | C25: =INDEX('Incremental Rev Req'!$T$9:$Y$30,MATCH($B25,'Incremental Rev Req'!$T$9:$T$30,0),MATCH(Summary!$D$3,'Incremental Rev Req'!$T$9:$Y$9,0)) -> 10442.54165 | D25: =INDEX('Incremental Rev Req'!$T$77:$Y$98,MATCH($B25,'Incremental Rev Req'!$T$77:$T$98,0),MATCH(Summary!$D$3,'Incremental Rev Req'!$T$77:$Y$77,0)) -> 10442.54165
B26: ='Incremental Rev Req'!T27 -> 2023 GTS - Inventory Management | C26: =INDEX('Incremental Rev Req'!$T$9:$Y$30,MATCH($B26,'Incremental Rev Req'!$T$9:$T$30,0),MATCH(Summary!$D$3,'Incremental Rev Req'!$T$9:$Y$9,0)) -> -4784.20353 | D26: =INDEX('Incremental Rev Req'!$T$77:$Y$98,MATCH($B26,'Incremental Rev Req'!$T$77:$T$98,0),MATCH(Summary!$D$3,'Incremental Rev Req'!$T$77:$Y$77,0)) -> -4784.20353 | AD26: Authorized | AF26: Authorized | AG26: w/Pending
B27: ='Incremental Rev Req'!T28 -> User Defined 1 | C27: =INDEX('Incremental Rev Req'!$T$9:$Y$30,MATCH($B27,'Incremental Rev Req'!$T$9:$T$30,0),MATCH(Summary!$D$3,'Incremental Rev Req'!$T$9:$Y$9,0)) -> 0 | D27: =INDEX('Incremental Rev Req'!$T$77:$Y$98,MATCH($B27,'Incremental Rev Req'!$T$77:$T$98,0),MATCH(Summary!$D$3,'Incremental Rev Req'!$T$77:$Y$77,0)) -> 0 | G27: Revenue Split - Bundled | AD27: Bundled Revenue Change | AF27: Bundled Revenue Change
B28: ='Incremental Rev Req'!T29 -> User Defined 2 | C28: =INDEX('Incremental Rev Req'!$T$9:$Y$30,MATCH($B28,'Incremental Rev Req'!$T$9:$T$30,0),MATCH(Summary!$D$3,'Incremental Rev Req'!$T$9:$Y$9,0)) -> 0 | D28: =INDEX('Incremental Rev Req'!$T$77:$Y$98,MATCH($B28,'Incremental Rev Req'!$T$77:$T$98,0),MATCH(Summary!$D$3,'Incremental Rev Req'!$T$77:$Y$77,0)) -> 0 | G28: =G$8 -> 100% Residential | H28: =H$8 -> Core - Distribution | I28: Distribution | J28: ECPT - ALL | K28: ECPT - Core only | L28: ECPT - Noncore only | M28: ECPT - 50% Core / 50% Noncore | N28: ECPT (excludes Covered Entities 3 yr avg vol) | O28: EE | P28: ESA | Q28: PPP ECPT | R28: SGIP allocation | S28: CPUC Fee Allocation | T28: CAC Allocation | U28: Storage Allocation (Procurement) | V28: Capacity Allocation (Procurement) | W28: ECPT - Core only (Procurement) | X28: 2023 GTS - Inventory Management | Y28: User Defined 1 | Z28: User Defined 2 | AA28: User Defined 3 | AD28: Total | AE28: CARE Adj | AF28: Total | AG28: CARE Adj
B29: ='Incremental Rev Req'!T30 -> User Defined 3 | C29: =INDEX('Incremental Rev Req'!$T$9:$Y$30,MATCH($B29,'Incremental Rev Req'!$T$9:$T$30,0),MATCH(Summary!$D$3,'Incremental Rev Req'!$T$9:$Y$9,0)) -> 0 | D29: =INDEX('Incremental Rev Req'!$T$77:$Y$98,MATCH($B29,'Incremental Rev Req'!$T$77:$T$98,0),MATCH(Summary!$D$3,'Incremental Rev Req'!$T$77:$Y$77,0)) -> 0 | F29: Residential | G29: =TRANSPOSE('RRQ Allocations'!$J$5:$J$25) -> 0.8975892099 | H29: 0.8975892099 | I29: 0.8975892099 | J29: 0.8975892099 | K29: 0.8975892099 | L29: 0 | M29: 0.8975892099 | N29: 0.8975892099 | O29: 0.8975892099 | P29: 0.8975892099 | Q29: 0.8975892099 | R29: 0.8975892099 | S29: 0.8975892099 | T29: 0 | U29: 1 | V29: 1 | W29: 1 | X29: 0.8975892099 | Y29: 0 | Z29: 0 | AA29: 0 | AC29: 0.8976129238 | AD29: =SUMPRODUCT(G13:AA13,G29:AA29) -> -993.171841 | AE29: =AD29-($AC$14*AC29)+($AC$13*$AC$29) -> -963.1874938 | AF29: =SUMPRODUCT(G16:AA16,G29:AA29) -> 29270.66792 | AG29: =AF29-($AC$17*AC29)+($AC$16*$AC$29) -> 28386.97204
B30: Total | C30: =SUM(C9:C26) -> 8.731149137e-11 | D30: =SUM(D9:D26) -> 47010.50332 | F30: Total System | G30: =TRANSPOSE('RRQ Allocations'!$L$5:$L$25) -> 0.8975892099 | H30: 0.8129922905 | I30: 0.8241183829 | J30: 0.3330603292 | K30: 0.8129206965 | L30: 0 | M30: 0.4064069743 | N30: 0.4375232549 | O30: 0.5263600624 | P30: 0.8975892099 | Q30: 0.4841502206 | R30: 0.8759943223 | S30: 0.4477846123 | T30: 0 | U30: 1 | V30: 1 | W30: 1 | X30: 0.4303735794 | Y30: 0 | Z30: 0 | AA30: 0 | AC30: 0.4430039062 | AD30: =SUMPRODUCT(G14:AA14,G30:AA30) -> -465.5663952 | AE30: =AD30 -> -465.5663952 | AF30: =SUMPRODUCT(G17:X17,G30:X30) -> 35231.19095 | AG30: =AF30 -> 35231.19095
C31: =C30=HLOOKUP(Summary!$D$3,'Incremental Rev Req'!$U$9:$Y$31,23,FALSE) -> TRUE | D31: =D30=HLOOKUP(Summary!$D$3,'Incremental Rev Req'!U77:Y99,23,FALSE) -> TRUE
F32: ="Notes: Allocation and bundled/unbundled split based on "&Summary!L4&" throughput forecast" -> Notes: Allocation and bundled/unbundled split based on 2023 CARD throughput forecast
G36: Bundled | O36: System (Bundled and Transportation)
G37: =Summary!$L$4&" Throughput" -> 2023 CARD Throughput | H37: =TEXT(Summary!L3,"m/d/yyy")&" Avg Rates ($ / therm)" -> 1/1/2025 Avg Rates ($ / therm) | I37: Illustrative Proposed Avg Rates (Authorized) | J37: Illustrative Proposed Avg Rates (w/Pending) | K37: % Change (Illustrative Authorized) | L37: % Change (w/Illustrative Pending) | O37: =Summary!$L$4&" Throughput" -> 2023 CARD Throughput | P37: =H37 -> 1/1/2025 Avg Rates ($ / therm) | Q37: Illustrative Proposed Avg Rates (Authorized) | R37: Illustrative Proposed Avg Rates (w/Pending) | S37: % Change (Illustrative Authorized) | T37: % Change (w/Illustrative Pending)
F38: Residential | G38: 1495155.02 | H38: 2.78480158 | I38: =AE29/G38+H38 -> 2.784157374 | J38: =AG29/G38+H38 -> 2.803787552 | K38: =I38/H38-1 -> -0.0002313291463 | L38: =J38/H38-1 -> 0.006817711036 | N38: Residential | O38: 1665725.652 | P38: 2.472492595 | Q38: =((SUM(G13:AA13)-AC14+AC13)/O38)+P38 -> 2.471890842 | R38: =((SUM(G16:AA16)-AC17+AC16)/O38)+P38 -> 2.491521268 | S38: =Q38/P38-1 -> -0.0002433789725 | T38: =R38/P38-1 -> 0.007696149798
F39: Total System | G39: 2037614.883 | H39: 2.369465425 | I39: =AE30/G39+H39 -> 2.369236939 | J39: =AG30/G39+H39 -> 2.386755832 | K39: =I39/H39-1 -> -9.642932913e-05 | L39: =J39/H39-1 -> 0.007297176392 | N39: Total System | O39: 6116455.879 | P39: ='Authorized Rev Req'!G84/'SAR and RAR'!O39 -> 1.023547295 | Q39: =(SUM(G14:AA14)/O39)+P39 -> 1.023547295 | R39: =(SUM(G17:AA17)/O39)+P39 -> 1.031233201 | S39: =Q39/P39-1 -> 0 | T39: =R39/P39-1 -> 0.007509087047
O41: Illustrative System Rate does not include illustrative procurement for transport only customers.

Sheet Res_RD
A8: CALCULATION OF ILLUSTRATIVE RESIDENTIAL RATES WITH AUTHORIZED INCREMENTAL RRQs | R8: CALCULATION OF ILLUSTRATIVE RESIDENTIAL RATES WITH AUTHORIZED AND PENDING INCREMENTAL RRQs
B13: Authorized Pre-CARE costs allocated to residential class | C13: 3861786.757 | S13: Authorized Pre-CARE costs allocated to residential class | T13: =C13 -> 3861786.757
B14: + Authorized Incremental RRQ | C14: =SUMPRODUCT('SAR and RAR'!$G$4:$AA$4,'SAR and RAR'!$G$13:$AA$13) -> -415.8509066 | S14: + Authorized + Pending Incremental RRQ | T14: =SUMPRODUCT('SAR and RAR'!$G$4:$AA$4,'SAR and RAR'!$G$16:$AA$16) -> 33300.95343
B15: Total Pre-CARE costs allocated to residential class | C15: =SUM(C13:C14) -> 3861370.906 | S15: Total Pre-CARE costs allocated to residential class | T15: =SUM(T13:T14) -> 3895087.711
B16: Residential Tier I volumes (includes CARE) | C16: 1212738.98 | S16: Residential Tier I volumes (includes CARE) | T16: =C16 -> 1212738.98
B17: + Residential Tier II volumes (includes CARE) | C17: 453006.333 | S17: + Residential Tier II volumes (includes CARE) | T17: =C17 -> 453006.333
B18: = Total Residential Volumes (includes CARE) | C18: =C16+C17 -> 1665745.313 | S18: = Total G-10 adjusted Residential Volumes (includes CARE) | T18: =T16+T17 -> 1665745.313
B20: GCAP Decision Ratio of Tier II/Tier I Residential Rates | C20: 1.24 | S20: GCAP Decision Ratio of Tier II/Tier I Residential Rates | T20: 1.24
F22: ADD Illustrative Procurement Rate | I22: CARE Discount | W22: ADD Illustrative Procurement Rate | Z22: CARE Discount
C23: Pre-CARE Illustrative Res. Transportation Rates | F23: Current Rate | G23: Illustrative Authorized Incremental | H23: CSI - Thermal Exemption | I23: 0.2 | J23: Interim Illustrative CARE Transportation Rates | K23: CARE Transportation Volumes (mth) | L23: Illustrative CARE Transportation Discount | T23: Pre-CARE Illustrative Res. Transportation Rates | W23: Current Rate | X23: Illustrative Authorized + Illustrative Pending Incremental | Y23: CSI - Thermal Exemption | Z23: =I23 -> 0.2 | AA23: Interim Illustrative CARE Transportation Rates | AB23: CARE Transportation Volumes (mth) | AC23: Illustrative CARE Transportation Discount
B24: Illustrative Residential Tier I rates | C24: =C15/(C16+C17*C20) -> 2.176073868 | F24: 0.46694 | G24: =SUMPRODUCT('SAR and RAR'!$G$5:$AA$5,'SAR and RAR'!$G$13:$AA$13)/'SAR and RAR'!G38 -> -0.0004146115594 | H24: -0.003800628927 | I24: =SUM(C24:H24)*I23 -> 0.5277597256 | J24: =ROUND(C24+H24-I24,7) -> 1.6445135 | K24: 28277.0893 | L24: =Res_RD!I24*Res_RD!K24 -> 14923.50889 | S24: Illustrative Residential Tier I rates | T24: =T15/(T16+T17*T20) -> 2.195074959 | W24: =F24 -> 0.46694 | X24: =SUMPRODUCT('SAR and RAR'!$G$5:$AA$5,'SAR and RAR'!$G$16:$AA$16)/'SAR and RAR'!G38 -> -0.0004146115594 | Y24: =H24 -> -0.003800628927 | Z24: =SUM(T24:Y24)*Z23 -> 0.5315599436 | AA24: =ROUND(T24+Y24-Z24,7) -> 1.6597144 | AB24: =K24 -> 28277.0893 | AC24: =Res_RD!Z24*Res_RD!AB24 -> 15030.968
B25: Illustrative Residential Tier II rates | C25: =C24*C20 -> 2.698331597 | F25: =F24 -> 0.46694 | G25: =G24 -> -0.0004146115594 | H25: =H24 -> -0.003800628927 | I25: =SUM(C25:H25)*I23 -> 0.6322112713 | J25: =ROUND(C25+H25-I25,7) -> 2.0623197 | K25: 10566.05596 | L25: =Res_RD!I25*Res_RD!K25 -> 6679.979674 | S25: Illustrative Residential Tier II rates | T25: =T24*T20 -> 2.721892949 | W25: =F25 -> 0.46694 | X25: =X24 -> -0.0004146115594 | Y25: =H25 -> -0.003800628927 | Z25: =SUM(T25:Y25)*Z23 -> 0.6369235416 | AA25: =ROUND(T25+Y25-Z25,7) -> 2.0811688 | AB25: =K25 -> 10566.05596 | AC25: =Res_RD!Z25*Res_RD!AB25 -> 6729.769786
B26: Average | C26: =SUMPRODUCT($C$16:$C$17,C$24:C$25)/$C$18 -> 2.318104019 | F26: =SUMPRODUCT($C$16:$C$17,F$24:F$25)/$C$18 -> 0.46694 | G26: =SUMPRODUCT($C$16:$C$17,G$24:G$25)/$C$18 -> -0.0004146115594 | H26: =H24 -> -0.003800628927 | I26: =SUMPRODUCT($C$16:$C$17,I$24:I$25)/$C$18 -> 0.5561657558 | J26: =SUMPRODUCT($C$16:$C$17,J$24:J$25)/$C$18 -> 1.758137626 | K26: =Res_RD!K24+Res_RD!K25 -> 38843.14527 | L26: =Res_RD!L24+Res_RD!L25 -> 21603.48856 | S26: Average | T26: =SUMPRODUCT($T$16:$T$17,$T$24:$T$25)/$T$18 -> 2.338345292 | W26: =SUMPRODUCT($T$16:$T$17,$W$24:$W$25)/$T$18 -> 0.46694 | X26: =SUMPRODUCT($T$16:$T$17,$X$24:$X$25)/$T$18 -> -0.0004146115594 | Y26: =Y24 -> -0.003800628927 | Z26: =SUMPRODUCT($T$16:$T$17,$Z$24:$Z$25)/$T$18 -> 0.5602140102 | AA26: =SUMPRODUCT($T$16:$T$17,$AA$24:$AA$25)/$T$18 -> 1.774330669 | AB26: =Res_RD!AB24+Res_RD!AB25 -> 38843.14527 | AC26: =Res_RD!AC24+Res_RD!AC25 -> 21760.73778
C27: =C26=C15/C18 -> TRUE
B29: CALCULATION OF ILLUSTRATIVE CARE SUBSIDY | C29: Pre-CARE Illustrative Residential Transportation | F29: Illustrative Interim Bundled CARE Rates | G29: CARE | H29: CARE Bundled | I29: Illustrative CARE Bundled | J29: Illustrative CARE Transportation | K29: Total Illustrative CARE | L29: Current CARE | M29: Illustrative Incremental CARE | N29: Total Throughput Eligible for Recovery of CARE Discount | O29: Incremental Illustrative PPP Rates due to Change in CARE Discount | S29: CALCULATION OF ILLUSTRATIVE CARE SUBSIDY | T29: Pre-CARE Illustrative Residential Transportation | W29: Illustrative Interim Bundled CARE Rates | X29: CARE | Y29: CARE Bundled | Z29: Illustrative CARE Bundled | AA29: Illustrative CARE Transportation | AB29: Total Illustrative CARE | AC29: Current CARE | AD29: Illustrative Incremental CARE | AE29: Total Throughput Eligible for Recovery of CARE Discount | AF29: Illustrative Incremental PPP Rates due to Change in CARE Discount
C30: Rates | F30: ="(w/"&I23*100&"% discount)" -> (w/20% discount) | G30: ="Discount ("&I23*100&"%)" -> Discount (20%) | H30: Volumes (mth) | I30: Discount | J30: Discount | K30: Discount | L30: Discount | M30: Discount | T30: Rates | W30: ="(w/"&Z23*100&"% discount)" -> (w/20% discount) | X30: ="Discount ("&Z23*100&"%)" -> Discount (20%) | Y30: Volumes (mth) | Z30: Discount | AA30: Discount | AB30: Discount | AC30: Discount | AD30: Discount
C31: =Res_RD!C24 -> 2.176073868 | F31: =ROUND((Res_RD!C24+H24+F24+G24)*(1-$I$23),20) -> 2.111038902 | G31: =SUM(C24:H24)-F31 -> 0.5277597256 | H31: 247927.086 | I31: =Res_RD!H31*Res_RD!G31 -> 130845.9309 | J31: =Res_RD!L24 -> 14923.50889 | K31: =SUM(I31:J31) -> 145769.4398 | O31: =O33 -> -1.322477777e-05 | T31: =Res_RD!T24 -> 2.195074959 | W31: =ROUND((Res_RD!T24+Y24+W24+X24)*(1-$Z$23),20) -> 2.126239775 | X31: =SUM(T24:Y24)-W31 -> 0.5315599436 | Y31: =H31 -> 247927.086 | Z31: =Res_RD!Y31*Res_RD!X31 -> 131788.1079 | AA31: =Res_RD!AC24 -> 15030.968 | AB31: =SUM(Z31:AA31) -> 146819.0759 | AF31: =AF33 -> 0.0003897594177
C32: =Res_RD!C25 -> 2.698331597 | F32: =ROUND((Res_RD!C25+H25+F25+G25)*(1-$I$23),20) -> 2.528845085 | G32: =SUM(C25:H25)-F32 -> 0.6322112713 | H32: 92607.20938 | I32: =Res_RD!H32*Res_RD!G32 -> 58547.32157 | J32: =Res_RD!L25 -> 6679.979674 | K32: =SUM(I32:J32) -> 65227.30125 | O32: =O33 -> -1.322477777e-05 | T32: =Res_RD!T25 -> 2.721892949 | W32: =ROUND((Res_RD!T25+Y25+W25+X25)*(1-$Z$23),20) -> 2.547694167 | X32: =SUM(T25:Y25)-W32 -> 0.6369235416 | Y32: =H32 -> 92607.20938 | Z32: =Res_RD!Y32*Res_RD!X32 -> 58983.71178 | AA32: =Res_RD!AC25 -> 6729.769786 | AB32: =SUM(Z32:AA32) -> 65713.48157 | AF32: =AF33 -> 0.0003897594177
B33: Total | H33: =Res_RD!H31+Res_RD!H32 -> 340534.2954 | I33: =Res_RD!I31+Res_RD!I32 -> 189393.2525 | J33: =Res_RD!J31+Res_RD!J32 -> 21603.48856 | K33: =Res_RD!K31+Res_RD!K32 -> 210996.741 | L33: 211047.1421 | M33: =K33-L33 -> -50.40106025 | N33: 3811108.294 | O33: =M33/N33 -> -1.322477777e-05 | S33: Total | Y33: =Res_RD!Y31+Res_RD!Y32 -> 340534.2954 | Z33: =Res_RD!Z31+Res_RD!Z32 -> 190771.8196 | AA33: =Res_RD!AA31+Res_RD!AA32 -> 21760.73778 | AB33: =Res_RD!AB31+Res_RD!AB32 -> 212532.5574 | AC33: =L33 -> 211047.1421 | AD33: =AB33-AC33 -> 1485.41535 | AE33: 3811108.294 | AF33: =AD33/AE33 -> 0.0003897594177
B35: CALCULATION OF FINAL ILLUSTRATIVE RESIDENTIAL NON-CARE RATES | R35: CALCULATION OF FINAL ILLUSTRATIVE RESIDENTIAL NON-CARE RATES
B37: Post-CARE costs allocated to residential class | C37: =C13*C$42/C$18 -> 2982255.676 | S37: Post-CARE costs allocated to residential class | T37: =T13*T$42/T$18 -> 2982255.676
B38: + Authorized Incremental RRQ | C38: =C14*C$42/C$18 -> -321.1398776 | S38: + Authorized Incremental RRQ | T38: =T14*T$42/T$18 -> 25716.58241
B39: = Total Post-CARE costs allocated to residential class | C39: =SUM(C37:C38) -> 2981934.536 | S39: = Total Post-CARE costs allocated to residential class | T39: =SUM(T37:T38) -> 3007972.259
B40: Residential Tier I volumes (non-CARE) | C40: 912260.0656 | S40: Residential Tier I volumes (non-CARE) | T40: =C40 -> 912260.0656
B41: + Residential Tier II volumes (non-CARE) | C41: 374107.8071 | S41: + Residential Tier II volumes (non-CARE) | T41: =C41 -> 374107.8071
B42: Total Residential Volumes (Non-CARE) | C42: =SUM(C40:C41) -> 1286367.873 | S42: Total Residential Volumes (Non-CARE) | T42: =SUM(T40:T41) -> 1286367.873
B44: GCAP Decision Ratio of Tier II/Tier I Residential Transportation Rates | C44: =C20 -> 1.24 | S44: GCAP Decision Ratio of Tier II/Tier I Residential Transportation Rates | T44: =T20 -> 1.24
D46: Current Minimum | U46: Current Minimum
C47: Non-CARE | D47: Monthly Transporation | E47: Post-MMTC | F47: Residential Procurement Rate | H47: Non-CARE | J47: Authorized | K47: Recovery of | T47: Non-CARE | U47: Monthly Transporation | V47: Post-MMTC | W47: Residential Procurement Rate | Y47: Non-CARE | AA47: Illustrative Authorized + | AB47: Recovery of
C48: Illustrative Residential Transportation | D48: Charge (MMTC) adjustment | E48: Illustrative Non-CARE Res Transporation | F48: Current Rate | G48: Authorized Illustrative Incremental Rate | H48: Illustrative Bundled Rate | I48: Current PPP Rate | J48: Illustrative Incremental PPP Rate | K48: Illustrative Incremental CARE Discount | L48: Total Illustrative Non-CARE Bundled Rate | T48: Illustrative Residential Transportation | U48: Charge (MMTC) adjustment | V48: Illustrative Non-CARE Res Transporation | W48: Current Rate | X48: Illustrative Authorized + Illustrative Pending Incremental | Y48: Illustrative Bundled Rate | Z48: Current PPP Rate | AA48: Pending Illustrative Incremental PPP Rate | AB48: Illustrative Incremental CARE Discount | AC48: Total Illustrative Non-CARE Bundled Rate
B49: Illustrative Residential Tier I rates | C49: =C39/(C40+C41*C44) -> 2.166861475 | D49: 0.006583454126 | E49: =C49-D49 -> 2.16027802 | F49: =F24 -> 0.46694 | G49: =G24 -> -0.0004146115594 | H49: =E49+SUM(F49:G49) -> 2.626803409 | I49: 0.14324 | J49: =SUMPRODUCT('SAR and RAR'!$G$3:$AA$3,'SAR and RAR'!$G$13:$AA$13)/C18 -> 0 | K49: =O33 -> -1.322477777e-05 | L49: =SUM(H49:K49) -> 2.770030184 | S49: Illustrative Residential Tier I rates | T49: =T39/(T40+T41*T44) -> 2.185782124 | U49: =D49 -> 0.006583454126 | V49: =T49-U49 -> 2.17919867 | W49: =W24 -> 0.46694 | X49: =X24 -> -0.0004146115594 | Y49: =V49+SUM(W49:X49) -> 2.645724058 | Z49: =I49 -> 0.14324 | AA49: =SUMPRODUCT('SAR and RAR'!$G$3:$AA$3,'SAR and RAR'!$G$16:$AA$16)/T18 -> 0 | AB49: =AF31 -> 0.0003897594177 | AC49: =SUM(Y49:AB49) -> 2.789353818
B50: Illustrative Residential Tier II rates | C50: =C49*C44 -> 2.686908229 | D50: 0 | E50: =C50-D50 -> 2.686908229 | F50: =F25 -> 0.46694 | G50: =G25 -> -0.0004146115594 | H50: =E50+SUM(F50:G50) -> 3.153433617 | I50: =I49 -> 0.14324 | J50: =J49 -> 0 | K50: =O33 -> -1.322477777e-05 | L50: =SUM(H50:K50) -> 3.296660392 | S50: Illustrative Residential Tier II rates | T50: =T49*T44 -> 2.710369834 | U50: =D50 -> 0 | V50: =T50-U50 -> 2.710369834 | W50: =W25 -> 0.46694 | X50: =X25 -> -0.0004146115594 | Y50: =V50+SUM(W50:X50) -> 3.176895222 | Z50: =I50 -> 0.14324 | AA50: =AA49 -> 0 | AB50: =AF32 -> 0.0003897594177 | AC50: =SUM(Y50:AB50) -> 3.320524981
B51: Avg. Illustrative Non-CARE Residential Rate (Bundled & Transportation-only) | C51: =(($C$40*C49)+($C$41*C50))/$C$42 -> 2.318104019 | D51: =(($C$40*D49)+($C$41*D50))/$C$42 -> 0.004668821743 | E51: =(($C$40*E49)+($C$41*E50))/$C$42 -> 2.313435198 | F51: =SUMPRODUCT($C$40:$C$41,F$49:F$50)/$C$42 -> 0.46694 | G51: =SUMPRODUCT($C$40:$C$41,$G$49:$G$50)/$C$42 -> -0.0004146115594 | H51: =SUMPRODUCT($C$40:$C$41,$H$49:$H$50)/$C$42 -> 2.779960586 | I51: =SUMPRODUCT($C$40:$C$41,$I$49:$I$50)/$C$42 -> 0.14324 | J51: =J49 -> 0 | K51: =SUMPRODUCT($C$40:$C$41,$K$49:$K$50)/$C$42 -> -1.322477777e-05 | L51: =SUM(H51:K51) -> 2.923187361 | S51: Avg. Illustrative Non-CARE Residential Rate (Bundled & Transportation-only) | T51: =(($T$40*T49)+($T$41*T50))/$T$42 -> 2.338345292 | U51: =(($T$40*U49)+($T$41*U50))/$T$42 -> 0.004668821743 | V51: =(($T$40*V49)+($T$41*V50))/$T$42 -> 2.33367647 | W51: =SUMPRODUCT($T$40:$T$41,$W$49:$W$50)/$T$42 -> 0.46694 | X51: =SUMPRODUCT($T$40:$T$41,$X$49:$X$50)/$T$42 -> -0.0004146115594 | Y51: =(($T$40*Y49)+($T$41*Y50))/$T$42 -> 2.800201858 | Z51: =I51 -> 0.14324 | AA51: =AA49 -> 0 | AB51: =AF33 -> 0.0003897594177 | AC51: =SUM(Y51:AB51) -> 2.943831618
H52: =H50/H49 -> 1.200483297 | I52: <=Macro sets this cell equal to | J52: 1.2 | Y52: =Y50/Y49 -> 1.200765897 | Z52: <=Macro sets this cell equal to | AA52: =IF(Summary!$D$3=2024,1.249,1.2) -> 1.2
I53: by changing the value in cell C20 | Z53: by changing the value in cell T20
B56: CALCULATION OF FINAL ILLUSTRATIVE RESIDENTIAL CARE RATES | R56: CALCULATION OF FINAL ILLUSTRATIVE RESIDENTIAL CARE RATES
C58: Non-CARE | D58: CSI - Thermal | E58: CARE | G58: Illustrative Authorized | T58: Non-CARE | U58: CSI - Thermal | V58: CARE | X58: Illustrative Authorized+Illustrative Pending
C59: Illustrative Bundled | D59: Exemption | E59: Illustrative Bundled | F59: Current CARE PPP | G59: Incremental PPP | H59: Total Illustrative CARE | T59: Illustrative Bundled | U59: Exemption | V59: Illustrative Bundled | W59: Current CARE PPP | X59: Incremental PPP | Y59: Total Illustrative CARE
C60: Rate | E60: Rate | F60: Rate | G60: Rate | H60: Bundled Rate | T60: Rate | V60: Rate | W60: Rate | X60: Rate | Y60: Bundled Rate
B61: Illustrative Residential Tier I rates | C61: =H49 -> 2.626803409 | D61: =H24 -> -0.003800628927 | E61: =SUM(C61:D61)*(1-$I$23) -> 2.098402224 | F61: 0.08425 | G61: =J49 -> 0 | H61: =E61+F61+G61 -> 2.182652224 | S61: Illustrative Residential Tier I rates | T61: =Y49 -> 2.645724058 | U61: =Y24 -> -0.003800628927 | V61: =SUM(T61:U61)*(1-$Z$23) -> 2.113538743 | W61: =F61 -> 0.08425 | X61: =AA49 -> 0 | Y61: =V61+W61+X61 -> 2.197788743
B62: Illustrative Residential Tier II rates | C62: =H50 -> 3.153433617 | D62: =H25 -> -0.003800628927 | E62: =SUM(C62:D62)*(1-$I$23) -> 2.51970639 | F62: =F61 -> 0.08425 | G62: =G61 -> 0 | H62: =E62+F62+G62 -> 2.60395639 | S62: Illustrative Residential Tier II rates | T62: =Y50 -> 3.176895222 | U62: =Y25 -> -0.003800628927 | V62: =SUM(T62:U62)*(1-$Z$23) -> 2.538475674 | W62: =W61 -> 0.08425 | X62: =X61 -> 0 | Y62: =V62+W62+X62 -> 2.622725674
B63: Avg. Illustrative CARE Residential Rate | C63: =H51 -> 2.779960586 | D63: =H26 -> -0.003800628927 | E63: =SUMPRODUCT($H$31:$H$32,E$61:E$62)/$H$33 -> 2.212974541 | F63: =F62 -> 0.08425 | G63: =G61 -> 0 | H63: =SUMPRODUCT($H$31:$H$32,H$61:H$62)/$H$33 -> 2.297224541 | S63: Avg. Illustrative CARE Residential Rate | T63: =Y51 -> 2.800201858 | U63: =Y26 -> -0.003800628927 | V63: =SUMPRODUCT($Y$31:$Y$32,V$61:V$62)/$Y$33 -> 2.229098979 | W63: =W62 -> 0.08425 | X63: =X61 -> 0 | Y63: =SUMPRODUCT($Y$31:$Y$32,Y$61:Y$62)/$Y$33 -> 2.313348979

Sheet Instructions-Hypothetical
A1: INSTRUCTIONS TO RUN "HYPOTHETICAL" MODEL
A2: CLICK HERE FOR INSTRUCTIONS ON VALIDATING AGAINST BILL INSERT
B5: The "hypothetical" portion of this model produces illustrative rates and illustrative residential bill calculations based on selected user inputs.
B6: PLEASE DO NOT INSERT ROWS OR COLUMNS INTO THE SUMMARY
B7: To run the "hypothetical" portion of the model:
B9: 1. | C9: User drop down selections are highlighted in green.
B10: 2. | C10: User value input cells are highlighted in yellow.
B11: 3. | C11: In cell D4 of the "Hypothetical Summary" tab, select, from the dropdown choices, the baseline territory for which illustrative bill impacts are desired.
B12: 4. | C12: Select the "Residential Tier Ratio" in the green highlighted cells G7 of the "Hypothetical Summary" tab.
C13: Authorized tier ratios (D.19-10-036, Ordering Paragraph 4) are listed by year in the table below OR the user may enter their own desired tier ratio.
D14: For 2025 revenues | E14: . | F14: . | G14: =Instructions!G16 -> 1.20 (Note that the initial tiering factor for 2025 has been set at 1.24 therefore the factor for 2025 will remain at the already established value)
D15: For 2026 + revenues | E15: . | F15: . | G15: 1.2
B16: 5. | C16: Enter the "hypothetical" revenues, by program, in the yellow highlighted cells in column F of the "Hypothetical Summary" tab.
B17: 6. | C17: In column I of the "Hypothetical Summary" tab, select from the dropdown choices, the desired allocation methodology.
C18: Note that PG&E's proposed allocation methdology is listed in column H of the "Hypothetical Summary" tab.
C19: Also note that there are three opportunities for the user to enter their own Allocation Methodology on the "RRQ Allocations" tab (ILLUSTRATION 2)
C20: and as described under the "RRQ ALLOCATION OPTIONS" section on the "Instruction" tab.
B21: 7. | C21: Create hypothetical illustrative tiered residential rates by executing the "Run Hypothetical Residential Rate Tiering" macro (ILLUSTRATION 1).
C24: ILLUSTRATION 1: | P24: 7.
H25: 3. | K25: 5. | M25: 4. | Q25: 6.
B44: RRQ ALLOCATION OPTIONS:
B45: 1. | C45: On the "RRQ Allocations" tab there are 4 spaces for the user to enter their own allocation methodology (ILLUSTRATION 2).
C46: NOTE that this tab has not been fully populated by PG&E.
C48: ILLUSTRATION 2
A90: VALIDATING THE RESULTS OF THE ILLUSTRATIVE "TYPICAL CUSTOMER" BILL AGAINST A BILL INSERT
B92: 1. | C92: The model is set up to accept separate "typical" therms for Non-CARE and CARE customers. (See screenshot below, yellow highlights.)
B93: 2. | C93: Ensure that the therms entered in the model match the therms used in the bill insert.
B94: 3. | C94: Ensure that only the revenue requirement being evaluated is included in the impact. (See step 5 above.)
B95: 4. | C95: Run the model as described in the instructions above.

Sheet Hypothetical Summary
B1: PLEASE DO NOT INSERT ROWS OR COLUMNS
B2: User Inputs: | C2: Yellow highlighted cells - enter value
C3: Green highlighted cells - select from drop-down menu
F6: Year (informational only) | G6: =IF(Hypothetical_Tier_Ratio=1.24,2025, "2026 or later") -> 2025 | K6: Assumptions:
F7: Residential Tier Ratio | K7: Current Effective Rates | M7: =Summary!L3 -> 2025-01-01
C8: Baseline Region - (Residential bill) | D8: ALL CLIMATE ZONES | F8: (See Instructions-Hypothetical) | G8: 1.24 | K8: Throughput Forecast | M8: =Summary!L4 -> 2023 CARD
K9: Illustrative Residential bill calculated using | M9: =Summary!L5 -> Schedule G-1, Basic, Single Family | N9: =Summary!M5 -> 0 | O9: =Summary!N5 -> 0
D10: Current | E10: PG&E Requested | G10: Incremental | H10: Adopted or Proposed Allocation | I10: Hypothetical Allocation | K10: Illustrative Non-CARE bill impact calculated with average summer usage of | O10: =VLOOKUP('Hypothetical Summary'!$D$8,'Hypothetical Res Bill Impact'!$P$22:$V$31,2,FALSE) -> 16.89719192 | P10: therms per month
D11: Authorized | E11: Revenue * | F11: Hypothetical | G11: Hypothetical | H11: Methodology | I11: Methodology | K11: Illustrative Non-CARE bill impact calculated with average winter off-peak usage of | O11: =VLOOKUP('Hypothetical Summary'!$D$8,'Hypothetical Res Bill Impact'!$P$22:$V$31,3,FALSE) -> 41.9940592 | P11: therms per month
B12: Pending Proceedings | D12: Revenue | E12: (Informational Only) | F12: Revenue | G12: Revenue | H12: (Informational Only) | I12: (Select from drop down menu) | K12: Illustrative Non-CARE bill impact calculated with average winter on-peak usage of | O12: =VLOOKUP('Hypothetical Summary'!$D$8,'Hypothetical Res Bill Impact'!$P$22:$V$31,4,FALSE) -> 55.57948411 | P12: therms per month
B13: =Summary!B9 -> Pension (Distribution) | D13: ='Incremental Rev Req'!$D$12 -> 37805.84365 | E13: =MAX('Incremental Rev Req'!G79:K79) -> 42969.37257 | F13: 42969.37257 | G13: =IF(F13=0,0,F13-D13) -> 5163.528925 | H13: =IF('Incremental Rev Req'!E82=0," ",'Incremental Rev Req'!E82) -> Distribution | I13: Distribution | K13: Illustrative CARE bill impact calculated with average summer usage of | O13: =VLOOKUP('Hypothetical Summary'!$D$8,'Hypothetical Res Bill Impact'!$P$22:$V$31,5,FALSE) -> 16.79360126 | P13: therms per month
B14: =Summary!B10 -> Pension (ECPT) | D14: =SUM('Incremental Rev Req'!$D$13:$D$15) -> 18018.74025 | E14: =MAX('Incremental Rev Req'!G80:K80) -> 20479.74303 | F14: 20479.74303 | G14: =IF(F14=0,0,F14-D14) -> 2461.002784 | H14: =IF('Incremental Rev Req'!E83=0," ",'Incremental Rev Req'!E83) -> ECPT | I14: ECPT - ALL | K14: Illustrative CARE bill impact calculated with average winter off-peak usage of | O14: =VLOOKUP('Hypothetical Summary'!$D$8,'Hypothetical Res Bill Impact'!$P$22:$V$31,6,FALSE) -> 35.63957831 | P14: therms per month
B15: =Summary!B11 -> Hinkley Upgrade | D15: 0 | E15: =MAX('Incremental Rev Req'!G81:K81) -> 8890.201242 | F15: 8890.201242 | G15: =IF(F15=0,0,F15-D15) -> 8890.201242 | H15: =IF('Incremental Rev Req'!E85=0," ",'Incremental Rev Req'!E85) -> ECPT | I15: ECPT - ALL | K15: Illustrative CARE bill impact calculated with average winter on-peak usage of | O15: =VLOOKUP('Hypothetical Summary'!$D$8,'Hypothetical Res Bill Impact'!$P$22:$V$31,7,FALSE) -> 46.97823559 | P15: therms per month
B16: =Summary!B12 -> Billing Modernization (Distribution) | D16: 0 | E16: =MAX('Incremental Rev Req'!G82:K82) -> 18712.17383 | F16: 18712.17383 | G16: 18712.17383 | H16: =IF('Incremental Rev Req'!E86=0," ",'Incremental Rev Req'!E86) -> Distribution | I16: Distribution | K16: Average monthly usage is for all customers (Non-CARE and CARE) based on seasonal usage in | Q16: =Summary!P12 -> 2024
B17: =Summary!B13 -> Billing Modernization (Transmission) | D17: 0 | E17: =MAX('Incremental Rev Req'!G83:K83) -> 8918.457231 | F17: 8918.457231 | G17: =IF(F17=0,0,F17-D17) -> 8918.457231 | H17: =IF('Incremental Rev Req'!E87=0," ",'Incremental Rev Req'!E87) -> ECPT | I17: ECPT - ALL | K17: Summer Season | M17: =Summary!L13 -> 7 | N17: months
B18: =Summary!B14 -> Hydrogen Demonstration Project (2027) | D18: 0 | E18: =MAX('Incremental Rev Req'!G85:K85) -> 10534.09292 | F18: 10534.09292 | G18: =IF(F18=0,0,F18-D18) -> 10534.09292 | H18: =IF('Incremental Rev Req'!E90=0," ",'Incremental Rev Req'!E90) -> Distribution | I18: Distribution | K18: Winter Season Off-peak | M18: =Summary!L14 -> 3 | N18: months
B19: =Summary!B15 -> 2024 Wildfire Mitigation and Catastrophic Events (distribution) | D19: 0 | E19: =MAX('Incremental Rev Req'!G86:K86) -> 65537.65441 | F19: 65537.65441 | G19: =IF(F19=0,0,F19-D19) -> 65537.65441 | H19: =IF('Incremental Rev Req'!E91=0," ",'Incremental Rev Req'!E91) -> ECPT | I19: ECPT - ALL | K19: Winter Season On-peak | M19: =Summary!L15 -> 2 | N19: months
B20: =Summary!B16 -> 2024 Wildfire Mitigation and Catastrophic Events (transmission) | D20: 0 | E20: =MAX('Incremental Rev Req'!G87:K87) -> 6579.378757 | F20: 6579.378757 | G20: 6579.378757 | H20: =IF('Incremental Rev Req'!E92=0," ",'Incremental Rev Req'!E92) -> Distribution | I20: Distribution | K20: Typical Non-CARE Residential Customer usage | M20: 33 | N20: therms per month
B21: =Summary!B17 -> 2026 Cost of Capital (Distribution) | D21: 0 | E21: =MAX('Incremental Rev Req'!G88:K88) -> 111625.7848 | F21: 111625.7848 | G21: 111625.7848 | H21: =IF('Incremental Rev Req'!E93=0," ",'Incremental Rev Req'!E93) -> ECPT | I21: ECPT - ALL | K21: Typical CARE Residential Customer usage | M21: 29 | N21: therms per month
B22: =Summary!B18 -> 2026 Cost of Capital (Transmission) | D22: 0 | E22: =MAX('Incremental Rev Req'!G89:K89) -> 84230.76028 | F22: 84230.76028 | G22: 84230.76028 | H22: =IF('Incremental Rev Req'!E94=0," ",'Incremental Rev Req'!E94) -> Distribution | I22: Distribution | K22: Residential CARE Customers as Percent of Total Residential Customers | O22: 0.2272147033
B23: =Summary!B19 -> Gas Advanced Metering Infrastructure (AMI) (distribution) - August 2025 | D23: 0 | E23: =MAX('Incremental Rev Req'!G90:K90) -> 20174.43905 | F23: 20174.43905 | G23: 20174.43905 | H23: =IF('Incremental Rev Req'!E95=0," ",'Incremental Rev Req'!E95) -> ECPT | I23: ECPT - ALL | K23: Historic California Climate Credit | M23: 85.45951368
B24: =Summary!B20 -> Gas AMI (transmission) -August 2025 | D24: 0 | E24: =MAX('Incremental Rev Req'!G91:K91) -> 4201.576536 | F24: 4201.576536 | G24: 4201.576536 | H24: =IF('Incremental Rev Req'!E96=0," ",'Incremental Rev Req'!E96) -> Distribution | I24: Distribution | K24: Present California Climate Credit | M24: 67.03190755
B25: =Summary!B21 -> 2023 Wildfire Mitigation and Catastrophic Events (distribution) | D25: 0 | E25: =MAX('Incremental Rev Req'!G92:K92) -> 13644.27962 | F25: 13644.27962 | G25: =IF(F25=0,0,F25-D25) -> 13644.27962 | H25: =IF('Incremental Rev Req'!E97=0," ",'Incremental Rev Req'!E97) -> Distribution | I25: Distribution
B26: =Summary!B22 -> 2023 Wildfire Mitigation and Catastrophic Events (transmission) | D26: 0 | E26: =MAX('Incremental Rev Req'!G93:K93) -> 5913.522951 | F26: 5913.522951 | G26: =IF(F26=0,0,F26-D26) -> 5913.522951 | H26: =IF('Incremental Rev Req'!E98=0," ",'Incremental Rev Req'!E98) -> ECPT | I26: ECPT - ALL
B27: =Summary!B23 -> Wildfire Gas and Safety Costs (Distribution) Non-IRR | D27: 0 | E27: =MAX('Incremental Rev Req'!G94:K94) -> 6776.716441 | F27: 6776.716441 | G27: =IF(F27=0,0,F27-D27) -> 6776.716441 | H27: =IF('Incremental Rev Req'!E99=0," ",'Incremental Rev Req'!E99) -> Distribution | I27: Distribution
B28: =Summary!B24 -> Wildfire Gas and Safety Costs (Transmission) - Non IRR | D28: 0 | E28: =MAX('Incremental Rev Req'!G95:K95) -> 44029.8428 | F28: 44029.8428 | G28: 44029.8428 | H28: ECPT | I28: ECPT - ALL
B29: =Summary!B25 -> 2022 Wildfire Mitigation and Catastrophic Events - August 2025 | D29: 0 | E29: =MAX('Incremental Rev Req'!G96:K96) -> 16214.97009 | F29: 16214.97009 | G29: 16214.97009 | H29: Distribution | I29: Distribution
B30: =Summary!B26 -> TRRRMA (Distribution) | D30: 0 | E30: =MAX('Incremental Rev Req'!G97:K97) -> 104444.3954 | F30: 104444.3954 | G30: 104444.3954 | H30: Distribution | I30: Distribution
B31: =Summary!B27 -> TRRRMA (Transmission) | D31: 0 | E31: =MAX('Incremental Rev Req'!G98:K98) -> 47177.48763 | F31: 47177.48763 | G31: 47177.48763 | H31: ECPT | I31: ECPT - ALL
B32: =Summary!B28 -> 2027 GRC - Gas Distribution | D32: ='Incremental Rev Req'!$I$10 -> 3004265.37 | E32: =MAX('Incremental Rev Req'!G99:K99) -> 3389414.767 | F32: 3389414.767 | G32: =IF(F32=0,0,F32-D32) -> 385149.3971 | H32: Distribution | I32: Distribution
B33: =Summary!B29 -> 2027 GRC - Core Local Transmission | D33: ='Incremental Rev Req'!$I$19 -> 983371.3849 | E33: =MAX('Incremental Rev Req'!G100:K100) -> 1173368.345 | F33: 1173368.345 | G33: 189996.9603 | H33: ECPT | I33: ECPT - Core only
B34: =Summary!B30 -> 2027 GRC - Core Procurement (Intrastate Volumetric and Capacity) | D34: ='Incremental Rev Req'!$I$51 -> 196211.9165 | E34: =MAX('Incremental Rev Req'!G101:K101) -> 162779.9119 | F34: 162779.9119 | G34: -33432.00467 | H34: ECPT (No BB) | I34: ECPT - Core only (Procurement)
B35: =Summary!B31 -> 2027 GRC - Core Procurement (Storage) | D35: ='Incremental Rev Req'!$I$53 -> 83736.79328 | E35: =MAX('Incremental Rev Req'!G102:K102) -> 39767.86767 | F35: 39767.86767 | G35: -43968.92561 | H35: Unadjusted Cold Year Winter Season | I35: Storage Allocation (Procurement)
B36: =Summary!B32 -> 2027 GRC - Noncore Local Transmission | D36: ='Incremental Rev Req'!$I$20 -> 515826.5045 | E36: =MAX('Incremental Rev Req'!G103:K103) -> 615905.9866 | F36: 615905.9866 | G36: 100079.4821 | H36: ECPT (No BB) | I36: ECPT - Noncore only
B37: =Summary!B33 -> 2027 GRC - Customer Access Charge | D37: ='Incremental Rev Req'!$I$21 -> 5465.240945 | E37: =MAX('Incremental Rev Req'!G104:K104) -> 4634.982782 | F37: 4634.982782 | G37: -830.2581629 | H37: CAC Allocation | I37: CAC Allocation
B38: =Summary!B34 -> 2027 GRC - Noncore Unbundled | D38: ='Incremental Rev Req'!$I$22 -> 263208.0005 | E38: =MAX('Incremental Rev Req'!G105:K105) -> 213949.2198 | F38: 213949.2198 | G38: -49258.78074 | H38: ECPT-All | I38: ECPT - ALL
B39: =Summary!B35 -> 2027 GRC - Inventory Management | D39: ='Incremental Rev Req'!$I$23 -> 143704.047 | E39: =MAX('Incremental Rev Req'!G106:K106) -> 161064.4679 | F39: 161064.4679 | G39: 17360.42093 | H39: 2023 GTS - Inventory Management | I39: 2023 GTS - Inventory Management
B40: CFCA - NGSS Enduser Dist. Sub Acct Recovery | D40: ='Incremental Rev Req'!I64 -> 2051.460825 | E40: =MAX('Incremental Rev Req'!G107:K107) -> 0 | F40: 0 | G40: =IF(F40=0,0,F40-D40) -> 0 | H40: Core - Distribution | I40: Core - Distribution
B41: CFCA/NCA - NGSS Enduser Sub Acct Recovery | D41: ='Incremental Rev Req'!I65 -> 487.8206422 | E41: =MAX('Incremental Rev Req'!G108:K108) -> 0 | F41: 0 | G41: 0 | H41: ECPT - ALL | I41: ECPT - ALL
B42: NCA - NGSS Enduser Sub Acct Recovery | D42: ='Incremental Rev Req'!I66 -> 501.0158178 | E42: =MAX('Incremental Rev Req'!G109:K109) -> 0 | F42: 0 | G42: 0 | H42: ECPT - Noncore only | I42: ECPT - Noncore only
B44: * For applications with revenues in multiple years, the highest year revenue is reflected here.
B46: Outputs:
D47: (A) | E47: (B) | F47: (C) | G47: (C)/(A) | H47: (C)/(B) | N47: (A) | O47: (B) | P47: (C) | Q47: (C)/(A) | R47: (C)/(B)
B48: Illustrative Bundled Average Rates - $ / therm | L48: Illustrative Total System (Bundled + Unbundled) Average Rates - $ / therm
B49: Customer Group | D49: =Summary!D44 -> 2024-01-01 | E49: =$M$7 -> 2025-01-01 | F49: Illustrative Proposed | G49: ="% Change over "&TEXT($D$49,"mm/d/yyyy") -> % Change over 01/1/2024 | H49: ="% Change over "&TEXT($M$7,"mm/d/yyyy") -> % Change over 01/1/2025 | L49: Customer Group | N49: =D49 -> 2024-01-01 | O49: =E49 -> 2025-01-01 | P49: =F49 -> Illustrative Proposed | Q49: =G49 -> % Change over 01/1/2024 | R49: =H49 -> % Change over 01/1/2025
B50: Residential | D50: =Summary!D45 -> 2.284761126 | E50: =Summary!E45 -> 2.78480158 | F50: ='Hypothetical SAR and RAR'!I38 -> 3.165135648 | G50: =$F50/D50-1 -> 0.3853245362 | H50: =$F50/E50-1 -> 0.1365749254 | L50: Residential (RAR) | N50: =Summary!N45 -> 2.196579023 | O50: =Summary!O45 -> 2.472492595 | P50: ='Hypothetical SAR and RAR'!O38 -> 2.856895335 | Q50: =$P50/N50-1 -> 0.3006112257 | R50: =$P50/O50-1 -> 0.155471746
B51: System | D51: =Summary!D46 -> 2.150627635 | E51: =Summary!E46 -> 2.369465425 | F51: ='Hypothetical SAR and RAR'!I39 -> 2.719519139 | G51: =$F51/D51-1 -> 0.2645234791 | H51: =$F51/E51-1 -> 0.1477353123 | L51: System (SAR) | N51: =Summary!N46 -> 1.023313174 | O51: =Summary!O46 -> 1.023547295 | P51: ='Hypothetical SAR and RAR'!O39 -> 1.211618063 | Q51: =$P51/N51-1 -> 0.1840149179 | R51: =$P51/O51-1 -> 0.183744092
L53: Illustrative System Rate does not include illustrative procurement for transport only customers.
B54: =CONCATENATE("Illustrative Bundled Residential Monthly Average Bills - Baseline Territory ",$D$8," (Includes Climate Credit)") -> Illustrative Bundled Residential Monthly Average Bills - Baseline Territory ALL CLIMATE ZONES (Includes Climate Credit)
D55: =$D$49 -> 2024-01-01 | E55: =$E$49 -> 2025-01-01 | F55: =$F$49 -> Illustrative Proposed | G55: =$G$49 -> % Change over 01/1/2024 | H55: =$H$49 -> % Change over 01/1/2025
B56: Non-CARE | D56: =((D62*$M$17)+(D68*$M$18)+(D74*$M$19))/12-M23/12 -> 60.28236606 | E56: =((E62*$M$17)+(E68*$M$18)+(E74*$M$19))/12-M24/12 -> 77.45012315 | F56: =((F62*$M$17)+(F68*$M$18)+(F74*$M$19))/12-M24/12 -> 88.64136888 | G56: =$F56/D56-1 -> 0.4704361269 | H56: 0.1444961644
B57: CARE | D57: =((D63*$M$17)+(D69*$M$18)+(D75*$M$19))/12-M23/12 -> 40.4856973 | E57: =((E63*$M$17)+(E69*$M$18)+(E75*$M$19))/12-M24/12 -> 53.20884852 | F57: =((F63*$M$17)+(F69*$M$18)+(F75*$M$19))/12-M24/12 -> 61.0947358 | G57: 0.509044919 | H57: 0.1482063134
B58: Total | D58: =((D64*$M$17)+(D70*$M$18)+(D76*$M$19))/12-M23/12 -> 55.78427184 | E58: =((E64*$M$17)+(E70*$M$18)+(E76*$M$19))/12-M24/12 -> 71.94214913 | F58: =((F64*$M$17)+(F70*$M$18)+(F76*$M$19))/12-M24/12 -> 82.38236882 | G58: 0.4768027993 | H58: 0.1451196526
B60: =CONCATENATE("Illustrative Bundled Residential Monthly Average Bills - Summer - Baseline Territory ",$D$8) -> Illustrative Bundled Residential Monthly Average Bills - Summer - Baseline Territory ALL CLIMATE ZONES
D61: =$D$49 -> 2024-01-01 | E61: =$E$49 -> 2025-01-01 | F61: =$F$49 -> Illustrative Proposed | G61: =$G$49 -> % Change over 01/1/2024 | H61: =$H$49 -> % Change over 01/1/2025
B62: Non-CARE | D62: =VLOOKUP($D$8,'Hypothetical Res Bill Impact'!$B$37:$K$46,2,FALSE) -> 39.23173862 | E62: =VLOOKUP($D$8,'Hypothetical Res Bill Impact'!$B$37:$K$46,5,FALSE) -> 48.32972281 | F62: =VLOOKUP($D$8,'Hypothetical Res Bill Impact'!$B$37:$K$46,8,FALSE) -> 54.89049186 | G62: =$F62/D62-1 -> 0.3991348279 | H62: 0.13575019
B63: CARE | D63: =VLOOKUP($D$8,'Hypothetical Res Bill Impact'!$B$52:$K$61,2,FALSE) -> 30.8865562 | E63: =VLOOKUP($D$8,'Hypothetical Res Bill Impact'!$B$52:$K$61,5,FALSE) -> 38.14192389 | F63: =VLOOKUP($D$8,'Hypothetical Res Bill Impact'!$B$52:$K$61,8,FALSE) -> 43.30419394 | G63: 0.4020402165 | H63: 0.1353437249
B64: Total | D64: =D62*(1-$O$22)+('Hypothetical Summary'!D63*$O$22) -> 37.33559047 | E64: =E62*(1-$O$22)+('Hypothetical Summary'!E63*$O$22) -> 46.0149051 | F64: =F62*(1-$O$22)+('Hypothetical Summary'!F63*$O$22) -> 52.25791462 | G64: 0.3996809467 | H64: 0.1356736368
B66: =CONCATENATE("Illustrative Bundled Residential Monthly Average Bills - Winter Off-Peak - Baseline Territory ",$D$8) -> Illustrative Bundled Residential Monthly Average Bills - Winter Off-Peak - Baseline Territory ALL CLIMATE ZONES
D67: =$D$49 -> 2024-01-01 | E67: =$E$49 -> 2025-01-01 | F67: =$F$49 -> Illustrative Proposed | G67: =$G$49 -> % Change over 01/1/2024 | H67: =$H$49 -> % Change over 01/1/2025
B68: Non-CARE | D68: =VLOOKUP($D$8,'Hypothetical Res Bill Impact'!$B$37:$K$46,3,FALSE) -> 94.62873153 | E68: =VLOOKUP($D$8,'Hypothetical Res Bill Impact'!$B$37:$K$46,6,FALSE) -> 116.5753564 | F68: =VLOOKUP($D$8,'Hypothetical Res Bill Impact'!$B$37:$K$46,9,FALSE) -> 132.230037 | G68: =$F68/D68-1 -> 0.3973561185 | H68: 0.1342880784
B69: CARE | D69: =VLOOKUP($D$8,'Hypothetical Res Bill Impact'!$B$52:$K$61,3,FALSE) -> 62.99917525 | E69: =VLOOKUP($D$8,'Hypothetical Res Bill Impact'!$B$52:$K$61,6,FALSE) -> 77.80724025 | F69: =VLOOKUP($D$8,'Hypothetical Res Bill Impact'!$B$52:$K$61,9,FALSE) -> 88.18546716 | G69: 0.399787645 | H69: 0.1333838199
B70: Total | D70: =D68*(1-$O$22)+('Hypothetical Summary'!D69*$O$22) -> 87.44203129 | E70: =E68*(1-$O$22)+('Hypothetical Summary'!E69*$O$22) -> 107.7666704 | F70: =F68*(1-$O$22)+('Hypothetical Summary'!F69*$O$22) -> 122.2224631 | G70: 0.3977541615 | H70: 0.1341397363
B72: =CONCATENATE("Illustrative Bundled Residential Monthly Average Bills - Winter On-Peak - Baseline Territory ",$D$8) -> Illustrative Bundled Residential Monthly Average Bills - Winter On-Peak - Baseline Territory ALL CLIMATE ZONES
D73: =$D$49 -> 2024-01-01 | E73: =$E$49 -> 2025-01-01 | F73: =$F$49 -> Illustrative Proposed | G73: =$G$49 -> % Change over 01/1/2024 | H73: =$H$49 -> % Change over 01/1/2025
B74: Non-CARE | D74: =VLOOKUP($D$8,'Hypothetical Res Bill Impact'!$B$37:$K$46,4,FALSE) -> 125.1697708 | E74: =VLOOKUP($D$8,'Hypothetical Res Bill Impact'!$B$37:$K$46,7,FALSE) -> 154.1996283 | F74: =VLOOKUP($D$8,'Hypothetical Res Bill Impact'!$B$37:$K$46,10,FALSE) -> 174.90239 | G74: =$F74/D74-1 -> 0.3973213258 | H74: 0.1342594791
B75: CARE | D75: =VLOOKUP($D$8,'Hypothetical Res Bill Impact'!$B$52:$K$61,4,FALSE) -> 83.04223106 | E75: =VLOOKUP($D$8,'Hypothetical Res Bill Impact'!$B$52:$K$61,7,FALSE) -> 102.5614509 | F75: =VLOOKUP($D$8,'Hypothetical Res Bill Impact'!$B$52:$K$61,10,FALSE) -> 116.241489 | G75: 0.399787645 | H75: 0.1333838199
B76: Total | D76: =D74*(1-$O$22)+('Hypothetical Summary'!D75*$O$22) -> 115.5977743 | E76: =E74*(1-$O$22)+('Hypothetical Summary'!E75*$O$22) -> 142.4666751 | F76: =F74*(1-$O$22)+('Hypothetical Summary'!F75*$O$22) -> 161.5737708 | G76: 0.3977238901 | H76: 0.1341162463
B79: =CONCATENATE("Illustrative Essential Use Bundled Residential Monthly Average Bills - Baseline Territory ",$D$8," (Includes Climate Credit)") -> Illustrative Essential Use Bundled Residential Monthly Average Bills - Baseline Territory ALL CLIMATE ZONES (Includes Climate Credit)
D80: =$D$49 -> 2024-01-01 | E80: =$E$49 -> 2025-01-01 | F80: =$F$49 -> Illustrative Proposed | G80: =$G$49 -> % Change over 01/1/2024 | H80: =$H$49 -> % Change over 01/1/2025
B81: Essential Use Non-CARE | D81: =((D87*$M$17)+(D93*$M$18)+(D99*$M$19))/12-M23/12 -> 56.72875331 | E81: =((E87*$M$17)+(E93*$M$18)+(E99*$M$19))/12-M24/12 -> 73.07287171 | F81: =((F87*$M$17)+(F93*$M$18)+(F99*$M$19))/12-M24/12 -> 83.62833955 | G81: =$F81/D81-1 -> 0.4741790481 | H81: 0.1444512524
B82: Essential Use CARE | D82: =((D88*$M$17)+(D94*$M$18)+(D100*$M$19))/12-M23/12 -> 41.60094331 | E82: =((E88*$M$17)+(E94*$M$18)+(E100*$M$19))/12-M24/12 -> 54.58890129 | F82: =((F88*$M$17)+(F94*$M$18)+(F100*$M$19))/12-M24/12 -> 62.61525845 | G82: 0.5051403519 | H82: 0.1470327663
B83: Total | D83: =((D89*$M$17)+(D95*$M$18)+(D101*$M$19))/12-M23/12 -> 53.29149245 | E83: =((E89*$M$17)+(E95*$M$18)+(E101*$M$19))/12-M24/12 -> 68.87304186 | F83: =((F89*$M$17)+(F95*$M$18)+(F101*$M$19))/12-M24/12 -> 78.85385857 | G83: 0.4796706743 | H83: 0.1449161593
B85: =CONCATENATE("Illustrative Essential Use Bundled Residential Monthly Average Bills - Summer - Baseline Territory ",$D$8) -> Illustrative Essential Use Bundled Residential Monthly Average Bills - Summer - Baseline Territory ALL CLIMATE ZONES
D86: =$D$49 -> 2024-01-01 | E86: =$E$49 -> 2025-01-01 | F86: =$F$49 -> Illustrative Proposed | G86: =$G$49 -> % Change over 01/1/2024 | H86: =$H$49 -> % Change over 01/1/2025
B87: Essential Use Non-CARE | D87: =VLOOKUP($D$8,'Hypothetical Res Bill Impact'!$B$69:$K$78,2,FALSE) -> 31.54289008 | E87: =VLOOKUP($D$8,'Hypothetical Res Bill Impact'!$B$69:$K$78,5,FALSE) -> 38.8584676 | F87: =VLOOKUP($D$8,'Hypothetical Res Bill Impact'!$B$69:$K$78,8,FALSE) -> 44.0730014 | G87: =$F87/D87-1 -> 0.3972404333 | H87: 0.134192986
B88: Essential Use CARE | D88: =VLOOKUP($D$8,'Hypothetical Res Bill Impact'!$B$84:$K$93,2,FALSE) -> 23.48386652 | E88: =VLOOKUP($D$8,'Hypothetical Res Bill Impact'!$B$84:$K$93,5,FALSE) -> 29.00378992 | F88: =VLOOKUP($D$8,'Hypothetical Res Bill Impact'!$B$84:$K$93,8,FALSE) -> 32.87242621 | G88: 0.399787645 | H88: 0.1333838199
B89: Total | D89: =D87*(1-$O$22)+('Hypothetical Summary'!D88*$O$22) -> 29.71176143 | E89: =E87*(1-$O$22)+('Hypothetical Summary'!E88*$O$22) -> 36.61933993 | F89: =F87*(1-$O$22)+('Hypothetical Summary'!F88*$O$22) -> 41.52806603 | G89: 0.3976978823 | H89: 0.1340473669
B91: =CONCATENATE("Illustrative Essential Use Bundled Residential Monthly Average Bills - Winter Off-Peak - Baseline Territory ",$D$8) -> Illustrative Essential Use Bundled Residential Monthly Average Bills - Winter Off-Peak - Baseline Territory ALL CLIMATE ZONES
D92: =$D$49 -> 2024-01-01 | E92: =$E$49 -> 2025-01-01 | F92: =$F$49 -> Illustrative Proposed | G92: =$G$49 -> % Change over 01/1/2024 | H92: =$H$49 -> % Change over 01/1/2025
B93: Essential Use Non-CARE | D93: =VLOOKUP($D$8,'Hypothetical Res Bill Impact'!$B$69:$K$78,3,FALSE) -> 95.29386494 | E93: =VLOOKUP($D$8,'Hypothetical Res Bill Impact'!$B$69:$K$78,6,FALSE) -> 117.3948726 | F93: =VLOOKUP($D$8,'Hypothetical Res Bill Impact'!$B$69:$K$78,9,FALSE) -> 133.1484411 | G93: =$F93/D93-1 -> 0.3972404333 | H93: 0.134192986
B94: Essential Use CARE | D94: =VLOOKUP($D$8,'Hypothetical Res Bill Impact'!$B$84:$K$93,3,FALSE) -> 72.94265098 | E94: =VLOOKUP($D$8,'Hypothetical Res Bill Impact'!$B$84:$K$93,6,FALSE) -> 90.08794713 | F94: =VLOOKUP($D$8,'Hypothetical Res Bill Impact'!$B$84:$K$93,9,FALSE) -> 102.1042216 | G94: 0.399787645 | H94: 0.1333838199
B95: Total | D95: =D93*(1-$O$22)+('Hypothetical Summary'!D94*$O$22) -> 90.21534049 | E95: =E93*(1-$O$22)+('Hypothetical Summary'!E94*$O$22) -> 111.1903377 | F95: =F93*(1-$O$22)+('Hypothetical Summary'!F94*$O$22) -> 126.094738 | G95: 0.3977083867 | H95: 0.1340440246
B97: =CONCATENATE("Illustrative Essential Use Bundled Residential Monthly Average Bills - Winter On-Peak - Baseline Territory ",$D$4) -> Illustrative Essential Use Bundled Residential Monthly Average Bills - Winter On-Peak - Baseline Territory
D98: =$D$49 -> 2024-01-01 | E98: =$E$49 -> 2025-01-01 | F98: =$F$49 -> Illustrative Proposed | G98: =$G$49 -> % Change over 01/1/2024 | H98: =$H$49 -> % Change over 01/1/2025
B99: Essential Use Non-CARE | D99: =VLOOKUP($D$8,'Hypothetical Res Bill Impact'!$B$69:$K$78,4,FALSE) -> 129.761364 | E99: =VLOOKUP($D$8,'Hypothetical Res Bill Impact'!$B$69:$K$78,7,FALSE) -> 159.8562385 | F99: =VLOOKUP($D$8,'Hypothetical Res Bill Impact'!$B$69:$K$78,10,FALSE) -> 181.3078245 | G99: =$F99/D99-1 -> 0.3972404333 | H99: 0.134192986
B100: Essential Use CARE | D100: =VLOOKUP($D$8,'Hypothetical Res Bill Impact'!$B$84:$K$93,4,FALSE) -> 100.7279074 | E100: =VLOOKUP($D$8,'Hypothetical Res Bill Impact'!$B$84:$K$93,7,FALSE) -> 124.4041761 | F100: =VLOOKUP($D$8,'Hypothetical Res Bill Impact'!$B$84:$K$93,10,FALSE) -> 140.9976803 | G100: 0.399787645 | H100: 0.1333838199
B101: Total | D101: =D99*(1-$O$22)+('Hypothetical Summary'!D100*$O$22) -> 123.1645358 | E101: =E99*(1-$O$22)+('Hypothetical Summary'!E100*$O$22) -> 151.8010087 | F101: =F99*(1-$O$22)+('Hypothetical Summary'!F100*$O$22) -> 172.1487671 | G101: 0.397713765 | H101: 0.1340423134
B104: =CONCATENATE("Illustrative Typical Customer Bundled Residential Monthly Average Bills - Baseline Territory ",$D$8," (Includes Climate Credit)") -> Illustrative Typical Customer Bundled Residential Monthly Average Bills - Baseline Territory ALL CLIMATE ZONES (Includes Climate Credit)
D105: =$D$49 -> 2024-01-01 | E105: =$E$49 -> 2025-01-01 | F105: =$F$49 -> Illustrative Proposed | G105: =$G$49 -> % Change over 01/1/2024 | H105: =$H$49 -> % Change over 01/1/2025
B106: =CONCATENATE($M$20," Therms Monthly Usage - Non-CARE") -> 33 Therms Monthly Usage - Non-CARE | D106: =((D112*$M$17)+(D118*$M$18)+(D124*$M$19))/12-M23/12 -> 71.8327168 | E106: =((E112*$M$17)+(E118*$M$18)+(E124*$M$19))/12-M24/12 -> 91.67662861 | F106: =((F112*$M$17)+(F118*$M$18)+(F124*$M$19))/12-M24/12 -> 105.0186073 | G106: =$F106/D106-1 -> 0.4619885194 | H106: 0.1455330422
B107: =CONCATENATE($M$21," Therms Monthly Usage - CARE") -> 29 Therms Monthly Usage - CARE | D107: =((D113*$M$17)+(D119*$M$18)+(D125*$M$19))/12-M23/12 -> 47.27802312 | E107: =((E113*$M$17)+(E119*$M$18)+(E125*$M$19))/12-M24/12 -> 61.58844887 | F107: =((F113*$M$17)+(F119*$M$18)+(F125*$M$19))/12-M24/12 -> 70.74370662 | G107: 0.4963338556 | H107: 0.1486521891
B108: Total | D108: =((D114*$M$17)+(D120*$M$18)+(D126*$M$19))/12-M23/12 -> 66.25352936 | E108: =((E114*$M$17)+(E120*$M$18)+(E126*$M$19))/12-M24/12 -> 84.84015178 | F108: =((F114*$M$17)+(F120*$M$18)+(F126*$M$19))/12-M24/12 -> 97.23084589 | G108: 0.467557228 | H108: 0.1460475241
B110: =CONCATENATE("Illustrative Typical Customer Bundled Residential Monthly Average Bills - Summer - Baseline Territory ",$D$8) -> Illustrative Typical Customer Bundled Residential Monthly Average Bills - Summer - Baseline Territory ALL CLIMATE ZONES
D111: =$D$49 -> 2024-01-01 | E111: =$E$49 -> 2025-01-01 | F111: =$F$49 -> Illustrative Proposed | G111: =$G$49 -> % Change over 01/1/2024 | H111: =$H$49 -> % Change over 01/1/2025
B112: =CONCATENATE($M$20," Therms Monthly Usage - Non-CARE") -> 33 Therms Monthly Usage - Non-CARE | D112: =VLOOKUP($D$8,'Hypothetical Res Bill Impact'!$B$99:$K$108,2,FALSE) -> 82.33641446 | E112: =VLOOKUP($D$8,'Hypothetical Res Bill Impact'!$B$99:$K$108,5,FALSE) -> 101.4268001 | F112: =VLOOKUP($D$8,'Hypothetical Res Bill Impact'!$B$99:$K$108,8,FALSE) -> 115.5347375 | G112: =$F112/D112-1 -> 0.4032034099 | H112: 0.1390947696
B113: =CONCATENATE($M$21," Therms Monthly Usage - CARE") -> 29 Therms Monthly Usage - CARE | D113: =VLOOKUP($D$8,'Hypothetical Res Bill Impact'!$B$114:$K$123,2,FALSE) -> 56.64042609 | E113: =VLOOKUP($D$8,'Hypothetical Res Bill Impact'!$B$114:$K$123,5,FALSE) -> 69.93338814 | F113: =VLOOKUP($D$8,'Hypothetical Res Bill Impact'!$B$114:$K$123,8,FALSE) -> 79.59612634 | G113: 0.4052882691 | H113: 0.1381706
B114: Total | D114: =D112*(1-$O$22)+('Hypothetical Summary'!D113*$O$22) -> 76.49790808 | E114: =E112*(1-$O$22)+('Hypothetical Summary'!E113*$O$22) -> 94.27103387 | F114: =F112*(1-$O$22)+('Hypothetical Summary'!F113*$O$22) -> 107.3689566 | G114: 0.4035541538 | H114: 0.1389389958
B116: =CONCATENATE("Illustrative Typical Customer Bundled Residential Monthly Average Bills - Winter Off-Peak - Baseline Territory ",$D$8) -> Illustrative Typical Customer Bundled Residential Monthly Average Bills - Winter Off-Peak - Baseline Territory ALL CLIMATE ZONES
D117: =$D$49 -> 2024-01-01 | E117: =$E$49 -> 2025-01-01 | F117: =$F$49 -> Illustrative Proposed | G117: =$G$49 -> % Change over 01/1/2024 | H117: =$H$49 -> % Change over 01/1/2025
B118: =CONCATENATE($M$20," Therms Monthly Usage - Non-CARE") -> 33 Therms Monthly Usage - Non-CARE | D118: =VLOOKUP($D$8,'Hypothetical Res Bill Impact'!$B$99:$K$108,3,FALSE) -> 74.21944281 | E118: =VLOOKUP($D$8,'Hypothetical Res Bill Impact'!$B$99:$K$108,6,FALSE) -> 91.43277 | F118: =VLOOKUP($D$8,'Hypothetical Res Bill Impact'!$B$99:$K$108,9,FALSE) -> 103.7024064 | G118: =$F118/D118-1 -> 0.3972404333 | H118: 0.134192986
B119: =CONCATENATE($M$21," Therms Monthly Usage - CARE") -> 29 Therms Monthly Usage - CARE | D119: =VLOOKUP($D$8,'Hypothetical Res Bill Impact'!$B$114:$K$123,3,FALSE) -> 51.26256171 | E119: =VLOOKUP($D$8,'Hypothetical Res Bill Impact'!$B$114:$K$123,6,FALSE) -> 63.31191541 | F119: =VLOOKUP($D$8,'Hypothetical Res Bill Impact'!$B$114:$K$123,9,FALSE) -> 71.75670053 | G119: 0.399787645 | H119: 0.1333838199
B120: Total | D120: =D118*(1-$O$22)+('Hypothetical Summary'!D119*$O$22) -> 69.00330188 | E120: =E118*(1-$O$22)+('Hypothetical Summary'!E119*$O$22) -> 85.04329837 | F120: =F118*(1-$O$22)+('Hypothetical Summary'!F119*$O$22) -> 96.44387234 | G120: 0.3976703971 | H120: 0.1340561125
B122: =CONCATENATE("Illustrative Typical Customer Bundled Residential Monthly Average Bills - Winter On-Peak - Baseline Territory ",$D$8) -> Illustrative Typical Customer Bundled Residential Monthly Average Bills - Winter On-Peak - Baseline Territory ALL CLIMATE ZONES
D123: =$D$49 -> 2024-01-01 | E123: =$E$49 -> 2025-01-01 | F123: =$F$49 -> Illustrative Proposed | G123: =$G$49 -> % Change over 01/1/2024 | H123: =$H$49 -> % Change over 01/1/2025
B124: =CONCATENATE($M$20," Therms Monthly Usage - Non-CARE") -> 33 Therms Monthly Usage - Non-CARE | D124: =VLOOKUP($D$8,'Hypothetical Res Bill Impact'!$B$99:$K$108,4,FALSE) -> 74.21944281 | E124: =VLOOKUP($D$8,'Hypothetical Res Bill Impact'!$B$99:$K$108,7,FALSE) -> 91.43277 | F124: =VLOOKUP($D$8,'Hypothetical Res Bill Impact'!$B$99:$K$108,10,FALSE) -> 103.7024064 | G124: =$F124/D124-1 -> 0.3972404333 | H124: 0.134192986
B125: =CONCATENATE($M$21," Therms Monthly Usage - CARE") -> 29 Therms Monthly Usage - CARE | D125: =VLOOKUP($D$8,'Hypothetical Res Bill Impact'!$B$114:$K$123,4,FALSE) -> 51.26256171 | E125: =VLOOKUP($D$8,'Hypothetical Res Bill Impact'!$B$114:$K$123,7,FALSE) -> 63.31191541 | F125: =VLOOKUP($D$8,'Hypothetical Res Bill Impact'!$B$114:$K$123,10,FALSE) -> 71.75670053 | G125: 0.399787645 | H125: 0.1333838199
B126: Total | D126: =D124*(1-$O$22)+('Hypothetical Summary'!D125*$O$22) -> 69.00330188 | E126: =E124*(1-$O$22)+('Hypothetical Summary'!E125*$O$22) -> 85.04329837 | F126: =F124*(1-$O$22)+('Hypothetical Summary'!F125*$O$22) -> 96.44387234 | G126: 0.3976703971 | H126: 0.1340561125

Sheet Instructions-Rate Trajectory
A1: INSTRUCTIONS TO RUN "ILLUSTRATIVE RATE TRAJECTORY" MODEL
B5: The "illustrative rate trajectory" portion of this model produces illustrative rates and illustrative residential bill calculations based on selected user inputs for a range of periods.
B6: PLEASE DO NOT INSERT ROWS OR COLUMNS INTO THE DASHBOARD
B7: To run the "illustrative rate trajectory" portion of the model:
B9: 1. | C9: User drop down selections are highlighted in green.
B10: 2. | C10: User value input cells are highlighted in yellow.
B11: 3. | C11: In cell D4 of the "Rate Trajectory Dashboard" tab, select, from the dropdown choices, the baseline territory for which bill impacts are desired (ILLUSTRATION 1).
B12: 4. | C12: In cell D5 of the "Rate Trajectory Dashboard" tab, select, from the dropdown choices, the desired start date for the Rate Trajectory Report (ILLUSTRATION 1).
C13: The Rate Trajectory Report will provide RRQ Information, Illustrative Average Bundled and Illustrative System Rates and Annual Average
C14: Illustrative Bills (CARE and Non-CARE) by selected baseline territory for a 24 month period beginning with the selection in cell D5
B15: 5. | C15: Enter the "Hypothetical Annual RRQs" revenues, for each year of the selected program, in the yellow highlighted cells in column G of the "Rate Trajectory Dashboard" tab (ILLUSTRATION 1).
C16: Note that PG&E's proposed Annual RRQs are listed in column E of the "Rate Trajectory Dashboard" tab.
B17: 6. | C17: In column I of the "Rate Trajectory Dashboard" tab, select from the dropdown choices, the desired allocation methodology (ILLUSTRATION 1).
C18: Note that PG&E's proposed allocation methdology is listed in column F of the "Rate Trajectory Dashboard" tab.
C19: Also note that there are opportunities for the user to enter their own Allocation Methodology on the "RRQ Allocations" tab (ILLUSTRATION 3)
C20: and as described under the "RRQ ALLOCATION OPTIONS" section on the "Instruction" tab.
B21: 7. | C21: In column J of the "Rate Trajectory Dashboard" tab, select from the dropdown choices, the start date for each year of each program listed in column B (ILLUSTRATION 1).
B22: 8. | C22: In column K of the "Rate Trajectory Dashboard" tab, enter the amortization period (in months) for each year of each program listed in column B (ILLUSTRATION 1).
C23: Note that the maximum months per line is 12 and if no amortization period is specified (i.e. cell is left blank), the RRQ amount remains in rates.
B24: 9. | C24: Residential Tier Ratios can be changed in out years on the "Hypothetical Res_RD" tab in cell K59 (ILLUSTRATION 2).
C25: Note that residential tier ratios are only changed in January of each year. Mid-year rate changes maintain the tier ratio set in January of each year.
C26: The tiering factor for 2025 has been established at 1.24.
B27: 10. | C27: Create the illustrative rate trajectory report by executing the "Run Rate Trajectory" macro (ILLUSTRATION 1).
J30: 10.
C31: ILLUSTRATION 1: | G31: 3.
H32: 4. | K32: 5. | N32: 6. | O32: 7. | P32: 8.
C43: ILLUSTRATION 2:
O44: 9.
B65: RRQ ALLOCATION OPTIONS:
B66: 1. | C66: On the "RRQ Allocations" tab there are spaces for the user to enter their own allocation methodology (ILLUSTRATION 3).
C67: NOTE that this tab has not been fully populated by PG&E.
C69: ILLUSTRATION 3

Sheet Rate Trajectory Dashboard
B1: PLEASE DO NOT ADD OR INSERT ROWS OR COLUMNS
B2: User Inputs: | C2: Yellow highlighted cells - enter number
C3: Green highlighted cells - select from drop-down menu
C5: Baseline Region - (Residential bill) | D5: ALL CLIMATE ZONES
C6: Start Date for Report | D6: 2025-06-01 | K6: Amortization
K7: Period in Months
D8: Current | H8: Hypothetical | J8: Yearly | K8: (Maximum 12
D9: Authorized | E9: PG&E Requested | F9: Adopted or PG&E Requested | G9: Hypothetical | H9: Incremental | I9: Hypothetical | J9: Start Date | K9: Months per
D10: Annual | E10: Annual RRQ | F10: Allocation Methodology | G10: Annual | H10: Annual | I10: Allocation Methodology | J10: (Select from | K10: Line OR
B11: Pending Proceedings | D11: Revenue | E11: (Informational Only) | F11: (Informational Only) | G11: RRQ | H11: RRQ | I11: (Select from Drop-down) | J11: Drop-down) | K11: Leave Blank) | L11: <<==If no amortization period is specified, RRQ amounts remain in rates.
B12: Pension (Distribution) - Year 2025 | D12: ='Incremental Rev Req'!$D$12 -> 37805.84365 | E12: 42969.37257 | F12: Distribution | G12: 42969.37257 | H12: =G12-D12 -> 5163.528925 | I12: Distribution | J12: 2025-06-01 | K12: 7
B13: Pension (Distribution) - Year 2026 | D13: ='Incremental Rev Req'!$D$12 -> 37805.84365 | E13: 42969.37257 | F13: Distribution | G13: 42969.37257 | H13: 5163.528925 | I13: Distribution | J13: 2026-01-01 | K13: 12
B14: Pension (Distribution) - Year 2027 | D14: ='Incremental Rev Req'!$D$12 -> 37805.84365 | E14: 42969.37257 | F14: Distribution | G14: 42969.37257 | H14: 5163.528925 | I14: Distribution | J14: 2027-01-01 | K14: 12
B15: Pension (Distribution) - Year 2028 | D15: ='Incremental Rev Req'!$D$12 -> 37805.84365 | E15: 42969.37257 | F15: Distribution | G15: 42969.37257 | H15: 5163.528925 | I15: Distribution | J15: 2028-01-01 | K15: 12
B16: Pension (Distribution) - Year 2029 | D16: ='Incremental Rev Req'!$D$12 -> 37805.84365 | E16: 42969.37257 | F16: Distribution | G16: 42969.37257 | H16: 5163.528925 | I16: Distribution | J16: 2029-01-01
B17: Pension (ECPT) - Year 2025 | D17: =SUM('Incremental Rev Req'!$D$13:$D$15) -> 18018.74025 | E17: 20479.74303 | F17: ECPT | G17: 20479.74303 | H17: 2461.002784 | I17: ECPT - ALL | J17: 2025-06-01 | K17: 7
B18: Pension (ECPT) - Year 2026 | D18: =SUM('Incremental Rev Req'!$D$13:$D$15) -> 18018.74025 | E18: 20479.74303 | F18: ECPT | G18: 20479.74303 | H18: 2461.002784 | I18: ECPT - ALL | J18: 2026-01-01 | K18: 12
B19: Pension (ECPT) - Year 2027 | D19: =SUM('Incremental Rev Req'!$D$13:$D$15) -> 18018.74025 | E19: 20479.74303 | F19: ECPT | G19: 20479.74303 | H19: 2461.002784 | I19: ECPT - ALL | J19: 2027-01-01 | K19: 12
B20: Pension (ECPT) - Year 2028 | D20: =SUM('Incremental Rev Req'!$D$13:$D$15) -> 18018.74025 | E20: 20479.74303 | F20: ECPT | G20: 20479.74303 | H20: 2461.002784 | I20: ECPT - ALL | J20: 2028-01-01 | K20: 12
B21: Pension (ECPT) - Year 2029 | D21: =SUM('Incremental Rev Req'!$D$13:$D$15) -> 18018.74025 | E21: 20479.74303 | F21: ECPT | G21: 20479.74303 | H21: 2461.002784 | I21: ECPT - ALL | J21: 2029-01-01
B22: Hinkley Upgrade - Year 2028 | D22: 0 | E22: 3170.008597 | F22: ECPT | G22: 3170.008597 | H22: 3170.008597 | I22: ECPT - ALL | J22: 2028-01-01 | K22: 12
B23: Hinkley Upgrade - Year 2029 | D23: 0 | E23: 8890.201242 | F23: ECPT | G23: 8890.201242 | H23: 8890.201242 | I23: ECPT - ALL | J23: 2029-01-01
B24: Billing Modernization (Distribution) - Year 2026 | D24: 0 | E24: 18712.17383 | F24: Distribution | G24: 18712.17383 | H24: =G24-D24 -> 18712.17383 | I24: Distribution | J24: 2026-01-01 | K24: 12
B25: Billing Modernization (Distribution) - Year 2027 | D25: 0 | E25: 17751.34183 | F25: Distribution | G25: 17751.34183 | H25: 17751.34183 | I25: Distribution | J25: 2027-01-01 | K25: 12
B26: Billing Modernization (Distribution) - Year 2028 | D26: 0 | E26: 16583.85336 | F26: Distribution | G26: 16583.85336 | H26: 16583.85336 | I26: Distribution | J26: 2028-01-01 | K26: 12
B27: Billing Modernization (Distribution) - Year 2029 | D27: 0 | E27: 14215.2408 | F27: Distribution | G27: 14215.2408 | H27: 14215.2408 | I27: Distribution | J27: 2029-01-01
B28: Billing Modernization (Transmission) - Year 2026 | D28: 0 | E28: 8918.457231 | F28: ECPT | G28: 8918.457231 | H28: 8918.457231 | I28: ECPT - ALL | J28: 2026-01-01 | K28: 12
B29: Billing Modernization (Transmission) - Year 2027 | D29: 0 | E29: 8460.512628 | F29: ECPT | G29: 8460.512628 | H29: 8460.512628 | I29: ECPT - ALL | J29: 2027-01-01 | K29: 12
B30: Billing Modernization (Transmission) - Year 2028 | D30: 0 | E30: 7904.072949 | F30: ECPT | G30: 7904.072949 | H30: 7904.072949 | I30: ECPT - ALL | J30: 2028-01-01 | K30: 12
B31: Billing Modernization (Transmission) - Year 2029 | D31: 0 | E31: 6775.162433 | F31: ECPT | G31: 6775.162433 | H31: 6775.162433 | I31: ECPT - ALL | J31: 2029-01-01
B32: Hydrogen Demonstration Project (2027) - Year 2027 | D32: 0 | E32: 3022.022937 | F32: ECPT | G32: 3022.022937 | H32: 3022.022937 | I32: ECPT - ALL | J32: 2027-01-01 | K32: 12
B33: Hydrogen Demonstration Project (2027) - Year 2028 | D33: 0 | E33: 10324.82853 | F33: ECPT | G33: 10324.82853 | H33: 10324.82853 | I33: ECPT - ALL | J33: 2028-01-01 | K33: 12
B34: Hydrogen Demonstration Project (2027) - Year 2029 | D34: 0 | E34: 10534.09292 | F34: ECPT | G34: 10534.09292 | H34: 10534.09292 | I34: ECPT - ALL | J34: 2029-01-01
B35: 2024 Wildfire Mitigation and Catastrophic Events (distribution) - Year 2026 | D35: 0 | E35: 65537.65441 | F35: Distribution | G35: 65537.65441 | H35: 65537.65441 | I35: Distribution | J35: 2026-01-01 | K35: 12
B36: 2024 Wildfire Mitigation and Catastrophic Events (distribution) - Year 2027 | D36: 0 | E36: 18819.46508 | F36: Distribution | G36: 18819.46508 | H36: 18819.46508 | I36: Distribution | J36: 2027-01-01 | K36: 12
B37: 2024 Wildfire Mitigation and Catastrophic Events (distribution) - Year 2028 | D37: 0 | E37: 18178.26264 | F37: Distribution | G37: 18178.26264 | H37: 18178.26264 | I37: Distribution | J37: 2028-01-01 | K37: 12
B38: 2024 Wildfire Mitigation and Catastrophic Events (distribution) - Year 2029 | D38: 0 | E38: 17712.2756 | F38: Distribution | G38: 17712.2756 | H38: 17712.2756 | I38: Distribution | J38: 2029-01-01
B39: 2024 Wildfire Mitigation and Catastrophic Events (transmission) - Year 2026 | D39: 0 | E39: 6579.378757 | F39: ECPT | G39: 6579.378757 | H39: 6579.378757 | I39: ECPT - ALL | J39: 2026-01-01 | K39: 12
B40: 2024 Wildfire Mitigation and Catastrophic Events (transmission) - Year 2027 | D40: 0 | E40: 291.8396392 | F40: ECPT | G40: 291.8396392 | H40: 291.8396392 | I40: ECPT - ALL | J40: 2027-01-01 | K40: 12
B41: 2024 Wildfire Mitigation and Catastrophic Events (transmission) - Year 2028 | D41: 0 | E41: 239.4188966 | F41: ECPT | G41: 239.4188966 | H41: 239.4188966 | I41: ECPT - ALL | J41: 2028-01-01 | K41: 12
B42: 2024 Wildfire Mitigation and Catastrophic Events (transmission) - Year 2029 | D42: 0 | E42: 225.0342646 | F42: ECPT | G42: 225.0342646 | H42: 225.0342646 | I42: ECPT - ALL | J42: 2029-01-01
B43: 2026 Cost of Capital (Distribution) - Year 2026 | D43: 0 | E43: 111625.7848 | F43: Distribution | G43: 111625.7848 | H43: 111625.7848 | I43: Distribution | J43: 2026-01-01 | K43: 12
B44: 2026 Cost of Capital (Distribution) - Year 2027 | D44: 0 | E44: 111625.7848 | F44: Distribution | G44: 111625.7848 | H44: 111625.7848 | I44: Distribution | J44: 2027-01-01 | K44: 12
B45: 2026 Cost of Capital (Distribution) - Year 2028 | D45: 0 | E45: 111625.7848 | F45: Distribution | G45: 111625.7848 | H45: 111625.7848 | I45: Distribution | J45: 2028-01-01 | K45: 12
B46: 2026 Cost of Capital (Distribution) - Year 2029 | D46: 0 | E46: 111625.7848 | F46: Distribution | G46: 111625.7848 | H46: 111625.7848 | I46: Distribution | J46: 2029-01-01
B47: 2026 Cost of Capital (Transmission) - Year 2026 | D47: 0 | E47: 84230.76028 | F47: ECPT - 50% Core / 50% Noncore | G47: 84230.76028 | H47: 84230.76028 | I47: ECPT - 50% Core / 50% Noncore | J47: 2026-01-01 | K47: 12
B48: 2026 Cost of Capital (Transmission) - Year 2027 | D48: 0 | E48: 84230.76028 | F48: ECPT - 50% Core / 50% Noncore | G48: 84230.76028 | H48: 84230.76028 | I48: ECPT - 50% Core / 50% Noncore | J48: 2027-01-01 | K48: 12
B49: 2026 Cost of Capital (Transmission) - Year 2028 | D49: 0 | E49: 84230.76028 | F49: ECPT - 50% Core / 50% Noncore | G49: 84230.76028 | H49: 84230.76028 | I49: ECPT - 50% Core / 50% Noncore | J49: 2028-01-01 | K49: 12
B50: 2026 Cost of Capital (Transmission) - Year 2029 | D50: 0 | E50: 84230.76028 | F50: ECPT - 50% Core / 50% Noncore | G50: 84230.76028 | H50: 84230.76028 | I50: ECPT - 50% Core / 50% Noncore | J50: 2029-01-01
B51: Gas Advanced Metering Infrastructure (AMI) (distribution) - Year 2025 | D51: 0 | E51: 19430.16603 | F51: Distribution | G51: 19430.16603 | H51: 19430.16603 | I51: Distribution | J51: 2025-08-01 | K51: 5
B52: Gas Advanced Metering Infrastructure (AMI) (distribution) - Year 2026 | D52: 0 | E52: 20174.43905 | F52: Distribution | G52: 20174.43905 | H52: =G52-D52 -> 20174.43905 | I52: Distribution | J52: 2026-01-01 | K52: 12
B53: Gas AMI (transmission) - Year 2025 | D53: 0 | E53: 3740.835479 | F53: ECPT | G53: 3740.835479 | H53: 3740.835479 | I53: ECPT - ALL | J53: 2025-08-01 | K53: 5
B54: Gas AMI (transmission) - Year 2026 | D54: 0 | E54: 4201.576536 | F54: ECPT | G54: 4201.576536 | H54: 4201.576536 | I54: ECPT - ALL | J54: 2026-01-01 | K54: 12
B55: 2023 Wildfire Mitigation and Catastrophic Events (distribution) | D55: 0 | E55: 13644.27962 | F55: Distribution | G55: 13644.27962 | H55: 13644.27962 | I55: Distribution | J55: 2026-01-01 | K55: 12
B56: 2023 Wildfire Mitigation and Catastrophic Events (transmission) | D56: 0 | E56: 5913.522951 | F56: ECPT | G56: 5913.522951 | H56: 5913.522951 | I56: ECPT - ALL | J56: 2026-01-01 | K56: 12
B57: Wildfire Gas and Safety Costs (Distribution) Non-IRR | D57: 0 | E57: 6776.716441 | F57: Distribution | G57: 6776.716441 | H57: 6776.716441 | I57: Distribution | J57: 2026-01-01 | K57: 12
B58: Wildfire Gas and Safety Costs (Transmission) - Non IRR - Year 2026 | D58: 0 | E58: 44029.8428 | F58: ECPT | G58: 44029.8428 | H58: 44029.8428 | I58: ECPT - ALL | J58: 2026-01-01 | K58: 12
B59: Wildfire Gas and Safety Costs (Transmission) - Non IRR - Year 2027 | D59: 0 | E59: 412.700166 | F59: ECPT | G59: 412.700166 | H59: 412.700166 | I59: ECPT - ALL | J59: 2027-01-01 | K59: 12
B60: 2022 Wildfire Mitigation and Catastrophic Events | D60: 0 | E60: 16214.97009 | F60: Distribution | G60: 16214.97009 | H60: 16214.97009 | I60: Distribution | J60: 2025-08-01 | K60: 12
B61: TRRRMA (Distribution) | D61: 0 | E61: 104444.3954 | F61: Distribution | G61: 104444.3954 | H61: 104444.3954 | I61: Distribution | J61: 2026-01-01 | K61: 12
B62: TRRRMA (Transmission) | D62: 0 | E62: 47177.48763 | F62: ECPT | G62: 47177.48763 | H62: 47177.48763 | I62: ECPT - ALL | J62: 2026-01-01 | K62: 12
B63: 2027 GRC - Gas Distribution - Year 2027 | D63: ='Incremental Rev Req'!$I$10 -> 3004265.37 | E63: ='Incremental Rev Req'!$I$99 -> 3061244.211 | F63: Distribution | G63: 3061244.211 | H63: 56978.8413 | I63: Distribution | J63: 2027-01-01 | K63: 12
B64: 2027 GRC - Gas Distribution - Year 2028 | D64: ='Incremental Rev Req'!$J$10 -> 3004265.37 | E64: ='Incremental Rev Req'!$J$99 -> 3220789.415 | F64: Distribution | G64: 3220789.415 | H64: 216524.0447 | I64: Distribution | J64: 2028-01-01 | K64: 12
B65: 2027 GRC - Gas Distribution - Year 2029 | D65: ='Incremental Rev Req'!$K$10 -> 3004265.37 | E65: ='Incremental Rev Req'!$K$99 -> 3389414.767 | F65: Distribution | G65: 3389414.767 | H65: 385149.3971 | I65: Distribution | J65: 2029-01-01
B66: 2027 GRC - Core Local Transmission - Year 2027 | D66: ='Incremental Rev Req'!$I$19 -> 983371.3849 | E66: ='Incremental Rev Req'!$I$100 -> 1102352.183 | F66: ECPT | G66: 1102352.183 | H66: 118980.798 | I66: ECPT - Core only | J66: 2027-01-01 | K66: 12
B67: 2027 GRC - Core Local Transmission - Year 2028 | D67: ='Incremental Rev Req'!$J$19 -> 983371.3849 | E67: ='Incremental Rev Req'!$J$100 -> 1135354.816 | F67: ECPT | G67: 1135354.816 | H67: 151983.4313 | I67: ECPT - Core only | J67: 2028-01-01 | K67: 12
B68: 2027 GRC - Core Local Transmission - Year 2029 | D68: ='Incremental Rev Req'!$K$19 -> 983371.3849 | E68: ='Incremental Rev Req'!$K$100 -> 1173368.345 | F68: ECPT | G68: 1173368.345 | H68: 189996.9603 | I68: ECPT - Core only | J68: 2029-01-01
B69: 2027 GRC - Core Procurement (Intrastate Volumetric and Capacity) - Year 2027 | D69: ='Incremental Rev Req'!$I$51 -> 196211.9165 | E69: ='Incremental Rev Req'!$I$101 -> 144492.9212 | F69: ECPT (No BB) | G69: 144492.9212 | H69: -51718.99537 | I69: ECPT - Core only (Procurement) | J69: 2027-01-01 | K69: 12
B70: 2027 GRC - Core Procurement (Intrastate Volumetric and Capacity) - Year 2028 | D70: ='Incremental Rev Req'!$J$51 -> 196211.9165 | E70: ='Incremental Rev Req'!$J$101 -> 153719.4621 | F70: ECPT (No BB) | G70: 153719.4621 | H70: -42492.45442 | I70: ECPT - Core only (Procurement) | J70: 2028-01-01 | K70: 12
B71: 2027 GRC - Core Procurement (Intrastate Volumetric and Capacity) - Year 2029 | D71: ='Incremental Rev Req'!$K$51 -> 196211.9165 | E71: ='Incremental Rev Req'!$K$101 -> 162779.9119 | F71: ECPT (No BB) | G71: 162779.9119 | H71: -33432.00467 | I71: ECPT - Core only (Procurement) | J71: 2029-01-01
B72: 2027 GRC - Core Procurement (Storage) - Year 2027 | D72: ='Incremental Rev Req'!$I$53 -> 83736.79328 | E72: ='Incremental Rev Req'!$I$102 -> 34475.58511 | F72: Unadjusted Cold Year Winter Season | G72: 34475.58511 | H72: -49261.20817 | I72: Storage Allocation (Procurement) | J72: 2027-01-01 | K72: 12
B73: 2027 GRC - Core Procurement (Storage) - Year 2028 | D73: ='Incremental Rev Req'!$J$53 -> 83736.79328 | E73: ='Incremental Rev Req'!$J$102 -> 37259.1958 | F73: Unadjusted Cold Year Winter Season | G73: 37259.1958 | H73: -46477.59748 | I73: Storage Allocation (Procurement) | J73: 2028-01-01 | K73: 12
B74: 2027 GRC - Core Procurement (Storage) - Year 2029 | D74: ='Incremental Rev Req'!$K$53 -> 83736.79328 | E74: ='Incremental Rev Req'!$K$102 -> 39767.86767 | F74: Unadjusted Cold Year Winter Season | G74: 39767.86767 | H74: =G74-D74 -> -43968.92561 | I74: Storage Allocation (Procurement) | J74: 2029-01-01
B75: 2027 GRC - Noncore Local Transmission - Year 2027 | D75: ='Incremental Rev Req'!$I$20 -> 515826.5045 | E75: ='Incremental Rev Req'!$I$103 -> 578500.182 | F75: ECPT (No BB) | G75: 578500.182 | H75: 62673.67756 | I75: ECPT - Noncore only | J75: 2027-01-01 | K75: 12
B76: 2027 GRC - Noncore Local Transmission - Year 2028 | D76: ='Incremental Rev Req'!$J$20 -> 515826.5045 | E76: ='Incremental Rev Req'!$J$103 -> 595883.4141 | F76: ECPT (No BB) | G76: 595883.4141 | H76: =G76-D76 -> 80056.90966 | I76: ECPT - Noncore only | J76: 2028-01-01 | K76: 12
B77: 2027 GRC - Noncore Local Transmission - Year 2029 | D77: ='Incremental Rev Req'!$K$20 -> 515826.5045 | E77: ='Incremental Rev Req'!$K$103 -> 615905.9866 | F77: ECPT (No BB) | G77: 615905.9866 | H77: 100079.4821 | I77: ECPT - Noncore only | J77: 2029-01-01
B78: 2027 GRC - Customer Access Charge - Year 2027 | D78: ='Incremental Rev Req'!$I$21 -> 5465.240945 | E78: ='Incremental Rev Req'!$I$104 -> 3108.803628 | F78: CAC Allocation | G78: 3108.803628 | H78: -2356.437317 | I78: CAC Allocation | J78: 2027-01-01 | K78: 12
B79: 2027 GRC - Customer Access Charge - Year 2028 | D79: ='Incremental Rev Req'!$J$21 -> 5465.240945 | E79: ='Incremental Rev Req'!$J$104 -> 3870.218973 | F79: CAC Allocation | G79: 3870.218973 | H79: -1595.021972 | I79: CAC Allocation | J79: 2028-01-01 | K79: 12
B80: 2027 GRC - Customer Access Charge - Year 2029 | D80: ='Incremental Rev Req'!$K$21 -> 5465.240945 | E80: ='Incremental Rev Req'!$K$104 -> 4634.982782 | F80: CAC Allocation | G80: 4634.982782 | H80: -830.2581629 | I80: CAC Allocation | J80: 2029-01-01
B81: 2027 GRC - Noncore Unbundled - Year 2027 | D81: ='Incremental Rev Req'!$I$22 -> 263208.0005 | E81: ='Incremental Rev Req'!$I$105 -> 197609.3823 | F81: ECPT-All | G81: 197609.3823 | H81: -65598.61827 | I81: ECPT - ALL | J81: 2027-01-01 | K81: 12
B82: 2027 GRC - Noncore Unbundled - Year 2028 | D82: ='Incremental Rev Req'!$J$22 -> 263208.0005 | E82: ='Incremental Rev Req'!$J$105 -> 206605.913 | F82: ECPT-All | G82: 206605.913 | H82: -56602.08753 | I82: ECPT - ALL | J82: 2028-01-01 | K82: 12
B83: 2027 GRC - Noncore Unbundled - Year 2029 | D83: ='Incremental Rev Req'!$K$22 -> 263208.0005 | E83: ='Incremental Rev Req'!$K$105 -> 213949.2198 | F83: ECPT-All | G83: 213949.2198 | H83: -49258.78074 | I83: ECPT - ALL | J83: 2029-01-01
B84: 2027 GRC - Inventory Management - Year 2027 | D84: ='Incremental Rev Req'!$I$23 -> 143704.047 | E84: ='Incremental Rev Req'!$I$106 -> 139662.6234 | F84: 2023 GTS - Inventory Management | G84: 139662.6234 | H84: -4041.423614 | I84: 2023 GTS - Inventory Management | J84: 2027-01-01 | K84: 12
B85: 2027 GRC - Inventory Management - Year 2028 | D85: ='Incremental Rev Req'!$J$23 -> 143704.047 | E85: ='Incremental Rev Req'!$J$106 -> 150919.4682 | F85: 2023 GTS - Inventory Management | G85: 150919.4682 | H85: 7215.421172 | I85: 2023 GTS - Inventory Management | J85: 2028-01-01 | K85: 12
B86: 2027 GRC - Inventory Management - Year 2029 | D86: ='Incremental Rev Req'!$K$23 -> 143704.047 | E86: ='Incremental Rev Req'!$K$106 -> 161064.4679 | F86: 2023 GTS - Inventory Management | G86: 161064.4679 | H86: 17360.42093 | I86: 2023 GTS - Inventory Management | J86: 2029-01-01
B87: CFCA - NGSS Enduser Dist. Sub Acct Recovery - Year 2027 | D87: ='Incremental Rev Req'!$I$64 -> 2051.460825 | E87: 0 | F87: Core - Distribution | G87: 0 | H87: -2051.460825 | I87: Core - Distribution | J87: 2027-01-01 | K87: 12
B88: CFCA - NGSS Enduser Dist. Sub Acct Recovery - Year 2028 | D88: ='Incremental Rev Req'!$J$64 -> 2051.460825 | E88: 0 | F88: Core - Distribution | G88: 0 | H88: -2051.460825 | I88: Core - Distribution | J88: 2028-01-01 | K88: 12
B89: CFCA - NGSS Enduser Dist. Sub Acct Recovery - Year 2029 | D89: ='Incremental Rev Req'!$K$64 -> 2051.460825 | E89: 0 | F89: Core - Distribution | G89: 0 | H89: -2051.460825 | I89: Core - Distribution | J89: 2029-01-01
B90: CFCA/NCA - NGSS Enduser Sub Acct Recovery - Year 2027 | D90: ='Incremental Rev Req'!$I$65 -> 487.8206422 | E90: 0 | F90: ECPT - ALL | G90: 0 | H90: -487.8206422 | I90: ECPT - ALL | J90: 2027-01-01 | K90: 12
B91: CFCA/NCA - NGSS Enduser Sub Acct Recovery - Year 2028 | D91: ='Incremental Rev Req'!$J$65 -> 487.8206422 | E91: 0 | F91: ECPT - ALL | G91: 0 | H91: -487.8206422 | I91: ECPT - ALL | J91: 2028-01-01 | K91: 12
B92: CFCA/NCA - NGSS Enduser Sub Acct Recovery - Year 2029 | D92: ='Incremental Rev Req'!$K$65 -> 487.8206422 | E92: 0 | F92: ECPT - ALL | G92: 0 | H92: -487.8206422 | I92: ECPT - ALL | J92: 2029-01-01
B93: NCA - NGSS Enduser Sub Acct Recovery - Year 2027 | D93: ='Incremental Rev Req'!$I$66 -> 501.0158178 | E93: 0 | F93: ECPT - Noncore only | G93: 0 | H93: -501.0158178 | I93: ECPT - Noncore only | J93: 2027-01-01 | K93: 12
B94: NCA - NGSS Enduser Sub Acct Recovery - Year 2028 | D94: ='Incremental Rev Req'!$J$66 -> 501.0158178 | E94: 0 | F94: ECPT - Noncore only | G94: 0 | H94: -501.0158178 | I94: ECPT - Noncore only | J94: 2028-01-01 | K94: 12
B95: NCA - NGSS Enduser Sub Acct Recovery - Year 2029 | D95: ='Incremental Rev Req'!$K$66 -> 501.0158178 | E95: 0 | F95: ECPT - Noncore only | G95: 0 | H95: -501.0158178 | I95: ECPT - Noncore only | J95: 2029-01-01
B96: Available | H96: =G96-D96 -> 0

Sheet Rate Trajectory Report
A1: Pacific Gas and Electric Company
A2: Illustrative Gas Rate Trajectory Report
A3: ="For the Period "&TEXT(D5,"mmmmmmmmmm YYYY")&" through "&TEXT(AA5,"mmmmmmmmmm YYYY") -> For the Period June 2025 through May 2027
C5: ="Present ( "&TEXT(Summary!E44,"mmm yy")&")" -> Present ( Jan 25) | D5: ='Rate Trajectory Dashboard'!D6 -> 2025-06-01 | E5: =DATE(YEAR(D5),MONTH(D5)+1,DAY(D5)) -> 2025-07-01 | F5: =DATE(YEAR(E5),MONTH(E5)+1,DAY(E5)) -> 2025-08-01 | G5: 2025-09-01 | H5: 2025-10-01 | I5: 2025-11-01 | J5: 2025-12-01 | K5: 2026-01-01 | L5: 2026-02-01 | M5: 2026-03-01 | N5: 2026-04-01 | O5: 2026-05-01 | P5: 2026-06-01 | Q5: 2026-07-01 | R5: 2026-08-01 | S5: 2026-09-01 | T5: 2026-10-01 | U5: 2026-11-01 | V5: 2026-12-01 | W5: 2027-01-01 | X5: 2027-02-01 | Y5: 2027-03-01 | Z5: 2027-04-01 | AA5: =DATE(YEAR(Z5),MONTH(Z5)+1,DAY(Z5)) -> 2027-05-01
A6: # | B6: RRQ in Current Gas Rates ($ millions) | C6: ='Authorized Rev Req'!I84/1000 -> 6487.526278
B8: ='Rate Trajectory Dashboard'!B12 -> Pension (Distribution) - Year 2025 | C8: =IFERROR(VLOOKUP(B8,'Rate Trajectory Dashboard'!$B$12:$D$96,3,FALSE)/1000,'Rate Trajectory Report'!C7) -> 37.80584365 | D8: =IF(INDEX('Rate Trajectory Calc'!$A$6:$CQ$92,MATCH('Rate Trajectory Report'!$B8,'Rate Trajectory Calc'!$A$6:$A$92,0),MATCH('Rate Trajectory Report'!D$5,'Rate Trajectory Calc'!$A$6:$CQ$6,0))=0," ",INDEX('Rate Trajectory Calc'!$A$6:$CQ$92,MATCH('Rate Trajectory Report'!$B8,'Rate Trajectory Calc'!$A$6:$A$92,0),MATCH('Rate Trajectory Report'!D$5,'Rate Trajectory Calc'!$A$6:$CQ$6,0))/1000) -> 5.163528925 | E8: =IF(INDEX('Rate Trajectory Calc'!$A$6:$CQ$92,MATCH('Rate Trajectory Report'!$B8,'Rate Trajectory Calc'!$A$6:$A$92,0),MATCH('Rate Trajectory Report'!E$5,'Rate Trajectory Calc'!$A$6:$CQ$6,0))=0," ",INDEX('Rate Trajectory Calc'!$A$6:$CQ$92,MATCH('Rate Trajectory Report'!$B8,'Rate Trajectory Calc'!$A$6:$A$92,0),MATCH('Rate Trajectory Report'!E$5,'Rate Trajectory Calc'!$A$6:$CQ$6,0))/1000) ->  | F8: =IF(INDEX('Rate Trajectory Calc'!$A$6:$CQ$92,MATCH('Rate Trajectory Report'!$B8,'Rate Trajectory Calc'!$A$6:$A$92,0),MATCH('Rate Trajectory Report'!F$5,'Rate Trajectory Calc'!$A$6:$CQ$6,0))=0," ",INDEX('Rate Trajectory Calc'!$A$6:$CQ$92,MATCH('Rate Trajectory Report'!$B8,'Rate Trajectory Calc'!$A$6:$A$92,0),MATCH('Rate Trajectory Report'!F$5,'Rate Trajectory Calc'!$A$6:$CQ$6,0))/1000) ->  | G8: =IF(INDEX('Rate Trajectory Calc'!$A$6:$CQ$92,MATCH('Rate Trajectory Report'!$B8,'Rate Trajectory Calc'!$A$6:$A$92,0),MATCH('Rate Trajectory Report'!G$5,'Rate Trajectory Calc'!$A$6:$CQ$6,0))=0," ",INDEX('Rate Trajectory Calc'!$A$6:$CQ$92,MATCH('Rate Trajectory Report'!$B8,'Rate Trajectory Calc'!$A$6:$A$92,0),MATCH('Rate Trajectory Report'!G$5,'Rate Trajectory Calc'!$A$6:$CQ$6,0))/1000) ->  | H8: =IF(INDEX('Rate Trajectory Calc'!$A$6:$CQ$92,MATCH('Rate Trajectory Report'!$B8,'Rate Trajectory Calc'!$A$6:$A$92,0),MATCH('Rate Trajectory Report'!H$5,'Rate Trajectory Calc'!$A$6:$CQ$6,0))=0," ",INDEX('Rate Trajectory Calc'!$A$6:$CQ$92,MATCH('Rate Trajectory Report'!$B8,'Rate Trajectory Calc'!$A$6:$A$92,0),MATCH('Rate Trajectory Report'!H$5,'Rate Trajectory Calc'!$A$6:$CQ$6,0))/1000) ->  | I8: =IF(INDEX('Rate Trajectory Calc'!$A$6:$CQ$92,MATCH('Rate Trajectory Report'!$B8,'Rate Trajectory Calc'!$A$6:$A$92,0),MATCH('Rate Trajectory Report'!I$5,'Rate Trajectory Calc'!$A$6:$CQ$6,0))=0," ",INDEX('Rate Trajectory Calc'!$A$6:$CQ$92,MATCH('Rate Trajectory Report'!$B8,'Rate Trajectory Calc'!$A$6:$A$92,0),MATCH('Rate Trajectory Report'!I$5,'Rate Trajectory Calc'!$A$6:$CQ$6,0))/1000) ->  | J8: =IF(INDEX('Rate Trajectory Calc'!$A$6:$CQ$92,MATCH('Rate Trajectory Report'!$B8,'Rate Trajectory Calc'!$A$6:$A$92,0),MATCH('Rate Trajectory Report'!J$5,'Rate Trajectory Calc'!$A$6:$CQ$6,0))=0," ",INDEX('Rate Trajectory Calc'!$A$6:$CQ$92,MATCH('Rate Trajectory Report'!$B8,'Rate Trajectory Calc'!$A$6:$A$92,0),MATCH('Rate Trajectory Report'!J$5,'Rate Trajectory Calc'!$A$6:$CQ$6,0))/1000) ->  | K8: =IF(INDEX('Rate Trajectory Calc'!$A$6:$CQ$92,MATCH('Rate Trajectory Report'!$B8,'Rate Trajectory Calc'!$A$6:$A$92,0),MATCH('Rate Trajectory Report'!K$5,'Rate Trajectory Calc'!$A$6:$CQ$6,0))=0," ",INDEX('Rate Trajectory Calc'!$A$6:$CQ$92,MATCH('Rate Trajectory Report'!$B8,'Rate Trajectory Calc'!$A$6:$A$92,0),MATCH('Rate Trajectory Report'!K$5,'Rate Trajectory Calc'!$A$6:$CQ$6,0))/1000) -> -5.163528925 | L8: =IF(INDEX('Rate Trajectory Calc'!$A$6:$CQ$92,MATCH('Rate Trajectory Report'!$B8,'Rate Trajectory Calc'!$A$6:$A$92,0),MATCH('Rate Trajectory Report'!L$5,'Rate Trajectory Calc'!$A$6:$CQ$6,0))=0," ",INDEX('Rate Trajectory Calc'!$A$6:$CQ$92,MATCH('Rate Trajectory Report'!$B8,'Rate Trajectory Calc'!$A$6:$A$92,0),MATCH('Rate Trajectory Report'!L$5,'Rate Trajectory Calc'!$A$6:$CQ$6,0))/1000) ->  | M8: =IF(INDEX('Rate Trajectory Calc'!$A$6:$CQ$92,MATCH('Rate Trajectory Report'!$B8,'Rate Trajectory Calc'!$A$6:$A$92,0),MATCH('Rate Trajectory Report'!M$5,'Rate Trajectory Calc'!$A$6:$CQ$6,0))=0," ",INDEX('Rate Trajectory Calc'!$A$6:$CQ$92,MATCH('Rate Trajectory Report'!$B8,'Rate Trajectory Calc'!$A$6:$A$92,0),MATCH('Rate Trajectory Report'!M$5,'Rate Trajectory Calc'!$A$6:$CQ$6,0))/1000) ->  | N8: =IF(INDEX('Rate Trajectory Calc'!$A$6:$CQ$92,MATCH('Rate Trajectory Report'!$B8,'Rate Trajectory Calc'!$A$6:$A$92,0),MATCH('Rate Trajectory Report'!N$5,'Rate Trajectory Calc'!$A$6:$CQ$6,0))=0," ",INDEX('Rate Trajectory Calc'!$A$6:$CQ$92,MATCH('Rate Trajectory Report'!$B8,'Rate Trajectory Calc'!$A$6:$A$92,0),MATCH('Rate Trajectory Report'!N$5,'Rate Trajectory Calc'!$A$6:$CQ$6,0))/1000) ->  | O8: =IF(INDEX('Rate Trajectory Calc'!$A$6:$CQ$92,MATCH('Rate Trajectory Report'!$B8,'Rate Trajectory Calc'!$A$6:$A$92,0),MATCH('Rate Trajectory Report'!O$5,'Rate Trajectory Calc'!$A$6:$CQ$6,0))=0," ",INDEX('Rate Trajectory Calc'!$A$6:$CQ$92,MATCH('Rate Trajectory Report'!$B8,'Rate Trajectory Calc'!$A$6:$A$92,0),MATCH('Rate Trajectory Report'!O$5,'Rate Trajectory Calc'!$A$6:$CQ$6,0))/1000) ->  | P8: =IF(INDEX('Rate Trajectory Calc'!$A$6:$CQ$92,MATCH('Rate Trajectory Report'!$B8,'Rate Trajectory Calc'!$A$6:$A$92,0),MATCH('Rate Trajectory Report'!P$5,'Rate Trajectory Calc'!$A$6:$CQ$6,0))=0," ",INDEX('Rate Trajectory Calc'!$A$6:$CQ$92,MATCH('Rate Trajectory Report'!$B8,'Rate Trajectory Calc'!$A$6:$A$92,0),MATCH('Rate Trajectory Report'!P$5,'Rate Trajectory Calc'!$A$6:$CQ$6,0))/1000) ->  | Q8: =IF(INDEX('Rate Trajectory Calc'!$A$6:$CQ$92,MATCH('Rate Trajectory Report'!$B8,'Rate Trajectory Calc'!$A$6:$A$92,0),MATCH('Rate Trajectory Report'!Q$5,'Rate Trajectory Calc'!$A$6:$CQ$6,0))=0," ",INDEX('Rate Trajectory Calc'!$A$6:$CQ$92,MATCH('Rate Trajectory Report'!$B8,'Rate Trajectory Calc'!$A$6:$A$92,0),MATCH('Rate Trajectory Report'!Q$5,'Rate Trajectory Calc'!$A$6:$CQ$6,0))/1000) ->  | R8: =IF(INDEX('Rate Trajectory Calc'!$A$6:$CQ$92,MATCH('Rate Trajectory Report'!$B8,'Rate Trajectory Calc'!$A$6:$A$92,0),MATCH('Rate Trajectory Report'!R$5,'Rate Trajectory Calc'!$A$6:$CQ$6,0))=0," ",INDEX('Rate Trajectory Calc'!$A$6:$CQ$92,MATCH('Rate Trajectory Report'!$B8,'Rate Trajectory Calc'!$A$6:$A$92,0),MATCH('Rate Trajectory Report'!R$5,'Rate Trajectory Calc'!$A$6:$CQ$6,0))/1000) ->  | S8: =IF(INDEX('Rate Trajectory Calc'!$A$6:$CQ$92,MATCH('Rate Trajectory Report'!$B8,'Rate Trajectory Calc'!$A$6:$A$92,0),MATCH('Rate Trajectory Report'!S$5,'Rate Trajectory Calc'!$A$6:$CQ$6,0))=0," ",INDEX('Rate Trajectory Calc'!$A$6:$CQ$92,MATCH('Rate Trajectory Report'!$B8,'Rate Trajectory Calc'!$A$6:$A$92,0),MATCH('Rate Trajectory Report'!S$5,'Rate Trajectory Calc'!$A$6:$CQ$6,0))/1000) ->  | T8: =IF(INDEX('Rate Trajectory Calc'!$A$6:$CQ$92,MATCH('Rate Trajectory Report'!$B8,'Rate Trajectory Calc'!$A$6:$A$92,0),MATCH('Rate Trajectory Report'!T$5,'Rate Trajectory Calc'!$A$6:$CQ$6,0))=0," ",INDEX('Rate Trajectory Calc'!$A$6:$CQ$92,MATCH('Rate Trajectory Report'!$B8,'Rate Trajectory Calc'!$A$6:$A$92,0),MATCH('Rate Trajectory Report'!T$5,'Rate Trajectory Calc'!$A$6:$CQ$6,0))/1000) ->  | U8: =IF(INDEX('Rate Trajectory Calc'!$A$6:$CQ$92,MATCH('Rate Trajectory Report'!$B8,'Rate Trajectory Calc'!$A$6:$A$92,0),MATCH('Rate Trajectory Report'!U$5,'Rate Trajectory Calc'!$A$6:$CQ$6,0))=0," ",INDEX('Rate Trajectory Calc'!$A$6:$CQ$92,MATCH('Rate Trajectory Report'!$B8,'Rate Trajectory Calc'!$A$6:$A$92,0),MATCH('Rate Trajectory Report'!U$5,'Rate Trajectory Calc'!$A$6:$CQ$6,0))/1000) ->  | V8: =IF(INDEX('Rate Trajectory Calc'!$A$6:$CQ$92,MATCH('Rate Trajectory Report'!$B8,'Rate Trajectory Calc'!$A$6:$A$92,0),MATCH('Rate Trajectory Report'!V$5,'Rate Trajectory Calc'!$A$6:$CQ$6,0))=0," ",INDEX('Rate Trajectory Calc'!$A$6:$CQ$92,MATCH('Rate Trajectory Report'!$B8,'Rate Trajectory Calc'!$A$6:$A$92,0),MATCH('Rate Trajectory Report'!V$5,'Rate Trajectory Calc'!$A$6:$CQ$6,0))/1000) ->  | W8: =IF(INDEX('Rate Trajectory Calc'!$A$6:$CQ$92,MATCH('Rate Trajectory Report'!$B8,'Rate Trajectory Calc'!$A$6:$A$92,0),MATCH('Rate Trajectory Report'!W$5,'Rate Trajectory Calc'!$A$6:$CQ$6,0))=0," ",INDEX('Rate Trajectory Calc'!$A$6:$CQ$92,MATCH('Rate Trajectory Report'!$B8,'Rate Trajectory Calc'!$A$6:$A$92,0),MATCH('Rate Trajectory Report'!W$5,'Rate Trajectory Calc'!$A$6:$CQ$6,0))/1000) ->  | X8: =IF(INDEX('Rate Trajectory Calc'!$A$6:$CQ$92,MATCH('Rate Trajectory Report'!$B8,'Rate Trajectory Calc'!$A$6:$A$92,0),MATCH('Rate Trajectory Report'!X$5,'Rate Trajectory Calc'!$A$6:$CQ$6,0))=0," ",INDEX('Rate Trajectory Calc'!$A$6:$CQ$92,MATCH('Rate Trajectory Report'!$B8,'Rate Trajectory Calc'!$A$6:$A$92,0),MATCH('Rate Trajectory Report'!X$5,'Rate Trajectory Calc'!$A$6:$CQ$6,0))/1000) ->  | Y8: =IF(INDEX('Rate Trajectory Calc'!$A$6:$CQ$92,MATCH('Rate Trajectory Report'!$B8,'Rate Trajectory Calc'!$A$6:$A$92,0),MATCH('Rate Trajectory Report'!Y$5,'Rate Trajectory Calc'!$A$6:$CQ$6,0))=0," ",INDEX('Rate Trajectory Calc'!$A$6:$CQ$92,MATCH('Rate Trajectory Report'!$B8,'Rate Trajectory Calc'!$A$6:$A$92,0),MATCH('Rate Trajectory Report'!Y$5,'Rate Trajectory Calc'!$A$6:$CQ$6,0))/1000) ->  | Z8: =IF(INDEX('Rate Trajectory Calc'!$A$6:$CQ$92,MATCH('Rate Trajectory Report'!$B8,'Rate Trajectory Calc'!$A$6:$A$92,0),MATCH('Rate Trajectory Report'!Z$5,'Rate Trajectory Calc'!$A$6:$CQ$6,0))=0," ",INDEX('Rate Trajectory Calc'!$A$6:$CQ$92,MATCH('Rate Trajectory Report'!$B8,'Rate Trajectory Calc'!$A$6:$A$92,0),MATCH('Rate Trajectory Report'!Z$5,'Rate Trajectory Calc'!$A$6:$CQ$6,0))/1000) ->  | AA8: =IF(INDEX('Rate Trajectory Calc'!$A$6:$CQ$92,MATCH('Rate Trajectory Report'!$B8,'Rate Trajectory Calc'!$A$6:$A$92,0),MATCH('Rate Trajectory Report'!AA$5,'Rate Trajectory Calc'!$A$6:$CQ$6,0))=0," ",INDEX('Rate Trajectory Calc'!$A$6:$CQ$92,MATCH('Rate Trajectory Report'!$B8,'Rate Trajectory Calc'!$A$6:$A$92,0),MATCH('Rate Trajectory Report'!AA$5,'Rate Trajectory Calc'!$A$6:$CQ$6,0))/1000) -> 
B9: ='Rate Trajectory Dashboard'!B13 -> Pension (Distribution) - Year 2026 | C9: =IFERROR(VLOOKUP(B9,'Rate Trajectory Dashboard'!$B$12:$D$96,3,FALSE)/1000,'Rate Trajectory Report'!C8) -> 37.80584365 | D9: =IF(INDEX('Rate Trajectory Calc'!$A$6:$CQ$92,MATCH('Rate Trajectory Report'!$B9,'Rate Trajectory Calc'!$A$6:$A$92,0),MATCH('Rate Trajectory Report'!D$5,'Rate Trajectory Calc'!$A$6:$CQ$6,0))=0," ",INDEX('Rate Trajectory Calc'!$A$6:$CQ$92,MATCH('Rate Trajectory Report'!$B9,'Rate Trajectory Calc'!$A$6:$A$92,0),MATCH('Rate Trajectory Report'!D$5,'Rate Trajectory Calc'!$A$6:$CQ$6,0))/1000) ->  | E9: =IF(INDEX('Rate Trajectory Calc'!$A$6:$CQ$92,MATCH('Rate Trajectory Report'!$B9,'Rate Trajectory Calc'!$A$6:$A$92,0),MATCH('Rate Trajectory Report'!E$5,'Rate Trajectory Calc'!$A$6:$CQ$6,0))=0," ",INDEX('Rate Trajectory Calc'!$A$6:$CQ$92,MATCH('Rate Trajectory Report'!$B9,'Rate Trajectory Calc'!$A$6:$A$92,0),MATCH('Rate Trajectory Report'!E$5,'Rate Trajectory Calc'!$A$6:$CQ$6,0))/1000) ->  | F9: =IF(INDEX('Rate Trajectory Calc'!$A$6:$CQ$92,MATCH('Rate Trajectory Report'!$B9,'Rate Trajectory Calc'!$A$6:$A$92,0),MATCH('Rate Trajectory Report'!F$5,'Rate Trajectory Calc'!$A$6:$CQ$6,0))=0," ",INDEX('Rate Trajectory Calc'!$A$6:$CQ$92,MATCH('Rate Trajectory Report'!$B9,'Rate Trajectory Calc'!$A$6:$A$92,0),MATCH('Rate Trajectory Report'!F$5,'Rate Trajectory Calc'!$A$6:$CQ$6,0))/1000) ->  | G9: =IF(INDEX('Rate Trajectory Calc'!$A$6:$CQ$92,MATCH('Rate Trajectory Report'!$B9,'Rate Trajectory Calc'!$A$6:$A$92,0),MATCH('Rate Trajectory Report'!G$5,'Rate Trajectory Calc'!$A$6:$CQ$6,0))=0," ",INDEX('Rate Trajectory Calc'!$A$6:$CQ$92,MATCH('Rate Trajectory Report'!$B9,'Rate Trajectory Calc'!$A$6:$A$92,0),MATCH('Rate Trajectory Report'!G$5,'Rate Trajectory Calc'!$A$6:$CQ$6,0))/1000) ->  | H9: =IF(INDEX('Rate Trajectory Calc'!$A$6:$CQ$92,MATCH('Rate Trajectory Report'!$B9,'Rate Trajectory Calc'!$A$6:$A$92,0),MATCH('Rate Trajectory Report'!H$5,'Rate Trajectory Calc'!$A$6:$CQ$6,0))=0," ",INDEX('Rate Trajectory Calc'!$A$6:$CQ$92,MATCH('Rate Trajectory Report'!$B9,'Rate Trajectory Calc'!$A$6:$A$92,0),MATCH('Rate Trajectory Report'!H$5,'Rate Trajectory Calc'!$A$6:$CQ$6,0))/1000) ->  | I9: =IF(INDEX('Rate Trajectory Calc'!$A$6:$CQ$92,MATCH('Rate Trajectory Report'!$B9,'Rate Trajectory Calc'!$A$6:$A$92,0),MATCH('Rate Trajectory Report'!I$5,'Rate Trajectory Calc'!$A$6:$CQ$6,0))=0," ",INDEX('Rate Trajectory Calc'!$A$6:$CQ$92,MATCH('Rate Trajectory Report'!$B9,'Rate Trajectory Calc'!$A$6:$A$92,0),MATCH('Rate Trajectory Report'!I$5,'Rate Trajectory Calc'!$A$6:$CQ$6,0))/1000) ->  | J9: =IF(INDEX('Rate Trajectory Calc'!$A$6:$CQ$92,MATCH('Rate Trajectory Report'!$B9,'Rate Trajectory Calc'!$A$6:$A$92,0),MATCH('Rate Trajectory Report'!J$5,'Rate Trajectory Calc'!$A$6:$CQ$6,0))=0," ",INDEX('Rate Trajectory Calc'!$A$6:$CQ$92,MATCH('Rate Trajectory Report'!$B9,'Rate Trajectory Calc'!$A$6:$A$92,0),MATCH('Rate Trajectory Report'!J$5,'Rate Trajectory Calc'!$A$6:$CQ$6,0))/1000) ->  | K9: =IF(INDEX('Rate Trajectory Calc'!$A$6:$CQ$92,MATCH('Rate Trajectory Report'!$B9,'Rate Trajectory Calc'!$A$6:$A$92,0),MATCH('Rate Trajectory Report'!K$5,'Rate Trajectory Calc'!$A$6:$CQ$6,0))=0," ",INDEX('Rate Trajectory Calc'!$A$6:$CQ$92,MATCH('Rate Trajectory Report'!$B9,'Rate Trajectory Calc'!$A$6:$A$92,0),MATCH('Rate Trajectory Report'!K$5,'Rate Trajectory Calc'!$A$6:$CQ$6,0))/1000) -> 5.163528925 | L9: =IF(INDEX('Rate Trajectory Calc'!$A$6:$CQ$92,MATCH('Rate Trajectory Report'!$B9,'Rate Trajectory Calc'!$A$6:$A$92,0),MATCH('Rate Trajectory Report'!L$5,'Rate Trajectory Calc'!$A$6:$CQ$6,0))=0," ",INDEX('Rate Trajectory Calc'!$A$6:$CQ$92,MATCH('Rate Trajectory Report'!$B9,'Rate Trajectory Calc'!$A$6:$A$92,0),MATCH('Rate Trajectory Report'!L$5,'Rate Trajectory Calc'!$A$6:$CQ$6,0))/1000) ->  | M9: =IF(INDEX('Rate Trajectory Calc'!$A$6:$CQ$92,MATCH('Rate Trajectory Report'!$B9,'Rate Trajectory Calc'!$A$6:$A$92,0),MATCH('Rate Trajectory Report'!M$5,'Rate Trajectory Calc'!$A$6:$CQ$6,0))=0," ",INDEX('Rate Trajectory Calc'!$A$6:$CQ$92,MATCH('Rate Trajectory Report'!$B9,'Rate Trajectory Calc'!$A$6:$A$92,0),MATCH('Rate Trajectory Report'!M$5,'Rate Trajectory Calc'!$A$6:$CQ$6,0))/1000) ->  | N9: =IF(INDEX('Rate Trajectory Calc'!$A$6:$CQ$92,MATCH('Rate Trajectory Report'!$B9,'Rate Trajectory Calc'!$A$6:$A$92,0),MATCH('Rate Trajectory Report'!N$5,'Rate Trajectory Calc'!$A$6:$CQ$6,0))=0," ",INDEX('Rate Trajectory Calc'!$A$6:$CQ$92,MATCH('Rate Trajectory Report'!$B9,'Rate Trajectory Calc'!$A$6:$A$92,0),MATCH('Rate Trajectory Report'!N$5,'Rate Trajectory Calc'!$A$6:$CQ$6,0))/1000) ->  | O9: =IF(INDEX('Rate Trajectory Calc'!$A$6:$CQ$92,MATCH('Rate Trajectory Report'!$B9,'Rate Trajectory Calc'!$A$6:$A$92,0),MATCH('Rate Trajectory Report'!O$5,'Rate Trajectory Calc'!$A$6:$CQ$6,0))=0," ",INDEX('Rate Trajectory Calc'!$A$6:$CQ$92,MATCH('Rate Trajectory Report'!$B9,'Rate Trajectory Calc'!$A$6:$A$92,0),MATCH('Rate Trajectory Report'!O$5,'Rate Trajectory Calc'!$A$6:$CQ$6,0))/1000) ->  | P9: =IF(INDEX('Rate Trajectory Calc'!$A$6:$CQ$92,MATCH('Rate Trajectory Report'!$B9,'Rate Trajectory Calc'!$A$6:$A$92,0),MATCH('Rate Trajectory Report'!P$5,'Rate Trajectory Calc'!$A$6:$CQ$6,0))=0," ",INDEX('Rate Trajectory Calc'!$A$6:$CQ$92,MATCH('Rate Trajectory Report'!$B9,'Rate Trajectory Calc'!$A$6:$A$92,0),MATCH('Rate Trajectory Report'!P$5,'Rate Trajectory Calc'!$A$6:$CQ$6,0))/1000) ->  | Q9: =IF(INDEX('Rate Trajectory Calc'!$A$6:$CQ$92,MATCH('Rate Trajectory Report'!$B9,'Rate Trajectory Calc'!$A$6:$A$92,0),MATCH('Rate Trajectory Report'!Q$5,'Rate Trajectory Calc'!$A$6:$CQ$6,0))=0," ",INDEX('Rate Trajectory Calc'!$A$6:$CQ$92,MATCH('Rate Trajectory Report'!$B9,'Rate Trajectory Calc'!$A$6:$A$92,0),MATCH('Rate Trajectory Report'!Q$5,'Rate Trajectory Calc'!$A$6:$CQ$6,0))/1000) ->  | R9: =IF(INDEX('Rate Trajectory Calc'!$A$6:$CQ$92,MATCH('Rate Trajectory Report'!$B9,'Rate Trajectory Calc'!$A$6:$A$92,0),MATCH('Rate Trajectory Report'!R$5,'Rate Trajectory Calc'!$A$6:$CQ$6,0))=0," ",INDEX('Rate Trajectory Calc'!$A$6:$CQ$92,MATCH('Rate Trajectory Report'!$B9,'Rate Trajectory Calc'!$A$6:$A$92,0),MATCH('Rate Trajectory Report'!R$5,'Rate Trajectory Calc'!$A$6:$CQ$6,0))/1000) ->  | S9: =IF(INDEX('Rate Trajectory Calc'!$A$6:$CQ$92,MATCH('Rate Trajectory Report'!$B9,'Rate Trajectory Calc'!$A$6:$A$92,0),MATCH('Rate Trajectory Report'!S$5,'Rate Trajectory Calc'!$A$6:$CQ$6,0))=0," ",INDEX('Rate Trajectory Calc'!$A$6:$CQ$92,MATCH('Rate Trajectory Report'!$B9,'Rate Trajectory Calc'!$A$6:$A$92,0),MATCH('Rate Trajectory Report'!S$5,'Rate Trajectory Calc'!$A$6:$CQ$6,0))/1000) ->  | T9: =IF(INDEX('Rate Trajectory Calc'!$A$6:$CQ$92,MATCH('Rate Trajectory Report'!$B9,'Rate Trajectory Calc'!$A$6:$A$92,0),MATCH('Rate Trajectory Report'!T$5,'Rate Trajectory Calc'!$A$6:$CQ$6,0))=0," ",INDEX('Rate Trajectory Calc'!$A$6:$CQ$92,MATCH('Rate Trajectory Report'!$B9,'Rate Trajectory Calc'!$A$6:$A$92,0),MATCH('Rate Trajectory Report'!T$5,'Rate Trajectory Calc'!$A$6:$CQ$6,0))/1000) ->  | U9: =IF(INDEX('Rate Trajectory Calc'!$A$6:$CQ$92,MATCH('Rate Trajectory Report'!$B9,'Rate Trajectory Calc'!$A$6:$A$92,0),MATCH('Rate Trajectory Report'!U$5,'Rate Trajectory Calc'!$A$6:$CQ$6,0))=0," ",INDEX('Rate Trajectory Calc'!$A$6:$CQ$92,MATCH('Rate Trajectory Report'!$B9,'Rate Trajectory Calc'!$A$6:$A$92,0),MATCH('Rate Trajectory Report'!U$5,'Rate Trajectory Calc'!$A$6:$CQ$6,0))/1000) ->  | V9: =IF(INDEX('Rate Trajectory Calc'!$A$6:$CQ$92,MATCH('Rate Trajectory Report'!$B9,'Rate Trajectory Calc'!$A$6:$A$92,0),MATCH('Rate Trajectory Report'!V$5,'Rate Trajectory Calc'!$A$6:$CQ$6,0))=0," ",INDEX('Rate Trajectory Calc'!$A$6:$CQ$92,MATCH('Rate Trajectory Report'!$B9,'Rate Trajectory Calc'!$A$6:$A$92,0),MATCH('Rate Trajectory Report'!V$5,'Rate Trajectory Calc'!$A$6:$CQ$6,0))/1000) ->  | W9: =IF(INDEX('Rate Trajectory Calc'!$A$6:$CQ$92,MATCH('Rate Trajectory Report'!$B9,'Rate Trajectory Calc'!$A$6:$A$92,0),MATCH('Rate Trajectory Report'!W$5,'Rate Trajectory Calc'!$A$6:$CQ$6,0))=0," ",INDEX('Rate Trajectory Calc'!$A$6:$CQ$92,MATCH('Rate Trajectory Report'!$B9,'Rate Trajectory Calc'!$A$6:$A$92,0),MATCH('Rate Trajectory Report'!W$5,'Rate Trajectory Calc'!$A$6:$CQ$6,0))/1000) -> -5.163528925 | X9: =IF(INDEX('Rate Trajectory Calc'!$A$6:$CQ$92,MATCH('Rate Trajectory Report'!$B9,'Rate Trajectory Calc'!$A$6:$A$92,0),MATCH('Rate Trajectory Report'!X$5,'Rate Trajectory Calc'!$A$6:$CQ$6,0))=0," ",INDEX('Rate Trajectory Calc'!$A$6:$CQ$92,MATCH('Rate Trajectory Report'!$B9,'Rate Trajectory Calc'!$A$6:$A$92,0),MATCH('Rate Trajectory Report'!X$5,'Rate Trajectory Calc'!$A$6:$CQ$6,0))/1000) ->  | Y9: =IF(INDEX('Rate Trajectory Calc'!$A$6:$CQ$92,MATCH('Rate Trajectory Report'!$B9,'Rate Trajectory Calc'!$A$6:$A$92,0),MATCH('Rate Trajectory Report'!Y$5,'Rate Trajectory Calc'!$A$6:$CQ$6,0))=0," ",INDEX('Rate Trajectory Calc'!$A$6:$CQ$92,MATCH('Rate Trajectory Report'!$B9,'Rate Trajectory Calc'!$A$6:$A$92,0),MATCH('Rate Trajectory Report'!Y$5,'Rate Trajectory Calc'!$A$6:$CQ$6,0))/1000) ->  | Z9: =IF(INDEX('Rate Trajectory Calc'!$A$6:$CQ$92,MATCH('Rate Trajectory Report'!$B9,'Rate Trajectory Calc'!$A$6:$A$92,0),MATCH('Rate Trajectory Report'!Z$5,'Rate Trajectory Calc'!$A$6:$CQ$6,0))=0," ",INDEX('Rate Trajectory Calc'!$A$6:$CQ$92,MATCH('Rate Trajectory Report'!$B9,'Rate Trajectory Calc'!$A$6:$A$92,0),MATCH('Rate Trajectory Report'!Z$5,'Rate Trajectory Calc'!$A$6:$CQ$6,0))/1000) ->  | AA9: =IF(INDEX('Rate Trajectory Calc'!$A$6:$CQ$92,MATCH('Rate Trajectory Report'!$B9,'Rate Trajectory Calc'!$A$6:$A$92,0),MATCH('Rate Trajectory Report'!AA$5,'Rate Trajectory Calc'!$A$6:$CQ$6,0))=0," ",INDEX('Rate Trajectory Calc'!$A$6:$CQ$92,MATCH('Rate Trajectory Report'!$B9,'Rate Trajectory Calc'!$A$6:$A$92,0),MATCH('Rate Trajectory Report'!AA$5,'Rate Trajectory Calc'!$A$6:$CQ$6,0))/1000) -> 
B10: ='Rate Trajectory Dashboard'!B14 -> Pension (Distribution) - Year 2027 | C10: =IFERROR(VLOOKUP(B10,'Rate Trajectory Dashboard'!$B$12:$D$96,3,FALSE)/1000,'Rate Trajectory Report'!C9) -> 37.80584365 | D10: =IF(INDEX('Rate Trajectory Calc'!$A$6:$CQ$92,MATCH('Rate Trajectory Report'!$B10,'Rate Trajectory Calc'!$A$6:$A$92,0),MATCH('Rate Trajectory Report'!D$5,'Rate Trajectory Calc'!$A$6:$CQ$6,0))=0," ",INDEX('Rate Trajectory Calc'!$A$6:$CQ$92,MATCH('Rate Trajectory Report'!$B10,'Rate Trajectory Calc'!$A$6:$A$92,0),MATCH('Rate Trajectory Report'!D$5,'Rate Trajectory Calc'!$A$6:$CQ$6,0))/1000) ->  | E10: =IF(INDEX('Rate Trajectory Calc'!$A$6:$CQ$92,MATCH('Rate Trajectory Report'!$B10,'Rate Trajectory Calc'!$A$6:$A$92,0),MATCH('Rate Trajectory Report'!E$5,'Rate Trajectory Calc'!$A$6:$CQ$6,0))=0," ",INDEX('Rate Trajectory Calc'!$A$6:$CQ$92,MATCH('Rate Trajectory Report'!$B10,'Rate Trajectory Calc'!$A$6:$A$92,0),MATCH('Rate Trajectory Report'!E$5,'Rate Trajectory Calc'!$A$6:$CQ$6,0))/1000) ->  | F10: =IF(INDEX('Rate Trajectory Calc'!$A$6:$CQ$92,MATCH('Rate Trajectory Report'!$B10,'Rate Trajectory Calc'!$A$6:$A$92,0),MATCH('Rate Trajectory Report'!F$5,'Rate Trajectory Calc'!$A$6:$CQ$6,0))=0," ",INDEX('Rate Trajectory Calc'!$A$6:$CQ$92,MATCH('Rate Trajectory Report'!$B10,'Rate Trajectory Calc'!$A$6:$A$92,0),MATCH('Rate Trajectory Report'!F$5,'Rate Trajectory Calc'!$A$6:$CQ$6,0))/1000) ->  | G10: =IF(INDEX('Rate Trajectory Calc'!$A$6:$CQ$92,MATCH('Rate Trajectory Report'!$B10,'Rate Trajectory Calc'!$A$6:$A$92,0),MATCH('Rate Trajectory Report'!G$5,'Rate Trajectory Calc'!$A$6:$CQ$6,0))=0," ",INDEX('Rate Trajectory Calc'!$A$6:$CQ$92,MATCH('Rate Trajectory Report'!$B10,'Rate Trajectory Calc'!$A$6:$A$92,0),MATCH('Rate Trajectory Report'!G$5,'Rate Trajectory Calc'!$A$6:$CQ$6,0))/1000) ->  | H10: =IF(INDEX('Rate Trajectory Calc'!$A$6:$CQ$92,MATCH('Rate Trajectory Report'!$B10,'Rate Trajectory Calc'!$A$6:$A$92,0),MATCH('Rate Trajectory Report'!H$5,'Rate Trajectory Calc'!$A$6:$CQ$6,0))=0," ",INDEX('Rate Trajectory Calc'!$A$6:$CQ$92,MATCH('Rate Trajectory Report'!$B10,'Rate Trajectory Calc'!$A$6:$A$92,0),MATCH('Rate Trajectory Report'!H$5,'Rate Trajectory Calc'!$A$6:$CQ$6,0))/1000) ->  | I10: =IF(INDEX('Rate Trajectory Calc'!$A$6:$CQ$92,MATCH('Rate Trajectory Report'!$B10,'Rate Trajectory Calc'!$A$6:$A$92,0),MATCH('Rate Trajectory Report'!I$5,'Rate Trajectory Calc'!$A$6:$CQ$6,0))=0," ",INDEX('Rate Trajectory Calc'!$A$6:$CQ$92,MATCH('Rate Trajectory Report'!$B10,'Rate Trajectory Calc'!$A$6:$A$92,0),MATCH('Rate Trajectory Report'!I$5,'Rate Trajectory Calc'!$A$6:$CQ$6,0))/1000) ->  | J10: =IF(INDEX('Rate Trajectory Calc'!$A$6:$CQ$92,MATCH('Rate Trajectory Report'!$B10,'Rate Trajectory Calc'!$A$6:$A$92,0),MATCH('Rate Trajectory Report'!J$5,'Rate Trajectory Calc'!$A$6:$CQ$6,0))=0," ",INDEX('Rate Trajectory Calc'!$A$6:$CQ$92,MATCH('Rate Trajectory Report'!$B10,'Rate Trajectory Calc'!$A$6:$A$92,0),MATCH('Rate Trajectory Report'!J$5,'Rate Trajectory Calc'!$A$6:$CQ$6,0))/1000) ->  | K10: =IF(INDEX('Rate Trajectory Calc'!$A$6:$CQ$92,MATCH('Rate Trajectory Report'!$B10,'Rate Trajectory Calc'!$A$6:$A$92,0),MATCH('Rate Trajectory Report'!K$5,'Rate Trajectory Calc'!$A$6:$CQ$6,0))=0," ",INDEX('Rate Trajectory Calc'!$A$6:$CQ$92,MATCH('Rate Trajectory Report'!$B10,'Rate Trajectory Calc'!$A$6:$A$92,0),MATCH('Rate Trajectory Report'!K$5,'Rate Trajectory Calc'!$A$6:$CQ$6,0))/1000) ->  | L10: =IF(INDEX('Rate Trajectory Calc'!$A$6:$CQ$92,MATCH('Rate Trajectory Report'!$B10,'Rate Trajectory Calc'!$A$6:$A$92,0),MATCH('Rate Trajectory Report'!L$5,'Rate Trajectory Calc'!$A$6:$CQ$6,0))=0," ",INDEX('Rate Trajectory Calc'!$A$6:$CQ$92,MATCH('Rate Trajectory Report'!$B10,'Rate Trajectory Calc'!$A$6:$A$92,0),MATCH('Rate Trajectory Report'!L$5,'Rate Trajectory Calc'!$A$6:$CQ$6,0))/1000) ->  | M10: =IF(INDEX('Rate Trajectory Calc'!$A$6:$CQ$92,MATCH('Rate Trajectory Report'!$B10,'Rate Trajectory Calc'!$A$6:$A$92,0),MATCH('Rate Trajectory Report'!M$5,'Rate Trajectory Calc'!$A$6:$CQ$6,0))=0," ",INDEX('Rate Trajectory Calc'!$A$6:$CQ$92,MATCH('Rate Trajectory Report'!$B10,'Rate Trajectory Calc'!$A$6:$A$92,0),MATCH('Rate Trajectory Report'!M$5,'Rate Trajectory Calc'!$A$6:$CQ$6,0))/1000) ->  | N10: =IF(INDEX('Rate Trajectory Calc'!$A$6:$CQ$92,MATCH('Rate Trajectory Report'!$B10,'Rate Trajectory Calc'!$A$6:$A$92,0),MATCH('Rate Trajectory Report'!N$5,'Rate Trajectory Calc'!$A$6:$CQ$6,0))=0," ",INDEX('Rate Trajectory Calc'!$A$6:$CQ$92,MATCH('Rate Trajectory Report'!$B10,'Rate Trajectory Calc'!$A$6:$A$92,0),MATCH('Rate Trajectory Report'!N$5,'Rate Trajectory Calc'!$A$6:$CQ$6,0))/1000) ->  | O10: =IF(INDEX('Rate Trajectory Calc'!$A$6:$CQ$92,MATCH('Rate Trajectory Report'!$B10,'Rate Trajectory Calc'!$A$6:$A$92,0),MATCH('Rate Trajectory Report'!O$5,'Rate Trajectory Calc'!$A$6:$CQ$6,0))=0," ",INDEX('Rate Trajectory Calc'!$A$6:$CQ$92,MATCH('Rate Trajectory Report'!$B10,'Rate Trajectory Calc'!$A$6:$A$92,0),MATCH('Rate Trajectory Report'!O$5,'Rate Trajectory Calc'!$A$6:$CQ$6,0))/1000) ->  | P10: =IF(INDEX('Rate Trajectory Calc'!$A$6:$CQ$92,MATCH('Rate Trajectory Report'!$B10,'Rate Trajectory Calc'!$A$6:$A$92,0),MATCH('Rate Trajectory Report'!P$5,'Rate Trajectory Calc'!$A$6:$CQ$6,0))=0," ",INDEX('Rate Trajectory Calc'!$A$6:$CQ$92,MATCH('Rate Trajectory Report'!$B10,'Rate Trajectory Calc'!$A$6:$A$92,0),MATCH('Rate Trajectory Report'!P$5,'Rate Trajectory Calc'!$A$6:$CQ$6,0))/1000) ->  | Q10: =IF(INDEX('Rate Trajectory Calc'!$A$6:$CQ$92,MATCH('Rate Trajectory Report'!$B10,'Rate Trajectory Calc'!$A$6:$A$92,0),MATCH('Rate Trajectory Report'!Q$5,'Rate Trajectory Calc'!$A$6:$CQ$6,0))=0," ",INDEX('Rate Trajectory Calc'!$A$6:$CQ$92,MATCH('Rate Trajectory Report'!$B10,'Rate Trajectory Calc'!$A$6:$A$92,0),MATCH('Rate Trajectory Report'!Q$5,'Rate Trajectory Calc'!$A$6:$CQ$6,0))/1000) ->  | R10: =IF(INDEX('Rate Trajectory Calc'!$A$6:$CQ$92,MATCH('Rate Trajectory Report'!$B10,'Rate Trajectory Calc'!$A$6:$A$92,0),MATCH('Rate Trajectory Report'!R$5,'Rate Trajectory Calc'!$A$6:$CQ$6,0))=0," ",INDEX('Rate Trajectory Calc'!$A$6:$CQ$92,MATCH('Rate Trajectory Report'!$B10,'Rate Trajectory Calc'!$A$6:$A$92,0),MATCH('Rate Trajectory Report'!R$5,'Rate Trajectory Calc'!$A$6:$CQ$6,0))/1000) ->  | S10: =IF(INDEX('Rate Trajectory Calc'!$A$6:$CQ$92,MATCH('Rate Trajectory Report'!$B10,'Rate Trajectory Calc'!$A$6:$A$92,0),MATCH('Rate Trajectory Report'!S$5,'Rate Trajectory Calc'!$A$6:$CQ$6,0))=0," ",INDEX('Rate Trajectory Calc'!$A$6:$CQ$92,MATCH('Rate Trajectory Report'!$B10,'Rate Trajectory Calc'!$A$6:$A$92,0),MATCH('Rate Trajectory Report'!S$5,'Rate Trajectory Calc'!$A$6:$CQ$6,0))/1000) ->  | T10: =IF(INDEX('Rate Trajectory Calc'!$A$6:$CQ$92,MATCH('Rate Trajectory Report'!$B10,'Rate Trajectory Calc'!$A$6:$A$92,0),MATCH('Rate Trajectory Report'!T$5,'Rate Trajectory Calc'!$A$6:$CQ$6,0))=0," ",INDEX('Rate Trajectory Calc'!$A$6:$CQ$92,MATCH('Rate Trajectory Report'!$B10,'Rate Trajectory Calc'!$A$6:$A$92,0),MATCH('Rate Trajectory Report'!T$5,'Rate Trajectory Calc'!$A$6:$CQ$6,0))/1000) ->  | U10: =IF(INDEX('Rate Trajectory Calc'!$A$6:$CQ$92,MATCH('Rate Trajectory Report'!$B10,'Rate Trajectory Calc'!$A$6:$A$92,0),MATCH('Rate Trajectory Report'!U$5,'Rate Trajectory Calc'!$A$6:$CQ$6,0))=0," ",INDEX('Rate Trajectory Calc'!$A$6:$CQ$92,MATCH('Rate Trajectory Report'!$B10,'Rate Trajectory Calc'!$A$6:$A$92,0),MATCH('Rate Trajectory Report'!U$5,'Rate Trajectory Calc'!$A$6:$CQ$6,0))/1000) ->  | V10: =IF(INDEX('Rate Trajectory Calc'!$A$6:$CQ$92,MATCH('Rate Trajectory Report'!$B10,'Rate Trajectory Calc'!$A$6:$A$92,0),MATCH('Rate Trajectory Report'!V$5,'Rate Trajectory Calc'!$A$6:$CQ$6,0))=0," ",INDEX('Rate Trajectory Calc'!$A$6:$CQ$92,MATCH('Rate Trajectory Report'!$B10,'Rate Trajectory Calc'!$A$6:$A$92,0),MATCH('Rate Trajectory Report'!V$5,'Rate Trajectory Calc'!$A$6:$CQ$6,0))/1000) ->  | W10: =IF(INDEX('Rate Trajectory Calc'!$A$6:$CQ$92,MATCH('Rate Trajectory Report'!$B10,'Rate Trajectory Calc'!$A$6:$A$92,0),MATCH('Rate Trajectory Report'!W$5,'Rate Trajectory Calc'!$A$6:$CQ$6,0))=0," ",INDEX('Rate Trajectory Calc'!$A$6:$CQ$92,MATCH('Rate Trajectory Report'!$B10,'Rate Trajectory Calc'!$A$6:$A$92,0),MATCH('Rate Trajectory Report'!W$5,'Rate Trajectory Calc'!$A$6:$CQ$6,0))/1000) -> 5.163528925 | X10: =IF(INDEX('Rate Trajectory Calc'!$A$6:$CQ$92,MATCH('Rate Trajectory Report'!$B10,'Rate Trajectory Calc'!$A$6:$A$92,0),MATCH('Rate Trajectory Report'!X$5,'Rate Trajectory Calc'!$A$6:$CQ$6,0))=0," ",INDEX('Rate Trajectory Calc'!$A$6:$CQ$92,MATCH('Rate Trajectory Report'!$B10,'Rate Trajectory Calc'!$A$6:$A$92,0),MATCH('Rate Trajectory Report'!X$5,'Rate Trajectory Calc'!$A$6:$CQ$6,0))/1000) ->  | Y10: =IF(INDEX('Rate Trajectory Calc'!$A$6:$CQ$92,MATCH('Rate Trajectory Report'!$B10,'Rate Trajectory Calc'!$A$6:$A$92,0),MATCH('Rate Trajectory Report'!Y$5,'Rate Trajectory Calc'!$A$6:$CQ$6,0))=0," ",INDEX('Rate Trajectory Calc'!$A$6:$CQ$92,MATCH('Rate Trajectory Report'!$B10,'Rate Trajectory Calc'!$A$6:$A$92,0),MATCH('Rate Trajectory Report'!Y$5,'Rate Trajectory Calc'!$A$6:$CQ$6,0))/1000) ->  | Z10: =IF(INDEX('Rate Trajectory Calc'!$A$6:$CQ$92,MATCH('Rate Trajectory Report'!$B10,'Rate Trajectory Calc'!$A$6:$A$92,0),MATCH('Rate Trajectory Report'!Z$5,'Rate Trajectory Calc'!$A$6:$CQ$6,0))=0," ",INDEX('Rate Trajectory Calc'!$A$6:$CQ$92,MATCH('Rate Trajectory Report'!$B10,'Rate Trajectory Calc'!$A$6:$A$92,0),MATCH('Rate Trajectory Report'!Z$5,'Rate Trajectory Calc'!$A$6:$CQ$6,0))/1000) ->  | AA10: =IF(INDEX('Rate Trajectory Calc'!$A$6:$CQ$92,MATCH('Rate Trajectory Report'!$B10,'Rate Trajectory Calc'!$A$6:$A$92,0),MATCH('Rate Trajectory Report'!AA$5,'Rate Trajectory Calc'!$A$6:$CQ$6,0))=0," ",INDEX('Rate Trajectory Calc'!$A$6:$CQ$92,MATCH('Rate Trajectory Report'!$B10,'Rate Trajectory Calc'!$A$6:$A$92,0),MATCH('Rate Trajectory Report'!AA$5,'Rate Trajectory Calc'!$A$6:$CQ$6,0))/1000) -> 
B11: ='Rate Trajectory Dashboard'!B15 -> Pension (Distribution) - Year 2028 | C11: =IFERROR(VLOOKUP(B11,'Rate Trajectory Dashboard'!$B$12:$D$96,3,FALSE)/1000,'Rate Trajectory Report'!C10) -> 37.80584365 | D11: =IF(INDEX('Rate Trajectory Calc'!$A$6:$CQ$92,MATCH('Rate Trajectory Report'!$B11,'Rate Trajectory Calc'!$A$6:$A$92,0),MATCH('Rate Trajectory Report'!D$5,'Rate Trajectory Calc'!$A$6:$CQ$6,0))=0," ",INDEX('Rate Trajectory Calc'!$A$6:$CQ$92,MATCH('Rate Trajectory Report'!$B11,'Rate Trajectory Calc'!$A$6:$A$92,0),MATCH('Rate Trajectory Report'!D$5,'Rate Trajectory Calc'!$A$6:$CQ$6,0))/1000) ->  | E11: =IF(INDEX('Rate Trajectory Calc'!$A$6:$CQ$92,MATCH('Rate Trajectory Report'!$B11,'Rate Trajectory Calc'!$A$6:$A$92,0),MATCH('Rate Trajectory Report'!E$5,'Rate Trajectory Calc'!$A$6:$CQ$6,0))=0," ",INDEX('Rate Trajectory Calc'!$A$6:$CQ$92,MATCH('Rate Trajectory Report'!$B11,'Rate Trajectory Calc'!$A$6:$A$92,0),MATCH('Rate Trajectory Report'!E$5,'Rate Trajectory Calc'!$A$6:$CQ$6,0))/1000) ->  | F11: =IF(INDEX('Rate Trajectory Calc'!$A$6:$CQ$92,MATCH('Rate Trajectory Report'!$B11,'Rate Trajectory Calc'!$A$6:$A$92,0),MATCH('Rate Trajectory Report'!F$5,'Rate Trajectory Calc'!$A$6:$CQ$6,0))=0," ",INDEX('Rate Trajectory Calc'!$A$6:$CQ$92,MATCH('Rate Trajectory Report'!$B11,'Rate Trajectory Calc'!$A$6:$A$92,0),MATCH('Rate Trajectory Report'!F$5,'Rate Trajectory Calc'!$A$6:$CQ$6,0))/1000) ->  | G11: =IF(INDEX('Rate Trajectory Calc'!$A$6:$CQ$92,MATCH('Rate Trajectory Report'!$B11,'Rate Trajectory Calc'!$A$6:$A$92,0),MATCH('Rate Trajectory Report'!G$5,'Rate Trajectory Calc'!$A$6:$CQ$6,0))=0," ",INDEX('Rate Trajectory Calc'!$A$6:$CQ$92,MATCH('Rate Trajectory Report'!$B11,'Rate Trajectory Calc'!$A$6:$A$92,0),MATCH('Rate Trajectory Report'!G$5,'Rate Trajectory Calc'!$A$6:$CQ$6,0))/1000) ->  | H11: =IF(INDEX('Rate Trajectory Calc'!$A$6:$CQ$92,MATCH('Rate Trajectory Report'!$B11,'Rate Trajectory Calc'!$A$6:$A$92,0),MATCH('Rate Trajectory Report'!H$5,'Rate Trajectory Calc'!$A$6:$CQ$6,0))=0," ",INDEX('Rate Trajectory Calc'!$A$6:$CQ$92,MATCH('Rate Trajectory Report'!$B11,'Rate Trajectory Calc'!$A$6:$A$92,0),MATCH('Rate Trajectory Report'!H$5,'Rate Trajectory Calc'!$A$6:$CQ$6,0))/1000) ->  | I11: =IF(INDEX('Rate Trajectory Calc'!$A$6:$CQ$92,MATCH('Rate Trajectory Report'!$B11,'Rate Trajectory Calc'!$A$6:$A$92,0),MATCH('Rate Trajectory Report'!I$5,'Rate Trajectory Calc'!$A$6:$CQ$6,0))=0," ",INDEX('Rate Trajectory Calc'!$A$6:$CQ$92,MATCH('Rate Trajectory Report'!$B11,'Rate Trajectory Calc'!$A$6:$A$92,0),MATCH('Rate Trajectory Report'!I$5,'Rate Trajectory Calc'!$A$6:$CQ$6,0))/1000) ->  | J11: =IF(INDEX('Rate Trajectory Calc'!$A$6:$CQ$92,MATCH('Rate Trajectory Report'!$B11,'Rate Trajectory Calc'!$A$6:$A$92,0),MATCH('Rate Trajectory Report'!J$5,'Rate Trajectory Calc'!$A$6:$CQ$6,0))=0," ",INDEX('Rate Trajectory Calc'!$A$6:$CQ$92,MATCH('Rate Trajectory Report'!$B11,'Rate Trajectory Calc'!$A$6:$A$92,0),MATCH('Rate Trajectory Report'!J$5,'Rate Trajectory Calc'!$A$6:$CQ$6,0))/1000) ->  | K11: =IF(INDEX('Rate Trajectory Calc'!$A$6:$CQ$92,MATCH('Rate Trajectory Report'!$B11,'Rate Trajectory Calc'!$A$6:$A$92,0),MATCH('Rate Trajectory Report'!K$5,'Rate Trajectory Calc'!$A$6:$CQ$6,0))=0," ",INDEX('Rate Trajectory Calc'!$A$6:$CQ$92,MATCH('Rate Trajectory Report'!$B11,'Rate Trajectory Calc'!$A$6:$A$92,0),MATCH('Rate Trajectory Report'!K$5,'Rate Trajectory Calc'!$A$6:$CQ$6,0))/1000) ->  | L11: =IF(INDEX('Rate Trajectory Calc'!$A$6:$CQ$92,MATCH('Rate Trajectory Report'!$B11,'Rate Trajectory Calc'!$A$6:$A$92,0),MATCH('Rate Trajectory Report'!L$5,'Rate Trajectory Calc'!$A$6:$CQ$6,0))=0," ",INDEX('Rate Trajectory Calc'!$A$6:$CQ$92,MATCH('Rate Trajectory Report'!$B11,'Rate Trajectory Calc'!$A$6:$A$92,0),MATCH('Rate Trajectory Report'!L$5,'Rate Trajectory Calc'!$A$6:$CQ$6,0))/1000) ->  | M11: =IF(INDEX('Rate Trajectory Calc'!$A$6:$CQ$92,MATCH('Rate Trajectory Report'!$B11,'Rate Trajectory Calc'!$A$6:$A$92,0),MATCH('Rate Trajectory Report'!M$5,'Rate Trajectory Calc'!$A$6:$CQ$6,0))=0," ",INDEX('Rate Trajectory Calc'!$A$6:$CQ$92,MATCH('Rate Trajectory Report'!$B11,'Rate Trajectory Calc'!$A$6:$A$92,0),MATCH('Rate Trajectory Report'!M$5,'Rate Trajectory Calc'!$A$6:$CQ$6,0))/1000) ->  | N11: =IF(INDEX('Rate Trajectory Calc'!$A$6:$CQ$92,MATCH('Rate Trajectory Report'!$B11,'Rate Trajectory Calc'!$A$6:$A$92,0),MATCH('Rate Trajectory Report'!N$5,'Rate Trajectory Calc'!$A$6:$CQ$6,0))=0," ",INDEX('Rate Trajectory Calc'!$A$6:$CQ$92,MATCH('Rate Trajectory Report'!$B11,'Rate Trajectory Calc'!$A$6:$A$92,0),MATCH('Rate Trajectory Report'!N$5,'Rate Trajectory Calc'!$A$6:$CQ$6,0))/1000) ->  | O11: =IF(INDEX('Rate Trajectory Calc'!$A$6:$CQ$92,MATCH('Rate Trajectory Report'!$B11,'Rate Trajectory Calc'!$A$6:$A$92,0),MATCH('Rate Trajectory Report'!O$5,'Rate Trajectory Calc'!$A$6:$CQ$6,0))=0," ",INDEX('Rate Trajectory Calc'!$A$6:$CQ$92,MATCH('Rate Trajectory Report'!$B11,'Rate Trajectory Calc'!$A$6:$A$92,0),MATCH('Rate Trajectory Report'!O$5,'Rate Trajectory Calc'!$A$6:$CQ$6,0))/1000) ->  | P11: =IF(INDEX('Rate Trajectory Calc'!$A$6:$CQ$92,MATCH('Rate Trajectory Report'!$B11,'Rate Trajectory Calc'!$A$6:$A$92,0),MATCH('Rate Trajectory Report'!P$5,'Rate Trajectory Calc'!$A$6:$CQ$6,0))=0," ",INDEX('Rate Trajectory Calc'!$A$6:$CQ$92,MATCH('Rate Trajectory Report'!$B11,'Rate Trajectory Calc'!$A$6:$A$92,0),MATCH('Rate Trajectory Report'!P$5,'Rate Trajectory Calc'!$A$6:$CQ$6,0))/1000) ->  | Q11: =IF(INDEX('Rate Trajectory Calc'!$A$6:$CQ$92,MATCH('Rate Trajectory Report'!$B11,'Rate Trajectory Calc'!$A$6:$A$92,0),MATCH('Rate Trajectory Report'!Q$5,'Rate Trajectory Calc'!$A$6:$CQ$6,0))=0," ",INDEX('Rate Trajectory Calc'!$A$6:$CQ$92,MATCH('Rate Trajectory Report'!$B11,'Rate Trajectory Calc'!$A$6:$A$92,0),MATCH('Rate Trajectory Report'!Q$5,'Rate Trajectory Calc'!$A$6:$CQ$6,0))/1000) ->  | R11: =IF(INDEX('Rate Trajectory Calc'!$A$6:$CQ$92,MATCH('Rate Trajectory Report'!$B11,'Rate Trajectory Calc'!$A$6:$A$92,0),MATCH('Rate Trajectory Report'!R$5,'Rate Trajectory Calc'!$A$6:$CQ$6,0))=0," ",INDEX('Rate Trajectory Calc'!$A$6:$CQ$92,MATCH('Rate Trajectory Report'!$B11,'Rate Trajectory Calc'!$A$6:$A$92,0),MATCH('Rate Trajectory Report'!R$5,'Rate Trajectory Calc'!$A$6:$CQ$6,0))/1000) ->  | S11: =IF(INDEX('Rate Trajectory Calc'!$A$6:$CQ$92,MATCH('Rate Trajectory Report'!$B11,'Rate Trajectory Calc'!$A$6:$A$92,0),MATCH('Rate Trajectory Report'!S$5,'Rate Trajectory Calc'!$A$6:$CQ$6,0))=0," ",INDEX('Rate Trajectory Calc'!$A$6:$CQ$92,MATCH('Rate Trajectory Report'!$B11,'Rate Trajectory Calc'!$A$6:$A$92,0),MATCH('Rate Trajectory Report'!S$5,'Rate Trajectory Calc'!$A$6:$CQ$6,0))/1000) ->  | T11: =IF(INDEX('Rate Trajectory Calc'!$A$6:$CQ$92,MATCH('Rate Trajectory Report'!$B11,'Rate Trajectory Calc'!$A$6:$A$92,0),MATCH('Rate Trajectory Report'!T$5,'Rate Trajectory Calc'!$A$6:$CQ$6,0))=0," ",INDEX('Rate Trajectory Calc'!$A$6:$CQ$92,MATCH('Rate Trajectory Report'!$B11,'Rate Trajectory Calc'!$A$6:$A$92,0),MATCH('Rate Trajectory Report'!T$5,'Rate Trajectory Calc'!$A$6:$CQ$6,0))/1000) ->  | U11: =IF(INDEX('Rate Trajectory Calc'!$A$6:$CQ$92,MATCH('Rate Trajectory Report'!$B11,'Rate Trajectory Calc'!$A$6:$A$92,0),MATCH('Rate Trajectory Report'!U$5,'Rate Trajectory Calc'!$A$6:$CQ$6,0))=0," ",INDEX('Rate Trajectory Calc'!$A$6:$CQ$92,MATCH('Rate Trajectory Report'!$B11,'Rate Trajectory Calc'!$A$6:$A$92,0),MATCH('Rate Trajectory Report'!U$5,'Rate Trajectory Calc'!$A$6:$CQ$6,0))/1000) ->  | V11: =IF(INDEX('Rate Trajectory Calc'!$A$6:$CQ$92,MATCH('Rate Trajectory Report'!$B11,'Rate Trajectory Calc'!$A$6:$A$92,0),MATCH('Rate Trajectory Report'!V$5,'Rate Trajectory Calc'!$A$6:$CQ$6,0))=0," ",INDEX('Rate Trajectory Calc'!$A$6:$CQ$92,MATCH('Rate Trajectory Report'!$B11,'Rate Trajectory Calc'!$A$6:$A$92,0),MATCH('Rate Trajectory Report'!V$5,'Rate Trajectory Calc'!$A$6:$CQ$6,0))/1000) ->  | W11: =IF(INDEX('Rate Trajectory Calc'!$A$6:$CQ$92,MATCH('Rate Trajectory Report'!$B11,'Rate Trajectory Calc'!$A$6:$A$92,0),MATCH('Rate Trajectory Report'!W$5,'Rate Trajectory Calc'!$A$6:$CQ$6,0))=0," ",INDEX('Rate Trajectory Calc'!$A$6:$CQ$92,MATCH('Rate Trajectory Report'!$B11,'Rate Trajectory Calc'!$A$6:$A$92,0),MATCH('Rate Trajectory Report'!W$5,'Rate Trajectory Calc'!$A$6:$CQ$6,0))/1000) ->  | X11: =IF(INDEX('Rate Trajectory Calc'!$A$6:$CQ$92,MATCH('Rate Trajectory Report'!$B11,'Rate Trajectory Calc'!$A$6:$A$92,0),MATCH('Rate Trajectory Report'!X$5,'Rate Trajectory Calc'!$A$6:$CQ$6,0))=0," ",INDEX('Rate Trajectory Calc'!$A$6:$CQ$92,MATCH('Rate Trajectory Report'!$B11,'Rate Trajectory Calc'!$A$6:$A$92,0),MATCH('Rate Trajectory Report'!X$5,'Rate Trajectory Calc'!$A$6:$CQ$6,0))/1000) ->  | Y11: =IF(INDEX('Rate Trajectory Calc'!$A$6:$CQ$92,MATCH('Rate Trajectory Report'!$B11,'Rate Trajectory Calc'!$A$6:$A$92,0),MATCH('Rate Trajectory Report'!Y$5,'Rate Trajectory Calc'!$A$6:$CQ$6,0))=0," ",INDEX('Rate Trajectory Calc'!$A$6:$CQ$92,MATCH('Rate Trajectory Report'!$B11,'Rate Trajectory Calc'!$A$6:$A$92,0),MATCH('Rate Trajectory Report'!Y$5,'Rate Trajectory Calc'!$A$6:$CQ$6,0))/1000) ->  | Z11: =IF(INDEX('Rate Trajectory Calc'!$A$6:$CQ$92,MATCH('Rate Trajectory Report'!$B11,'Rate Trajectory Calc'!$A$6:$A$92,0),MATCH('Rate Trajectory Report'!Z$5,'Rate Trajectory Calc'!$A$6:$CQ$6,0))=0," ",INDEX('Rate Trajectory Calc'!$A$6:$CQ$92,MATCH('Rate Trajectory Report'!$B11,'Rate Trajectory Calc'!$A$6:$A$92,0),MATCH('Rate Trajectory Report'!Z$5,'Rate Trajectory Calc'!$A$6:$CQ$6,0))/1000) ->  | AA11: =IF(INDEX('Rate Trajectory Calc'!$A$6:$CQ$92,MATCH('Rate Trajectory Report'!$B11,'Rate Trajectory Calc'!$A$6:$A$92,0),MATCH('Rate Trajectory Report'!AA$5,'Rate Trajectory Calc'!$A$6:$CQ$6,0))=0," ",INDEX('Rate Trajectory Calc'!$A$6:$CQ$92,MATCH('Rate Trajectory Report'!$B11,'Rate Trajectory Calc'!$A$6:$A$92,0),MATCH('Rate Trajectory Report'!AA$5,'Rate Trajectory Calc'!$A$6:$CQ$6,0))/1000) -> 
B12: ='Rate Trajectory Dashboard'!B16 -> Pension (Distribution) - Year 2029 | C12: =IFERROR(VLOOKUP(B12,'Rate Trajectory Dashboard'!$B$12:$D$96,3,FALSE)/1000,'Rate Trajectory Report'!C11) -> 37.80584365 | D12: =IF(INDEX('Rate Trajectory Calc'!$A$6:$CQ$92,MATCH('Rate Trajectory Report'!$B12,'Rate Trajectory Calc'!$A$6:$A$92,0),MATCH('Rate Trajectory Report'!D$5,'Rate Trajectory Calc'!$A$6:$CQ$6,0))=0," ",INDEX('Rate Trajectory Calc'!$A$6:$CQ$92,MATCH('Rate Trajectory Report'!$B12,'Rate Trajectory Calc'!$A$6:$A$92,0),MATCH('Rate Trajectory Report'!D$5,'Rate Trajectory Calc'!$A$6:$CQ$6,0))/1000) ->  | E12: =IF(INDEX('Rate Trajectory Calc'!$A$6:$CQ$92,MATCH('Rate Trajectory Report'!$B12,'Rate Trajectory Calc'!$A$6:$A$92,0),MATCH('Rate Trajectory Report'!E$5,'Rate Trajectory Calc'!$A$6:$CQ$6,0))=0," ",INDEX('Rate Trajectory Calc'!$A$6:$CQ$92,MATCH('Rate Trajectory Report'!$B12,'Rate Trajectory Calc'!$A$6:$A$92,0),MATCH('Rate Trajectory Report'!E$5,'Rate Trajectory Calc'!$A$6:$CQ$6,0))/1000) ->  | F12: =IF(INDEX('Rate Trajectory Calc'!$A$6:$CQ$92,MATCH('Rate Trajectory Report'!$B12,'Rate Trajectory Calc'!$A$6:$A$92,0),MATCH('Rate Trajectory Report'!F$5,'Rate Trajectory Calc'!$A$6:$CQ$6,0))=0," ",INDEX('Rate Trajectory Calc'!$A$6:$CQ$92,MATCH('Rate Trajectory Report'!$B12,'Rate Trajectory Calc'!$A$6:$A$92,0),MATCH('Rate Trajectory Report'!F$5,'Rate Trajectory Calc'!$A$6:$CQ$6,0))/1000) ->  | G12: =IF(INDEX('Rate Trajectory Calc'!$A$6:$CQ$92,MATCH('Rate Trajectory Report'!$B12,'Rate Trajectory Calc'!$A$6:$A$92,0),MATCH('Rate Trajectory Report'!G$5,'Rate Trajectory Calc'!$A$6:$CQ$6,0))=0," ",INDEX('Rate Trajectory Calc'!$A$6:$CQ$92,MATCH('Rate Trajectory Report'!$B12,'Rate Trajectory Calc'!$A$6:$A$92,0),MATCH('Rate Trajectory Report'!G$5,'Rate Trajectory Calc'!$A$6:$CQ$6,0))/1000) ->  | H12: =IF(INDEX('Rate Trajectory Calc'!$A$6:$CQ$92,MATCH('Rate Trajectory Report'!$B12,'Rate Trajectory Calc'!$A$6:$A$92,0),MATCH('Rate Trajectory Report'!H$5,'Rate Trajectory Calc'!$A$6:$CQ$6,0))=0," ",INDEX('Rate Trajectory Calc'!$A$6:$CQ$92,MATCH('Rate Trajectory Report'!$B12,'Rate Trajectory Calc'!$A$6:$A$92,0),MATCH('Rate Trajectory Report'!H$5,'Rate Trajectory Calc'!$A$6:$CQ$6,0))/1000) ->  | I12: =IF(INDEX('Rate Trajectory Calc'!$A$6:$CQ$92,MATCH('Rate Trajectory Report'!$B12,'Rate Trajectory Calc'!$A$6:$A$92,0),MATCH('Rate Trajectory Report'!I$5,'Rate Trajectory Calc'!$A$6:$CQ$6,0))=0," ",INDEX('Rate Trajectory Calc'!$A$6:$CQ$92,MATCH('Rate Trajectory Report'!$B12,'Rate Trajectory Calc'!$A$6:$A$92,0),MATCH('Rate Trajectory Report'!I$5,'Rate Trajectory Calc'!$A$6:$CQ$6,0))/1000) ->  | J12: =IF(INDEX('Rate Trajectory Calc'!$A$6:$CQ$92,MATCH('Rate Trajectory Report'!$B12,'Rate Trajectory Calc'!$A$6:$A$92,0),MATCH('Rate Trajectory Report'!J$5,'Rate Trajectory Calc'!$A$6:$CQ$6,0))=0," ",INDEX('Rate Trajectory Calc'!$A$6:$CQ$92,MATCH('Rate Trajectory Report'!$B12,'Rate Trajectory Calc'!$A$6:$A$92,0),MATCH('Rate Trajectory Report'!J$5,'Rate Trajectory Calc'!$A$6:$CQ$6,0))/1000) ->  | K12: =IF(INDEX('Rate Trajectory Calc'!$A$6:$CQ$92,MATCH('Rate Trajectory Report'!$B12,'Rate Trajectory Calc'!$A$6:$A$92,0),MATCH('Rate Trajectory Report'!K$5,'Rate Trajectory Calc'!$A$6:$CQ$6,0))=0," ",INDEX('Rate Trajectory Calc'!$A$6:$CQ$92,MATCH('Rate Trajectory Report'!$B12,'Rate Trajectory Calc'!$A$6:$A$92,0),MATCH('Rate Trajectory Report'!K$5,'Rate Trajectory Calc'!$A$6:$CQ$6,0))/1000) ->  | L12: =IF(INDEX('Rate Trajectory Calc'!$A$6:$CQ$92,MATCH('Rate Trajectory Report'!$B12,'Rate Trajectory Calc'!$A$6:$A$92,0),MATCH('Rate Trajectory Report'!L$5,'Rate Trajectory Calc'!$A$6:$CQ$6,0))=0," ",INDEX('Rate Trajectory Calc'!$A$6:$CQ$92,MATCH('Rate Trajectory Report'!$B12,'Rate Trajectory Calc'!$A$6:$A$92,0),MATCH('Rate Trajectory Report'!L$5,'Rate Trajectory Calc'!$A$6:$CQ$6,0))/1000) ->  | M12: =IF(INDEX('Rate Trajectory Calc'!$A$6:$CQ$92,MATCH('Rate Trajectory Report'!$B12,'Rate Trajectory Calc'!$A$6:$A$92,0),MATCH('Rate Trajectory Report'!M$5,'Rate Trajectory Calc'!$A$6:$CQ$6,0))=0," ",INDEX('Rate Trajectory Calc'!$A$6:$CQ$92,MATCH('Rate Trajectory Report'!$B12,'Rate Trajectory Calc'!$A$6:$A$92,0),MATCH('Rate Trajectory Report'!M$5,'Rate Trajectory Calc'!$A$6:$CQ$6,0))/1000) ->  | N12: =IF(INDEX('Rate Trajectory Calc'!$A$6:$CQ$92,MATCH('Rate Trajectory Report'!$B12,'Rate Trajectory Calc'!$A$6:$A$92,0),MATCH('Rate Trajectory Report'!N$5,'Rate Trajectory Calc'!$A$6:$CQ$6,0))=0," ",INDEX('Rate Trajectory Calc'!$A$6:$CQ$92,MATCH('Rate Trajectory Report'!$B12,'Rate Trajectory Calc'!$A$6:$A$92,0),MATCH('Rate Trajectory Report'!N$5,'Rate Trajectory Calc'!$A$6:$CQ$6,0))/1000) ->  | O12: =IF(INDEX('Rate Trajectory Calc'!$A$6:$CQ$92,MATCH('Rate Trajectory Report'!$B12,'Rate Trajectory Calc'!$A$6:$A$92,0),MATCH('Rate Trajectory Report'!O$5,'Rate Trajectory Calc'!$A$6:$CQ$6,0))=0," ",INDEX('Rate Trajectory Calc'!$A$6:$CQ$92,MATCH('Rate Trajectory Report'!$B12,'Rate Trajectory Calc'!$A$6:$A$92,0),MATCH('Rate Trajectory Report'!O$5,'Rate Trajectory Calc'!$A$6:$CQ$6,0))/1000) ->  | P12: =IF(INDEX('Rate Trajectory Calc'!$A$6:$CQ$92,MATCH('Rate Trajectory Report'!$B12,'Rate Trajectory Calc'!$A$6:$A$92,0),MATCH('Rate Trajectory Report'!P$5,'Rate Trajectory Calc'!$A$6:$CQ$6,0))=0," ",INDEX('Rate Trajectory Calc'!$A$6:$CQ$92,MATCH('Rate Trajectory Report'!$B12,'Rate Trajectory Calc'!$A$6:$A$92,0),MATCH('Rate Trajectory Report'!P$5,'Rate Trajectory Calc'!$A$6:$CQ$6,0))/1000) ->  | Q12: =IF(INDEX('Rate Trajectory Calc'!$A$6:$CQ$92,MATCH('Rate Trajectory Report'!$B12,'Rate Trajectory Calc'!$A$6:$A$92,0),MATCH('Rate Trajectory Report'!Q$5,'Rate Trajectory Calc'!$A$6:$CQ$6,0))=0," ",INDEX('Rate Trajectory Calc'!$A$6:$CQ$92,MATCH('Rate Trajectory Report'!$B12,'Rate Trajectory Calc'!$A$6:$A$92,0),MATCH('Rate Trajectory Report'!Q$5,'Rate Trajectory Calc'!$A$6:$CQ$6,0))/1000) ->  | R12: =IF(INDEX('Rate Trajectory Calc'!$A$6:$CQ$92,MATCH('Rate Trajectory Report'!$B12,'Rate Trajectory Calc'!$A$6:$A$92,0),MATCH('Rate Trajectory Report'!R$5,'Rate Trajectory Calc'!$A$6:$CQ$6,0))=0," ",INDEX('Rate Trajectory Calc'!$A$6:$CQ$92,MATCH('Rate Trajectory Report'!$B12,'Rate Trajectory Calc'!$A$6:$A$92,0),MATCH('Rate Trajectory Report'!R$5,'Rate Trajectory Calc'!$A$6:$CQ$6,0))/1000) ->  | S12: =IF(INDEX('Rate Trajectory Calc'!$A$6:$CQ$92,MATCH('Rate Trajectory Report'!$B12,'Rate Trajectory Calc'!$A$6:$A$92,0),MATCH('Rate Trajectory Report'!S$5,'Rate Trajectory Calc'!$A$6:$CQ$6,0))=0," ",INDEX('Rate Trajectory Calc'!$A$6:$CQ$92,MATCH('Rate Trajectory Report'!$B12,'Rate Trajectory Calc'!$A$6:$A$92,0),MATCH('Rate Trajectory Report'!S$5,'Rate Trajectory Calc'!$A$6:$CQ$6,0))/1000) ->  | T12: =IF(INDEX('Rate Trajectory Calc'!$A$6:$CQ$92,MATCH('Rate Trajectory Report'!$B12,'Rate Trajectory Calc'!$A$6:$A$92,0),MATCH('Rate Trajectory Report'!T$5,'Rate Trajectory Calc'!$A$6:$CQ$6,0))=0," ",INDEX('Rate Trajectory Calc'!$A$6:$CQ$92,MATCH('Rate Trajectory Report'!$B12,'Rate Trajectory Calc'!$A$6:$A$92,0),MATCH('Rate Trajectory Report'!T$5,'Rate Trajectory Calc'!$A$6:$CQ$6,0))/1000) ->  | U12: =IF(INDEX('Rate Trajectory Calc'!$A$6:$CQ$92,MATCH('Rate Trajectory Report'!$B12,'Rate Trajectory Calc'!$A$6:$A$92,0),MATCH('Rate Trajectory Report'!U$5,'Rate Trajectory Calc'!$A$6:$CQ$6,0))=0," ",INDEX('Rate Trajectory Calc'!$A$6:$CQ$92,MATCH('Rate Trajectory Report'!$B12,'Rate Trajectory Calc'!$A$6:$A$92,0),MATCH('Rate Trajectory Report'!U$5,'Rate Trajectory Calc'!$A$6:$CQ$6,0))/1000) ->  | V12: =IF(INDEX('Rate Trajectory Calc'!$A$6:$CQ$92,MATCH('Rate Trajectory Report'!$B12,'Rate Trajectory Calc'!$A$6:$A$92,0),MATCH('Rate Trajectory Report'!V$5,'Rate Trajectory Calc'!$A$6:$CQ$6,0))=0," ",INDEX('Rate Trajectory Calc'!$A$6:$CQ$92,MATCH('Rate Trajectory Report'!$B12,'Rate Trajectory Calc'!$A$6:$A$92,0),MATCH('Rate Trajectory Report'!V$5,'Rate Trajectory Calc'!$A$6:$CQ$6,0))/1000) ->  | W12: =IF(INDEX('Rate Trajectory Calc'!$A$6:$CQ$92,MATCH('Rate Trajectory Report'!$B12,'Rate Trajectory Calc'!$A$6:$A$92,0),MATCH('Rate Trajectory Report'!W$5,'Rate Trajectory Calc'!$A$6:$CQ$6,0))=0," ",INDEX('Rate Trajectory Calc'!$A$6:$CQ$92,MATCH('Rate Trajectory Report'!$B12,'Rate Trajectory Calc'!$A$6:$A$92,0),MATCH('Rate Trajectory Report'!W$5,'Rate Trajectory Calc'!$A$6:$CQ$6,0))/1000) ->  | X12: =IF(INDEX('Rate Trajectory Calc'!$A$6:$CQ$92,MATCH('Rate Trajectory Report'!$B12,'Rate Trajectory Calc'!$A$6:$A$92,0),MATCH('Rate Trajectory Report'!X$5,'Rate Trajectory Calc'!$A$6:$CQ$6,0))=0," ",INDEX('Rate Trajectory Calc'!$A$6:$CQ$92,MATCH('Rate Trajectory Report'!$B12,'Rate Trajectory Calc'!$A$6:$A$92,0),MATCH('Rate Trajectory Report'!X$5,'Rate Trajectory Calc'!$A$6:$CQ$6,0))/1000) ->  | Y12: =IF(INDEX('Rate Trajectory Calc'!$A$6:$CQ$92,MATCH('Rate Trajectory Report'!$B12,'Rate Trajectory Calc'!$A$6:$A$92,0),MATCH('Rate Trajectory Report'!Y$5,'Rate Trajectory Calc'!$A$6:$CQ$6,0))=0," ",INDEX('Rate Trajectory Calc'!$A$6:$CQ$92,MATCH('Rate Trajectory Report'!$B12,'Rate Trajectory Calc'!$A$6:$A$92,0),MATCH('Rate Trajectory Report'!Y$5,'Rate Trajectory Calc'!$A$6:$CQ$6,0))/1000) ->  | Z12: =IF(INDEX('Rate Trajectory Calc'!$A$6:$CQ$92,MATCH('Rate Trajectory Report'!$B12,'Rate Trajectory Calc'!$A$6:$A$92,0),MATCH('Rate Trajectory Report'!Z$5,'Rate Trajectory Calc'!$A$6:$CQ$6,0))=0," ",INDEX('Rate Trajectory Calc'!$A$6:$CQ$92,MATCH('Rate Trajectory Report'!$B12,'Rate Trajectory Calc'!$A$6:$A$92,0),MATCH('Rate Trajectory Report'!Z$5,'Rate Trajectory Calc'!$A$6:$CQ$6,0))/1000) ->  | AA12: =IF(INDEX('Rate Trajectory Calc'!$A$6:$CQ$92,MATCH('Rate Trajectory Report'!$B12,'Rate Trajectory Calc'!$A$6:$A$92,0),MATCH('Rate Trajectory Report'!AA$5,'Rate Trajectory Calc'!$A$6:$CQ$6,0))=0," ",INDEX('Rate Trajectory Calc'!$A$6:$CQ$92,MATCH('Rate Trajectory Report'!$B12,'Rate Trajectory Calc'!$A$6:$A$92,0),MATCH('Rate Trajectory Report'!AA$5,'Rate Trajectory Calc'!$A$6:$CQ$6,0))/1000) -> 
A13: 1a | B13: Pension (Distribution) | C13: =IFERROR(VLOOKUP(B13,'Rate Trajectory Dashboard'!$B$12:$D$96,3,FALSE)/1000,'Rate Trajectory Report'!C12) -> 37.80584365 | D13: =IF(SUM(D8:D12)=0," ",SUBTOTAL(9,D8:D12)) -> 5.163528925 | E13: =IF(SUM(E8:E12)=0," ",SUBTOTAL(9,E8:E12)) ->  | W13: =IF(SUM(W8:W12)=0," ",SUBTOTAL(9,W8:W12)) -> 
B14: ='Rate Trajectory Dashboard'!B17 -> Pension (ECPT) - Year 2025 | C14: =IFERROR(VLOOKUP(B14,'Rate Trajectory Dashboard'!$B$12:$D$96,3,FALSE)/1000,'Rate Trajectory Report'!C13) -> 18.01874025 | D14: =IF(INDEX('Rate Trajectory Calc'!$A$6:$CQ$92,MATCH('Rate Trajectory Report'!$B14,'Rate Trajectory Calc'!$A$6:$A$92,0),MATCH('Rate Trajectory Report'!D$5,'Rate Trajectory Calc'!$A$6:$CQ$6,0))=0," ",INDEX('Rate Trajectory Calc'!$A$6:$CQ$92,MATCH('Rate Trajectory Report'!$B14,'Rate Trajectory Calc'!$A$6:$A$92,0),MATCH('Rate Trajectory Report'!D$5,'Rate Trajectory Calc'!$A$6:$CQ$6,0))/1000) -> 2.461002784 | E14: =IF(INDEX('Rate Trajectory Calc'!$A$6:$CQ$92,MATCH('Rate Trajectory Report'!$B14,'Rate Trajectory Calc'!$A$6:$A$92,0),MATCH('Rate Trajectory Report'!E$5,'Rate Trajectory Calc'!$A$6:$CQ$6,0))=0," ",INDEX('Rate Trajectory Calc'!$A$6:$CQ$92,MATCH('Rate Trajectory Report'!$B14,'Rate Trajectory Calc'!$A$6:$A$92,0),MATCH('Rate Trajectory Report'!E$5,'Rate Trajectory Calc'!$A$6:$CQ$6,0))/1000) ->  | F14: =IF(INDEX('Rate Trajectory Calc'!$A$6:$CQ$92,MATCH('Rate Trajectory Report'!$B14,'Rate Trajectory Calc'!$A$6:$A$92,0),MATCH('Rate Trajectory Report'!F$5,'Rate Trajectory Calc'!$A$6:$CQ$6,0))=0," ",INDEX('Rate Trajectory Calc'!$A$6:$CQ$92,MATCH('Rate Trajectory Report'!$B14,'Rate Trajectory Calc'!$A$6:$A$92,0),MATCH('Rate Trajectory Report'!F$5,'Rate Trajectory Calc'!$A$6:$CQ$6,0))/1000) ->  | G14: =IF(INDEX('Rate Trajectory Calc'!$A$6:$CQ$92,MATCH('Rate Trajectory Report'!$B14,'Rate Trajectory Calc'!$A$6:$A$92,0),MATCH('Rate Trajectory Report'!G$5,'Rate Trajectory Calc'!$A$6:$CQ$6,0))=0," ",INDEX('Rate Trajectory Calc'!$A$6:$CQ$92,MATCH('Rate Trajectory Report'!$B14,'Rate Trajectory Calc'!$A$6:$A$92,0),MATCH('Rate Trajectory Report'!G$5,'Rate Trajectory Calc'!$A$6:$CQ$6,0))/1000) ->  | H14: =IF(INDEX('Rate Trajectory Calc'!$A$6:$CQ$92,MATCH('Rate Trajectory Report'!$B14,'Rate Trajectory Calc'!$A$6:$A$92,0),MATCH('Rate Trajectory Report'!H$5,'Rate Trajectory Calc'!$A$6:$CQ$6,0))=0," ",INDEX('Rate Trajectory Calc'!$A$6:$CQ$92,MATCH('Rate Trajectory Report'!$B14,'Rate Trajectory Calc'!$A$6:$A$92,0),MATCH('Rate Trajectory Report'!H$5,'Rate Trajectory Calc'!$A$6:$CQ$6,0))/1000) ->  | I14: =IF(INDEX('Rate Trajectory Calc'!$A$6:$CQ$92,MATCH('Rate Trajectory Report'!$B14,'Rate Trajectory Calc'!$A$6:$A$92,0),MATCH('Rate Trajectory Report'!I$5,'Rate Trajectory Calc'!$A$6:$CQ$6,0))=0," ",INDEX('Rate Trajectory Calc'!$A$6:$CQ$92,MATCH('Rate Trajectory Report'!$B14,'Rate Trajectory Calc'!$A$6:$A$92,0),MATCH('Rate Trajectory Report'!I$5,'Rate Trajectory Calc'!$A$6:$CQ$6,0))/1000) ->  | J14: =IF(INDEX('Rate Trajectory Calc'!$A$6:$CQ$92,MATCH('Rate Trajectory Report'!$B14,'Rate Trajectory Calc'!$A$6:$A$92,0),MATCH('Rate Trajectory Report'!J$5,'Rate Trajectory Calc'!$A$6:$CQ$6,0))=0," ",INDEX('Rate Trajectory Calc'!$A$6:$CQ$92,MATCH('Rate Trajectory Report'!$B14,'Rate Trajectory Calc'!$A$6:$A$92,0),MATCH('Rate Trajectory Report'!J$5,'Rate Trajectory Calc'!$A$6:$CQ$6,0))/1000) ->  | K14: =IF(INDEX('Rate Trajectory Calc'!$A$6:$CQ$92,MATCH('Rate Trajectory Report'!$B14,'Rate Trajectory Calc'!$A$6:$A$92,0),MATCH('Rate Trajectory Report'!K$5,'Rate Trajectory Calc'!$A$6:$CQ$6,0))=0," ",INDEX('Rate Trajectory Calc'!$A$6:$CQ$92,MATCH('Rate Trajectory Report'!$B14,'Rate Trajectory Calc'!$A$6:$A$92,0),MATCH('Rate Trajectory Report'!K$5,'Rate Trajectory Calc'!$A$6:$CQ$6,0))/1000) -> -2.461002784 | L14: =IF(INDEX('Rate Trajectory Calc'!$A$6:$CQ$92,MATCH('Rate Trajectory Report'!$B14,'Rate Trajectory Calc'!$A$6:$A$92,0),MATCH('Rate Trajectory Report'!L$5,'Rate Trajectory Calc'!$A$6:$CQ$6,0))=0," ",INDEX('Rate Trajectory Calc'!$A$6:$CQ$92,MATCH('Rate Trajectory Report'!$B14,'Rate Trajectory Calc'!$A$6:$A$92,0),MATCH('Rate Trajectory Report'!L$5,'Rate Trajectory Calc'!$A$6:$CQ$6,0))/1000) ->  | M14: =IF(INDEX('Rate Trajectory Calc'!$A$6:$CQ$92,MATCH('Rate Trajectory Report'!$B14,'Rate Trajectory Calc'!$A$6:$A$92,0),MATCH('Rate Trajectory Report'!M$5,'Rate Trajectory Calc'!$A$6:$CQ$6,0))=0," ",INDEX('Rate Trajectory Calc'!$A$6:$CQ$92,MATCH('Rate Trajectory Report'!$B14,'Rate Trajectory Calc'!$A$6:$A$92,0),MATCH('Rate Trajectory Report'!M$5,'Rate Trajectory Calc'!$A$6:$CQ$6,0))/1000) ->  | N14: =IF(INDEX('Rate Trajectory Calc'!$A$6:$CQ$92,MATCH('Rate Trajectory Report'!$B14,'Rate Trajectory Calc'!$A$6:$A$92,0),MATCH('Rate Trajectory Report'!N$5,'Rate Trajectory Calc'!$A$6:$CQ$6,0))=0," ",INDEX('Rate Trajectory Calc'!$A$6:$CQ$92,MATCH('Rate Trajectory Report'!$B14,'Rate Trajectory Calc'!$A$6:$A$92,0),MATCH('Rate Trajectory Report'!N$5,'Rate Trajectory Calc'!$A$6:$CQ$6,0))/1000) ->  | O14: =IF(INDEX('Rate Trajectory Calc'!$A$6:$CQ$92,MATCH('Rate Trajectory Report'!$B14,'Rate Trajectory Calc'!$A$6:$A$92,0),MATCH('Rate Trajectory Report'!O$5,'Rate Trajectory Calc'!$A$6:$CQ$6,0))=0," ",INDEX('Rate Trajectory Calc'!$A$6:$CQ$92,MATCH('Rate Trajectory Report'!$B14,'Rate Trajectory Calc'!$A$6:$A$92,0),MATCH('Rate Trajectory Report'!O$5,'Rate Trajectory Calc'!$A$6:$CQ$6,0))/1000) ->  | P14: =IF(INDEX('Rate Trajectory Calc'!$A$6:$CQ$92,MATCH('Rate Trajectory Report'!$B14,'Rate Trajectory Calc'!$A$6:$A$92,0),MATCH('Rate Trajectory Report'!P$5,'Rate Trajectory Calc'!$A$6:$CQ$6,0))=0," ",INDEX('Rate Trajectory Calc'!$A$6:$CQ$92,MATCH('Rate Trajectory Report'!$B14,'Rate Trajectory Calc'!$A$6:$A$92,0),MATCH('Rate Trajectory Report'!P$5,'Rate Trajectory Calc'!$A$6:$CQ$6,0))/1000) ->  | Q14: =IF(INDEX('Rate Trajectory Calc'!$A$6:$CQ$92,MATCH('Rate Trajectory Report'!$B14,'Rate Trajectory Calc'!$A$6:$A$92,0),MATCH('Rate Trajectory Report'!Q$5,'Rate Trajectory Calc'!$A$6:$CQ$6,0))=0," ",INDEX('Rate Trajectory Calc'!$A$6:$CQ$92,MATCH('Rate Trajectory Report'!$B14,'Rate Trajectory Calc'!$A$6:$A$92,0),MATCH('Rate Trajectory Report'!Q$5,'Rate Trajectory Calc'!$A$6:$CQ$6,0))/1000) ->  | R14: =IF(INDEX('Rate Trajectory Calc'!$A$6:$CQ$92,MATCH('Rate Trajectory Report'!$B14,'Rate Trajectory Calc'!$A$6:$A$92,0),MATCH('Rate Trajectory Report'!R$5,'Rate Trajectory Calc'!$A$6:$CQ$6,0))=0," ",INDEX('Rate Trajectory Calc'!$A$6:$CQ$92,MATCH('Rate Trajectory Report'!$B14,'Rate Trajectory Calc'!$A$6:$A$92,0),MATCH('Rate Trajectory Report'!R$5,'Rate Trajectory Calc'!$A$6:$CQ$6,0))/1000) ->  | S14: =IF(INDEX('Rate Trajectory Calc'!$A$6:$CQ$92,MATCH('Rate Trajectory Report'!$B14,'Rate Trajectory Calc'!$A$6:$A$92,0),MATCH('Rate Trajectory Report'!S$5,'Rate Trajectory Calc'!$A$6:$CQ$6,0))=0," ",INDEX('Rate Trajectory Calc'!$A$6:$CQ$92,MATCH('Rate Trajectory Report'!$B14,'Rate Trajectory Calc'!$A$6:$A$92,0),MATCH('Rate Trajectory Report'!S$5,'Rate Trajectory Calc'!$A$6:$CQ$6,0))/1000) ->  | T14: =IF(INDEX('Rate Trajectory Calc'!$A$6:$CQ$92,MATCH('Rate Trajectory Report'!$B14,'Rate Trajectory Calc'!$A$6:$A$92,0),MATCH('Rate Trajectory Report'!T$5,'Rate Trajectory Calc'!$A$6:$CQ$6,0))=0," ",INDEX('Rate Trajectory Calc'!$A$6:$CQ$92,MATCH('Rate Trajectory Report'!$B14,'Rate Trajectory Calc'!$A$6:$A$92,0),MATCH('Rate Trajectory Report'!T$5,'Rate Trajectory Calc'!$A$6:$CQ$6,0))/1000) ->  | U14: =IF(INDEX('Rate Trajectory Calc'!$A$6:$CQ$92,MATCH('Rate Trajectory Report'!$B14,'Rate Trajectory Calc'!$A$6:$A$92,0),MATCH('Rate Trajectory Report'!U$5,'Rate Trajectory Calc'!$A$6:$CQ$6,0))=0," ",INDEX('Rate Trajectory Calc'!$A$6:$CQ$92,MATCH('Rate Trajectory Report'!$B14,'Rate Trajectory Calc'!$A$6:$A$92,0),MATCH('Rate Trajectory Report'!U$5,'Rate Trajectory Calc'!$A$6:$CQ$6,0))/1000) ->  | V14: =IF(INDEX('Rate Trajectory Calc'!$A$6:$CQ$92,MATCH('Rate Trajectory Report'!$B14,'Rate Trajectory Calc'!$A$6:$A$92,0),MATCH('Rate Trajectory Report'!V$5,'Rate Trajectory Calc'!$A$6:$CQ$6,0))=0," ",INDEX('Rate Trajectory Calc'!$A$6:$CQ$92,MATCH('Rate Trajectory Report'!$B14,'Rate Trajectory Calc'!$A$6:$A$92,0),MATCH('Rate Trajectory Report'!V$5,'Rate Trajectory Calc'!$A$6:$CQ$6,0))/1000) ->  | W14: =IF(INDEX('Rate Trajectory Calc'!$A$6:$CQ$92,MATCH('Rate Trajectory Report'!$B14,'Rate Trajectory Calc'!$A$6:$A$92,0),MATCH('Rate Trajectory Report'!W$5,'Rate Trajectory Calc'!$A$6:$CQ$6,0))=0," ",INDEX('Rate Trajectory Calc'!$A$6:$CQ$92,MATCH('Rate Trajectory Report'!$B14,'Rate Trajectory Calc'!$A$6:$A$92,0),MATCH('Rate Trajectory Report'!W$5,'Rate Trajectory Calc'!$A$6:$CQ$6,0))/1000) ->  | X14: =IF(INDEX('Rate Trajectory Calc'!$A$6:$CQ$92,MATCH('Rate Trajectory Report'!$B14,'Rate Trajectory Calc'!$A$6:$A$92,0),MATCH('Rate Trajectory Report'!X$5,'Rate Trajectory Calc'!$A$6:$CQ$6,0))=0," ",INDEX('Rate Trajectory Calc'!$A$6:$CQ$92,MATCH('Rate Trajectory Report'!$B14,'Rate Trajectory Calc'!$A$6:$A$92,0),MATCH('Rate Trajectory Report'!X$5,'Rate Trajectory Calc'!$A$6:$CQ$6,0))/1000) ->  | Y14: =IF(INDEX('Rate Trajectory Calc'!$A$6:$CQ$92,MATCH('Rate Trajectory Report'!$B14,'Rate Trajectory Calc'!$A$6:$A$92,0),MATCH('Rate Trajectory Report'!Y$5,'Rate Trajectory Calc'!$A$6:$CQ$6,0))=0," ",INDEX('Rate Trajectory Calc'!$A$6:$CQ$92,MATCH('Rate Trajectory Report'!$B14,'Rate Trajectory Calc'!$A$6:$A$92,0),MATCH('Rate Trajectory Report'!Y$5,'Rate Trajectory Calc'!$A$6:$CQ$6,0))/1000) ->  | Z14: =IF(INDEX('Rate Trajectory Calc'!$A$6:$CQ$92,MATCH('Rate Trajectory Report'!$B14,'Rate Trajectory Calc'!$A$6:$A$92,0),MATCH('Rate Trajectory Report'!Z$5,'Rate Trajectory Calc'!$A$6:$CQ$6,0))=0," ",INDEX('Rate Trajectory Calc'!$A$6:$CQ$92,MATCH('Rate Trajectory Report'!$B14,'Rate Trajectory Calc'!$A$6:$A$92,0),MATCH('Rate Trajectory Report'!Z$5,'Rate Trajectory Calc'!$A$6:$CQ$6,0))/1000) ->  | AA14: =IF(INDEX('Rate Trajectory Calc'!$A$6:$CQ$92,MATCH('Rate Trajectory Report'!$B14,'Rate Trajectory Calc'!$A$6:$A$92,0),MATCH('Rate Trajectory Report'!AA$5,'Rate Trajectory Calc'!$A$6:$CQ$6,0))=0," ",INDEX('Rate Trajectory Calc'!$A$6:$CQ$92,MATCH('Rate Trajectory Report'!$B14,'Rate Trajectory Calc'!$A$6:$A$92,0),MATCH('Rate Trajectory Report'!AA$5,'Rate Trajectory Calc'!$A$6:$CQ$6,0))/1000) -> 
B15: ='Rate Trajectory Dashboard'!B18 -> Pension (ECPT) - Year 2026 | C15: =IFERROR(VLOOKUP(B15,'Rate Trajectory Dashboard'!$B$12:$D$96,3,FALSE)/1000,'Rate Trajectory Report'!C14) -> 18.01874025 | D15: =IF(INDEX('Rate Trajectory Calc'!$A$6:$CQ$92,MATCH('Rate Trajectory Report'!$B15,'Rate Trajectory Calc'!$A$6:$A$92,0),MATCH('Rate Trajectory Report'!D$5,'Rate Trajectory Calc'!$A$6:$CQ$6,0))=0," ",INDEX('Rate Trajectory Calc'!$A$6:$CQ$92,MATCH('Rate Trajectory Report'!$B15,'Rate Trajectory Calc'!$A$6:$A$92,0),MATCH('Rate Trajectory Report'!D$5,'Rate Trajectory Calc'!$A$6:$CQ$6,0))/1000) ->  | E15: =IF(INDEX('Rate Trajectory Calc'!$A$6:$CQ$92,MATCH('Rate Trajectory Report'!$B15,'Rate Trajectory Calc'!$A$6:$A$92,0),MATCH('Rate Trajectory Report'!E$5,'Rate Trajectory Calc'!$A$6:$CQ$6,0))=0," ",INDEX('Rate Trajectory Calc'!$A$6:$CQ$92,MATCH('Rate Trajectory Report'!$B15,'Rate Trajectory Calc'!$A$6:$A$92,0),MATCH('Rate Trajectory Report'!E$5,'Rate Trajectory Calc'!$A$6:$CQ$6,0))/1000) ->  | F15: =IF(INDEX('Rate Trajectory Calc'!$A$6:$CQ$92,MATCH('Rate Trajectory Report'!$B15,'Rate Trajectory Calc'!$A$6:$A$92,0),MATCH('Rate Trajectory Report'!F$5,'Rate Trajectory Calc'!$A$6:$CQ$6,0))=0," ",INDEX('Rate Trajectory Calc'!$A$6:$CQ$92,MATCH('Rate Trajectory Report'!$B15,'Rate Trajectory Calc'!$A$6:$A$92,0),MATCH('Rate Trajectory Report'!F$5,'Rate Trajectory Calc'!$A$6:$CQ$6,0))/1000) ->  | G15: =IF(INDEX('Rate Trajectory Calc'!$A$6:$CQ$92,MATCH('Rate Trajectory Report'!$B15,'Rate Trajectory Calc'!$A$6:$A$92,0),MATCH('Rate Trajectory Report'!G$5,'Rate Trajectory Calc'!$A$6:$CQ$6,0))=0," ",INDEX('Rate Trajectory Calc'!$A$6:$CQ$92,MATCH('Rate Trajectory Report'!$B15,'Rate Trajectory Calc'!$A$6:$A$92,0),MATCH('Rate Trajectory Report'!G$5,'Rate Trajectory Calc'!$A$6:$CQ$6,0))/1000) ->  | H15: =IF(INDEX('Rate Trajectory Calc'!$A$6:$CQ$92,MATCH('Rate Trajectory Report'!$B15,'Rate Trajectory Calc'!$A$6:$A$92,0),MATCH('Rate Trajectory Report'!H$5,'Rate Trajectory Calc'!$A$6:$CQ$6,0))=0," ",INDEX('Rate Trajectory Calc'!$A$6:$CQ$92,MATCH('Rate Trajectory Report'!$B15,'Rate Trajectory Calc'!$A$6:$A$92,0),MATCH('Rate Trajectory Report'!H$5,'Rate Trajectory Calc'!$A$6:$CQ$6,0))/1000) ->  | I15: =IF(INDEX('Rate Trajectory Calc'!$A$6:$CQ$92,MATCH('Rate Trajectory Report'!$B15,'Rate Trajectory Calc'!$A$6:$A$92,0),MATCH('Rate Trajectory Report'!I$5,'Rate Trajectory Calc'!$A$6:$CQ$6,0))=0," ",INDEX('Rate Trajectory Calc'!$A$6:$CQ$92,MATCH('Rate Trajectory Report'!$B15,'Rate Trajectory Calc'!$A$6:$A$92,0),MATCH('Rate Trajectory Report'!I$5,'Rate Trajectory Calc'!$A$6:$CQ$6,0))/1000) ->  | J15: =IF(INDEX('Rate Trajectory Calc'!$A$6:$CQ$92,MATCH('Rate Trajectory Report'!$B15,'Rate Trajectory Calc'!$A$6:$A$92,0),MATCH('Rate Trajectory Report'!J$5,'Rate Trajectory Calc'!$A$6:$CQ$6,0))=0," ",INDEX('Rate Trajectory Calc'!$A$6:$CQ$92,MATCH('Rate Trajectory Report'!$B15,'Rate Trajectory Calc'!$A$6:$A$92,0),MATCH('Rate Trajectory Report'!J$5,'Rate Trajectory Calc'!$A$6:$CQ$6,0))/1000) ->  | K15: =IF(INDEX('Rate Trajectory Calc'!$A$6:$CQ$92,MATCH('Rate Trajectory Report'!$B15,'Rate Trajectory Calc'!$A$6:$A$92,0),MATCH('Rate Trajectory Report'!K$5,'Rate Trajectory Calc'!$A$6:$CQ$6,0))=0," ",INDEX('Rate Trajectory Calc'!$A$6:$CQ$92,MATCH('Rate Trajectory Report'!$B15,'Rate Trajectory Calc'!$A$6:$A$92,0),MATCH('Rate Trajectory Report'!K$5,'Rate Trajectory Calc'!$A$6:$CQ$6,0))/1000) -> 2.461002784 | L15: =IF(INDEX('Rate Trajectory Calc'!$A$6:$CQ$92,MATCH('Rate Trajectory Report'!$B15,'Rate Trajectory Calc'!$A$6:$A$92,0),MATCH('Rate Trajectory Report'!L$5,'Rate Trajectory Calc'!$A$6:$CQ$6,0))=0," ",INDEX('Rate Trajectory Calc'!$A$6:$CQ$92,MATCH('Rate Trajectory Report'!$B15,'Rate Trajectory Calc'!$A$6:$A$92,0),MATCH('Rate Trajectory Report'!L$5,'Rate Trajectory Calc'!$A$6:$CQ$6,0))/1000) ->  | M15: =IF(INDEX('Rate Trajectory Calc'!$A$6:$CQ$92,MATCH('Rate Trajectory Report'!$B15,'Rate Trajectory Calc'!$A$6:$A$92,0),MATCH('Rate Trajectory Report'!M$5,'Rate Trajectory Calc'!$A$6:$CQ$6,0))=0," ",INDEX('Rate Trajectory Calc'!$A$6:$CQ$92,MATCH('Rate Trajectory Report'!$B15,'Rate Trajectory Calc'!$A$6:$A$92,0),MATCH('Rate Trajectory Report'!M$5,'Rate Trajectory Calc'!$A$6:$CQ$6,0))/1000) ->  | N15: =IF(INDEX('Rate Trajectory Calc'!$A$6:$CQ$92,MATCH('Rate Trajectory Report'!$B15,'Rate Trajectory Calc'!$A$6:$A$92,0),MATCH('Rate Trajectory Report'!N$5,'Rate Trajectory Calc'!$A$6:$CQ$6,0))=0," ",INDEX('Rate Trajectory Calc'!$A$6:$CQ$92,MATCH('Rate Trajectory Report'!$B15,'Rate Trajectory Calc'!$A$6:$A$92,0),MATCH('Rate Trajectory Report'!N$5,'Rate Trajectory Calc'!$A$6:$CQ$6,0))/1000) ->  | O15: =IF(INDEX('Rate Trajectory Calc'!$A$6:$CQ$92,MATCH('Rate Trajectory Report'!$B15,'Rate Trajectory Calc'!$A$6:$A$92,0),MATCH('Rate Trajectory Report'!O$5,'Rate Trajectory Calc'!$A$6:$CQ$6,0))=0," ",INDEX('Rate Trajectory Calc'!$A$6:$CQ$92,MATCH('Rate Trajectory Report'!$B15,'Rate Trajectory Calc'!$A$6:$A$92,0),MATCH('Rate Trajectory Report'!O$5,'Rate Trajectory Calc'!$A$6:$CQ$6,0))/1000) ->  | P15: =IF(INDEX('Rate Trajectory Calc'!$A$6:$CQ$92,MATCH('Rate Trajectory Report'!$B15,'Rate Trajectory Calc'!$A$6:$A$92,0),MATCH('Rate Trajectory Report'!P$5,'Rate Trajectory Calc'!$A$6:$CQ$6,0))=0," ",INDEX('Rate Trajectory Calc'!$A$6:$CQ$92,MATCH('Rate Trajectory Report'!$B15,'Rate Trajectory Calc'!$A$6:$A$92,0),MATCH('Rate Trajectory Report'!P$5,'Rate Trajectory Calc'!$A$6:$CQ$6,0))/1000) ->  | Q15: =IF(INDEX('Rate Trajectory Calc'!$A$6:$CQ$92,MATCH('Rate Trajectory Report'!$B15,'Rate Trajectory Calc'!$A$6:$A$92,0),MATCH('Rate Trajectory Report'!Q$5,'Rate Trajectory Calc'!$A$6:$CQ$6,0))=0," ",INDEX('Rate Trajectory Calc'!$A$6:$CQ$92,MATCH('Rate Trajectory Report'!$B15,'Rate Trajectory Calc'!$A$6:$A$92,0),MATCH('Rate Trajectory Report'!Q$5,'Rate Trajectory Calc'!$A$6:$CQ$6,0))/1000) ->  | R15: =IF(INDEX('Rate Trajectory Calc'!$A$6:$CQ$92,MATCH('Rate Trajectory Report'!$B15,'Rate Trajectory Calc'!$A$6:$A$92,0),MATCH('Rate Trajectory Report'!R$5,'Rate Trajectory Calc'!$A$6:$CQ$6,0))=0," ",INDEX('Rate Trajectory Calc'!$A$6:$CQ$92,MATCH('Rate Trajectory Report'!$B15,'Rate Trajectory Calc'!$A$6:$A$92,0),MATCH('Rate Trajectory Report'!R$5,'Rate Trajectory Calc'!$A$6:$CQ$6,0))/1000) ->  | S15: =IF(INDEX('Rate Trajectory Calc'!$A$6:$CQ$92,MATCH('Rate Trajectory Report'!$B15,'Rate Trajectory Calc'!$A$6:$A$92,0),MATCH('Rate Trajectory Report'!S$5,'Rate Trajectory Calc'!$A$6:$CQ$6,0))=0," ",INDEX('Rate Trajectory Calc'!$A$6:$CQ$92,MATCH('Rate Trajectory Report'!$B15,'Rate Trajectory Calc'!$A$6:$A$92,0),MATCH('Rate Trajectory Report'!S$5,'Rate Trajectory Calc'!$A$6:$CQ$6,0))/1000) ->  | T15: =IF(INDEX('Rate Trajectory Calc'!$A$6:$CQ$92,MATCH('Rate Trajectory Report'!$B15,'Rate Trajectory Calc'!$A$6:$A$92,0),MATCH('Rate Trajectory Report'!T$5,'Rate Trajectory Calc'!$A$6:$CQ$6,0))=0," ",INDEX('Rate Trajectory Calc'!$A$6:$CQ$92,MATCH('Rate Trajectory Report'!$B15,'Rate Trajectory Calc'!$A$6:$A$92,0),MATCH('Rate Trajectory Report'!T$5,'Rate Trajectory Calc'!$A$6:$CQ$6,0))/1000) ->  | U15: =IF(INDEX('Rate Trajectory Calc'!$A$6:$CQ$92,MATCH('Rate Trajectory Report'!$B15,'Rate Trajectory Calc'!$A$6:$A$92,0),MATCH('Rate Trajectory Report'!U$5,'Rate Trajectory Calc'!$A$6:$CQ$6,0))=0," ",INDEX('Rate Trajectory Calc'!$A$6:$CQ$92,MATCH('Rate Trajectory Report'!$B15,'Rate Trajectory Calc'!$A$6:$A$92,0),MATCH('Rate Trajectory Report'!U$5,'Rate Trajectory Calc'!$A$6:$CQ$6,0))/1000) ->  | V15: =IF(INDEX('Rate Trajectory Calc'!$A$6:$CQ$92,MATCH('Rate Trajectory Report'!$B15,'Rate Trajectory Calc'!$A$6:$A$92,0),MATCH('Rate Trajectory Report'!V$5,'Rate Trajectory Calc'!$A$6:$CQ$6,0))=0," ",INDEX('Rate Trajectory Calc'!$A$6:$CQ$92,MATCH('Rate Trajectory Report'!$B15,'Rate Trajectory Calc'!$A$6:$A$92,0),MATCH('Rate Trajectory Report'!V$5,'Rate Trajectory Calc'!$A$6:$CQ$6,0))/1000) ->  | W15: =IF(INDEX('Rate Trajectory Calc'!$A$6:$CQ$92,MATCH('Rate Trajectory Report'!$B15,'Rate Trajectory Calc'!$A$6:$A$92,0),MATCH('Rate Trajectory Report'!W$5,'Rate Trajectory Calc'!$A$6:$CQ$6,0))=0," ",INDEX('Rate Trajectory Calc'!$A$6:$CQ$92,MATCH('Rate Trajectory Report'!$B15,'Rate Trajectory Calc'!$A$6:$A$92,0),MATCH('Rate Trajectory Report'!W$5,'Rate Trajectory Calc'!$A$6:$CQ$6,0))/1000) -> -2.461002784 | X15: =IF(INDEX('Rate Trajectory Calc'!$A$6:$CQ$92,MATCH('Rate Trajectory Report'!$B15,'Rate Trajectory Calc'!$A$6:$A$92,0),MATCH('Rate Trajectory Report'!X$5,'Rate Trajectory Calc'!$A$6:$CQ$6,0))=0," ",INDEX('Rate Trajectory Calc'!$A$6:$CQ$92,MATCH('Rate Trajectory Report'!$B15,'Rate Trajectory Calc'!$A$6:$A$92,0),MATCH('Rate Trajectory Report'!X$5,'Rate Trajectory Calc'!$A$6:$CQ$6,0))/1000) ->  | Y15: =IF(INDEX('Rate Trajectory Calc'!$A$6:$CQ$92,MATCH('Rate Trajectory Report'!$B15,'Rate Trajectory Calc'!$A$6:$A$92,0),MATCH('Rate Trajectory Report'!Y$5,'Rate Trajectory Calc'!$A$6:$CQ$6,0))=0," ",INDEX('Rate Trajectory Calc'!$A$6:$CQ$92,MATCH('Rate Trajectory Report'!$B15,'Rate Trajectory Calc'!$A$6:$A$92,0),MATCH('Rate Trajectory Report'!Y$5,'Rate Trajectory Calc'!$A$6:$CQ$6,0))/1000) ->  | Z15: =IF(INDEX('Rate Trajectory Calc'!$A$6:$CQ$92,MATCH('Rate Trajectory Report'!$B15,'Rate Trajectory Calc'!$A$6:$A$92,0),MATCH('Rate Trajectory Report'!Z$5,'Rate Trajectory Calc'!$A$6:$CQ$6,0))=0," ",INDEX('Rate Trajectory Calc'!$A$6:$CQ$92,MATCH('Rate Trajectory Report'!$B15,'Rate Trajectory Calc'!$A$6:$A$92,0),MATCH('Rate Trajectory Report'!Z$5,'Rate Trajectory Calc'!$A$6:$CQ$6,0))/1000) ->  | AA15: =IF(INDEX('Rate Trajectory Calc'!$A$6:$CQ$92,MATCH('Rate Trajectory Report'!$B15,'Rate Trajectory Calc'!$A$6:$A$92,0),MATCH('Rate Trajectory Report'!AA$5,'Rate Trajectory Calc'!$A$6:$CQ$6,0))=0," ",INDEX('Rate Trajectory Calc'!$A$6:$CQ$92,MATCH('Rate Trajectory Report'!$B15,'Rate Trajectory Calc'!$A$6:$A$92,0),MATCH('Rate Trajectory Report'!AA$5,'Rate Trajectory Calc'!$A$6:$CQ$6,0))/1000) -> 
